Workbook

Sheet Age profile chart

Sheet Forecast Ch1

Sheet Age profile summary
A1: Asset calcs | R1: Remaining life | W1: RC ($ millions) | AB1: RC (%)
R2: Very old | S2: Old | T2: moderate | U2: young | V2: new | W2: =R2 -> Very old | X2: =S2 -> Old | Y2: moderate | Z2: young | AA2: new | AB2: Very old | AC2: Old | AD2: moderate | AE2: young | AF2: new
M3: WARL | O3: WAL | Q3: WAA | R3: > | S3: > | T3: > | U3: > | V3: <=0.2 | W3: =R3 -> > | X3: > | Y3: > | Z3: > | AA3: <=0.2 | AB3: > | AC3: > | AD3: > | AE3: > | AF3: <=0.2
F4: Quantity | G4: Unit | H4: RC | I4: prop total | J4: Rank | K4: prop cat | L4: RC / unit | M4: (Rep life) | O4: Rep life | Q4: % Rep life | R4: =W4 -> 0.9 | S4: =X4 -> 0.8 | T4: =Y4 -> 0.4 | U4: =Z4 -> 0.2 | W4: 0.9 | X4: 0.8 | Y4: 0.4 | Z4: 0.2 | AA4: 0 | AB4: 0.9 | AC4: 0.8 | AD4: 0.4 | AE4: 0.2 | AF4: 0 | AG4: Std life | AH4: Std life | AI4: rep life
G5: Cost | H5: $ millions | I5: % | J5: total | K5: % | L5: $ ('000) | AG5: max | AH5: min
A6: 1 | D6: =VLOOKUP(A6,IDtable,2) -> POLES STAKED | F6: =SUMIF($A$21:$A$205,$A6,F$21:F$205) -> 29408 | H6: =SUMIF($A$21:$A$205,$A6,H$21:H$205)/1000 -> 307.0048564 | I6: =H6/($H$18) -> 0.06470798161 | J6: =RANK(I6,I$6:I$17) -> 7 | L6: =H6*1000/(F6+0.001) -> 10.43950102 | M6: =SUMIF($A$21:$A$205,$A6,N$21:N$205)/(H6*1000+0.000001) -> 14.70576034 | O6: =SUMIF($A$21:$A$205,$A6,P$21:P$205)/(H6*1000+0.000001) -> 25.36810933 | Q6: =(O6-M6)/(O6+0.000001) -> 0.420305212 | R6: =$O6-R$4*$O6 -> 2.536810933 | S6: =$O6-S$4*$O6 -> 5.073621865 | T6: =$O6-T$4*$O6 -> 15.2208656 | U6: =$O6-U$4*$O6 -> 20.29448746 | V6: =$O6-V$4*$O6 -> 25.36810933 | W6: =SUMIF($A$21:$A$205,$A6,W$21:W$205)/1000 -> 20.12735865 | X6: 11.97410808 | Y6: 108.9361969 | Z6: 85.58303227 | AA6: 80.38416059 | AB6: =IF($H6=0,0,W6/$H6) -> 0.06556039173 | AC6: =IF($H6=0,0,X6/$H6) -> 0.03900299238 | AD6: =IF($H6=0,0,Y6/$H6) -> 0.3548354189 | AE6: =IF($H6=0,0,Z6/$H6) -> 0.2787676823 | AF6: =IF($H6=0,0,AA6/$H6) -> 0.2618335147 | AG6: =MAX(IF($A$21:$A$205=$A6,$O$21:$O$205)) -> 25.36810933 | AH6: =MIN(IF($A$21:$A$205=$A6,$O$21:$O$205)) -> 25.36810933 | AI6: =IF(H6=0,0,SUMIF($A$21:$A$205,$A6,$AJ$21:$AJ$205)/(H6*1000)) -> 25.36810933
A7: 2 | D7: POLES | F7: =SUMIF($A$21:$A$205,$A7,F$21:F$205) -> 227349 | H7: =SUMIF($A$21:$A$205,$A7,H$21:H$205)/1000 -> 912.7862964 | I7: =H7/($H$18) -> 0.1923896565 | J7: 2 | L7: 4.014912282 | M7: 33.91810401 | O7: 62.22011993 | Q7: 0.4548691886 | R7: =$O7-R$4*$O7 -> 6.222011993 | S7: 12.44402399 | T7: 37.33207196 | U7: 49.77609594 | V7: 62.22011993 | W7: 71.63407524 | X7: 51.3616773 | Y7: 356.0828641 | Z7: 228.3942884 | AA7: 205.3133913 | AB7: =IF($H7=0,0,W7/$H7) -> 0.07847847357 | AC7: =IF($H7=0,0,X7/$H7) -> 0.05626911523 | AD7: =IF($H7=0,0,Y7/$H7) -> 0.3901054009 | AE7: =IF($H7=0,0,Z7/$H7) -> 0.2502166052 | AF7: =IF($H7=0,0,AA7/$H7) -> 0.224930405 | AG7: =MAX(IF($A$21:$A$205=$A7,$O$21:$O$205)) -> 69.89578216 | AH7: =MIN(IF($A$21:$A$205=$A7,$O$21:$O$205)) -> 35 | AI7: =IF(H7=0,0,SUMIF($A$21:$A$205,$A7,$AJ$21:$AJ$205)/(H7*1000)) -> 62.22011993
A8: 3 | D8: OVERHEAD CONDUCTORS | F8: 20163.945 | H8: 1143.014835 | I8: 0.2409153515 | J8: 1 | L8: 56.68606902 | M8: 41.11683612 | O8: 72.08796517 | Q8: 0.4296296691 | R8: 7.208796517 | S8: 14.41759303 | T8: 43.2527791 | U8: 57.67037214 | V8: 72.08796517 | W8: 3.202012 | X8: 28.18181961 | Y8: 598.2223523 | Z8: 336.6492056 | AA8: 176.7594451 | AB8: 0.002801373966 | AC8: 0.02465569016 | AD8: 0.5233723432 | AE8: 0.2945274159 | AF8: 0.1546431768 | AG8: =MAX(IF($A$21:$A$205=$A8,$O$21:$O$205)) -> 87.00627353 | AH8: =MIN(IF($A$21:$A$205=$A8,$O$21:$O$205)) -> 59.01628646 | AI8: 72.08796517
A9: 4 | D9: UNDERGROUND CABLES | F9: 2465.291 | H9: 617.4193333 | I9: 0.1301346152 | J9: 4 | L9: 250.4447073 | M9: 45.3691199 | O9: 66.03513332 | Q9: 0.3129548176 | R9: 6.603513332 | S9: 13.20702666 | T9: 39.62107999 | U9: 52.82810665 | V9: 66.03513332 | W9: 0.008445516813 | X9: 5.408316719 | Y9: 223.0518446 | Z9: 133.6260209 | AA9: 255.3247055 | AB9: 1.367873722e-05 | AC9: 0.00875955194 | AD9: 0.3612647557 | AE9: 0.2164266872 | AF9: 0.4135353264 | AG9: =MAX(IF($A$21:$A$205=$A9,$O$21:$O$205)) -> 67.88620914 | AH9: =MIN(IF($A$21:$A$205=$A9,$O$21:$O$205)) -> 60.92304471 | AI9: 66.03513332
A10: 5 | D10: SERVICE LINES | F10: 146370 | H10: 488.111434 | I10: 0.10288015 | J10: 6 | L10: 3.334777828 | M10: 26.70606497 | O10: 58.52379709 | Q10: 0.5436716884 | R10: 5.852379709 | S10: 11.70475942 | T10: 35.11427825 | U10: 46.81903767 | V10: 58.52379709 | W10: 34.0014117 | X10: 74.93536673 | Y10: 224.0577793 | Z10: 95.27093081 | AA10: 59.84594544 | AB10: 0.06965911743 | AC10: 0.1535210231 | AD10: 0.4590299749 | AE10: 0.1951827476 | AF10: 0.122607137 | AG10: =MAX(IF($A$21:$A$205=$A10,$O$21:$O$205)) -> 61.1129461 | AH10: =MIN(IF($A$21:$A$205=$A10,$O$21:$O$205)) -> 58.42652998 | AI10: 58.52379709
A11: 6 | D11: TRANSFORMERS | F11: 31891 | H11: 560.6156718 | I11: 0.1181620024 | J11: 5 | L11: 17.57911806 | M11: 33.10925479 | O11: 54.31760491 | Q11: 0.3904507529 | R11: 5.431760491 | S11: 10.86352098 | T11: 32.59056295 | U11: 43.45408393 | V11: 54.31760491 | W11: 8.32249138 | X11: 19.41724267 | Y11: 221.6850887 | Z11: 182.5966481 | AA11: 128.5942009 | AB11: 0.01484527065 | AC11: 0.03463556881 | AD11: 0.3954314869 | AE11: 0.3257073559 | AF11: 0.2293803177 | AG11: =MAX(IF($A$21:$A$205=$A11,$O$21:$O$205)) -> 58.74924905 | AH11: =MIN(IF($A$21:$A$205=$A11,$O$21:$O$205)) -> 40 | AI11: 54.31760491
A12: 7 | D12: SWITCHGEAR | F12: 58645 | H12: 715.514157 | I12: 0.1508102427 | J12: 3 | L12: 12.2007698 | M12: 38.26800988 | O12: 59.73294776 | Q12: 0.3593483718 | R12: 5.973294776 | S12: 11.94658955 | T12: 35.83976866 | U12: 47.78635821 | V12: 59.73294776 | W12: 13.96368132 | X12: 26.61444632 | Y12: 236.0178609 | Z12: 200.4188129 | AA12: 238.4993556 | AB12: 0.01951559055 | AC12: 0.03719625399 | AD12: 0.3298577095 | AE12: 0.2801046086 | AF12: 0.3333258374 | AG12: =MAX(IF($A$21:$A$205=$A12,$O$21:$O$205)) -> 63.21489131 | AH12: =MIN(IF($A$21:$A$205=$A12,$O$21:$O$205)) -> 48.72648553 | AI12: 59.73294776
A13: 8 | D13: unused | F13: 0 | H13: 0 | I13: 0 | J13: 8 | L13: 0 | M13: 0 | O13: 0 | Q13: 0 | R13: 0 | S13: 0 | T13: 0 | U13: 0 | V13: 0 | W13: 0 | X13: 0 | Y13: 0 | Z13: 0 | AA13: 0 | AB13: 0 | AC13: 0 | AD13: 0 | AE13: 0 | AF13: 0 | AG13: =MAX(IF($A$21:$A$205=$A13,$O$21:$O$205)) -> 0 | AH13: =MIN(IF($A$21:$A$205=$A13,$O$21:$O$205)) -> 0 | AI13: 0
A14: 9 | D14: =VLOOKUP(A14,IDtable,2) -> unused | F14: =SUMIF($A$21:$A$205,$A14,F$21:F$205) -> 0 | H14: =SUMIF($A$21:$A$205,$A14,H$21:H$205)/1000 -> 0 | I14: =H14/($H$18) -> 0 | J14: 8 | L14: 0 | M14: 0 | O14: 0 | Q14: 0 | R14: =$O14-R$4*$O14 -> 0 | S14: 0 | T14: 0 | U14: 0 | V14: 0 | W14: 0 | X14: 0 | Y14: 0 | Z14: 0 | AA14: 0 | AB14: 0 | AC14: 0 | AD14: 0 | AE14: 0 | AF14: 0 | AG14: =MAX(IF($A$21:$A$205=$A14,$O$21:$O$205)) -> 0 | AH14: =MIN(IF($A$21:$A$205=$A14,$O$21:$O$205)) -> 0 | AI14: 0
A15: 10 | D15: =VLOOKUP(A15,IDtable,2) -> unused | F15: =SUMIF($A$21:$A$205,$A15,F$21:F$205) -> 0 | H15: =SUMIF($A$21:$A$205,$A15,H$21:H$205)/1000 -> 0 | I15: =H15/($H$18) -> 0 | J15: 8 | L15: 0 | M15: 0 | O15: 0 | Q15: 0 | R15: 0 | S15: 0 | T15: 0 | U15: 0 | V15: 0 | W15: 0 | X15: 0 | Y15: 0 | Z15: 0 | AA15: 0 | AB15: 0 | AC15: 0 | AD15: 0 | AE15: 0 | AF15: 0 | AG15: =MAX(IF($A$21:$A$205=$A15,$O$21:$O$205)) -> 0 | AH15: =MIN(IF($A$21:$A$205=$A15,$O$21:$O$205)) -> 0 | AI15: 0
A16: 11 | D16: =VLOOKUP(A16,IDtable,2) -> unused | F16: =SUMIF($A$21:$A$205,$A16,F$21:F$205) -> 0 | H16: =SUMIF($A$21:$A$205,$A16,H$21:H$205)/1000 -> 0 | I16: =H16/($H$18) -> 0 | J16: 8 | L16: 0 | M16: 0 | O16: 0 | Q16: 0 | R16: 0 | S16: 0 | T16: 0 | U16: 0 | V16: 0 | W16: 0 | X16: 0 | Y16: 0 | Z16: 0 | AA16: 0 | AB16: 0 | AC16: 0 | AD16: 0 | AE16: 0 | AF16: 0 | AG16: =MAX(IF($A$21:$A$205=$A16,$O$21:$O$205)) -> 0 | AH16: =MIN(IF($A$21:$A$205=$A16,$O$21:$O$205)) -> 0 | AI16: 0
A17: 12 | D17: =VLOOKUP(A17,IDtable,2) -> unused | F17: =SUMIF($A$21:$A$205,$A17,F$21:F$205) -> 0 | H17: =SUMIF($A$21:$A$205,$A17,H$21:H$205)/1000 -> 0 | I17: =H17/($H$18) -> 0 | J17: =RANK(I17,I$6:I$17) -> 8 | L17: =H17*1000/(F17+0.001) -> 0 | M17: =SUMIF($A$21:$A$205,$A17,N$21:N$205)/(H17*1000+0.000001) -> 0 | O17: =SUMIF($A$21:$A$205,$A17,P$21:P$205)/(H17*1000+0.000001) -> 0 | Q17: =(O17-M17)/(O17+0.000001) -> 0 | R17: 0 | S17: 0 | T17: 0 | U17: 0 | V17: 0 | W17: 0 | X17: 0 | Y17: 0 | Z17: 0 | AA17: 0 | AB17: 0 | AC17: 0 | AD17: 0 | AE17: 0 | AF17: 0 | AG17: =MAX(IF($A$21:$A$205=$A17,$O$21:$O$205)) -> 0 | AH17: =MIN(IF($A$21:$A$205=$A17,$O$21:$O$205)) -> 0 | AI17: 0
D18: Total | H18: =SUM(H6:H17) -> 4744.466583 | M18: =SUMPRODUCT(M6:M17,$H6:$H17)/$H18 -> 35.71783011 | O18: =SUMPRODUCT(O6:O17,$H6:$H17)/$H18 -> 61.02013512 | Q18: =SUMPRODUCT(Q6:Q17,$H6:$H17)/$H18 -> 0.4152027492 | W18: =SUM(W6:W17) -> 151.2594758 | X18: =SUM(X6:X17) -> 217.8929774 | Y18: =SUM(Y6:Y17) -> 1968.053987 | Z18: =SUM(Z6:Z17) -> 1262.538939 | AA18: =SUM(AA6:AA17) -> 1144.721204 | AB18: =W18/$H18 -> 0.03188123958 | AC18: =X18/$H18 -> 0.045925706 | AD18: =Y18/$H18 -> 0.4148103801 | AE18: =Z18/$H18 -> 0.2661076681 | AF18: =AA18/$H18 -> 0.2412750062
D20: EDB categories
A21: ='Asset data'!A21 -> 1 | B21: ='Asset data'!B21 -> 0 | C21: ='Asset data'!C21 -> 0 | D21: ='Asset data'!E21 -> Staking of a wooden pole | E21: =IF(A21>0,VLOOKUP(A21,IDtable,2),0) -> POLES STAKED | F21: =IF(A21>0,SUM('Asset data'!J21:CV21),0) -> 29408 | G21: =IF(A21>0,'Asset data'!F21,0) -> 10.43950138 | H21: =IF(A21>0,SUM('Asset data'!CX21:GJ21),0) -> 307004.8564 | I21: =H21/$H$18/1000 -> 0.06470798161 | J21: =IF(RANK(0,I$21:I$205)=RANK(I21,I$21:I$205),0,RANK(I21,I$21:I$205)) -> 5 | K21: =IF(A21>0,H21/(VLOOKUP(A21,$A$6:$H$17,8)*1000),0) -> 1 | L21: =IF($A21>0,H21/F21,0) -> 10.43950138 | M21: =IF($A21>0,SUMPRODUCT('Age profile (years)'!$CT21:$GF21,'Asset data'!$CX21:$GJ21)/H21-0.5,0) -> 14.70576034 | N21: =IF($A21>0,M21*H21,0) -> 4514739.841 | O21: =IF($A21>0,'Asset data'!G21,0) -> 25.36810933 | P21: =IF($A21>0,H21*O21,0) -> 7788132.762 | Q21: =IF($A21>0,(O21-M21)/O21,0) -> 0.4203052286 | R21: =IF($A21>0,$O21-R$4*$O21,0) -> 2.536810933 | S21: 5.073621865 | T21: 15.2208656 | U21: 20.29448746 | W21: =IF($A21>0,SUMIF('Age profile (years)'!$CT21:$GF21,"<" & R21+0.5,'Asset data'!$CX21:$GJ21),0) -> 20127.35865 | X21: =IF($A21>0,SUMIF('Age profile (years)'!$CT21:$GF21,"<" & S21+0.5,'Asset data'!$CX21:$GJ21)-W21,0) -> 11974.10808 | Y21: =IF($A21>0,SUMIF('Age profile (years)'!$CT21:$GF21,"<" & T21+0.5,'Asset data'!$CX21:$GJ21)-X21-W21,0) -> 108936.1969 | Z21: =IF($A21>0,SUMIF('Age profile (years)'!$CT21:$GF21,"<" & U21+0.5,'Asset data'!$CX21:$GJ21)-Y21-X21-W21,0) -> 85583.03227 | AA21: =IF($A21>0,H21-Z21-Y21-X21-W21,0) -> 80384.16059 | AB21: =IF($A21>0,W21/$H21,0) -> 0.06556039173 | AC21: 0.03900299238 | AD21: 0.3548354189 | AE21: 0.2787676823 | AF21: 0.2618335147 | AI21: =IF($A21>0,'RRR hist-forc'!K21,0) -> 25.36810933 | AJ21: =IF($A21>0,AI21*H21,0) -> 7788132.762
A22: ='Asset data'!A22 -> 2 | B22: ='Asset data'!B22 -> 0 | C22: ='Asset data'!C22 -> 0 | D22: ='Asset data'!E22 -> ˂ = 1 kV; Wood | E22: POLES | F22: =IF(A22>0,SUM('Asset data'!J22:CV22),0) -> 50241 | G22: =IF(A22>0,'Asset data'!F22,0) -> 2.747960879 | H22: =IF(A22>0,SUM('Asset data'!CX22:GJ22),0) -> 138060.3025 | I22: 0.0290992254 | J22: 12 | K22: =IF(A22>0,H22/(VLOOKUP(A22,$A$6:$H$17,8)*1000),0) -> 0.1512515066 | L22: =IF($A22>0,H22/F22,0) -> 2.747960879 | M22: =IF($A22>0,SUMPRODUCT('Age profile (years)'!$CT22:$GF22,'Asset data'!$CX22:$GJ22)/H22-0.5,0) -> 36.80214367 | N22: =IF($A22>0,M22*H22,0) -> 5080915.088 | O22: =IF($A22>0,'Asset data'!G22,0) -> 65.90482069 | P22: =IF($A22>0,H22*O22,0) -> 9098839.481 | Q22: =IF($A22>0,(O22-M22)/O22,0) -> 0.4415864684 | R22: 6.590482069 | S22: 13.18096414 | T22: 39.54289241 | U22: 52.72385655 | W22: =IF($A22>0,SUMIF('Age profile (years)'!$CT22:$GF22,"<" & R22+0.5,'Asset data'!$CX22:$GJ22),0) -> 8.243882636 | X22: =IF($A22>0,SUMIF('Age profile (years)'!$CT22:$GF22,"<" & S22+0.5,'Asset data'!$CX22:$GJ22)-W22,0) -> 3822.413582 | Y22: =IF($A22>0,SUMIF('Age profile (years)'!$CT22:$GF22,"<" & T22+0.5,'Asset data'!$CX22:$GJ22)-X22-W22,0) -> 75423.28224 | Z22: =IF($A22>0,SUMIF('Age profile (years)'!$CT22:$GF22,"<" & U22+0.5,'Asset data'!$CX22:$GJ22)-Y22-X22-W22,0) -> 34275.31604 | AA22: =IF($A22>0,H22-Z22-Y22-X22-W22,0) -> 24531.04676 | AB22: 5.971218726e-05 | AC22: 0.02768655083 | AD22: 0.5463068012 | AE22: 0.2482633706 | AF22: 0.1776835652 | AI22: =IF($A22>0,'RRR hist-forc'!K22,0) -> 65.90482069 | AJ22: =IF($A22>0,AI22*H22,0) -> 9098839.481
A23: ='Asset data'!A23 -> 2 | B23: ='Asset data'!B23 -> 0 | C23: ='Asset data'!C23 -> 0 | D23: ='Asset data'!E23 -> > 1 kV & < = 11 kV; Wood | E23: =IF(A23>0,VLOOKUP(A23,IDtable,2),0) -> POLES | F23: =IF(A23>0,SUM('Asset data'!J23:CV23),0) -> 34471 | G23: =IF(A23>0,'Asset data'!F23,0) -> 2.95879707 | H23: =IF(A23>0,SUM('Asset data'!CX23:GJ23),0) -> 101992.6938 | I23: =H23/$H$18/1000 -> 0.02149718878 | J23: =IF(RANK(0,I$21:I$205)=RANK(I23,I$21:I$205),0,RANK(I23,I$21:I$205)) -> 15 | K23: =IF(A23>0,H23/(VLOOKUP(A23,$A$6:$H$17,8)*1000),0) -> 0.1117377575 | L23: =IF($A23>0,H23/F23,0) -> 2.95879707 | M23: =IF($A23>0,SUMPRODUCT('Age profile (years)'!$CT23:$GF23,'Asset data'!$CX23:$GJ23)/H23-0.5,0) -> 41.06946419 | N23: =IF($A23>0,M23*H23,0) -> 4188785.285 | O23: =IF($A23>0,'Asset data'!G23,0) -> 69.89578216 | P23: =IF($A23>0,H23*O23,0) -> 7128859.108 | Q23: =IF($A23>0,(O23-M23)/O23,0) -> 0.4124185621 | R23: 6.989578216 | S23: 13.97915643 | T23: 41.9374693 | U23: 55.91662573 | W23: =IF($A23>0,SUMIF('Age profile (years)'!$CT23:$GF23,"<" & R23+0.5,'Asset data'!$CX23:$GJ23),0) -> 0 | X23: =IF($A23>0,SUMIF('Age profile (years)'!$CT23:$GF23,"<" & S23+0.5,'Asset data'!$CX23:$GJ23)-W23,0) -> 2.95879707 | Y23: =IF($A23>0,SUMIF('Age profile (years)'!$CT23:$GF23,"<" & T23+0.5,'Asset data'!$CX23:$GJ23)-X23-W23,0) -> 54548.38278 | Z23: =IF($A23>0,SUMIF('Age profile (years)'!$CT23:$GF23,"<" & U23+0.5,'Asset data'!$CX23:$GJ23)-Y23-X23-W23,0) -> 29191.49189 | AA23: =IF($A23>0,H23-Z23-Y23-X23-W23,0) -> 18249.86033 | AB23: =IF($A23>0,W23/$H23,0) -> 0 | AC23: =IF($A23>0,X23/$H23,0) -> 2.900989237e-05 | AD23: =IF($A23>0,Y23/$H23,0) -> 0.5348263758 | AE23: =IF($A23>0,Z23/$H23,0) -> 0.2862115982 | AF23: =IF($A23>0,AA23/$H23,0) -> 0.1789330162 | AI23: =IF($A23>0,'RRR hist-forc'!K23,0) -> 69.89578216 | AJ23: =IF($A23>0,AI23*H23,0) -> 7128859.108
A24: ='Asset data'!A24 -> 2 | B24: ='Asset data'!B24 -> 0 | C24: ='Asset data'!C24 -> 0 | D24: ='Asset data'!E24 -> ˃ 11 kV & < = 22 kV; Wood | E24: POLES | F24: =IF(A24>0,SUM('Asset data'!J24:CV24),0) -> 119983 | G24: =IF(A24>0,'Asset data'!F24,0) -> 3.806554202 | H24: =IF(A24>0,SUM('Asset data'!CX24:GJ24),0) -> 456721.7928 | I24: 0.09626409729 | J24: 3 | K24: 0.5003600455 | L24: 3.806554202 | M24: =IF($A24>0,SUMPRODUCT('Age profile (years)'!$CT24:$GF24,'Asset data'!$CX24:$GJ24)/H24-0.5,0) -> 34.99371161 | N24: 15982390.7 | O24: =IF($A24>0,'Asset data'!G24,0) -> 63.43770213 | P24: 28973381.05 | Q24: 0.4483767471 | R24: 6.343770213 | S24: 12.68754043 | T24: 38.06262128 | U24: 50.75016171 | W24: =IF($A24>0,SUMIF('Age profile (years)'!$CT24:$GF24,"<" & R24+0.5,'Asset data'!$CX24:$GJ24),0) -> 19.03277101 | X24: =IF($A24>0,SUMIF('Age profile (years)'!$CT24:$GF24,"<" & S24+0.5,'Asset data'!$CX24:$GJ24)-W24,0) -> 38986.72813 | Y24: =IF($A24>0,SUMIF('Age profile (years)'!$CT24:$GF24,"<" & T24+0.5,'Asset data'!$CX24:$GJ24)-X24-W24,0) -> 207906.3774 | Z24: =IF($A24>0,SUMIF('Age profile (years)'!$CT24:$GF24,"<" & U24+0.5,'Asset data'!$CX24:$GJ24)-Y24-X24-W24,0) -> 124177.4112 | AA24: 85632.24332 | AB24: 4.167257028e-05 | AC24: 0.08536209296 | AD24: 0.4552144887 | AE24: 0.2718885175 | AF24: 0.1874932282 | AI24: =IF($A24>0,'RRR hist-forc'!K24,0) -> 63.43770213 | AJ24: 28973381.05
A25: ='Asset data'!A25 -> 2 | B25: ='Asset data'!B25 -> 0 | C25: ='Asset data'!C25 -> 0 | D25: ='Asset data'!E25 -> > 22 kV & < = 66 kV; Wood | E25: POLES | F25: =IF(A25>0,SUM('Asset data'!J25:CV25),0) -> 881 | G25: =IF(A25>0,'Asset data'!F25,0) -> 4.61214396 | H25: =IF(A25>0,SUM('Asset data'!CX25:GJ25),0) -> 4063.298829 | I25: 0.000856429012 | J25: 36 | K25: 0.004451533557 | L25: 4.61214396 | M25: =IF($A25>0,SUMPRODUCT('Age profile (years)'!$CT25:$GF25,'Asset data'!$CX25:$GJ25)/H25-0.5,0) -> 34.55561862 | N25: 140409.8046 | O25: =IF($A25>0,'Asset data'!G25,0) -> 63.66862425 | P25: 258704.6463 | Q25: 0.4572582803 | R25: 6.366862425 | S25: 12.73372485 | T25: 38.20117455 | U25: 50.9348994 | W25: =IF($A25>0,SUMIF('Age profile (years)'!$CT25:$GF25,"<" & R25+0.5,'Asset data'!$CX25:$GJ25),0) -> 0 | X25: =IF($A25>0,SUMIF('Age profile (years)'!$CT25:$GF25,"<" & S25+0.5,'Asset data'!$CX25:$GJ25)-W25,0) -> 9.22428792 | Y25: =IF($A25>0,SUMIF('Age profile (years)'!$CT25:$GF25,"<" & T25+0.5,'Asset data'!$CX25:$GJ25)-X25-W25,0) -> 2665.819209 | Z25: =IF($A25>0,SUMIF('Age profile (years)'!$CT25:$GF25,"<" & U25+0.5,'Asset data'!$CX25:$GJ25)-Y25-X25-W25,0) -> 641.0880104 | AA25: 747.1673215 | AB25: 0 | AC25: 0.00227014756 | AD25: 0.6560726447 | AE25: 0.1577752554 | AF25: 0.1838819523 | AI25: =IF($A25>0,'RRR hist-forc'!K25,0) -> 63.66862425 | AJ25: 258704.6463
A26: ='Asset data'!A26 -> 0 | B26: ='Asset data'!B26 -> 0 | C26: ='Asset data'!C26 -> 0 | D26: ='Asset data'!E26 ->  | E26: 0 | F26: =IF(A26>0,SUM('Asset data'!J26:CV26),0) -> 0 | G26: =IF(A26>0,'Asset data'!F26,0) -> 0 | H26: =IF(A26>0,SUM('Asset data'!CX26:GJ26),0) -> 0 | I26: 0 | J26: 0 | K26: 0 | L26: 0 | M26: =IF($A26>0,SUMPRODUCT('Age profile (years)'!$CT26:$GF26,'Asset data'!$CX26:$GJ26)/H26-0.5,0) -> 0 | N26: 0 | O26: =IF($A26>0,'Asset data'!G26,0) -> 0 | P26: 0 | Q26: 0 | R26: 0 | S26: 0 | T26: 0 | U26: 0 | W26: =IF($A26>0,SUMIF('Age profile (years)'!$CT26:$GF26,"<" & R26+0.5,'Asset data'!$CX26:$GJ26),0) -> 0 | X26: =IF($A26>0,SUMIF('Age profile (years)'!$CT26:$GF26,"<" & S26+0.5,'Asset data'!$CX26:$GJ26)-W26,0) -> 0 | Y26: =IF($A26>0,SUMIF('Age profile (years)'!$CT26:$GF26,"<" & T26+0.5,'Asset data'!$CX26:$GJ26)-X26-W26,0) -> 0 | Z26: =IF($A26>0,SUMIF('Age profile (years)'!$CT26:$GF26,"<" & U26+0.5,'Asset data'!$CX26:$GJ26)-Y26-X26-W26,0) -> 0 | AA26: 0 | AB26: 0 | AC26: 0 | AD26: 0 | AE26: 0 | AF26: 0 | AI26: =IF($A26>0,'RRR hist-forc'!K26,0) -> 0 | AJ26: 0
A27: ='Asset data'!A27 -> 0 | B27: ='Asset data'!B27 -> 0 | C27: ='Asset data'!C27 -> 0 | D27: ='Asset data'!E27 ->  | E27: 0 | F27: =IF(A27>0,SUM('Asset data'!J27:CV27),0) -> 0 | G27: =IF(A27>0,'Asset data'!F27,0) -> 0 | H27: =IF(A27>0,SUM('Asset data'!CX27:GJ27),0) -> 0 | I27: 0 | J27: 0 | K27: 0 | L27: 0 | M27: =IF($A27>0,SUMPRODUCT('Age profile (years)'!$CT27:$GF27,'Asset data'!$CX27:$GJ27)/H27-0.5,0) -> 0 | N27: 0 | O27: =IF($A27>0,'Asset data'!G27,0) -> 0 | P27: 0 | Q27: 0 | R27: 0 | S27: 0 | T27: 0 | U27: 0 | W27: =IF($A27>0,SUMIF('Age profile (years)'!$CT27:$GF27,"<" & R27+0.5,'Asset data'!$CX27:$GJ27),0) -> 0 | X27: =IF($A27>0,SUMIF('Age profile (years)'!$CT27:$GF27,"<" & S27+0.5,'Asset data'!$CX27:$GJ27)-W27,0) -> 0 | Y27: =IF($A27>0,SUMIF('Age profile (years)'!$CT27:$GF27,"<" & T27+0.5,'Asset data'!$CX27:$GJ27)-X27-W27,0) -> 0 | Z27: =IF($A27>0,SUMIF('Age profile (years)'!$CT27:$GF27,"<" & U27+0.5,'Asset data'!$CX27:$GJ27)-Y27-X27-W27,0) -> 0 | AA27: 0 | AB27: 0 | AC27: 0 | AD27: 0 | AE27: 0 | AF27: 0 | AI27: =IF($A27>0,'RRR hist-forc'!K27,0) -> 0 | AJ27: 0
A28: ='Asset data'!A28 -> 2 | B28: ='Asset data'!B28 -> 0 | C28: ='Asset data'!C28 -> 0 | D28: ='Asset data'!E28 -> ˂ = 1 kV; Concrete | E28: POLES | F28: =IF(A28>0,SUM('Asset data'!J28:CV28),0) -> 4008 | G28: =IF(A28>0,'Asset data'!F28,0) -> 10.71278679 | H28: =IF(A28>0,SUM('Asset data'!CX28:GJ28),0) -> 42936.84944 | I28: 0.009049879198 | J28: 23 | K28: 0.04703932301 | L28: 10.71278679 | M28: =IF($A28>0,SUMPRODUCT('Age profile (years)'!$CT28:$GF28,'Asset data'!$CX28:$GJ28)/H28-0.5,0) -> 0.1883732535 | N28: 8088.154024 | O28: =IF($A28>0,'Asset data'!G28,0) -> 51.36933777 | P28: 2205637.522 | Q28: 0.9963329632 | R28: 5.136933777 | S28: 10.27386755 | T28: 30.82160266 | U28: 41.09547022 | W28: =IF($A28>0,SUMIF('Age profile (years)'!$CT28:$GF28,"<" & R28+0.5,'Asset data'!$CX28:$GJ28),0) -> 37109.09343 | X28: =IF($A28>0,SUMIF('Age profile (years)'!$CT28:$GF28,"<" & S28+0.5,'Asset data'!$CX28:$GJ28)-W28,0) -> 3267.39997 | Y28: =IF($A28>0,SUMIF('Age profile (years)'!$CT28:$GF28,"<" & T28+0.5,'Asset data'!$CX28:$GJ28)-X28-W28,0) -> 2046.142276 | Z28: =IF($A28>0,SUMIF('Age profile (years)'!$CT28:$GF28,"<" & U28+0.5,'Asset data'!$CX28:$GJ28)-Y28-X28-W28,0) -> 149.979015 | AA28: 364.2347507 | AB28: 0.8642714571 | AC28: 0.07609780439 | AD28: 0.04765469062 | AE28: 0.003493013972 | AF28: 0.008483033932 | AI28: =IF($A28>0,'RRR hist-forc'!K28,0) -> 51.36933777 | AJ28: 2205637.522
A29: ='Asset data'!A29 -> 2 | B29: ='Asset data'!B29 -> 0 | C29: ='Asset data'!C29 -> 0 | D29: ='Asset data'!E29 -> > 1 kV & < = 11 kV; Concrete | E29: POLES | F29: =IF(A29>0,SUM('Asset data'!J29:CV29),0) -> 1280 | G29: =IF(A29>0,'Asset data'!F29,0) -> 9.591421901 | H29: =IF(A29>0,SUM('Asset data'!CX29:GJ29),0) -> 12277.02003 | I29: 0.002587650227 | J29: 32 | K29: 0.01345004858 | L29: 9.591421901 | M29: =IF($A29>0,SUMPRODUCT('Age profile (years)'!$CT29:$GF29,'Asset data'!$CX29:$GJ29)/H29-0.5,0) -> -0.18515625 | N29: -2273.16699 | O29: =IF($A29>0,'Asset data'!G29,0) -> 49.74742343 | P29: 610750.114 | Q29: 1.003721926 | R29: 4.974742343 | S29: 9.949484686 | T29: 29.84845406 | U29: 39.79793874 | W29: =IF($A29>0,SUMIF('Age profile (years)'!$CT29:$GF29,"<" & R29+0.5,'Asset data'!$CX29:$GJ29),0) -> 10368.32707 | X29: =IF($A29>0,SUMIF('Age profile (years)'!$CT29:$GF29,"<" & S29+0.5,'Asset data'!$CX29:$GJ29)-W29,0) -> 326.1083446 | Y29: =IF($A29>0,SUMIF('Age profile (years)'!$CT29:$GF29,"<" & T29+0.5,'Asset data'!$CX29:$GJ29)-X29-W29,0) -> 1304.433378 | Z29: =IF($A29>0,SUMIF('Age profile (years)'!$CT29:$GF29,"<" & U29+0.5,'Asset data'!$CX29:$GJ29)-Y29-X29-W29,0) -> 86.32279711 | AA29: 191.828438 | AB29: 0.84453125 | AC29: 0.0265625 | AD29: 0.10625 | AE29: 0.00703125 | AF29: 0.015625 | AI29: =IF($A29>0,'RRR hist-forc'!K29,0) -> 49.74742343 | AJ29: 610750.114
A30: ='Asset data'!A30 -> 2 | B30: ='Asset data'!B30 -> 0 | C30: ='Asset data'!C30 -> 0 | D30: ='Asset data'!E30 -> ˃ 11 kV & < = 22 kV; Concrete | E30: POLES | F30: =IF(A30>0,SUM('Asset data'!J30:CV30),0) -> 1091 | G30: =IF(A30>0,'Asset data'!F30,0) -> 14.7259446 | H30: =IF(A30>0,SUM('Asset data'!CX30:GJ30),0) -> 16066.00556 | I30: 0.003386261717 | J30: 31 | K30: 0.01760105911 | L30: 14.7259446 | M30: =IF($A30>0,SUMPRODUCT('Age profile (years)'!$CT30:$GF30,'Asset data'!$CX30:$GJ30)/H30-0.5,0) -> 10.03070577 | N30: 161153.3748 | O30: =IF($A30>0,'Asset data'!G30,0) -> 44.79409927 | P30: 719662.248 | Q30: 0.7760708232 | R30: 4.479409927 | S30: 8.958819854 | T30: 26.87645956 | U30: 35.83527942 | W30: =IF($A30>0,SUMIF('Age profile (years)'!$CT30:$GF30,"<" & R30+0.5,'Asset data'!$CX30:$GJ30),0) -> 9247.89321 | X30: =IF($A30>0,SUMIF('Age profile (years)'!$CT30:$GF30,"<" & S30+0.5,'Asset data'!$CX30:$GJ30)-W30,0) -> 765.7491193 | Y30: =IF($A30>0,SUMIF('Age profile (years)'!$CT30:$GF30,"<" & T30+0.5,'Asset data'!$CX30:$GJ30)-X30-W30,0) -> 942.4604545 | Z30: =IF($A30>0,SUMIF('Age profile (years)'!$CT30:$GF30,"<" & U30+0.5,'Asset data'!$CX30:$GJ30)-Y30-X30-W30,0) -> 1398.964737 | AA30: 3710.93804 | AB30: 0.5756186984 | AC30: 0.04766269478 | AD30: 0.05866177819 | AE30: 0.08707607699 | AF30: 0.2309807516 | AI30: =IF($A30>0,'RRR hist-forc'!K30,0) -> 44.79409927 | AJ30: 719662.248
A31: ='Asset data'!A31 -> 2 | B31: ='Asset data'!B31 -> 0 | C31: ='Asset data'!C31 -> 0 | D31: ='Asset data'!E31 -> > 22 kV & < = 66 kV; Concrete | E31: POLES | F31: =IF(A31>0,SUM('Asset data'!J31:CV31),0) -> 381 | G31: =IF(A31>0,'Asset data'!F31,0) -> 20.14096235 | H31: =IF(A31>0,SUM('Asset data'!CX31:GJ31),0) -> 7673.706654 | I31: 0.001617401349 | J31: 34 | K31: 0.008406903877 | L31: 20.14096235 | M31: =IF($A31>0,SUMPRODUCT('Age profile (years)'!$CT31:$GF31,'Asset data'!$CX31:$GJ31)/H31-0.5,0) -> -1.707349081 | N31: -13101.69601 | O31: =IF($A31>0,'Asset data'!G31,0) -> 48.4701832 | P31: 371945.9673 | Q31: 1.035224729 | R31: 4.84701832 | S31: 9.694036639 | T31: 29.08210992 | U31: 38.77614656 | W31: =IF($A31>0,SUMIF('Age profile (years)'!$CT31:$GF31,"<" & R31+0.5,'Asset data'!$CX31:$GJ31),0) -> 6767.363349 | X31: =IF($A31>0,SUMIF('Age profile (years)'!$CT31:$GF31,"<" & S31+0.5,'Asset data'!$CX31:$GJ31)-W31,0) -> 80.56384939 | Y31: =IF($A31>0,SUMIF('Age profile (years)'!$CT31:$GF31,"<" & T31+0.5,'Asset data'!$CX31:$GJ31)-X31-W31,0) -> 664.6517574 | Z31: =IF($A31>0,SUMIF('Age profile (years)'!$CT31:$GF31,"<" & U31+0.5,'Asset data'!$CX31:$GJ31)-Y31-X31-W31,0) -> 40.28192469 | AA31: 120.8457741 | AB31: 0.8818897638 | AC31: 0.01049868766 | AD31: 0.08661417323 | AE31: 0.005249343832 | AF31: 0.0157480315 | AI31: =IF($A31>0,'RRR hist-forc'!K31,0) -> 48.4701832 | AJ31: 371945.9673
A32: ='Asset data'!A32 -> 0 | B32: ='Asset data'!B32 -> 0 | C32: ='Asset data'!C32 -> 0 | D32: ='Asset data'!E32 ->  | E32: 0 | F32: =IF(A32>0,SUM('Asset data'!J32:CV32),0) -> 0 | G32: =IF(A32>0,'Asset data'!F32,0) -> 0 | H32: =IF(A32>0,SUM('Asset data'!CX32:GJ32),0) -> 0 | I32: 0 | J32: 0 | K32: 0 | L32: 0 | M32: =IF($A32>0,SUMPRODUCT('Age profile (years)'!$CT32:$GF32,'Asset data'!$CX32:$GJ32)/H32-0.5,0) -> 0 | N32: 0 | O32: =IF($A32>0,'Asset data'!G32,0) -> 0 | P32: 0 | Q32: 0 | R32: 0 | S32: 0 | T32: 0 | U32: 0 | W32: =IF($A32>0,SUMIF('Age profile (years)'!$CT32:$GF32,"<" & R32+0.5,'Asset data'!$CX32:$GJ32),0) -> 0 | X32: =IF($A32>0,SUMIF('Age profile (years)'!$CT32:$GF32,"<" & S32+0.5,'Asset data'!$CX32:$GJ32)-W32,0) -> 0 | Y32: =IF($A32>0,SUMIF('Age profile (years)'!$CT32:$GF32,"<" & T32+0.5,'Asset data'!$CX32:$GJ32)-X32-W32,0) -> 0 | Z32: =IF($A32>0,SUMIF('Age profile (years)'!$CT32:$GF32,"<" & U32+0.5,'Asset data'!$CX32:$GJ32)-Y32-X32-W32,0) -> 0 | AA32: 0 | AB32: 0 | AC32: 0 | AD32: 0 | AE32: 0 | AF32: 0 | AI32: =IF($A32>0,'RRR hist-forc'!K32,0) -> 0 | AJ32: 0
A33: ='Asset data'!A33 -> 0 | B33: ='Asset data'!B33 -> 0 | C33: ='Asset data'!C33 -> 0 | D33: ='Asset data'!E33 ->  | E33: 0 | F33: =IF(A33>0,SUM('Asset data'!J33:CV33),0) -> 0 | G33: =IF(A33>0,'Asset data'!F33,0) -> 0 | H33: =IF(A33>0,SUM('Asset data'!CX33:GJ33),0) -> 0 | I33: 0 | J33: 0 | K33: 0 | L33: 0 | M33: =IF($A33>0,SUMPRODUCT('Age profile (years)'!$CT33:$GF33,'Asset data'!$CX33:$GJ33)/H33-0.5,0) -> 0 | N33: 0 | O33: =IF($A33>0,'Asset data'!G33,0) -> 0 | P33: 0 | Q33: 0 | R33: 0 | S33: 0 | T33: 0 | U33: 0 | W33: =IF($A33>0,SUMIF('Age profile (years)'!$CT33:$GF33,"<" & R33+0.5,'Asset data'!$CX33:$GJ33),0) -> 0 | X33: =IF($A33>0,SUMIF('Age profile (years)'!$CT33:$GF33,"<" & S33+0.5,'Asset data'!$CX33:$GJ33)-W33,0) -> 0 | Y33: =IF($A33>0,SUMIF('Age profile (years)'!$CT33:$GF33,"<" & T33+0.5,'Asset data'!$CX33:$GJ33)-X33-W33,0) -> 0 | Z33: =IF($A33>0,SUMIF('Age profile (years)'!$CT33:$GF33,"<" & U33+0.5,'Asset data'!$CX33:$GJ33)-Y33-X33-W33,0) -> 0 | AA33: 0 | AB33: 0 | AC33: 0 | AD33: 0 | AE33: 0 | AF33: 0 | AI33: =IF($A33>0,'RRR hist-forc'!K33,0) -> 0 | AJ33: 0
A34: ='Asset data'!A34 -> 2 | B34: ='Asset data'!B34 -> 0 | C34: ='Asset data'!C34 -> 0 | D34: ='Asset data'!E34 -> ˂ = 1 kV; Steel | E34: POLES | F34: =IF(A34>0,SUM('Asset data'!J34:CV34),0) -> 11777 | G34: =IF(A34>0,'Asset data'!F34,0) -> 8.427388421 | H34: =IF(A34>0,SUM('Asset data'!CX34:GJ34),0) -> 99249.35343 | I34: 0.02091896985 | J34: 16 | K34: 0.1087323 | L34: 8.427388421 | M34: =IF($A34>0,SUMPRODUCT('Age profile (years)'!$CT34:$GF34,'Asset data'!$CX34:$GJ34)/H34-0.5,0) -> 46.15143925 | N34: 4580500.505 | O34: =IF($A34>0,'Asset data'!G34,0) -> 57.3701282 | P34: 5693948.131 | Q34: 0.1955493095 | R34: 5.73701282 | S34: 11.47402564 | T34: 34.42207692 | U34: 45.89610256 | W34: =IF($A34>0,SUMIF('Age profile (years)'!$CT34:$GF34,"<" & R34+0.5,'Asset data'!$CX34:$GJ34),0) -> 227.5394874 | X34: =IF($A34>0,SUMIF('Age profile (years)'!$CT34:$GF34,"<" & S34+0.5,'Asset data'!$CX34:$GJ34)-W34,0) -> 345.5229253 | Y34: =IF($A34>0,SUMIF('Age profile (years)'!$CT34:$GF34,"<" & T34+0.5,'Asset data'!$CX34:$GJ34)-X34-W34,0) -> 5031.150887 | Z34: =IF($A34>0,SUMIF('Age profile (years)'!$CT34:$GF34,"<" & U34+0.5,'Asset data'!$CX34:$GJ34)-Y34-X34-W34,0) -> 33389.31292 | AA34: 60255.82721 | AB34: 0.002292604229 | AC34: 0.003481361977 | AD34: 0.05069202683 | AE34: 0.3364184427 | AF34: 0.6071155642 | AI34: =IF($A34>0,'RRR hist-forc'!K34,0) -> 57.3701282 | AJ34: 5693948.131
A35: ='Asset data'!A35 -> 2 | B35: ='Asset data'!B35 -> 0 | C35: ='Asset data'!C35 -> 0 | D35: ='Asset data'!E35 -> > 1 kV & < = 11 kV; Steel | E35: POLES | F35: =IF(A35>0,SUM('Asset data'!J35:CV35),0) -> 410 | G35: =IF(A35>0,'Asset data'!F35,0) -> 7.927102661 | H35: =IF(A35>0,SUM('Asset data'!CX35:GJ35),0) -> 3250.112091 | I35: 0.0006850321388 | J35: 38 | K35: 0.003560649523 | L35: 7.927102661 | M35: =IF($A35>0,SUMPRODUCT('Age profile (years)'!$CT35:$GF35,'Asset data'!$CX35:$GJ35)/H35-0.5,0) -> 24.02682927 | N35: 78089.88831 | O35: =IF($A35>0,'Asset data'!G35,0) -> 51.53770442 | P35: 167503.3163 | Q35: 0.5338009417 | R35: 5.153770442 | S35: 10.30754088 | T35: 30.92262265 | U35: 41.23016354 | W35: =IF($A35>0,SUMIF('Age profile (years)'!$CT35:$GF35,"<" & R35+0.5,'Asset data'!$CX35:$GJ35),0) -> 404.2822357 | X35: =IF($A35>0,SUMIF('Age profile (years)'!$CT35:$GF35,"<" & S35+0.5,'Asset data'!$CX35:$GJ35)-W35,0) -> 134.7607452 | Y35: =IF($A35>0,SUMIF('Age profile (years)'!$CT35:$GF35,"<" & T35+0.5,'Asset data'!$CX35:$GJ35)-X35-W35,0) -> 1862.869125 | Z35: =IF($A35>0,SUMIF('Age profile (years)'!$CT35:$GF35,"<" & U35+0.5,'Asset data'!$CX35:$GJ35)-Y35-X35-W35,0) -> 126.8336426 | AA35: 721.3663421 | AB35: 0.1243902439 | AC35: 0.04146341463 | AD35: 0.5731707317 | AE35: 0.03902439024 | AF35: 0.2219512195 | AI35: =IF($A35>0,'RRR hist-forc'!K35,0) -> 51.53770442 | AJ35: 167503.3163
A36: ='Asset data'!A36 -> 2 | B36: ='Asset data'!B36 -> 0 | C36: ='Asset data'!C36 -> 0 | D36: ='Asset data'!E36 -> ˃ 11 kV & < = 22 kV; Steel | E36: POLES | F36: =IF(A36>0,SUM('Asset data'!J36:CV36),0) -> 2741 | G36: =IF(A36>0,'Asset data'!F36,0) -> 9.317932511 | H36: =IF(A36>0,SUM('Asset data'!CX36:GJ36),0) -> 25540.45301 | I36: 0.005383208536 | J36: 27 | K36: 0.0279807586 | L36: 9.317932511 | M36: =IF($A36>0,SUMPRODUCT('Age profile (years)'!$CT36:$GF36,'Asset data'!$CX36:$GJ36)/H36-0.5,0) -> 23.41718351 | N36: 598085.4751 | O36: =IF($A36>0,'Asset data'!G36,0) -> 53.5236011 | P36: 1367017.019 | Q36: 0.56248864 | R36: 5.35236011 | S36: 10.70472022 | T36: 32.11416066 | U36: 42.81888088 | W36: =IF($A36>0,SUMIF('Age profile (years)'!$CT36:$GF36,"<" & R36+0.5,'Asset data'!$CX36:$GJ36),0) -> 7482.299806 | X36: =IF($A36>0,SUMIF('Age profile (years)'!$CT36:$GF36,"<" & S36+0.5,'Asset data'!$CX36:$GJ36)-W36,0) -> 3419.681231 | Y36: =IF($A36>0,SUMIF('Age profile (years)'!$CT36:$GF36,"<" & T36+0.5,'Asset data'!$CX36:$GJ36)-X36-W36,0) -> 3652.629544 | Z36: =IF($A36>0,SUMIF('Age profile (years)'!$CT36:$GF36,"<" & U36+0.5,'Asset data'!$CX36:$GJ36)-Y36-X36-W36,0) -> 3112.189459 | AA36: 7873.652971 | AB36: 0.2929587742 | AC36: 0.1338927399 | AD36: 0.1430134987 | AE36: 0.1218533382 | AF36: 0.308281649 | AI36: =IF($A36>0,'RRR hist-forc'!K36,0) -> 53.5236011 | AJ36: 1367017.019
A37: ='Asset data'!A37 -> 2 | B37: ='Asset data'!B37 -> 0 | C37: ='Asset data'!C37 -> 0 | D37: ='Asset data'!E37 -> > 22 kV & < = 66 kV; Steel | E37: POLES | F37: =IF(A37>0,SUM('Asset data'!J37:CV37),0) -> 66 | G37: =IF(A37>0,'Asset data'!F37,0) -> 17.33255119 | H37: =IF(A37>0,SUM('Asset data'!CX37:GJ37),0) -> 1143.948378 | I37: 0.0002411121162 | J37: 39 | K37: 0.001253248852 | L37: 17.33255119 | M37: =IF($A37>0,SUMPRODUCT('Age profile (years)'!$CT37:$GF37,'Asset data'!$CX37:$GJ37)/H37-0.5,0) -> 47.33333333 | N37: 54146.88991 | O37: =IF($A37>0,'Asset data'!G37,0) -> 55.98822093 | P37: 64047.63454 | Q37: 0.1545840796 | R37: =IF($A37>0,$O37-R$4*$O37,0) -> 5.598822093 | S37: 11.19764419 | T37: 33.59293256 | U37: 44.79057675 | W37: =IF($A37>0,SUMIF('Age profile (years)'!$CT37:$GF37,"<" & R37+0.5,'Asset data'!$CX37:$GJ37),0) -> 0 | X37: =IF($A37>0,SUMIF('Age profile (years)'!$CT37:$GF37,"<" & S37+0.5,'Asset data'!$CX37:$GJ37)-W37,0) -> 0 | Y37: =IF($A37>0,SUMIF('Age profile (years)'!$CT37:$GF37,"<" & T37+0.5,'Asset data'!$CX37:$GJ37)-X37-W37,0) -> 34.66510237 | Z37: =IF($A37>0,SUMIF('Age profile (years)'!$CT37:$GF37,"<" & U37+0.5,'Asset data'!$CX37:$GJ37)-Y37-X37-W37,0) -> 0 | AA37: 1109.283276 | AB37: 0 | AC37: 0 | AD37: 0.0303030303 | AE37: 0 | AF37: 0.9696969697 | AI37: =IF($A37>0,'RRR hist-forc'!K37,0) -> 55.98822093 | AJ37: 64047.63454
A38: ='Asset data'!A38 -> 0 | B38: ='Asset data'!B38 -> 0 | C38: ='Asset data'!C38 -> 0 | D38: ='Asset data'!E38 ->  | E38: 0 | F38: =IF(A38>0,SUM('Asset data'!J38:CV38),0) -> 0 | G38: =IF(A38>0,'Asset data'!F38,0) -> 0 | H38: =IF(A38>0,SUM('Asset data'!CX38:GJ38),0) -> 0 | I38: 0 | J38: 0 | K38: 0 | L38: 0 | M38: =IF($A38>0,SUMPRODUCT('Age profile (years)'!$CT38:$GF38,'Asset data'!$CX38:$GJ38)/H38-0.5,0) -> 0 | N38: 0 | O38: =IF($A38>0,'Asset data'!G38,0) -> 0 | P38: 0 | Q38: 0 | R38: 0 | S38: 0 | T38: 0 | U38: 0 | W38: =IF($A38>0,SUMIF('Age profile (years)'!$CT38:$GF38,"<" & R38+0.5,'Asset data'!$CX38:$GJ38),0) -> 0 | X38: =IF($A38>0,SUMIF('Age profile (years)'!$CT38:$GF38,"<" & S38+0.5,'Asset data'!$CX38:$GJ38)-W38,0) -> 0 | Y38: =IF($A38>0,SUMIF('Age profile (years)'!$CT38:$GF38,"<" & T38+0.5,'Asset data'!$CX38:$GJ38)-X38-W38,0) -> 0 | Z38: =IF($A38>0,SUMIF('Age profile (years)'!$CT38:$GF38,"<" & U38+0.5,'Asset data'!$CX38:$GJ38)-Y38-X38-W38,0) -> 0 | AA38: 0 | AB38: 0 | AC38: 0 | AD38: 0 | AE38: 0 | AF38: 0 | AI38: =IF($A38>0,'RRR hist-forc'!K38,0) -> 0 | AJ38: 0
A39: ='Asset data'!A39 -> 0 | B39: ='Asset data'!B39 -> 0 | C39: ='Asset data'!C39 -> 0 | D39: ='Asset data'!E39 ->  | E39: 0 | F39: =IF(A39>0,SUM('Asset data'!J39:CV39),0) -> 0 | G39: =IF(A39>0,'Asset data'!F39,0) -> 0 | H39: =IF(A39>0,SUM('Asset data'!CX39:GJ39),0) -> 0 | I39: 0 | J39: 0 | K39: 0 | L39: 0 | M39: =IF($A39>0,SUMPRODUCT('Age profile (years)'!$CT39:$GF39,'Asset data'!$CX39:$GJ39)/H39-0.5,0) -> 0 | N39: 0 | O39: =IF($A39>0,'Asset data'!G39,0) -> 0 | P39: 0 | Q39: 0 | R39: 0 | S39: 0 | T39: 0 | U39: 0 | W39: =IF($A39>0,SUMIF('Age profile (years)'!$CT39:$GF39,"<" & R39+0.5,'Asset data'!$CX39:$GJ39),0) -> 0 | X39: =IF($A39>0,SUMIF('Age profile (years)'!$CT39:$GF39,"<" & S39+0.5,'Asset data'!$CX39:$GJ39)-W39,0) -> 0 | Y39: =IF($A39>0,SUMIF('Age profile (years)'!$CT39:$GF39,"<" & T39+0.5,'Asset data'!$CX39:$GJ39)-X39-W39,0) -> 0 | Z39: =IF($A39>0,SUMIF('Age profile (years)'!$CT39:$GF39,"<" & U39+0.5,'Asset data'!$CX39:$GJ39)-Y39-X39-W39,0) -> 0 | AA39: 0 | AB39: 0 | AC39: 0 | AD39: 0 | AE39: 0 | AF39: 0 | AI39: =IF($A39>0,'RRR hist-forc'!K39,0) -> 0 | AJ39: 0
A40: ='Asset data'!A40 -> 2 | B40: ='Asset data'!B40 -> 0 | C40: ='Asset data'!C40 -> 0 | D40: ='Asset data'!E40 -> Other | E40: POLES | F40: =IF(A40>0,SUM('Asset data'!J40:CV40),0) -> 19 | G40: =IF(A40>0,'Asset data'!F40,0) -> 200.5663113 | H40: =IF(A40>0,SUM('Asset data'!CX40:GJ40),0) -> 3810.759914 | I40: 0.0008032009177 | J40: 37 | K40: 0.004174865386 | L40: 200.5663113 | M40: =IF($A40>0,SUMPRODUCT('Age profile (years)'!$CT40:$GF40,'Asset data'!$CX40:$GJ40)/H40-0.5,0) -> 26.97368421 | N40: 102790.2345 | O40: =IF($A40>0,'Asset data'!G40,0) -> 35 | P40: 133376.597 | Q40: 0.2293233083 | R40: 3.5 | S40: 7 | T40: 21 | U40: 28 | W40: =IF($A40>0,SUMIF('Age profile (years)'!$CT40:$GF40,"<" & R40+0.5,'Asset data'!$CX40:$GJ40),0) -> 0 | X40: =IF($A40>0,SUMIF('Age profile (years)'!$CT40:$GF40,"<" & S40+0.5,'Asset data'!$CX40:$GJ40)-W40,0) -> 200.5663113 | Y40: =IF($A40>0,SUMIF('Age profile (years)'!$CT40:$GF40,"<" & T40+0.5,'Asset data'!$CX40:$GJ40)-X40-W40,0) -> 0 | Z40: =IF($A40>0,SUMIF('Age profile (years)'!$CT40:$GF40,"<" & U40+0.5,'Asset data'!$CX40:$GJ40)-Y40-X40-W40,0) -> 1805.096801 | AA40: 1805.096801 | AB40: 0 | AC40: 0.05263157895 | AD40: 0 | AE40: 0.4736842105 | AF40: 0.4736842105 | AI40: =IF($A40>0,'RRR hist-forc'!K40,0) -> 35 | AJ40: 133376.597
A41: ='Asset data'!A41 -> 3 | B41: ='Asset data'!B41 -> 0 | C41: ='Asset data'!C41 -> 0 | D41: ='Asset data'!E41 -> ˂ = 1 kV | E41: OVERHEAD CONDUCTORS | F41: =IF(A41>0,SUM('Asset data'!J41:CV41),0) -> 4955.164 | G41: =IF(A41>0,'Asset data'!F41,0) -> 61.40047794 | H41: =IF(A41>0,SUM('Asset data'!CX41:GJ41),0) -> 304249.4379 | I41: 0.06412721694 | J41: 6 | K41: 0.2661815303 | L41: 61.40047794 | M41: =IF($A41>0,SUMPRODUCT('Age profile (years)'!$CT41:$GF41,'Asset data'!$CX41:$GJ41)/H41-0.5,0) -> 49.04786764 | N41: 14922786.16 | O41: =IF($A41>0,'Asset data'!G41,0) -> 75.12731581 | P41: 22857443.61 | Q41: 0.3471366958 | R41: 7.512731581 | S41: 15.02546316 | T41: 45.07638949 | U41: 60.10185265 | W41: =IF($A41>0,SUMIF('Age profile (years)'!$CT41:$GF41,"<" & R41+0.5,'Asset data'!$CX41:$GJ41),0) -> 0 | X41: =IF($A41>0,SUMIF('Age profile (years)'!$CT41:$GF41,"<" & S41+0.5,'Asset data'!$CX41:$GJ41)-W41,0) -> 135.4494543 | Y41: =IF($A41>0,SUMIF('Age profile (years)'!$CT41:$GF41,"<" & T41+0.5,'Asset data'!$CX41:$GJ41)-X41-W41,0) -> 119601.1314 | Z41: =IF($A41>0,SUMIF('Age profile (years)'!$CT41:$GF41,"<" & U41+0.5,'Asset data'!$CX41:$GJ41)-Y41-X41-W41,0) -> 102373.2625 | AA41: 82139.59458 | AB41: 0 | AC41: 0.0004451921268 | AD41: 0.3931022263 | AE41: 0.3364780661 | AF41: 0.2699745155 | AI41: =IF($A41>0,'RRR hist-forc'!K41,0) -> 75.12731581 | AJ41: 22857443.61
A42: ='Asset data'!A42 -> 3 | B42: ='Asset data'!B42 -> 0 | C42: ='Asset data'!C42 -> 0 | D42: ='Asset data'!E42 -> > 1 kV & < = 11 kV | E42: OVERHEAD CONDUCTORS | F42: =IF(A42>0,SUM('Asset data'!J42:CV42),0) -> 2957.882 | G42: =IF(A42>0,'Asset data'!F42,0) -> 54.65142012 | H42: =IF(A42>0,SUM('Asset data'!CX42:GJ42),0) -> 161652.4518 | I42: 0.03407178636 | J42: 11 | K42: 0.1414263813 | L42: 54.65142012 | M42: =IF($A42>0,SUMPRODUCT('Age profile (years)'!$CT42:$GF42,'Asset data'!$CX42:$GJ42)/H42-0.5,0) -> 42.95468447 | N42: 6943730.062 | O42: =IF($A42>0,'Asset data'!G42,0) -> 75.42911059 | P42: 12193300.67 | Q42: 0.4305290871 | R42: 7.542911059 | S42: 15.08582212 | T42: 45.25746636 | U42: 60.34328847 | W42: =IF($A42>0,SUMIF('Age profile (years)'!$CT42:$GF42,"<" & R42+0.5,'Asset data'!$CX42:$GJ42),0) -> 0 | X42: =IF($A42>0,SUMIF('Age profile (years)'!$CT42:$GF42,"<" & S42+0.5,'Asset data'!$CX42:$GJ42)-W42,0) -> 1531.223489 | Y42: =IF($A42>0,SUMIF('Age profile (years)'!$CT42:$GF42,"<" & T42+0.5,'Asset data'!$CX42:$GJ42)-X42-W42,0) -> 89159.47446 | Z42: =IF($A42>0,SUMIF('Age profile (years)'!$CT42:$GF42,"<" & U42+0.5,'Asset data'!$CX42:$GJ42)-Y42-X42-W42,0) -> 55815.33141 | AA42: 15146.42248 | AB42: 0 | AC42: 0.009472318368 | AD42: 0.5515503999 | AE42: 0.345279832 | AF42: 0.09369744973 | AI42: =IF($A42>0,'RRR hist-forc'!K42,0) -> 75.42911059 | AJ42: 12193300.67
A43: ='Asset data'!A43 -> 3 | B43: ='Asset data'!B43 -> 0 | C43: ='Asset data'!C43 -> 0 | D43: ='Asset data'!E43 -> ˃ 11 kV & < = 22 kV ; SWER | E43: OVERHEAD CONDUCTORS | F43: =IF(A43>0,SUM('Asset data'!J43:CV43),0) -> 483.73 | G43: =IF(A43>0,'Asset data'!F43,0) -> 46.07063062 | H43: =IF(A43>0,SUM('Asset data'!CX43:GJ43),0) -> 22285.74615 | I43: 0.004697207949 | J43: 28 | K43: 0.01949733763 | L43: 46.07063062 | M43: =IF($A43>0,SUMPRODUCT('Age profile (years)'!$CT43:$GF43,'Asset data'!$CX43:$GJ43)/H43-0.5,0) -> 40.867517 | N43: 910763.1098 | O43: =IF($A43>0,'Asset data'!G43,0) -> 80.1478913 | P43: 1786155.56 | Q43: 0.4900986621 | R43: 8.01478913 | S43: 16.02957826 | T43: 48.08873478 | U43: 64.11831304 | W43: =IF($A43>0,SUMIF('Age profile (years)'!$CT43:$GF43,"<" & R43+0.5,'Asset data'!$CX43:$GJ43),0) -> 0 | X43: =IF($A43>0,SUMIF('Age profile (years)'!$CT43:$GF43,"<" & S43+0.5,'Asset data'!$CX43:$GJ43)-W43,0) -> 0 | Y43: =IF($A43>0,SUMIF('Age profile (years)'!$CT43:$GF43,"<" & T43+0.5,'Asset data'!$CX43:$GJ43)-X43-W43,0) -> 15593.43421 | Z43: =IF($A43>0,SUMIF('Age profile (years)'!$CT43:$GF43,"<" & U43+0.5,'Asset data'!$CX43:$GJ43)-Y43-X43-W43,0) -> 5750.812538 | AA43: 941.4994074 | AB43: 0 | AC43: 0 | AD43: 0.6997043805 | AE43: 0.2580489116 | AF43: 0.04224670787 | AI43: =IF($A43>0,'RRR hist-forc'!K43,0) -> 80.1478913 | AJ43: 1786155.56
A44: ='Asset data'!A44 -> 3 | B44: ='Asset data'!B44 -> 0 | C44: ='Asset data'!C44 -> 0 | D44: ='Asset data'!E44 -> ˃ 11 kV & < = 22 kV ; Single-Phase | E44: OVERHEAD CONDUCTORS | F44: =IF(A44>0,SUM('Asset data'!J44:CV44),0) -> 2121.403 | G44: =IF(A44>0,'Asset data'!F44,0) -> 45.10193676 | H44: =IF(A44>0,SUM('Asset data'!CX44:GJ44),0) -> 95679.38394 | I44: 0.02016652078 | J44: 17 | K44: 0.0837079109 | L44: 45.10193676 | M44: =IF($A44>0,SUMPRODUCT('Age profile (years)'!$CT44:$GF44,'Asset data'!$CX44:$GJ44)/H44-0.5,0) -> 27.72077182 | N44: 2652306.37 | O44: =IF($A44>0,'Asset data'!G44,0) -> 59.01628646 | P44: 5646641.93 | Q44: 0.5302860704 | R44: 5.901628646 | S44: 11.80325729 | T44: 35.40977187 | U44: 47.21302916 | W44: =IF($A44>0,SUMIF('Age profile (years)'!$CT44:$GF44,"<" & R44+0.5,'Asset data'!$CX44:$GJ44),0) -> 3202.012 | X44: =IF($A44>0,SUMIF('Age profile (years)'!$CT44:$GF44,"<" & S44+0.5,'Asset data'!$CX44:$GJ44)-W44,0) -> 12124.16733 | Y44: =IF($A44>0,SUMIF('Age profile (years)'!$CT44:$GF44,"<" & T44+0.5,'Asset data'!$CX44:$GJ44)-X44-W44,0) -> 50727.32092 | Z44: =IF($A44>0,SUMIF('Age profile (years)'!$CT44:$GF44,"<" & U44+0.5,'Asset data'!$CX44:$GJ44)-Y44-X44-W44,0) -> 22350.44517 | AA44: 7275.43852 | AB44: 0.03346605996 | AC44: 0.1267166116 | AD44: 0.5301802628 | AE44: 0.2335972939 | AF44: 0.07603977179 | AI44: =IF($A44>0,'RRR hist-forc'!K44,0) -> 59.01628646 | AJ44: 5646641.93
A45: ='Asset data'!A45 -> 3 | B45: ='Asset data'!B45 -> 0 | C45: ='Asset data'!C45 -> 0 | D45: ='Asset data'!E45 -> ˃ 11 kV & < = 22 kV ; Multiple-Phase | E45: OVERHEAD CONDUCTORS | F45: =IF(A45>0,SUM('Asset data'!J45:CV45),0) -> 9511.579 | G45: =IF(A45>0,'Asset data'!F45,0) -> 56.45934668 | H45: =IF(A45>0,SUM('Asset data'!CX45:GJ45),0) -> 537017.5362 | I45: 0.1131881797 | J45: 1 | K45: 0.4698255175 | L45: 56.45934668 | M45: =IF($A45>0,SUMPRODUCT('Age profile (years)'!$CT45:$GF45,'Asset data'!$CX45:$GJ45)/H45-0.5,0) -> 38.54471413 | N45: 20699187.42 | O45: =IF($A45>0,'Asset data'!G45,0) -> 70.73995949 | P45: 37988598.75 | Q45: 0.4551210601 | R45: 7.073995949 | S45: 14.1479919 | T45: 42.44397569 | U45: 56.59196759 | W45: =IF($A45>0,SUMIF('Age profile (years)'!$CT45:$GF45,"<" & R45+0.5,'Asset data'!$CX45:$GJ45),0) -> 0 | X45: =IF($A45>0,SUMIF('Age profile (years)'!$CT45:$GF45,"<" & S45+0.5,'Asset data'!$CX45:$GJ45)-W45,0) -> 14390.97933 | Y45: =IF($A45>0,SUMIF('Age profile (years)'!$CT45:$GF45,"<" & T45+0.5,'Asset data'!$CX45:$GJ45)-X45-W45,0) -> 304243.4977 | Z45: =IF($A45>0,SUMIF('Age profile (years)'!$CT45:$GF45,"<" & U45+0.5,'Asset data'!$CX45:$GJ45)-Y45-X45-W45,0) -> 147145.535 | AA45: 71237.52421 | AB45: 0 | AC45: 0.02679796909 | AD45: 0.5665429473 | AE45: 0.2740050837 | AF45: 0.1326539999 | AI45: =IF($A45>0,'RRR hist-forc'!K45,0) -> 70.73995949 | AJ45: 37988598.75
A46: ='Asset data'!A46 -> 3 | B46: ='Asset data'!B46 -> 0 | C46: ='Asset data'!C46 -> 0 | D46: ='Asset data'!E46 -> > 22 kV & < = 66 kV | E46: OVERHEAD CONDUCTORS | F46: =IF(A46>0,SUM('Asset data'!J46:CV46),0) -> 134.187 | G46: =IF(A46>0,'Asset data'!F46,0) -> 164.9211818 | H46: =IF(A46>0,SUM('Asset data'!CX46:GJ46),0) -> 22130.27862 | I46: 0.00466443977 | J46: 29 | K46: 0.01936132231 | L46: 164.9211818 | M46: =IF($A46>0,SUMPRODUCT('Age profile (years)'!$CT46:$GF46,'Asset data'!$CX46:$GJ46)/H46-0.5,0) -> 39.23947551 | N46: 868380.5259 | O46: =IF($A46>0,'Asset data'!G46,0) -> 87.00627353 | P46: 1925473.075 | Q46: 0.549004067 | R46: 8.700627353 | S46: 17.40125471 | T46: 52.20376412 | U46: 69.60501882 | W46: =IF($A46>0,SUMIF('Age profile (years)'!$CT46:$GF46,"<" & R46+0.5,'Asset data'!$CX46:$GJ46),0) -> 0 | X46: =IF($A46>0,SUMIF('Age profile (years)'!$CT46:$GF46,"<" & S46+0.5,'Asset data'!$CX46:$GJ46)-W46,0) -> 0 | Y46: =IF($A46>0,SUMIF('Age profile (years)'!$CT46:$GF46,"<" & T46+0.5,'Asset data'!$CX46:$GJ46)-X46-W46,0) -> 18897.49361 | Z46: =IF($A46>0,SUMIF('Age profile (years)'!$CT46:$GF46,"<" & U46+0.5,'Asset data'!$CX46:$GJ46)-Y46-X46-W46,0) -> 3213.819069 | AA46: 18.9659359 | AB46: 0 | AC46: 0 | AD46: 0.8539202754 | AE46: 0.1452227116 | AF46: 0.0008570129744 | AI46: =IF($A46>0,'RRR hist-forc'!K46,0) -> 87.00627353 | AJ46: 1925473.075
A47: ='Asset data'!A47 -> 0 | B47: ='Asset data'!B47 -> 0 | C47: ='Asset data'!C47 -> 0 | D47: ='Asset data'!E47 ->  | E47: 0 | F47: =IF(A47>0,SUM('Asset data'!J47:CV47),0) -> 0 | G47: =IF(A47>0,'Asset data'!F47,0) -> 0 | H47: =IF(A47>0,SUM('Asset data'!CX47:GJ47),0) -> 0 | I47: 0 | J47: 0 | K47: 0 | L47: 0 | M47: =IF($A47>0,SUMPRODUCT('Age profile (years)'!$CT47:$GF47,'Asset data'!$CX47:$GJ47)/H47-0.5,0) -> 0 | N47: 0 | O47: =IF($A47>0,'Asset data'!G47,0) -> 0 | P47: 0 | Q47: 0 | R47: 0 | S47: 0 | T47: 0 | U47: 0 | W47: =IF($A47>0,SUMIF('Age profile (years)'!$CT47:$GF47,"<" & R47+0.5,'Asset data'!$CX47:$GJ47),0) -> 0 | X47: =IF($A47>0,SUMIF('Age profile (years)'!$CT47:$GF47,"<" & S47+0.5,'Asset data'!$CX47:$GJ47)-W47,0) -> 0 | Y47: =IF($A47>0,SUMIF('Age profile (years)'!$CT47:$GF47,"<" & T47+0.5,'Asset data'!$CX47:$GJ47)-X47-W47,0) -> 0 | Z47: =IF($A47>0,SUMIF('Age profile (years)'!$CT47:$GF47,"<" & U47+0.5,'Asset data'!$CX47:$GJ47)-Y47-X47-W47,0) -> 0 | AA47: 0 | AB47: 0 | AC47: 0 | AD47: 0 | AE47: 0 | AF47: 0 | AI47: =IF($A47>0,'RRR hist-forc'!K47,0) -> 0 | AJ47: 0
A48: ='Asset data'!A48 -> 0 | B48: ='Asset data'!B48 -> 0 | C48: ='Asset data'!C48 -> 0 | D48: ='Asset data'!E48 ->  | E48: 0 | F48: =IF(A48>0,SUM('Asset data'!J48:CV48),0) -> 0 | G48: =IF(A48>0,'Asset data'!F48,0) -> 0 | H48: =IF(A48>0,SUM('Asset data'!CX48:GJ48),0) -> 0 | I48: 0 | J48: 0 | K48: 0 | L48: 0 | M48: =IF($A48>0,SUMPRODUCT('Age profile (years)'!$CT48:$GF48,'Asset data'!$CX48:$GJ48)/H48-0.5,0) -> 0 | N48: 0 | O48: =IF($A48>0,'Asset data'!G48,0) -> 0 | P48: 0 | Q48: 0 | R48: 0 | S48: 0 | T48: 0 | U48: 0 | W48: =IF($A48>0,SUMIF('Age profile (years)'!$CT48:$GF48,"<" & R48+0.5,'Asset data'!$CX48:$GJ48),0) -> 0 | X48: =IF($A48>0,SUMIF('Age profile (years)'!$CT48:$GF48,"<" & S48+0.5,'Asset data'!$CX48:$GJ48)-W48,0) -> 0 | Y48: =IF($A48>0,SUMIF('Age profile (years)'!$CT48:$GF48,"<" & T48+0.5,'Asset data'!$CX48:$GJ48)-X48-W48,0) -> 0 | Z48: =IF($A48>0,SUMIF('Age profile (years)'!$CT48:$GF48,"<" & U48+0.5,'Asset data'!$CX48:$GJ48)-Y48-X48-W48,0) -> 0 | AA48: 0 | AB48: 0 | AC48: 0 | AD48: 0 | AE48: 0 | AF48: 0 | AI48: =IF($A48>0,'RRR hist-forc'!K48,0) -> 0 | AJ48: 0
A49: ='Asset data'!A49 -> 0 | B49: ='Asset data'!B49 -> 0 | C49: ='Asset data'!C49 -> 0 | D49: ='Asset data'!E49 ->  | E49: 0 | F49: =IF(A49>0,SUM('Asset data'!J49:CV49),0) -> 0 | G49: =IF(A49>0,'Asset data'!F49,0) -> 0 | H49: =IF(A49>0,SUM('Asset data'!CX49:GJ49),0) -> 0 | I49: 0 | J49: 0 | K49: 0 | L49: 0 | M49: =IF($A49>0,SUMPRODUCT('Age profile (years)'!$CT49:$GF49,'Asset data'!$CX49:$GJ49)/H49-0.5,0) -> 0 | N49: 0 | O49: =IF($A49>0,'Asset data'!G49,0) -> 0 | P49: 0 | Q49: 0 | R49: 0 | S49: 0 | T49: 0 | U49: 0 | W49: =IF($A49>0,SUMIF('Age profile (years)'!$CT49:$GF49,"<" & R49+0.5,'Asset data'!$CX49:$GJ49),0) -> 0 | X49: =IF($A49>0,SUMIF('Age profile (years)'!$CT49:$GF49,"<" & S49+0.5,'Asset data'!$CX49:$GJ49)-W49,0) -> 0 | Y49: =IF($A49>0,SUMIF('Age profile (years)'!$CT49:$GF49,"<" & T49+0.5,'Asset data'!$CX49:$GJ49)-X49-W49,0) -> 0 | Z49: =IF($A49>0,SUMIF('Age profile (years)'!$CT49:$GF49,"<" & U49+0.5,'Asset data'!$CX49:$GJ49)-Y49-X49-W49,0) -> 0 | AA49: 0 | AB49: 0 | AC49: 0 | AD49: 0 | AE49: 0 | AF49: 0 | AI49: =IF($A49>0,'RRR hist-forc'!K49,0) -> 0 | AJ49: 0
A50: ='Asset data'!A50 -> 4 | B50: ='Asset data'!B50 -> 0 | C50: ='Asset data'!C50 -> 0 | D50: ='Asset data'!E50 -> ˂ = 1 kV | E50: UNDERGROUND CABLES | F50: =IF(A50>0,SUM('Asset data'!J50:CV50),0) -> 1240.241 | G50: =IF(A50>0,'Asset data'!F50,0) -> 134.1054855 | H50: =IF(A50>0,SUM('Asset data'!CX50:GJ50),0) -> 166323.1214 | I50: 0.03505623202 | J50: 10 | K50: 0.2693843753 | L50: 134.1054855 | M50: =IF($A50>0,SUMPRODUCT('Age profile (years)'!$CT50:$GF50,'Asset data'!$CX50:$GJ50)/H50-0.5,0) -> 51.73444073 | N50: 8604633.664 | O50: =IF($A50>0,'Asset data'!G50,0) -> 67.88620914 | P50: 11291046.2 | Q50: 0.2379241472 | R50: 6.788620914 | S50: 13.57724183 | T50: 40.73172548 | U50: 54.30896731 | W50: =IF($A50>0,SUMIF('Age profile (years)'!$CT50:$GF50,"<" & R50+0.5,'Asset data'!$CX50:$GJ50),0) -> 0 | X50: =IF($A50>0,SUMIF('Age profile (years)'!$CT50:$GF50,"<" & S50+0.5,'Asset data'!$CX50:$GJ50)-W50,0) -> 1237.391314 | Y50: =IF($A50>0,SUMIF('Age profile (years)'!$CT50:$GF50,"<" & T50+0.5,'Asset data'!$CX50:$GJ50)-X50-W50,0) -> 44289.81173 | Z50: =IF($A50>0,SUMIF('Age profile (years)'!$CT50:$GF50,"<" & U50+0.5,'Asset data'!$CX50:$GJ50)-Y50-X50-W50,0) -> 27394.12983 | AA50: 93401.78851 | AB50: 0 | AC50: 0.007439683094 | AD50: 0.2662877618 | AE50: 0.1647042792 | AF50: 0.5615682758 | AI50: =IF($A50>0,'RRR hist-forc'!K50,0) -> 67.88620914 | AJ50: 11291046.2
A51: ='Asset data'!A51 -> 4 | B51: ='Asset data'!B51 -> 0 | C51: ='Asset data'!C51 -> 0 | D51: ='Asset data'!E51 -> > 1 kV & < = 11 kV | E51: UNDERGROUND CABLES | F51: =IF(A51>0,SUM('Asset data'!J51:CV51),0) -> 625.139 | G51: =IF(A51>0,'Asset data'!F51,0) -> 412.989377 | H51: =IF(A51>0,SUM('Asset data'!CX51:GJ51),0) -> 258175.7661 | I51: 0.0544161839 | J51: 7 | K51: 0.4181530318 | L51: 412.989377 | M51: =IF($A51>0,SUMPRODUCT('Age profile (years)'!$CT51:$GF51,'Asset data'!$CX51:$GJ51)/H51-0.5,0) -> 41.78064318 | N51: 10786749.56 | O51: =IF($A51>0,'Asset data'!G51,0) -> 67.52818144 | P51: 17434139.98 | Q51: 0.3812858233 | R51: 6.752818144 | S51: 13.50563629 | T51: 40.51690887 | U51: 54.02254516 | W51: =IF($A51>0,SUMIF('Age profile (years)'!$CT51:$GF51,"<" & R51+0.5,'Asset data'!$CX51:$GJ51),0) -> 0 | X51: =IF($A51>0,SUMIF('Age profile (years)'!$CT51:$GF51,"<" & S51+0.5,'Asset data'!$CX51:$GJ51)-W51,0) -> 4077.031129 | Y51: =IF($A51>0,SUMIF('Age profile (years)'!$CT51:$GF51,"<" & T51+0.5,'Asset data'!$CX51:$GJ51)-X51-W51,0) -> 127854.4903 | Z51: =IF($A51>0,SUMIF('Age profile (years)'!$CT51:$GF51,"<" & U51+0.5,'Asset data'!$CX51:$GJ51)-Y51-X51-W51,0) -> 60680.52916 | AA51: 65563.71555 | AB51: 0 | AC51: 0.01579168793 | AD51: 0.4952226625 | AE51: 0.2350357281 | AF51: 0.2539499215 | AI51: =IF($A51>0,'RRR hist-forc'!K51,0) -> 67.52818144 | AJ51: 17434139.98
A52: ='Asset data'!A52 -> 4 | B52: ='Asset data'!B52 -> 0 | C52: ='Asset data'!C52 -> 0 | D52: ='Asset data'!E52 -> > 11 kV & < = 22 kV | E52: UNDERGROUND CABLES | F52: =IF(A52>0,SUM('Asset data'!J52:CV52),0) -> 530.916 | G52: =IF(A52>0,'Asset data'!F52,0) -> 248.3975533 | H52: =IF(A52>0,SUM('Asset data'!CX52:GJ52),0) -> 131878.2354 | I52: 0.02779621968 | J52: 13 | K52: 0.2135958956 | L52: 248.3975533 | M52: =IF($A52>0,SUMPRODUCT('Age profile (years)'!$CT52:$GF52,'Asset data'!$CX52:$GJ52)/H52-0.5,0) -> 44.91028148 | N52: 5922688.674 | O52: =IF($A52>0,'Asset data'!G52,0) -> 60.92304471 | P52: 8034423.634 | Q52: 0.2628358992 | R52: 6.092304471 | S52: 12.18460894 | T52: 36.55382683 | U52: 48.73843577 | W52: =IF($A52>0,SUMIF('Age profile (years)'!$CT52:$GF52,"<" & R52+0.5,'Asset data'!$CX52:$GJ52),0) -> 8.445516813 | X52: =IF($A52>0,SUMIF('Age profile (years)'!$CT52:$GF52,"<" & S52+0.5,'Asset data'!$CX52:$GJ52)-W52,0) -> 93.89427516 | Y52: =IF($A52>0,SUMIF('Age profile (years)'!$CT52:$GF52,"<" & T52+0.5,'Asset data'!$CX52:$GJ52)-X52-W52,0) -> 28328.25057 | Z52: =IF($A52>0,SUMIF('Age profile (years)'!$CT52:$GF52,"<" & U52+0.5,'Asset data'!$CX52:$GJ52)-Y52-X52-W52,0) -> 44729.44422 | AA52: 58718.20084 | AB52: 6.404026249e-05 | AC52: 0.0007119770359 | AD52: 0.2148061087 | AE52: 0.3391722984 | AF52: 0.4452455756 | AI52: =IF($A52>0,'RRR hist-forc'!K52,0) -> 60.92304471 | AJ52: 8034423.634
A53: ='Asset data'!A53 -> 4 | B53: ='Asset data'!B53 -> 0 | C53: ='Asset data'!C53 -> 0 | D53: ='Asset data'!E53 -> > 22 kV & < = 33 kV | E53: UNDERGROUND CABLES | F53: =IF(A53>0,SUM('Asset data'!J53:CV53),0) -> 68.995 | G53: =IF(A53>0,'Asset data'!F53,0) -> 884.7338261 | H53: =IF(A53>0,SUM('Asset data'!CX53:GJ53),0) -> 61042.21033 | I53: 0.01286597961 | J53: 18 | K53: 0.0988666973 | L53: 884.7338261 | M53: =IF($A53>0,SUMPRODUCT('Age profile (years)'!$CT53:$GF53,'Asset data'!$CX53:$GJ53)/H53-0.5,0) -> 44.19400681 | N53: 2697699.859 | O53: =IF($A53>0,'Asset data'!G53,0) -> 65.72105017 | P53: 4011758.168 | Q53: 0.3275517251 | R53: 6.572105017 | S53: 13.14421003 | T53: 39.4326301 | U53: 52.57684014 | W53: =IF($A53>0,SUMIF('Age profile (years)'!$CT53:$GF53,"<" & R53+0.5,'Asset data'!$CX53:$GJ53),0) -> 0 | X53: =IF($A53>0,SUMIF('Age profile (years)'!$CT53:$GF53,"<" & S53+0.5,'Asset data'!$CX53:$GJ53)-W53,0) -> 0 | Y53: =IF($A53>0,SUMIF('Age profile (years)'!$CT53:$GF53,"<" & T53+0.5,'Asset data'!$CX53:$GJ53)-X53-W53,0) -> 22579.29198 | Z53: =IF($A53>0,SUMIF('Age profile (years)'!$CT53:$GF53,"<" & U53+0.5,'Asset data'!$CX53:$GJ53)-Y53-X53-W53,0) -> 821.9177244 | AA53: 37641.00063 | AB53: 0 | AC53: 0 | AD53: 0.3698963693 | AE53: 0.01346474382 | AF53: 0.6166388869 | AI53: =IF($A53>0,'RRR hist-forc'!K53,0) -> 65.72105017 | AJ53: 4011758.168
A54: ='Asset data'!A54 -> 0 | B54: ='Asset data'!B54 -> 0 | C54: ='Asset data'!C54 -> 0 | D54: ='Asset data'!E54 ->  | E54: 0 | F54: =IF(A54>0,SUM('Asset data'!J54:CV54),0) -> 0 | G54: =IF(A54>0,'Asset data'!F54,0) -> 0 | H54: =IF(A54>0,SUM('Asset data'!CX54:GJ54),0) -> 0 | I54: 0 | J54: 0 | K54: 0 | L54: 0 | M54: =IF($A54>0,SUMPRODUCT('Age profile (years)'!$CT54:$GF54,'Asset data'!$CX54:$GJ54)/H54-0.5,0) -> 0 | N54: 0 | O54: =IF($A54>0,'Asset data'!G54,0) -> 0 | P54: 0 | Q54: 0 | R54: 0 | S54: 0 | T54: 0 | U54: 0 | W54: =IF($A54>0,SUMIF('Age profile (years)'!$CT54:$GF54,"<" & R54+0.5,'Asset data'!$CX54:$GJ54),0) -> 0 | X54: =IF($A54>0,SUMIF('Age profile (years)'!$CT54:$GF54,"<" & S54+0.5,'Asset data'!$CX54:$GJ54)-W54,0) -> 0 | Y54: =IF($A54>0,SUMIF('Age profile (years)'!$CT54:$GF54,"<" & T54+0.5,'Asset data'!$CX54:$GJ54)-X54-W54,0) -> 0 | Z54: =IF($A54>0,SUMIF('Age profile (years)'!$CT54:$GF54,"<" & U54+0.5,'Asset data'!$CX54:$GJ54)-Y54-X54-W54,0) -> 0 | AA54: 0 | AB54: 0 | AC54: 0 | AD54: 0 | AE54: 0 | AF54: 0 | AI54: =IF($A54>0,'RRR hist-forc'!K54,0) -> 0 | AJ54: 0
A55: ='Asset data'!A55 -> 0 | B55: ='Asset data'!B55 -> 0 | C55: ='Asset data'!C55 -> 0 | D55: ='Asset data'!E55 ->  | E55: 0 | F55: =IF(A55>0,SUM('Asset data'!J55:CV55),0) -> 0 | G55: =IF(A55>0,'Asset data'!F55,0) -> 0 | H55: =IF(A55>0,SUM('Asset data'!CX55:GJ55),0) -> 0 | I55: 0 | J55: 0 | K55: 0 | L55: 0 | M55: =IF($A55>0,SUMPRODUCT('Age profile (years)'!$CT55:$GF55,'Asset data'!$CX55:$GJ55)/H55-0.5,0) -> 0 | N55: 0 | O55: =IF($A55>0,'Asset data'!G55,0) -> 0 | P55: 0 | Q55: 0 | R55: 0 | S55: 0 | T55: 0 | U55: 0 | W55: =IF($A55>0,SUMIF('Age profile (years)'!$CT55:$GF55,"<" & R55+0.5,'Asset data'!$CX55:$GJ55),0) -> 0 | X55: =IF($A55>0,SUMIF('Age profile (years)'!$CT55:$GF55,"<" & S55+0.5,'Asset data'!$CX55:$GJ55)-W55,0) -> 0 | Y55: =IF($A55>0,SUMIF('Age profile (years)'!$CT55:$GF55,"<" & T55+0.5,'Asset data'!$CX55:$GJ55)-X55-W55,0) -> 0 | Z55: =IF($A55>0,SUMIF('Age profile (years)'!$CT55:$GF55,"<" & U55+0.5,'Asset data'!$CX55:$GJ55)-Y55-X55-W55,0) -> 0 | AA55: 0 | AB55: 0 | AC55: 0 | AD55: 0 | AE55: 0 | AF55: 0 | AI55: =IF($A55>0,'RRR hist-forc'!K55,0) -> 0 | AJ55: 0
A56: ='Asset data'!A56 -> 0 | B56: ='Asset data'!B56 -> 0 | C56: ='Asset data'!C56 -> 0 | D56: ='Asset data'!E56 ->  | E56: 0 | F56: =IF(A56>0,SUM('Asset data'!J56:CV56),0) -> 0 | G56: =IF(A56>0,'Asset data'!F56,0) -> 0 | H56: =IF(A56>0,SUM('Asset data'!CX56:GJ56),0) -> 0 | I56: 0 | J56: 0 | K56: 0 | L56: 0 | M56: =IF($A56>0,SUMPRODUCT('Age profile (years)'!$CT56:$GF56,'Asset data'!$CX56:$GJ56)/H56-0.5,0) -> 0 | N56: 0 | O56: =IF($A56>0,'Asset data'!G56,0) -> 0 | P56: 0 | Q56: 0 | R56: 0 | S56: 0 | T56: 0 | U56: 0 | W56: =IF($A56>0,SUMIF('Age profile (years)'!$CT56:$GF56,"<" & R56+0.5,'Asset data'!$CX56:$GJ56),0) -> 0 | X56: =IF($A56>0,SUMIF('Age profile (years)'!$CT56:$GF56,"<" & S56+0.5,'Asset data'!$CX56:$GJ56)-W56,0) -> 0 | Y56: =IF($A56>0,SUMIF('Age profile (years)'!$CT56:$GF56,"<" & T56+0.5,'Asset data'!$CX56:$GJ56)-X56-W56,0) -> 0 | Z56: =IF($A56>0,SUMIF('Age profile (years)'!$CT56:$GF56,"<" & U56+0.5,'Asset data'!$CX56:$GJ56)-Y56-X56-W56,0) -> 0 | AA56: 0 | AB56: 0 | AC56: 0 | AD56: 0 | AE56: 0 | AF56: 0 | AI56: =IF($A56>0,'RRR hist-forc'!K56,0) -> 0 | AJ56: 0
A57: ='Asset data'!A57 -> 0 | B57: ='Asset data'!B57 -> 0 | C57: ='Asset data'!C57 -> 0 | D57: ='Asset data'!E57 ->  | E57: 0 | F57: =IF(A57>0,SUM('Asset data'!J57:CV57),0) -> 0 | G57: =IF(A57>0,'Asset data'!F57,0) -> 0 | H57: =IF(A57>0,SUM('Asset data'!CX57:GJ57),0) -> 0 | I57: 0 | J57: 0 | K57: 0 | L57: 0 | M57: =IF($A57>0,SUMPRODUCT('Age profile (years)'!$CT57:$GF57,'Asset data'!$CX57:$GJ57)/H57-0.5,0) -> 0 | N57: 0 | O57: =IF($A57>0,'Asset data'!G57,0) -> 0 | P57: 0 | Q57: 0 | R57: 0 | S57: 0 | T57: 0 | U57: 0 | W57: =IF($A57>0,SUMIF('Age profile (years)'!$CT57:$GF57,"<" & R57+0.5,'Asset data'!$CX57:$GJ57),0) -> 0 | X57: =IF($A57>0,SUMIF('Age profile (years)'!$CT57:$GF57,"<" & S57+0.5,'Asset data'!$CX57:$GJ57)-W57,0) -> 0 | Y57: =IF($A57>0,SUMIF('Age profile (years)'!$CT57:$GF57,"<" & T57+0.5,'Asset data'!$CX57:$GJ57)-X57-W57,0) -> 0 | Z57: =IF($A57>0,SUMIF('Age profile (years)'!$CT57:$GF57,"<" & U57+0.5,'Asset data'!$CX57:$GJ57)-Y57-X57-W57,0) -> 0 | AA57: 0 | AB57: 0 | AC57: 0 | AD57: 0 | AE57: 0 | AF57: 0 | AI57: =IF($A57>0,'RRR hist-forc'!K57,0) -> 0 | AJ57: 0
A58: ='Asset data'!A58 -> 5 | B58: ='Asset data'!B58 -> 0 | C58: ='Asset data'!C58 -> 0 | D58: ='Asset data'!E58 -> ˂ = 11 kV ; Residential ; Simple Type | E58: SERVICE LINES | F58: =IF(A58>0,SUM('Asset data'!J58:CV58),0) -> 122698 | G58: =IF(A58>0,'Asset data'!F58,0) -> 3.834116097 | H58: =IF(A58>0,SUM('Asset data'!CX58:GJ58),0) -> 470438.3769 | I58: 0.09915516711 | J58: 2 | K58: 0.963792987 | L58: 3.834116097 | M58: =IF($A58>0,SUMPRODUCT('Age profile (years)'!$CT58:$GF58,'Asset data'!$CX58:$GJ58)/H58-0.5,0) -> 26.59741805 | N58: 12512446.18 | O58: =IF($A58>0,'Asset data'!G58,0) -> 58.42652998 | P58: 27486081.93 | Q58: 0.5447715608 | R58: 5.842652998 | S58: 11.685306 | T58: 35.05591799 | U58: 46.74122399 | W58: =IF($A58>0,SUMIF('Age profile (years)'!$CT58:$GF58,"<" & R58+0.5,'Asset data'!$CX58:$GJ58),0) -> 33594.52524 | X58: =IF($A58>0,SUMIF('Age profile (years)'!$CT58:$GF58,"<" & S58+0.5,'Asset data'!$CX58:$GJ58)-W58,0) -> 72894.21524 | Y58: =IF($A58>0,SUMIF('Age profile (years)'!$CT58:$GF58,"<" & T58+0.5,'Asset data'!$CX58:$GJ58)-X58-W58,0) -> 214798.6861 | Z58: =IF($A58>0,SUMIF('Age profile (years)'!$CT58:$GF58,"<" & U58+0.5,'Asset data'!$CX58:$GJ58)-Y58-X58-W58,0) -> 91765.73467 | AA58: 57385.21563 | AB58: 0.07141110695 | AC58: 0.1549495509 | AD58: 0.4565926095 | AE58: 0.1950643042 | AF58: 0.1219824284 | AI58: =IF($A58>0,'RRR hist-forc'!K58,0) -> 58.42652998 | AJ58: 27486081.93
A59: ='Asset data'!A59 -> 5 | B59: ='Asset data'!B59 -> 0 | C59: ='Asset data'!C59 -> 0 | D59: ='Asset data'!E59 -> ˂ = 11 kV ; Commercial & Industrial ; Simple Type | E59: SERVICE LINES | F59: =IF(A59>0,SUM('Asset data'!J59:CV59),0) -> 23672 | G59: =IF(A59>0,'Asset data'!F59,0) -> 0.7465806461 | H59: =IF(A59>0,SUM('Asset data'!CX59:GJ59),0) -> 17673.05706 | I59: 0.003724982934 | J59: 30 | K59: 0.03620701304 | L59: 0.7465806461 | M59: =IF($A59>0,SUMPRODUCT('Age profile (years)'!$CT59:$GF59,'Asset data'!$CX59:$GJ59)/H59-0.5,0) -> 29.59813282 | N59: 523089.49 | O59: =IF($A59>0,'Asset data'!G59,0) -> 61.1129461 | P59: 1080052.583 | Q59: 0.5156814603 | R59: 6.11129461 | S59: 12.22258922 | T59: 36.66776766 | U59: 48.89035688 | W59: =IF($A59>0,SUMIF('Age profile (years)'!$CT59:$GF59,"<" & R59+0.5,'Asset data'!$CX59:$GJ59),0) -> 406.8864521 | X59: =IF($A59>0,SUMIF('Age profile (years)'!$CT59:$GF59,"<" & S59+0.5,'Asset data'!$CX59:$GJ59)-W59,0) -> 2041.151487 | Y59: =IF($A59>0,SUMIF('Age profile (years)'!$CT59:$GF59,"<" & T59+0.5,'Asset data'!$CX59:$GJ59)-X59-W59,0) -> 9259.093173 | Z59: =IF($A59>0,SUMIF('Age profile (years)'!$CT59:$GF59,"<" & U59+0.5,'Asset data'!$CX59:$GJ59)-Y59-X59-W59,0) -> 3505.196134 | AA59: 2460.72981 | AB59: 0.02302298074 | AC59: 0.1154950997 | AD59: 0.5239101048 | AE59: 0.1983355863 | AF59: 0.1392362285 | AI59: =IF($A59>0,'RRR hist-forc'!K59,0) -> 61.1129461 | AJ59: 1080052.583
A60: ='Asset data'!A60 -> 0 | B60: ='Asset data'!B60 -> 0 | C60: ='Asset data'!C60 -> 0 | D60: ='Asset data'!E60 ->  | E60: 0 | F60: =IF(A60>0,SUM('Asset data'!J60:CV60),0) -> 0 | G60: =IF(A60>0,'Asset data'!F60,0) -> 0 | H60: =IF(A60>0,SUM('Asset data'!CX60:GJ60),0) -> 0 | I60: 0 | J60: 0 | K60: 0 | L60: 0 | M60: =IF($A60>0,SUMPRODUCT('Age profile (years)'!$CT60:$GF60,'Asset data'!$CX60:$GJ60)/H60-0.5,0) -> 0 | N60: 0 | O60: =IF($A60>0,'Asset data'!G60,0) -> 0 | P60: 0 | Q60: 0 | R60: 0 | S60: 0 | T60: 0 | U60: 0 | W60: =IF($A60>0,SUMIF('Age profile (years)'!$CT60:$GF60,"<" & R60+0.5,'Asset data'!$CX60:$GJ60),0) -> 0 | X60: =IF($A60>0,SUMIF('Age profile (years)'!$CT60:$GF60,"<" & S60+0.5,'Asset data'!$CX60:$GJ60)-W60,0) -> 0 | Y60: =IF($A60>0,SUMIF('Age profile (years)'!$CT60:$GF60,"<" & T60+0.5,'Asset data'!$CX60:$GJ60)-X60-W60,0) -> 0 | Z60: =IF($A60>0,SUMIF('Age profile (years)'!$CT60:$GF60,"<" & U60+0.5,'Asset data'!$CX60:$GJ60)-Y60-X60-W60,0) -> 0 | AA60: 0 | AB60: 0 | AC60: 0 | AD60: 0 | AE60: 0 | AF60: 0 | AI60: =IF($A60>0,'RRR hist-forc'!K60,0) -> 0 | AJ60: 0
A61: ='Asset data'!A61 -> 0 | B61: ='Asset data'!B61 -> 0 | C61: ='Asset data'!C61 -> 0 | D61: ='Asset data'!E61 ->  | E61: 0 | F61: =IF(A61>0,SUM('Asset data'!J61:CV61),0) -> 0 | G61: =IF(A61>0,'Asset data'!F61,0) -> 0 | H61: =IF(A61>0,SUM('Asset data'!CX61:GJ61),0) -> 0 | I61: 0 | J61: 0 | K61: 0 | L61: 0 | M61: =IF($A61>0,SUMPRODUCT('Age profile (years)'!$CT61:$GF61,'Asset data'!$CX61:$GJ61)/H61-0.5,0) -> 0 | N61: 0 | O61: =IF($A61>0,'Asset data'!G61,0) -> 0 | P61: 0 | Q61: 0 | R61: 0 | S61: 0 | T61: 0 | U61: 0 | W61: =IF($A61>0,SUMIF('Age profile (years)'!$CT61:$GF61,"<" & R61+0.5,'Asset data'!$CX61:$GJ61),0) -> 0 | X61: =IF($A61>0,SUMIF('Age profile (years)'!$CT61:$GF61,"<" & S61+0.5,'Asset data'!$CX61:$GJ61)-W61,0) -> 0 | Y61: =IF($A61>0,SUMIF('Age profile (years)'!$CT61:$GF61,"<" & T61+0.5,'Asset data'!$CX61:$GJ61)-X61-W61,0) -> 0 | Z61: =IF($A61>0,SUMIF('Age profile (years)'!$CT61:$GF61,"<" & U61+0.5,'Asset data'!$CX61:$GJ61)-Y61-X61-W61,0) -> 0 | AA61: 0 | AB61: 0 | AC61: 0 | AD61: 0 | AE61: 0 | AF61: 0 | AI61: =IF($A61>0,'RRR hist-forc'!K61,0) -> 0 | AJ61: 0
A62: ='Asset data'!A62 -> 0 | B62: ='Asset data'!B62 -> 0 | C62: ='Asset data'!C62 -> 0 | D62: ='Asset data'!E62 ->  | E62: 0 | F62: =IF(A62>0,SUM('Asset data'!J62:CV62),0) -> 0 | G62: =IF(A62>0,'Asset data'!F62,0) -> 0 | H62: =IF(A62>0,SUM('Asset data'!CX62:GJ62),0) -> 0 | I62: 0 | J62: 0 | K62: 0 | L62: 0 | M62: =IF($A62>0,SUMPRODUCT('Age profile (years)'!$CT62:$GF62,'Asset data'!$CX62:$GJ62)/H62-0.5,0) -> 0 | N62: 0 | O62: =IF($A62>0,'Asset data'!G62,0) -> 0 | P62: 0 | Q62: 0 | R62: 0 | S62: 0 | T62: 0 | U62: 0 | W62: =IF($A62>0,SUMIF('Age profile (years)'!$CT62:$GF62,"<" & R62+0.5,'Asset data'!$CX62:$GJ62),0) -> 0 | X62: =IF($A62>0,SUMIF('Age profile (years)'!$CT62:$GF62,"<" & S62+0.5,'Asset data'!$CX62:$GJ62)-W62,0) -> 0 | Y62: =IF($A62>0,SUMIF('Age profile (years)'!$CT62:$GF62,"<" & T62+0.5,'Asset data'!$CX62:$GJ62)-X62-W62,0) -> 0 | Z62: =IF($A62>0,SUMIF('Age profile (years)'!$CT62:$GF62,"<" & U62+0.5,'Asset data'!$CX62:$GJ62)-Y62-X62-W62,0) -> 0 | AA62: 0 | AB62: 0 | AC62: 0 | AD62: 0 | AE62: 0 | AF62: 0 | AI62: =IF($A62>0,'RRR hist-forc'!K62,0) -> 0 | AJ62: 0
A63: ='Asset data'!A63 -> 0 | B63: ='Asset data'!B63 -> 0 | C63: ='Asset data'!C63 -> 0 | D63: ='Asset data'!E63 ->  | E63: 0 | F63: =IF(A63>0,SUM('Asset data'!J63:CV63),0) -> 0 | G63: =IF(A63>0,'Asset data'!F63,0) -> 0 | H63: =IF(A63>0,SUM('Asset data'!CX63:GJ63),0) -> 0 | I63: 0 | J63: 0 | K63: 0 | L63: 0 | M63: =IF($A63>0,SUMPRODUCT('Age profile (years)'!$CT63:$GF63,'Asset data'!$CX63:$GJ63)/H63-0.5,0) -> 0 | N63: 0 | O63: =IF($A63>0,'Asset data'!G63,0) -> 0 | P63: 0 | Q63: 0 | R63: 0 | S63: 0 | T63: 0 | U63: 0 | W63: =IF($A63>0,SUMIF('Age profile (years)'!$CT63:$GF63,"<" & R63+0.5,'Asset data'!$CX63:$GJ63),0) -> 0 | X63: =IF($A63>0,SUMIF('Age profile (years)'!$CT63:$GF63,"<" & S63+0.5,'Asset data'!$CX63:$GJ63)-W63,0) -> 0 | Y63: =IF($A63>0,SUMIF('Age profile (years)'!$CT63:$GF63,"<" & T63+0.5,'Asset data'!$CX63:$GJ63)-X63-W63,0) -> 0 | Z63: =IF($A63>0,SUMIF('Age profile (years)'!$CT63:$GF63,"<" & U63+0.5,'Asset data'!$CX63:$GJ63)-Y63-X63-W63,0) -> 0 | AA63: 0 | AB63: 0 | AC63: 0 | AD63: 0 | AE63: 0 | AF63: 0 | AI63: =IF($A63>0,'RRR hist-forc'!K63,0) -> 0 | AJ63: 0
A64: ='Asset data'!A64 -> 0 | B64: ='Asset data'!B64 -> 0 | C64: ='Asset data'!C64 -> 0 | D64: ='Asset data'!E64 ->  | E64: 0 | F64: =IF(A64>0,SUM('Asset data'!J64:CV64),0) -> 0 | G64: =IF(A64>0,'Asset data'!F64,0) -> 0 | H64: =IF(A64>0,SUM('Asset data'!CX64:GJ64),0) -> 0 | I64: 0 | J64: 0 | K64: 0 | L64: 0 | M64: =IF($A64>0,SUMPRODUCT('Age profile (years)'!$CT64:$GF64,'Asset data'!$CX64:$GJ64)/H64-0.5,0) -> 0 | N64: 0 | O64: =IF($A64>0,'Asset data'!G64,0) -> 0 | P64: 0 | Q64: 0 | R64: 0 | S64: 0 | T64: 0 | U64: 0 | W64: =IF($A64>0,SUMIF('Age profile (years)'!$CT64:$GF64,"<" & R64+0.5,'Asset data'!$CX64:$GJ64),0) -> 0 | X64: =IF($A64>0,SUMIF('Age profile (years)'!$CT64:$GF64,"<" & S64+0.5,'Asset data'!$CX64:$GJ64)-W64,0) -> 0 | Y64: =IF($A64>0,SUMIF('Age profile (years)'!$CT64:$GF64,"<" & T64+0.5,'Asset data'!$CX64:$GJ64)-X64-W64,0) -> 0 | Z64: =IF($A64>0,SUMIF('Age profile (years)'!$CT64:$GF64,"<" & U64+0.5,'Asset data'!$CX64:$GJ64)-Y64-X64-W64,0) -> 0 | AA64: 0 | AB64: 0 | AC64: 0 | AD64: 0 | AE64: 0 | AF64: 0 | AI64: =IF($A64>0,'RRR hist-forc'!K64,0) -> 0 | AJ64: 0
A65: ='Asset data'!A65 -> 0 | B65: ='Asset data'!B65 -> 0 | C65: ='Asset data'!C65 -> 0 | D65: ='Asset data'!E65 ->  | E65: 0 | F65: =IF(A65>0,SUM('Asset data'!J65:CV65),0) -> 0 | G65: =IF(A65>0,'Asset data'!F65,0) -> 0 | H65: =IF(A65>0,SUM('Asset data'!CX65:GJ65),0) -> 0 | I65: 0 | J65: 0 | K65: 0 | L65: 0 | M65: =IF($A65>0,SUMPRODUCT('Age profile (years)'!$CT65:$GF65,'Asset data'!$CX65:$GJ65)/H65-0.5,0) -> 0 | N65: 0 | O65: =IF($A65>0,'Asset data'!G65,0) -> 0 | P65: 0 | Q65: 0 | R65: 0 | S65: 0 | T65: 0 | U65: 0 | W65: =IF($A65>0,SUMIF('Age profile (years)'!$CT65:$GF65,"<" & R65+0.5,'Asset data'!$CX65:$GJ65),0) -> 0 | X65: =IF($A65>0,SUMIF('Age profile (years)'!$CT65:$GF65,"<" & S65+0.5,'Asset data'!$CX65:$GJ65)-W65,0) -> 0 | Y65: =IF($A65>0,SUMIF('Age profile (years)'!$CT65:$GF65,"<" & T65+0.5,'Asset data'!$CX65:$GJ65)-X65-W65,0) -> 0 | Z65: =IF($A65>0,SUMIF('Age profile (years)'!$CT65:$GF65,"<" & U65+0.5,'Asset data'!$CX65:$GJ65)-Y65-X65-W65,0) -> 0 | AA65: 0 | AB65: 0 | AC65: 0 | AD65: 0 | AE65: 0 | AF65: 0 | AI65: =IF($A65>0,'RRR hist-forc'!K65,0) -> 0 | AJ65: 0
A66: ='Asset data'!A66 -> 0 | B66: ='Asset data'!B66 -> 0 | C66: ='Asset data'!C66 -> 0 | D66: ='Asset data'!E66 ->  | E66: 0 | F66: =IF(A66>0,SUM('Asset data'!J66:CV66),0) -> 0 | G66: =IF(A66>0,'Asset data'!F66,0) -> 0 | H66: =IF(A66>0,SUM('Asset data'!CX66:GJ66),0) -> 0 | I66: 0 | J66: 0 | K66: 0 | L66: 0 | M66: =IF($A66>0,SUMPRODUCT('Age profile (years)'!$CT66:$GF66,'Asset data'!$CX66:$GJ66)/H66-0.5,0) -> 0 | N66: 0 | O66: =IF($A66>0,'Asset data'!G66,0) -> 0 | P66: 0 | Q66: 0 | R66: 0 | S66: 0 | T66: 0 | U66: 0 | W66: =IF($A66>0,SUMIF('Age profile (years)'!$CT66:$GF66,"<" & R66+0.5,'Asset data'!$CX66:$GJ66),0) -> 0 | X66: =IF($A66>0,SUMIF('Age profile (years)'!$CT66:$GF66,"<" & S66+0.5,'Asset data'!$CX66:$GJ66)-W66,0) -> 0 | Y66: =IF($A66>0,SUMIF('Age profile (years)'!$CT66:$GF66,"<" & T66+0.5,'Asset data'!$CX66:$GJ66)-X66-W66,0) -> 0 | Z66: =IF($A66>0,SUMIF('Age profile (years)'!$CT66:$GF66,"<" & U66+0.5,'Asset data'!$CX66:$GJ66)-Y66-X66-W66,0) -> 0 | AA66: 0 | AB66: 0 | AC66: 0 | AD66: 0 | AE66: 0 | AF66: 0 | AI66: =IF($A66>0,'RRR hist-forc'!K66,0) -> 0 | AJ66: 0
A67: ='Asset data'!A67 -> 0 | B67: ='Asset data'!B67 -> 0 | C67: ='Asset data'!C67 -> 0 | D67: ='Asset data'!E67 ->  | E67: 0 | F67: =IF(A67>0,SUM('Asset data'!J67:CV67),0) -> 0 | G67: =IF(A67>0,'Asset data'!F67,0) -> 0 | H67: =IF(A67>0,SUM('Asset data'!CX67:GJ67),0) -> 0 | I67: 0 | J67: 0 | K67: 0 | L67: 0 | M67: =IF($A67>0,SUMPRODUCT('Age profile (years)'!$CT67:$GF67,'Asset data'!$CX67:$GJ67)/H67-0.5,0) -> 0 | N67: 0 | O67: =IF($A67>0,'Asset data'!G67,0) -> 0 | P67: 0 | Q67: 0 | R67: 0 | S67: 0 | T67: 0 | U67: 0 | W67: =IF($A67>0,SUMIF('Age profile (years)'!$CT67:$GF67,"<" & R67+0.5,'Asset data'!$CX67:$GJ67),0) -> 0 | X67: =IF($A67>0,SUMIF('Age profile (years)'!$CT67:$GF67,"<" & S67+0.5,'Asset data'!$CX67:$GJ67)-W67,0) -> 0 | Y67: =IF($A67>0,SUMIF('Age profile (years)'!$CT67:$GF67,"<" & T67+0.5,'Asset data'!$CX67:$GJ67)-X67-W67,0) -> 0 | Z67: =IF($A67>0,SUMIF('Age profile (years)'!$CT67:$GF67,"<" & U67+0.5,'Asset data'!$CX67:$GJ67)-Y67-X67-W67,0) -> 0 | AA67: 0 | AB67: 0 | AC67: 0 | AD67: 0 | AE67: 0 | AF67: 0 | AI67: =IF($A67>0,'RRR hist-forc'!K67,0) -> 0 | AJ67: 0
A68: ='Asset data'!A68 -> 0 | B68: ='Asset data'!B68 -> 0 | C68: ='Asset data'!C68 -> 0 | D68: ='Asset data'!E68 ->  | E68: 0 | F68: =IF(A68>0,SUM('Asset data'!J68:CV68),0) -> 0 | G68: =IF(A68>0,'Asset data'!F68,0) -> 0 | H68: =IF(A68>0,SUM('Asset data'!CX68:GJ68),0) -> 0 | I68: 0 | J68: 0 | K68: 0 | L68: 0 | M68: =IF($A68>0,SUMPRODUCT('Age profile (years)'!$CT68:$GF68,'Asset data'!$CX68:$GJ68)/H68-0.5,0) -> 0 | N68: 0 | O68: =IF($A68>0,'Asset data'!G68,0) -> 0 | P68: 0 | Q68: 0 | R68: 0 | S68: 0 | T68: 0 | U68: 0 | W68: =IF($A68>0,SUMIF('Age profile (years)'!$CT68:$GF68,"<" & R68+0.5,'Asset data'!$CX68:$GJ68),0) -> 0 | X68: =IF($A68>0,SUMIF('Age profile (years)'!$CT68:$GF68,"<" & S68+0.5,'Asset data'!$CX68:$GJ68)-W68,0) -> 0 | Y68: =IF($A68>0,SUMIF('Age profile (years)'!$CT68:$GF68,"<" & T68+0.5,'Asset data'!$CX68:$GJ68)-X68-W68,0) -> 0 | Z68: =IF($A68>0,SUMIF('Age profile (years)'!$CT68:$GF68,"<" & U68+0.5,'Asset data'!$CX68:$GJ68)-Y68-X68-W68,0) -> 0 | AA68: 0 | AB68: 0 | AC68: 0 | AD68: 0 | AE68: 0 | AF68: 0 | AI68: =IF($A68>0,'RRR hist-forc'!K68,0) -> 0 | AJ68: 0
A69: ='Asset data'!A69 -> 0 | B69: ='Asset data'!B69 -> 0 | C69: ='Asset data'!C69 -> 0 | D69: ='Asset data'!E69 ->  | E69: 0 | F69: =IF(A69>0,SUM('Asset data'!J69:CV69),0) -> 0 | G69: =IF(A69>0,'Asset data'!F69,0) -> 0 | H69: =IF(A69>0,SUM('Asset data'!CX69:GJ69),0) -> 0 | I69: 0 | J69: 0 | K69: 0 | L69: 0 | M69: =IF($A69>0,SUMPRODUCT('Age profile (years)'!$CT69:$GF69,'Asset data'!$CX69:$GJ69)/H69-0.5,0) -> 0 | N69: 0 | O69: =IF($A69>0,'Asset data'!G69,0) -> 0 | P69: 0 | Q69: 0 | R69: 0 | S69: 0 | T69: 0 | U69: 0 | W69: =IF($A69>0,SUMIF('Age profile (years)'!$CT69:$GF69,"<" & R69+0.5,'Asset data'!$CX69:$GJ69),0) -> 0 | X69: =IF($A69>0,SUMIF('Age profile (years)'!$CT69:$GF69,"<" & S69+0.5,'Asset data'!$CX69:$GJ69)-W69,0) -> 0 | Y69: =IF($A69>0,SUMIF('Age profile (years)'!$CT69:$GF69,"<" & T69+0.5,'Asset data'!$CX69:$GJ69)-X69-W69,0) -> 0 | Z69: =IF($A69>0,SUMIF('Age profile (years)'!$CT69:$GF69,"<" & U69+0.5,'Asset data'!$CX69:$GJ69)-Y69-X69-W69,0) -> 0 | AA69: 0 | AB69: 0 | AC69: 0 | AD69: 0 | AE69: 0 | AF69: 0 | AI69: =IF($A69>0,'RRR hist-forc'!K69,0) -> 0 | AJ69: 0
A70: ='Asset data'!A70 -> 0 | B70: ='Asset data'!B70 -> 0 | C70: ='Asset data'!C70 -> 0 | D70: ='Asset data'!E70 ->  | E70: 0 | F70: =IF(A70>0,SUM('Asset data'!J70:CV70),0) -> 0 | G70: =IF(A70>0,'Asset data'!F70,0) -> 0 | H70: =IF(A70>0,SUM('Asset data'!CX70:GJ70),0) -> 0 | I70: 0 | J70: 0 | K70: 0 | L70: 0 | M70: =IF($A70>0,SUMPRODUCT('Age profile (years)'!$CT70:$GF70,'Asset data'!$CX70:$GJ70)/H70-0.5,0) -> 0 | N70: 0 | O70: =IF($A70>0,'Asset data'!G70,0) -> 0 | P70: 0 | Q70: 0 | R70: 0 | S70: 0 | T70: 0 | U70: 0 | W70: =IF($A70>0,SUMIF('Age profile (years)'!$CT70:$GF70,"<" & R70+0.5,'Asset data'!$CX70:$GJ70),0) -> 0 | X70: =IF($A70>0,SUMIF('Age profile (years)'!$CT70:$GF70,"<" & S70+0.5,'Asset data'!$CX70:$GJ70)-W70,0) -> 0 | Y70: =IF($A70>0,SUMIF('Age profile (years)'!$CT70:$GF70,"<" & T70+0.5,'Asset data'!$CX70:$GJ70)-X70-W70,0) -> 0 | Z70: =IF($A70>0,SUMIF('Age profile (years)'!$CT70:$GF70,"<" & U70+0.5,'Asset data'!$CX70:$GJ70)-Y70-X70-W70,0) -> 0 | AA70: 0 | AB70: 0 | AC70: 0 | AD70: 0 | AE70: 0 | AF70: 0 | AI70: =IF($A70>0,'RRR hist-forc'!K70,0) -> 0 | AJ70: 0
A71: ='Asset data'!A71 -> 0 | B71: ='Asset data'!B71 -> 0 | C71: ='Asset data'!C71 -> 0 | D71: ='Asset data'!E71 ->  | E71: 0 | F71: =IF(A71>0,SUM('Asset data'!J71:CV71),0) -> 0 | G71: =IF(A71>0,'Asset data'!F71,0) -> 0 | H71: =IF(A71>0,SUM('Asset data'!CX71:GJ71),0) -> 0 | I71: 0 | J71: 0 | K71: 0 | L71: 0 | M71: =IF($A71>0,SUMPRODUCT('Age profile (years)'!$CT71:$GF71,'Asset data'!$CX71:$GJ71)/H71-0.5,0) -> 0 | N71: 0 | O71: =IF($A71>0,'Asset data'!G71,0) -> 0 | P71: 0 | Q71: 0 | R71: 0 | S71: 0 | T71: 0 | U71: 0 | W71: =IF($A71>0,SUMIF('Age profile (years)'!$CT71:$GF71,"<" & R71+0.5,'Asset data'!$CX71:$GJ71),0) -> 0 | X71: =IF($A71>0,SUMIF('Age profile (years)'!$CT71:$GF71,"<" & S71+0.5,'Asset data'!$CX71:$GJ71)-W71,0) -> 0 | Y71: =IF($A71>0,SUMIF('Age profile (years)'!$CT71:$GF71,"<" & T71+0.5,'Asset data'!$CX71:$GJ71)-X71-W71,0) -> 0 | Z71: =IF($A71>0,SUMIF('Age profile (years)'!$CT71:$GF71,"<" & U71+0.5,'Asset data'!$CX71:$GJ71)-Y71-X71-W71,0) -> 0 | AA71: 0 | AB71: 0 | AC71: 0 | AD71: 0 | AE71: 0 | AF71: 0 | AI71: =IF($A71>0,'RRR hist-forc'!K71,0) -> 0 | AJ71: 0
A72: ='Asset data'!A72 -> 0 | B72: ='Asset data'!B72 -> 0 | C72: ='Asset data'!C72 -> 0 | D72: ='Asset data'!E72 ->  | E72: 0 | F72: =IF(A72>0,SUM('Asset data'!J72:CV72),0) -> 0 | G72: =IF(A72>0,'Asset data'!F72,0) -> 0 | H72: =IF(A72>0,SUM('Asset data'!CX72:GJ72),0) -> 0 | I72: 0 | J72: 0 | K72: 0 | L72: 0 | M72: =IF($A72>0,SUMPRODUCT('Age profile (years)'!$CT72:$GF72,'Asset data'!$CX72:$GJ72)/H72-0.5,0) -> 0 | N72: 0 | O72: =IF($A72>0,'Asset data'!G72,0) -> 0 | P72: 0 | Q72: 0 | R72: 0 | S72: 0 | T72: 0 | U72: 0 | W72: =IF($A72>0,SUMIF('Age profile (years)'!$CT72:$GF72,"<" & R72+0.5,'Asset data'!$CX72:$GJ72),0) -> 0 | X72: =IF($A72>0,SUMIF('Age profile (years)'!$CT72:$GF72,"<" & S72+0.5,'Asset data'!$CX72:$GJ72)-W72,0) -> 0 | Y72: =IF($A72>0,SUMIF('Age profile (years)'!$CT72:$GF72,"<" & T72+0.5,'Asset data'!$CX72:$GJ72)-X72-W72,0) -> 0 | Z72: =IF($A72>0,SUMIF('Age profile (years)'!$CT72:$GF72,"<" & U72+0.5,'Asset data'!$CX72:$GJ72)-Y72-X72-W72,0) -> 0 | AA72: 0 | AB72: 0 | AC72: 0 | AD72: 0 | AE72: 0 | AF72: 0 | AI72: =IF($A72>0,'RRR hist-forc'!K72,0) -> 0 | AJ72: 0
A73: ='Asset data'!A73 -> 0 | B73: ='Asset data'!B73 -> 0 | C73: ='Asset data'!C73 -> 0 | D73: ='Asset data'!E73 ->  | E73: 0 | F73: =IF(A73>0,SUM('Asset data'!J73:CV73),0) -> 0 | G73: =IF(A73>0,'Asset data'!F73,0) -> 0 | H73: =IF(A73>0,SUM('Asset data'!CX73:GJ73),0) -> 0 | I73: 0 | J73: 0 | K73: 0 | L73: 0 | M73: =IF($A73>0,SUMPRODUCT('Age profile (years)'!$CT73:$GF73,'Asset data'!$CX73:$GJ73)/H73-0.5,0) -> 0 | N73: 0 | O73: =IF($A73>0,'Asset data'!G73,0) -> 0 | P73: 0 | Q73: 0 | R73: 0 | S73: 0 | T73: 0 | U73: 0 | W73: =IF($A73>0,SUMIF('Age profile (years)'!$CT73:$GF73,"<" & R73+0.5,'Asset data'!$CX73:$GJ73),0) -> 0 | X73: =IF($A73>0,SUMIF('Age profile (years)'!$CT73:$GF73,"<" & S73+0.5,'Asset data'!$CX73:$GJ73)-W73,0) -> 0 | Y73: =IF($A73>0,SUMIF('Age profile (years)'!$CT73:$GF73,"<" & T73+0.5,'Asset data'!$CX73:$GJ73)-X73-W73,0) -> 0 | Z73: =IF($A73>0,SUMIF('Age profile (years)'!$CT73:$GF73,"<" & U73+0.5,'Asset data'!$CX73:$GJ73)-Y73-X73-W73,0) -> 0 | AA73: 0 | AB73: 0 | AC73: 0 | AD73: 0 | AE73: 0 | AF73: 0 | AI73: =IF($A73>0,'RRR hist-forc'!K73,0) -> 0 | AJ73: 0
A74: ='Asset data'!A74 -> 6 | B74: ='Asset data'!B74 -> 0 | C74: ='Asset data'!C74 -> 0 | D74: ='Asset data'!E74 -> Pole Mounted ; < = 22kV ; < = 60 kVA ; Single Phase | E74: TRANSFORMERS | F74: =IF(A74>0,SUM('Asset data'!J74:CV74),0) -> 15107 | G74: =IF(A74>0,'Asset data'!F74,0) -> 12.83493167 | H74: =IF(A74>0,SUM('Asset data'!CX74:GJ74),0) -> 193897.3128 | I74: 0.04086809536 | J74: 8 | K74: 0.3458649526 | L74: 12.83493167 | M74: =IF($A74>0,SUMPRODUCT('Age profile (years)'!$CT74:$GF74,'Asset data'!$CX74:$GJ74)/H74-0.5,0) -> 33.60326339 | N74: 6515582.471 | O74: =IF($A74>0,'Asset data'!G74,0) -> 54.98570629 | P74: 10661580.69 | Q74: 0.3888727515 | R74: 5.498570629 | S74: 10.99714126 | T74: 32.99142377 | U74: 43.98856503 | W74: =IF($A74>0,SUMIF('Age profile (years)'!$CT74:$GF74,"<" & R74+0.5,'Asset data'!$CX74:$GJ74),0) -> 436.3876768 | X74: =IF($A74>0,SUMIF('Age profile (years)'!$CT74:$GF74,"<" & S74+0.5,'Asset data'!$CX74:$GJ74)-W74,0) -> 4941.448693 | Y74: =IF($A74>0,SUMIF('Age profile (years)'!$CT74:$GF74,"<" & T74+0.5,'Asset data'!$CX74:$GJ74)-X74-W74,0) -> 85750.17849 | Z74: =IF($A74>0,SUMIF('Age profile (years)'!$CT74:$GF74,"<" & U74+0.5,'Asset data'!$CX74:$GJ74)-Y74-X74-W74,0) -> 60760.56653 | AA74: 42008.73136 | AB74: 0.002250612299 | AC74: 0.02548487456 | AD74: 0.4422453167 | AE74: 0.3133646654 | AF74: 0.216654531 | AI74: =IF($A74>0,'RRR hist-forc'!K74,0) -> 54.98570629 | AJ74: 10661580.69
A75: ='Asset data'!A75 -> 6 | B75: ='Asset data'!B75 -> 0 | C75: ='Asset data'!C75 -> 0 | D75: ='Asset data'!E75 -> Pole Mounted ; < = 22kV ; > 60 kVA and < = 600 kVA ; Single Phase | E75: TRANSFORMERS | F75: =IF(A75>0,SUM('Asset data'!J75:CV75),0) -> 21 | G75: =IF(A75>0,'Asset data'!F75,0) -> 17.21170686 | H75: =IF(A75>0,SUM('Asset data'!CX75:GJ75),0) -> 361.4458441 | I75: 7.618260931e-05 | J75: 41 | K75: 0.000644730182 | L75: 17.21170686 | M75: =IF($A75>0,SUMPRODUCT('Age profile (years)'!$CT75:$GF75,'Asset data'!$CX75:$GJ75)/H75-0.5,0) -> 38.11904762 | N75: 13777.97134 | O75: =IF($A75>0,'Asset data'!G75,0) -> 52.18296314 | P75: 18861.31516 | Q75: 0.2695116313 | R75: 5.218296314 | S75: 10.43659263 | T75: 31.30977788 | U75: 41.74637051 | W75: =IF($A75>0,SUMIF('Age profile (years)'!$CT75:$GF75,"<" & R75+0.5,'Asset data'!$CX75:$GJ75),0) -> 0 | X75: =IF($A75>0,SUMIF('Age profile (years)'!$CT75:$GF75,"<" & S75+0.5,'Asset data'!$CX75:$GJ75)-W75,0) -> 0 | Y75: =IF($A75>0,SUMIF('Age profile (years)'!$CT75:$GF75,"<" & T75+0.5,'Asset data'!$CX75:$GJ75)-X75-W75,0) -> 51.63512059 | Z75: =IF($A75>0,SUMIF('Age profile (years)'!$CT75:$GF75,"<" & U75+0.5,'Asset data'!$CX75:$GJ75)-Y75-X75-W75,0) -> 172.1170686 | AA75: 137.6936549 | AB75: 0 | AC75: 0 | AD75: 0.1428571429 | AE75: 0.4761904762 | AF75: 0.380952381 | AI75: =IF($A75>0,'RRR hist-forc'!K75,0) -> 52.18296314 | AJ75: 18861.31516
A76: ='Asset data'!A76 -> 6 | B76: ='Asset data'!B76 -> 0 | C76: ='Asset data'!C76 -> 0 | D76: ='Asset data'!E76 -> Pole Mounted ; < = 22kV ; > 600 kVA ; Single Phase | E76: TRANSFORMERS | F76: =IF(A76>0,SUM('Asset data'!J76:CV76),0) -> 33 | G76: =IF(A76>0,'Asset data'!F76,0) -> 0.001 | H76: =IF(A76>0,SUM('Asset data'!CX76:GJ76),0) -> 0.033 | I76: 6.955471057e-09 | J76: 47 | K76: 5.886385569e-08 | L76: 0.001 | M76: =IF($A76>0,SUMPRODUCT('Age profile (years)'!$CT76:$GF76,'Asset data'!$CX76:$GJ76)/H76-0.5,0) -> 38.01515152 | N76: 1.2545 | O76: =IF($A76>0,'Asset data'!G76,0) -> 47.125 | P76: 1.555125 | Q76: 0.1933124347 | R76: 4.7125 | S76: 9.425 | T76: 28.275 | U76: 37.7 | W76: =IF($A76>0,SUMIF('Age profile (years)'!$CT76:$GF76,"<" & R76+0.5,'Asset data'!$CX76:$GJ76),0) -> 0 | X76: =IF($A76>0,SUMIF('Age profile (years)'!$CT76:$GF76,"<" & S76+0.5,'Asset data'!$CX76:$GJ76)-W76,0) -> 0 | Y76: =IF($A76>0,SUMIF('Age profile (years)'!$CT76:$GF76,"<" & T76+0.5,'Asset data'!$CX76:$GJ76)-X76-W76,0) -> 0 | Z76: =IF($A76>0,SUMIF('Age profile (years)'!$CT76:$GF76,"<" & U76+0.5,'Asset data'!$CX76:$GJ76)-Y76-X76-W76,0) -> 0.017 | AA76: 0.016 | AB76: 0 | AC76: 0 | AD76: 0 | AE76: 0.5151515152 | AF76: 0.4848484848 | AI76: =IF($A76>0,'RRR hist-forc'!K76,0) -> 47.125 | AJ76: 1.555125
A77: ='Asset data'!A77 -> 6 | B77: ='Asset data'!B77 -> 0 | C77: ='Asset data'!C77 -> 0 | D77: ='Asset data'!E77 -> Pole Mounted ; < = 22kV ; < = 60 kVA ; Multiple Phase | E77: TRANSFORMERS | F77: =IF(A77>0,SUM('Asset data'!J77:CV77),0) -> 4351 | G77: =IF(A77>0,'Asset data'!F77,0) -> 12.1203913 | H77: =IF(A77>0,SUM('Asset data'!CX77:GJ77),0) -> 52735.82254 | I77: 0.01111522689 | J77: 22 | K77: 0.09406769235 | L77: 12.1203913 | M77: =IF($A77>0,SUMPRODUCT('Age profile (years)'!$CT77:$GF77,'Asset data'!$CX77:$GJ77)/H77-0.5,0) -> 33.82682142 | N77: 1783885.251 | O77: =IF($A77>0,'Asset data'!G77,0) -> 58.11335274 | P77: 3064655.457 | Q77: 0.4179165402 | R77: 5.811335274 | S77: 11.62267055 | T77: 34.86801164 | U77: 46.49068219 | W77: =IF($A77>0,SUMIF('Age profile (years)'!$CT77:$GF77,"<" & R77+0.5,'Asset data'!$CX77:$GJ77),0) -> 193.9262608 | X77: =IF($A77>0,SUMIF('Age profile (years)'!$CT77:$GF77,"<" & S77+0.5,'Asset data'!$CX77:$GJ77)-W77,0) -> 715.1030866 | Y77: =IF($A77>0,SUMIF('Age profile (years)'!$CT77:$GF77,"<" & T77+0.5,'Asset data'!$CX77:$GJ77)-X77-W77,0) -> 26483.05499 | Z77: =IF($A77>0,SUMIF('Age profile (years)'!$CT77:$GF77,"<" & U77+0.5,'Asset data'!$CX77:$GJ77)-Y77-X77-W77,0) -> 19053.25512 | AA77: 6290.483084 | AB77: 0.00367731556 | AC77: 0.01356010113 | AD77: 0.5021834061 | AE77: 0.3612962537 | AF77: 0.1192829235 | AI77: =IF($A77>0,'RRR hist-forc'!K77,0) -> 58.11335274 | AJ77: 3064655.457
A78: ='Asset data'!A78 -> 6 | B78: ='Asset data'!B78 -> 0 | C78: ='Asset data'!C78 -> 0 | D78: ='Asset data'!E78 -> Pole Mounted ; < = 22kV ; > 60 kVA and < = 600 kVA ; Multiple Phase | E78: TRANSFORMERS | F78: =IF(A78>0,SUM('Asset data'!J78:CV78),0) -> 10388 | G78: =IF(A78>0,'Asset data'!F78,0) -> 17.60846835 | H78: =IF(A78>0,SUM('Asset data'!CX78:GJ78),0) -> 182916.7693 | I78: 0.03855370589 | J78: 9 | K78: 0.326278373 | L78: 17.60846835 | M78: =IF($A78>0,SUMPRODUCT('Age profile (years)'!$CT78:$GF78,'Asset data'!$CX78:$GJ78)/H78-0.5,0) -> 35.82479784 | N78: 6552956.281 | O78: =IF($A78>0,'Asset data'!G78,0) -> 53.21790044 | P78: 9734446.415 | Q78: 0.3268280494 | R78: 5.321790044 | S78: 10.64358009 | T78: 31.93074026 | U78: 42.57432035 | W78: =IF($A78>0,SUMIF('Age profile (years)'!$CT78:$GF78,"<" & R78+0.5,'Asset data'!$CX78:$GJ78),0) -> 1232.592785 | X78: =IF($A78>0,SUMIF('Age profile (years)'!$CT78:$GF78,"<" & S78+0.5,'Asset data'!$CX78:$GJ78)-W78,0) -> 3521.693671 | Y78: =IF($A78>0,SUMIF('Age profile (years)'!$CT78:$GF78,"<" & T78+0.5,'Asset data'!$CX78:$GJ78)-X78-W78,0) -> 50606.73805 | Z78: =IF($A78>0,SUMIF('Age profile (years)'!$CT78:$GF78,"<" & U78+0.5,'Asset data'!$CX78:$GJ78)-Y78-X78-W78,0) -> 74254.91105 | AA78: 53300.83371 | AB78: 0.006738544474 | AC78: 0.01925298421 | AD78: 0.2766653831 | AE78: 0.4059491721 | AF78: 0.2913939161 | AI78: =IF($A78>0,'RRR hist-forc'!K78,0) -> 53.21790044 | AJ78: 9734446.415
A79: ='Asset data'!A79 -> 6 | B79: ='Asset data'!B79 -> 0 | C79: ='Asset data'!C79 -> 0 | D79: ='Asset data'!E79 -> Pole Mounted ; < = 22kV ; > 600 kVA ; Multiple Phase | E79: TRANSFORMERS | F79: =IF(A79>0,SUM('Asset data'!J79:CV79),0) -> 1 | G79: =IF(A79>0,'Asset data'!F79,0) -> 32.09213387 | H79: =IF(A79>0,SUM('Asset data'!CX79:GJ79),0) -> 32.09213387 | I79: 6.764118433e-06 | J79: 46 | K79: 5.724444657e-05 | L79: 32.09213387 | M79: =IF($A79>0,SUMPRODUCT('Age profile (years)'!$CT79:$GF79,'Asset data'!$CX79:$GJ79)/H79-0.5,0) -> 9.5 | N79: 304.8752718 | O79: =IF($A79>0,'Asset data'!G79,0) -> 47.84962853 | P79: 1535.596685 | Q79: 0.8014613636 | R79: 4.784962853 | S79: 9.569925707 | T79: 28.70977712 | U79: 38.27970283 | W79: =IF($A79>0,SUMIF('Age profile (years)'!$CT79:$GF79,"<" & R79+0.5,'Asset data'!$CX79:$GJ79),0) -> 0 | X79: =IF($A79>0,SUMIF('Age profile (years)'!$CT79:$GF79,"<" & S79+0.5,'Asset data'!$CX79:$GJ79)-W79,0) -> 32.09213387 | Y79: =IF($A79>0,SUMIF('Age profile (years)'!$CT79:$GF79,"<" & T79+0.5,'Asset data'!$CX79:$GJ79)-X79-W79,0) -> 0 | Z79: =IF($A79>0,SUMIF('Age profile (years)'!$CT79:$GF79,"<" & U79+0.5,'Asset data'!$CX79:$GJ79)-Y79-X79-W79,0) -> 0 | AA79: 0 | AB79: 0 | AC79: 1 | AD79: 0 | AE79: 0 | AF79: 0 | AI79: =IF($A79>0,'RRR hist-forc'!K79,0) -> 47.84962853 | AJ79: 1535.596685
A80: ='Asset data'!A80 -> 0 | B80: ='Asset data'!B80 -> 0 | C80: ='Asset data'!C80 -> 0 | D80: ='Asset data'!E80 ->  | E80: 0 | F80: =IF(A80>0,SUM('Asset data'!J80:CV80),0) -> 0 | G80: =IF(A80>0,'Asset data'!F80,0) -> 0 | H80: =IF(A80>0,SUM('Asset data'!CX80:GJ80),0) -> 0 | I80: 0 | J80: 0 | K80: 0 | L80: 0 | M80: =IF($A80>0,SUMPRODUCT('Age profile (years)'!$CT80:$GF80,'Asset data'!$CX80:$GJ80)/H80-0.5,0) -> 0 | N80: 0 | O80: =IF($A80>0,'Asset data'!G80,0) -> 0 | P80: 0 | Q80: 0 | R80: 0 | S80: 0 | T80: 0 | U80: 0 | W80: =IF($A80>0,SUMIF('Age profile (years)'!$CT80:$GF80,"<" & R80+0.5,'Asset data'!$CX80:$GJ80),0) -> 0 | X80: =IF($A80>0,SUMIF('Age profile (years)'!$CT80:$GF80,"<" & S80+0.5,'Asset data'!$CX80:$GJ80)-W80,0) -> 0 | Y80: =IF($A80>0,SUMIF('Age profile (years)'!$CT80:$GF80,"<" & T80+0.5,'Asset data'!$CX80:$GJ80)-X80-W80,0) -> 0 | Z80: =IF($A80>0,SUMIF('Age profile (years)'!$CT80:$GF80,"<" & U80+0.5,'Asset data'!$CX80:$GJ80)-Y80-X80-W80,0) -> 0 | AA80: 0 | AB80: 0 | AC80: 0 | AD80: 0 | AE80: 0 | AF80: 0 | AI80: =IF($A80>0,'RRR hist-forc'!K80,0) -> 0 | AJ80: 0
A81: ='Asset data'!A81 -> 0 | B81: ='Asset data'!B81 -> 0 | C81: ='Asset data'!C81 -> 0 | D81: ='Asset data'!E81 ->  | E81: 0 | F81: =IF(A81>0,SUM('Asset data'!J81:CV81),0) -> 0 | G81: =IF(A81>0,'Asset data'!F81,0) -> 0 | H81: =IF(A81>0,SUM('Asset data'!CX81:GJ81),0) -> 0 | I81: 0 | J81: 0 | K81: 0 | L81: 0 | M81: =IF($A81>0,SUMPRODUCT('Age profile (years)'!$CT81:$GF81,'Asset data'!$CX81:$GJ81)/H81-0.5,0) -> 0 | N81: 0 | O81: =IF($A81>0,'Asset data'!G81,0) -> 0 | P81: 0 | Q81: 0 | R81: 0 | S81: 0 | T81: 0 | U81: 0 | W81: =IF($A81>0,SUMIF('Age profile (years)'!$CT81:$GF81,"<" & R81+0.5,'Asset data'!$CX81:$GJ81),0) -> 0 | X81: =IF($A81>0,SUMIF('Age profile (years)'!$CT81:$GF81,"<" & S81+0.5,'Asset data'!$CX81:$GJ81)-W81,0) -> 0 | Y81: =IF($A81>0,SUMIF('Age profile (years)'!$CT81:$GF81,"<" & T81+0.5,'Asset data'!$CX81:$GJ81)-X81-W81,0) -> 0 | Z81: =IF($A81>0,SUMIF('Age profile (years)'!$CT81:$GF81,"<" & U81+0.5,'Asset data'!$CX81:$GJ81)-Y81-X81-W81,0) -> 0 | AA81: 0 | AB81: 0 | AC81: 0 | AD81: 0 | AE81: 0 | AF81: 0 | AI81: =IF($A81>0,'RRR hist-forc'!K81,0) -> 0 | AJ81: 0
A82: ='Asset data'!A82 -> 0 | B82: ='Asset data'!B82 -> 0 | C82: ='Asset data'!C82 -> 0 | D82: ='Asset data'!E82 ->  | E82: 0 | F82: =IF(A82>0,SUM('Asset data'!J82:CV82),0) -> 0 | G82: =IF(A82>0,'Asset data'!F82,0) -> 0 | H82: =IF(A82>0,SUM('Asset data'!CX82:GJ82),0) -> 0 | I82: 0 | J82: 0 | K82: 0 | L82: 0 | M82: =IF($A82>0,SUMPRODUCT('Age profile (years)'!$CT82:$GF82,'Asset data'!$CX82:$GJ82)/H82-0.5,0) -> 0 | N82: 0 | O82: =IF($A82>0,'Asset data'!G82,0) -> 0 | P82: 0 | Q82: 0 | R82: 0 | S82: 0 | T82: 0 | U82: 0 | W82: =IF($A82>0,SUMIF('Age profile (years)'!$CT82:$GF82,"<" & R82+0.5,'Asset data'!$CX82:$GJ82),0) -> 0 | X82: =IF($A82>0,SUMIF('Age profile (years)'!$CT82:$GF82,"<" & S82+0.5,'Asset data'!$CX82:$GJ82)-W82,0) -> 0 | Y82: =IF($A82>0,SUMIF('Age profile (years)'!$CT82:$GF82,"<" & T82+0.5,'Asset data'!$CX82:$GJ82)-X82-W82,0) -> 0 | Z82: =IF($A82>0,SUMIF('Age profile (years)'!$CT82:$GF82,"<" & U82+0.5,'Asset data'!$CX82:$GJ82)-Y82-X82-W82,0) -> 0 | AA82: 0 | AB82: 0 | AC82: 0 | AD82: 0 | AE82: 0 | AF82: 0 | AI82: =IF($A82>0,'RRR hist-forc'!K82,0) -> 0 | AJ82: 0
A83: ='Asset data'!A83 -> 6 | B83: ='Asset data'!B83 -> 0 | C83: ='Asset data'!C83 -> 0 | D83: ='Asset data'!E83 -> Kiosk Mounted ; < = 22kV ; < = 60 kVA ; Multiple Phase | E83: TRANSFORMERS | F83: =IF(A83>0,SUM('Asset data'!J83:CV83),0) -> 7 | G83: =IF(A83>0,'Asset data'!F83,0) -> 26.09546361 | H83: =IF(A83>0,SUM('Asset data'!CX83:GJ83),0) -> 182.6682452 | I83: 3.850132402e-05 | J83: 44 | K83: 0.0003258350675 | L83: 26.09546361 | M83: =IF($A83>0,SUMPRODUCT('Age profile (years)'!$CT83:$GF83,'Asset data'!$CX83:$GJ83)/H83-0.5,0) -> 44.07142857 | N83: 8050.450523 | O83: =IF($A83>0,'Asset data'!G83,0) -> 52.21554016 | P83: 9538.121096 | Q83: 0.1559710302 | R83: 5.221554016 | S83: 10.44310803 | T83: 31.3293241 | U83: 41.77243213 | W83: =IF($A83>0,SUMIF('Age profile (years)'!$CT83:$GF83,"<" & R83+0.5,'Asset data'!$CX83:$GJ83),0) -> 0 | X83: =IF($A83>0,SUMIF('Age profile (years)'!$CT83:$GF83,"<" & S83+0.5,'Asset data'!$CX83:$GJ83)-W83,0) -> 0 | Y83: =IF($A83>0,SUMIF('Age profile (years)'!$CT83:$GF83,"<" & T83+0.5,'Asset data'!$CX83:$GJ83)-X83-W83,0) -> 0 | Z83: =IF($A83>0,SUMIF('Age profile (years)'!$CT83:$GF83,"<" & U83+0.5,'Asset data'!$CX83:$GJ83)-Y83-X83-W83,0) -> 52.19092721 | AA83: 130.477318 | AB83: 0 | AC83: 0 | AD83: 0 | AE83: 0.2857142857 | AF83: 0.7142857143 | AI83: =IF($A83>0,'RRR hist-forc'!K83,0) -> 52.21554016 | AJ83: 9538.121096
A84: ='Asset data'!A84 -> 6 | B84: ='Asset data'!B84 -> 0 | C84: ='Asset data'!C84 -> 0 | D84: ='Asset data'!E84 -> Kiosk Mounted ; < = 22kV ; > 60 kVA and < = 600 kVA ; Multiple Phase | E84: TRANSFORMERS | F84: =IF(A84>0,SUM('Asset data'!J84:CV84),0) -> 801 | G84: =IF(A84>0,'Asset data'!F84,0) -> 46.37365185 | H84: =IF(A84>0,SUM('Asset data'!CX84:GJ84),0) -> 37145.29513 | I84: 0.007829182582 | J84: 26 | K84: 0.06625803916 | L84: 46.37365185 | M84: =IF($A84>0,SUMPRODUCT('Age profile (years)'!$CT84:$GF84,'Asset data'!$CX84:$GJ84)/H84-0.5,0) -> 24.55617978 | N84: 912146.5451 | O84: =IF($A84>0,'Asset data'!G84,0) -> 50.72963565 | P84: 1884367.288 | Q84: 0.5159401509 | R84: 5.072963565 | S84: 10.14592713 | T84: 30.43778139 | U84: 40.58370852 | W84: =IF($A84>0,SUMIF('Age profile (years)'!$CT84:$GF84,"<" & R84+0.5,'Asset data'!$CX84:$GJ84),0) -> 1205.714948 | X84: =IF($A84>0,SUMIF('Age profile (years)'!$CT84:$GF84,"<" & S84+0.5,'Asset data'!$CX84:$GJ84)-W84,0) -> 3617.144845 | Y84: =IF($A84>0,SUMIF('Age profile (years)'!$CT84:$GF84,"<" & T84+0.5,'Asset data'!$CX84:$GJ84)-X84-W84,0) -> 20821.76968 | Z84: =IF($A84>0,SUMIF('Age profile (years)'!$CT84:$GF84,"<" & U84+0.5,'Asset data'!$CX84:$GJ84)-Y84-X84-W84,0) -> 5982.201089 | AA84: 5518.46457 | AB84: 0.03245942572 | AC84: 0.09737827715 | AD84: 0.5605493134 | AE84: 0.1610486891 | AF84: 0.1485642946 | AI84: =IF($A84>0,'RRR hist-forc'!K84,0) -> 50.72963565 | AJ84: 1884367.288
A85: ='Asset data'!A85 -> 6 | B85: ='Asset data'!B85 -> 0 | C85: ='Asset data'!C85 -> 0 | D85: ='Asset data'!E85 -> Kiosk Mounted ; < = 22kV ; > 600 kVA ; Multiple Phase | E85: TRANSFORMERS | F85: =IF(A85>0,SUM('Asset data'!J85:CV85),0) -> 571 | G85: =IF(A85>0,'Asset data'!F85,0) -> 70.50364216 | H85: =IF(A85>0,SUM('Asset data'!CX85:GJ85),0) -> 40257.57967 | I85: 0.008485164552 | J85: 25 | K85: 0.07180958668 | L85: 70.50364216 | M85: =IF($A85>0,SUMPRODUCT('Age profile (years)'!$CT85:$GF85,'Asset data'!$CX85:$GJ85)/H85-0.5,0) -> 34.60507881 | N85: 1393116.717 | O85: =IF($A85>0,'Asset data'!G85,0) -> 49.531029 | P85: 1993999.346 | Q85: 0.3013454494 | R85: 4.9531029 | S85: 9.9062058 | T85: 29.7186174 | U85: 39.6248232 | W85: =IF($A85>0,SUMIF('Age profile (years)'!$CT85:$GF85,"<" & R85+0.5,'Asset data'!$CX85:$GJ85),0) -> 423.021853 | X85: =IF($A85>0,SUMIF('Age profile (years)'!$CT85:$GF85,"<" & S85+0.5,'Asset data'!$CX85:$GJ85)-W85,0) -> 352.5182108 | Y85: =IF($A85>0,SUMIF('Age profile (years)'!$CT85:$GF85,"<" & T85+0.5,'Asset data'!$CX85:$GJ85)-X85-W85,0) -> 11069.07182 | Z85: =IF($A85>0,SUMIF('Age profile (years)'!$CT85:$GF85,"<" & U85+0.5,'Asset data'!$CX85:$GJ85)-Y85-X85-W85,0) -> 11844.61188 | AA85: 16568.35591 | AB85: 0.01050788091 | AC85: 0.008756567426 | AD85: 0.2749562172 | AE85: 0.2942206655 | AF85: 0.411558669 | AI85: =IF($A85>0,'RRR hist-forc'!K85,0) -> 49.531029 | AJ85: 1993999.346
A86: ='Asset data'!A86 -> 6 | B86: ='Asset data'!B86 -> 0 | C86: ='Asset data'!C86 -> 0 | D86: ='Asset data'!E86 -> Ground Outdoor / Indoor Chamber Mounted; ˂ 22 kV ; < = 60 kVA ; Single Phase | E86: TRANSFORMERS | F86: =IF(A86>0,SUM('Asset data'!J86:CV86),0) -> 1 | G86: =IF(A86>0,'Asset data'!F86,0) -> 0.001 | H86: =IF(A86>0,SUM('Asset data'!CX86:GJ86),0) -> 0.001 | I86: 2.107718502e-10 | J86: 49 | K86: 1.783753203e-09 | L86: 0.001 | M86: =IF($A86>0,SUMPRODUCT('Age profile (years)'!$CT86:$GF86,'Asset data'!$CX86:$GJ86)/H86-0.5,0) -> 2.5 | N86: 0.0025 | O86: =IF($A86>0,'Asset data'!G86,0) -> 40 | P86: 0.04 | Q86: 0.9375 | R86: 4 | S86: 8 | T86: 24 | U86: 32 | W86: =IF($A86>0,SUMIF('Age profile (years)'!$CT86:$GF86,"<" & R86+0.5,'Asset data'!$CX86:$GJ86),0) -> 0.001 | X86: =IF($A86>0,SUMIF('Age profile (years)'!$CT86:$GF86,"<" & S86+0.5,'Asset data'!$CX86:$GJ86)-W86,0) -> 0 | Y86: =IF($A86>0,SUMIF('Age profile (years)'!$CT86:$GF86,"<" & T86+0.5,'Asset data'!$CX86:$GJ86)-X86-W86,0) -> 0 | Z86: =IF($A86>0,SUMIF('Age profile (years)'!$CT86:$GF86,"<" & U86+0.5,'Asset data'!$CX86:$GJ86)-Y86-X86-W86,0) -> 0 | AA86: 0 | AB86: 1 | AC86: 0 | AD86: 0 | AE86: 0 | AF86: 0 | AI86: =IF($A86>0,'RRR hist-forc'!K86,0) -> 40 | AJ86: 0.04
A87: ='Asset data'!A87 -> 0 | B87: ='Asset data'!B87 -> 0 | C87: ='Asset data'!C87 -> 0 | D87: ='Asset data'!E87 ->  | E87: =IF(A87>0,VLOOKUP(A87,IDtable,2),0) -> 0 | F87: =IF(A87>0,SUM('Asset data'!J87:CV87),0) -> 0 | G87: =IF(A87>0,'Asset data'!F87,0) -> 0 | H87: =IF(A87>0,SUM('Asset data'!CX87:GJ87),0) -> 0 | I87: =H87/$H$18/1000 -> 0 | J87: =IF(RANK(0,I$21:I$205)=RANK(I87,I$21:I$205),0,RANK(I87,I$21:I$205)) -> 0 | K87: =IF(A87>0,H87/(VLOOKUP(A87,$A$6:$H$17,8)*1000),0) -> 0 | L87: =IF($A87>0,H87/F87,0) -> 0 | M87: =IF($A87>0,SUMPRODUCT('Age profile (years)'!$CT87:$GF87,'Asset data'!$CX87:$GJ87)/H87-0.5,0) -> 0 | N87: =IF($A87>0,M87*H87,0) -> 0 | O87: =IF($A87>0,'Asset data'!G87,0) -> 0 | P87: =IF($A87>0,H87*O87,0) -> 0 | Q87: =IF($A87>0,(O87-M87)/O87,0) -> 0 | R87: 0 | S87: 0 | T87: 0 | U87: 0 | W87: =IF($A87>0,SUMIF('Age profile (years)'!$CT87:$GF87,"<" & R87+0.5,'Asset data'!$CX87:$GJ87),0) -> 0 | X87: =IF($A87>0,SUMIF('Age profile (years)'!$CT87:$GF87,"<" & S87+0.5,'Asset data'!$CX87:$GJ87)-W87,0) -> 0 | Y87: =IF($A87>0,SUMIF('Age profile (years)'!$CT87:$GF87,"<" & T87+0.5,'Asset data'!$CX87:$GJ87)-X87-W87,0) -> 0 | Z87: =IF($A87>0,SUMIF('Age profile (years)'!$CT87:$GF87,"<" & U87+0.5,'Asset data'!$CX87:$GJ87)-Y87-X87-W87,0) -> 0 | AA87: =IF($A87>0,H87-Z87-Y87-X87-W87,0) -> 0 | AB87: =IF($A87>0,W87/$H87,0) -> 0 | AC87: =IF($A87>0,X87/$H87,0) -> 0 | AD87: =IF($A87>0,Y87/$H87,0) -> 0 | AE87: =IF($A87>0,Z87/$H87,0) -> 0 | AF87: =IF($A87>0,AA87/$H87,0) -> 0 | AI87: =IF($A87>0,'RRR hist-forc'!K87,0) -> 0 | AJ87: =IF($A87>0,AI87*H87,0) -> 0
A88: ='Asset data'!A88 -> 6 | B88: ='Asset data'!B88 -> 0 | C88: ='Asset data'!C88 -> 0 | D88: ='Asset data'!E88 -> Ground Outdoor / Indoor Chamber Mounted; ˂ 22 kV ; > 600 kVA ; Single Phase | E88: TRANSFORMERS | F88: =IF(A88>0,SUM('Asset data'!J88:CV88),0) -> 28 | G88: =IF(A88>0,'Asset data'!F88,0) -> 0.001 | H88: =IF(A88>0,SUM('Asset data'!CX88:GJ88),0) -> 0.028 | I88: 5.901611806e-09 | J88: 48 | K88: 4.994508968e-08 | L88: 0.001 | M88: =IF($A88>0,SUMPRODUCT('Age profile (years)'!$CT88:$GF88,'Asset data'!$CX88:$GJ88)/H88-0.5,0) -> 19.42857143 | N88: 0.544 | O88: =IF($A88>0,'Asset data'!G88,0) -> 40 | P88: 1.12 | Q88: 0.5142857143 | R88: 4 | S88: 8 | T88: 24 | U88: 32 | W88: =IF($A88>0,SUMIF('Age profile (years)'!$CT88:$GF88,"<" & R88+0.5,'Asset data'!$CX88:$GJ88),0) -> 0.008 | X88: =IF($A88>0,SUMIF('Age profile (years)'!$CT88:$GF88,"<" & S88+0.5,'Asset data'!$CX88:$GJ88)-W88,0) -> 0.002 | Y88: =IF($A88>0,SUMIF('Age profile (years)'!$CT88:$GF88,"<" & T88+0.5,'Asset data'!$CX88:$GJ88)-X88-W88,0) -> 0.005 | Z88: =IF($A88>0,SUMIF('Age profile (years)'!$CT88:$GF88,"<" & U88+0.5,'Asset data'!$CX88:$GJ88)-Y88-X88-W88,0) -> 0.005 | AA88: 0.008 | AB88: 0.2857142857 | AC88: 0.07142857143 | AD88: 0.1785714286 | AE88: 0.1785714286 | AF88: 0.2857142857 | AI88: =IF($A88>0,'RRR hist-forc'!K88,0) -> 40 | AJ88: 1.12
A89: ='Asset data'!A89 -> 0 | B89: ='Asset data'!B89 -> 0 | C89: ='Asset data'!C89 -> 0 | D89: ='Asset data'!E89 ->  | E89: 0 | F89: =IF(A89>0,SUM('Asset data'!J89:CV89),0) -> 0 | G89: =IF(A89>0,'Asset data'!F89,0) -> 0 | H89: =IF(A89>0,SUM('Asset data'!CX89:GJ89),0) -> 0 | I89: 0 | J89: 0 | K89: 0 | L89: 0 | M89: =IF($A89>0,SUMPRODUCT('Age profile (years)'!$CT89:$GF89,'Asset data'!$CX89:$GJ89)/H89-0.5,0) -> 0 | N89: 0 | O89: =IF($A89>0,'Asset data'!G89,0) -> 0 | P89: 0 | Q89: 0 | R89: 0 | S89: 0 | T89: 0 | U89: 0 | W89: =IF($A89>0,SUMIF('Age profile (years)'!$CT89:$GF89,"<" & R89+0.5,'Asset data'!$CX89:$GJ89),0) -> 0 | X89: =IF($A89>0,SUMIF('Age profile (years)'!$CT89:$GF89,"<" & S89+0.5,'Asset data'!$CX89:$GJ89)-W89,0) -> 0 | Y89: =IF($A89>0,SUMIF('Age profile (years)'!$CT89:$GF89,"<" & T89+0.5,'Asset data'!$CX89:$GJ89)-X89-W89,0) -> 0 | Z89: =IF($A89>0,SUMIF('Age profile (years)'!$CT89:$GF89,"<" & U89+0.5,'Asset data'!$CX89:$GJ89)-Y89-X89-W89,0) -> 0 | AA89: 0 | AB89: 0 | AC89: 0 | AD89: 0 | AE89: 0 | AF89: 0 | AI89: =IF($A89>0,'RRR hist-forc'!K89,0) -> 0 | AJ89: 0
A90: ='Asset data'!A90 -> 6 | B90: ='Asset data'!B90 -> 0 | C90: ='Asset data'!C90 -> 0 | D90: ='Asset data'!E90 -> Ground Outdoor / Indoor Chamber Mounted; ˂ 22 kV ; > 60 kVA and < = 600 kVA ; Multiple Phase | E90: TRANSFORMERS | F90: =IF(A90>0,SUM('Asset data'!J90:CV90),0) -> 163 | G90: =IF(A90>0,'Asset data'!F90,0) -> 64.31650528 | H90: =IF(A90>0,SUM('Asset data'!CX90:GJ90),0) -> 10483.59036 | I90: 0.002209645737 | J90: 33 | K90: 0.01870013788 | L90: 64.31650528 | M90: =IF($A90>0,SUMPRODUCT('Age profile (years)'!$CT90:$GF90,'Asset data'!$CX90:$GJ90)/H90-0.5,0) -> 16.17484663 | N90: 169570.4662 | O90: =IF($A90>0,'Asset data'!G90,0) -> 58.74924905 | P90: 615903.061 | Q90: 0.7246799425 | R90: 5.874924905 | S90: 11.74984981 | T90: 35.24954943 | U90: 46.99939924 | W90: =IF($A90>0,SUMIF('Age profile (years)'!$CT90:$GF90,"<" & R90+0.5,'Asset data'!$CX90:$GJ90),0) -> 1800.862148 | X90: =IF($A90>0,SUMIF('Age profile (years)'!$CT90:$GF90,"<" & S90+0.5,'Asset data'!$CX90:$GJ90)-W90,0) -> 4116.256338 | Y90: =IF($A90>0,SUMIF('Age profile (years)'!$CT90:$GF90,"<" & T90+0.5,'Asset data'!$CX90:$GJ90)-X90-W90,0) -> 3601.724296 | Z90: =IF($A90>0,SUMIF('Age profile (years)'!$CT90:$GF90,"<" & U90+0.5,'Asset data'!$CX90:$GJ90)-Y90-X90-W90,0) -> 578.8485475 | AA90: 385.8990317 | AB90: 0.1717791411 | AC90: 0.3926380368 | AD90: 0.3435582822 | AE90: 0.05521472393 | AF90: 0.03680981595 | AI90: =IF($A90>0,'RRR hist-forc'!K90,0) -> 58.74924905 | AJ90: 615903.061
A91: ='Asset data'!A91 -> 6 | B91: ='Asset data'!B91 -> 0 | C91: ='Asset data'!C91 -> 0 | D91: ='Asset data'!E91 -> Ground Outdoor / Indoor Chamber Mounted; ˂ 22 kV ; > 600 kVA ; Multiple Phase | E91: TRANSFORMERS | F91: =IF(A91>0,SUM('Asset data'!J91:CV91),0) -> 415 | G91: =IF(A91>0,'Asset data'!F91,0) -> 100.9992236 | H91: =IF(A91>0,SUM('Asset data'!CX91:GJ91),0) -> 41914.67781 | I91: 0.008834434192 | J91: 24 | K91: 0.07476544079 | L91: 100.9992236 | M91: =IF($A91>0,SUMPRODUCT('Age profile (years)'!$CT91:$GF91,'Asset data'!$CX91:$GJ91)/H91-0.5,0) -> 28.36987952 | N91: 1189114.36 | O91: =IF($A91>0,'Asset data'!G91,0) -> 58.18668898 | P91: 2438876.322 | Q91: 0.5124335133 | R91: 5.818668898 | S91: 11.6373378 | T91: 34.91201339 | U91: 46.54935119 | W91: =IF($A91>0,SUMIF('Age profile (years)'!$CT91:$GF91,"<" & R91+0.5,'Asset data'!$CX91:$GJ91),0) -> 3029.976709 | X91: =IF($A91>0,SUMIF('Age profile (years)'!$CT91:$GF91,"<" & S91+0.5,'Asset data'!$CX91:$GJ91)-W91,0) -> 2120.983696 | Y91: =IF($A91>0,SUMIF('Age profile (years)'!$CT91:$GF91,"<" & T91+0.5,'Asset data'!$CX91:$GJ91)-X91-W91,0) -> 23128.82221 | Z91: =IF($A91>0,SUMIF('Age profile (years)'!$CT91:$GF91,"<" & U91+0.5,'Asset data'!$CX91:$GJ91)-Y91-X91-W91,0) -> 9897.923917 | AA91: 3736.971275 | AB91: 0.07228915663 | AC91: 0.05060240964 | AD91: 0.5518072289 | AE91: 0.2361445783 | AF91: 0.08915662651 | AI91: =IF($A91>0,'RRR hist-forc'!K91,0) -> 58.18668898 | AJ91: 2438876.322
A92: ='Asset data'!A92 -> 0 | B92: ='Asset data'!B92 -> 0 | C92: ='Asset data'!C92 -> 0 | D92: ='Asset data'!E92 ->  | E92: 0 | F92: =IF(A92>0,SUM('Asset data'!J92:CV92),0) -> 0 | G92: =IF(A92>0,'Asset data'!F92,0) -> 0 | H92: =IF(A92>0,SUM('Asset data'!CX92:GJ92),0) -> 0 | I92: 0 | J92: 0 | K92: 0 | L92: 0 | M92: =IF($A92>0,SUMPRODUCT('Age profile (years)'!$CT92:$GF92,'Asset data'!$CX92:$GJ92)/H92-0.5,0) -> 0 | N92: 0 | O92: =IF($A92>0,'Asset data'!G92,0) -> 0 | P92: 0 | Q92: 0 | R92: 0 | S92: 0 | T92: 0 | U92: 0 | W92: =IF($A92>0,SUMIF('Age profile (years)'!$CT92:$GF92,"<" & R92+0.5,'Asset data'!$CX92:$GJ92),0) -> 0 | X92: =IF($A92>0,SUMIF('Age profile (years)'!$CT92:$GF92,"<" & S92+0.5,'Asset data'!$CX92:$GJ92)-W92,0) -> 0 | Y92: =IF($A92>0,SUMIF('Age profile (years)'!$CT92:$GF92,"<" & T92+0.5,'Asset data'!$CX92:$GJ92)-X92-W92,0) -> 0 | Z92: =IF($A92>0,SUMIF('Age profile (years)'!$CT92:$GF92,"<" & U92+0.5,'Asset data'!$CX92:$GJ92)-Y92-X92-W92,0) -> 0 | AA92: 0 | AB92: 0 | AC92: 0 | AD92: 0 | AE92: 0 | AF92: 0 | AI92: =IF($A92>0,'RRR hist-forc'!K92,0) -> 0 | AJ92: 0
A93: ='Asset data'!A93 -> 0 | B93: ='Asset data'!B93 -> 0 | C93: ='Asset data'!C93 -> 0 | D93: ='Asset data'!E93 ->  | E93: 0 | F93: =IF(A93>0,SUM('Asset data'!J93:CV93),0) -> 0 | G93: =IF(A93>0,'Asset data'!F93,0) -> 0 | H93: =IF(A93>0,SUM('Asset data'!CX93:GJ93),0) -> 0 | I93: 0 | J93: 0 | K93: 0 | L93: 0 | M93: =IF($A93>0,SUMPRODUCT('Age profile (years)'!$CT93:$GF93,'Asset data'!$CX93:$GJ93)/H93-0.5,0) -> 0 | N93: 0 | O93: =IF($A93>0,'Asset data'!G93,0) -> 0 | P93: 0 | Q93: 0 | R93: 0 | S93: 0 | T93: 0 | U93: 0 | W93: =IF($A93>0,SUMIF('Age profile (years)'!$CT93:$GF93,"<" & R93+0.5,'Asset data'!$CX93:$GJ93),0) -> 0 | X93: =IF($A93>0,SUMIF('Age profile (years)'!$CT93:$GF93,"<" & S93+0.5,'Asset data'!$CX93:$GJ93)-W93,0) -> 0 | Y93: =IF($A93>0,SUMIF('Age profile (years)'!$CT93:$GF93,"<" & T93+0.5,'Asset data'!$CX93:$GJ93)-X93-W93,0) -> 0 | Z93: =IF($A93>0,SUMIF('Age profile (years)'!$CT93:$GF93,"<" & U93+0.5,'Asset data'!$CX93:$GJ93)-Y93-X93-W93,0) -> 0 | AA93: 0 | AB93: 0 | AC93: 0 | AD93: 0 | AE93: 0 | AF93: 0 | AI93: =IF($A93>0,'RRR hist-forc'!K93,0) -> 0 | AJ93: 0
A94: ='Asset data'!A94 -> 0 | B94: ='Asset data'!B94 -> 0 | C94: ='Asset data'!C94 -> 0 | D94: ='Asset data'!E94 ->  | E94: 0 | F94: =IF(A94>0,SUM('Asset data'!J94:CV94),0) -> 0 | G94: =IF(A94>0,'Asset data'!F94,0) -> 0 | H94: =IF(A94>0,SUM('Asset data'!CX94:GJ94),0) -> 0 | I94: 0 | J94: 0 | K94: 0 | L94: 0 | M94: =IF($A94>0,SUMPRODUCT('Age profile (years)'!$CT94:$GF94,'Asset data'!$CX94:$GJ94)/H94-0.5,0) -> 0 | N94: 0 | O94: =IF($A94>0,'Asset data'!G94,0) -> 0 | P94: 0 | Q94: 0 | R94: 0 | S94: 0 | T94: 0 | U94: 0 | W94: =IF($A94>0,SUMIF('Age profile (years)'!$CT94:$GF94,"<" & R94+0.5,'Asset data'!$CX94:$GJ94),0) -> 0 | X94: =IF($A94>0,SUMIF('Age profile (years)'!$CT94:$GF94,"<" & S94+0.5,'Asset data'!$CX94:$GJ94)-W94,0) -> 0 | Y94: =IF($A94>0,SUMIF('Age profile (years)'!$CT94:$GF94,"<" & T94+0.5,'Asset data'!$CX94:$GJ94)-X94-W94,0) -> 0 | Z94: =IF($A94>0,SUMIF('Age profile (years)'!$CT94:$GF94,"<" & U94+0.5,'Asset data'!$CX94:$GJ94)-Y94-X94-W94,0) -> 0 | AA94: 0 | AB94: 0 | AC94: 0 | AD94: 0 | AE94: 0 | AF94: 0 | AI94: =IF($A94>0,'RRR hist-forc'!K94,0) -> 0 | AJ94: 0
A95: ='Asset data'!A95 -> 0 | B95: ='Asset data'!B95 -> 0 | C95: ='Asset data'!C95 -> 0 | D95: ='Asset data'!E95 ->  | E95: 0 | F95: =IF(A95>0,SUM('Asset data'!J95:CV95),0) -> 0 | G95: =IF(A95>0,'Asset data'!F95,0) -> 0 | H95: =IF(A95>0,SUM('Asset data'!CX95:GJ95),0) -> 0 | I95: 0 | J95: 0 | K95: 0 | L95: 0 | M95: =IF($A95>0,SUMPRODUCT('Age profile (years)'!$CT95:$GF95,'Asset data'!$CX95:$GJ95)/H95-0.5,0) -> 0 | N95: 0 | O95: =IF($A95>0,'Asset data'!G95,0) -> 0 | P95: 0 | Q95: 0 | R95: 0 | S95: 0 | T95: 0 | U95: 0 | W95: =IF($A95>0,SUMIF('Age profile (years)'!$CT95:$GF95,"<" & R95+0.5,'Asset data'!$CX95:$GJ95),0) -> 0 | X95: =IF($A95>0,SUMIF('Age profile (years)'!$CT95:$GF95,"<" & S95+0.5,'Asset data'!$CX95:$GJ95)-W95,0) -> 0 | Y95: =IF($A95>0,SUMIF('Age profile (years)'!$CT95:$GF95,"<" & T95+0.5,'Asset data'!$CX95:$GJ95)-X95-W95,0) -> 0 | Z95: =IF($A95>0,SUMIF('Age profile (years)'!$CT95:$GF95,"<" & U95+0.5,'Asset data'!$CX95:$GJ95)-Y95-X95-W95,0) -> 0 | AA95: 0 | AB95: 0 | AC95: 0 | AD95: 0 | AE95: 0 | AF95: 0 | AI95: =IF($A95>0,'RRR hist-forc'!K95,0) -> 0 | AJ95: 0
A96: ='Asset data'!A96 -> 0 | B96: ='Asset data'!B96 -> 0 | C96: ='Asset data'!C96 -> 0 | D96: ='Asset data'!E96 ->  | E96: 0 | F96: =IF(A96>0,SUM('Asset data'!J96:CV96),0) -> 0 | G96: =IF(A96>0,'Asset data'!F96,0) -> 0 | H96: =IF(A96>0,SUM('Asset data'!CX96:GJ96),0) -> 0 | I96: 0 | J96: 0 | K96: 0 | L96: 0 | M96: =IF($A96>0,SUMPRODUCT('Age profile (years)'!$CT96:$GF96,'Asset data'!$CX96:$GJ96)/H96-0.5,0) -> 0 | N96: 0 | O96: =IF($A96>0,'Asset data'!G96,0) -> 0 | P96: 0 | Q96: 0 | R96: 0 | S96: 0 | T96: 0 | U96: 0 | W96: =IF($A96>0,SUMIF('Age profile (years)'!$CT96:$GF96,"<" & R96+0.5,'Asset data'!$CX96:$GJ96),0) -> 0 | X96: =IF($A96>0,SUMIF('Age profile (years)'!$CT96:$GF96,"<" & S96+0.5,'Asset data'!$CX96:$GJ96)-W96,0) -> 0 | Y96: =IF($A96>0,SUMIF('Age profile (years)'!$CT96:$GF96,"<" & T96+0.5,'Asset data'!$CX96:$GJ96)-X96-W96,0) -> 0 | Z96: =IF($A96>0,SUMIF('Age profile (years)'!$CT96:$GF96,"<" & U96+0.5,'Asset data'!$CX96:$GJ96)-Y96-X96-W96,0) -> 0 | AA96: 0 | AB96: 0 | AC96: 0 | AD96: 0 | AE96: 0 | AF96: 0 | AI96: =IF($A96>0,'RRR hist-forc'!K96,0) -> 0 | AJ96: 0
A97: ='Asset data'!A97 -> 0 | B97: ='Asset data'!B97 -> 0 | C97: ='Asset data'!C97 -> 0 | D97: ='Asset data'!E97 ->  | E97: 0 | F97: =IF(A97>0,SUM('Asset data'!J97:CV97),0) -> 0 | G97: =IF(A97>0,'Asset data'!F97,0) -> 0 | H97: =IF(A97>0,SUM('Asset data'!CX97:GJ97),0) -> 0 | I97: 0 | J97: 0 | K97: 0 | L97: 0 | M97: =IF($A97>0,SUMPRODUCT('Age profile (years)'!$CT97:$GF97,'Asset data'!$CX97:$GJ97)/H97-0.5,0) -> 0 | N97: 0 | O97: =IF($A97>0,'Asset data'!G97,0) -> 0 | P97: 0 | Q97: 0 | R97: 0 | S97: 0 | T97: 0 | U97: 0 | W97: =IF($A97>0,SUMIF('Age profile (years)'!$CT97:$GF97,"<" & R97+0.5,'Asset data'!$CX97:$GJ97),0) -> 0 | X97: =IF($A97>0,SUMIF('Age profile (years)'!$CT97:$GF97,"<" & S97+0.5,'Asset data'!$CX97:$GJ97)-W97,0) -> 0 | Y97: =IF($A97>0,SUMIF('Age profile (years)'!$CT97:$GF97,"<" & T97+0.5,'Asset data'!$CX97:$GJ97)-X97-W97,0) -> 0 | Z97: =IF($A97>0,SUMIF('Age profile (years)'!$CT97:$GF97,"<" & U97+0.5,'Asset data'!$CX97:$GJ97)-Y97-X97-W97,0) -> 0 | AA97: 0 | AB97: 0 | AC97: 0 | AD97: 0 | AE97: 0 | AF97: 0 | AI97: =IF($A97>0,'RRR hist-forc'!K97,0) -> 0 | AJ97: 0
A98: ='Asset data'!A98 -> 0 | B98: ='Asset data'!B98 -> 0 | C98: ='Asset data'!C98 -> 0 | D98: ='Asset data'!E98 ->  | E98: 0 | F98: =IF(A98>0,SUM('Asset data'!J98:CV98),0) -> 0 | G98: =IF(A98>0,'Asset data'!F98,0) -> 0 | H98: =IF(A98>0,SUM('Asset data'!CX98:GJ98),0) -> 0 | I98: 0 | J98: 0 | K98: 0 | L98: 0 | M98: =IF($A98>0,SUMPRODUCT('Age profile (years)'!$CT98:$GF98,'Asset data'!$CX98:$GJ98)/H98-0.5,0) -> 0 | N98: 0 | O98: =IF($A98>0,'Asset data'!G98,0) -> 0 | P98: 0 | Q98: 0 | R98: 0 | S98: 0 | T98: 0 | U98: 0 | W98: =IF($A98>0,SUMIF('Age profile (years)'!$CT98:$GF98,"<" & R98+0.5,'Asset data'!$CX98:$GJ98),0) -> 0 | X98: =IF($A98>0,SUMIF('Age profile (years)'!$CT98:$GF98,"<" & S98+0.5,'Asset data'!$CX98:$GJ98)-W98,0) -> 0 | Y98: =IF($A98>0,SUMIF('Age profile (years)'!$CT98:$GF98,"<" & T98+0.5,'Asset data'!$CX98:$GJ98)-X98-W98,0) -> 0 | Z98: =IF($A98>0,SUMIF('Age profile (years)'!$CT98:$GF98,"<" & U98+0.5,'Asset data'!$CX98:$GJ98)-Y98-X98-W98,0) -> 0 | AA98: 0 | AB98: 0 | AC98: 0 | AD98: 0 | AE98: 0 | AF98: 0 | AI98: =IF($A98>0,'RRR hist-forc'!K98,0) -> 0 | AJ98: 0
A99: ='Asset data'!A99 -> 0 | B99: ='Asset data'!B99 -> 0 | C99: ='Asset data'!C99 -> 0 | D99: ='Asset data'!E99 ->  | E99: 0 | F99: =IF(A99>0,SUM('Asset data'!J99:CV99),0) -> 0 | G99: =IF(A99>0,'Asset data'!F99,0) -> 0 | H99: =IF(A99>0,SUM('Asset data'!CX99:GJ99),0) -> 0 | I99: 0 | J99: 0 | K99: 0 | L99: 0 | M99: =IF($A99>0,SUMPRODUCT('Age profile (years)'!$CT99:$GF99,'Asset data'!$CX99:$GJ99)/H99-0.5,0) -> 0 | N99: 0 | O99: =IF($A99>0,'Asset data'!G99,0) -> 0 | P99: 0 | Q99: 0 | R99: 0 | S99: 0 | T99: 0 | U99: 0 | W99: =IF($A99>0,SUMIF('Age profile (years)'!$CT99:$GF99,"<" & R99+0.5,'Asset data'!$CX99:$GJ99),0) -> 0 | X99: =IF($A99>0,SUMIF('Age profile (years)'!$CT99:$GF99,"<" & S99+0.5,'Asset data'!$CX99:$GJ99)-W99,0) -> 0 | Y99: =IF($A99>0,SUMIF('Age profile (years)'!$CT99:$GF99,"<" & T99+0.5,'Asset data'!$CX99:$GJ99)-X99-W99,0) -> 0 | Z99: =IF($A99>0,SUMIF('Age profile (years)'!$CT99:$GF99,"<" & U99+0.5,'Asset data'!$CX99:$GJ99)-Y99-X99-W99,0) -> 0 | AA99: 0 | AB99: 0 | AC99: 0 | AD99: 0 | AE99: 0 | AF99: 0 | AI99: =IF($A99>0,'RRR hist-forc'!K99,0) -> 0 | AJ99: 0
A100: ='Asset data'!A100 -> 0 | B100: ='Asset data'!B100 -> 0 | C100: ='Asset data'!C100 -> 0 | D100: ='Asset data'!E100 ->  | E100: 0 | F100: =IF(A100>0,SUM('Asset data'!J100:CV100),0) -> 0 | G100: =IF(A100>0,'Asset data'!F100,0) -> 0 | H100: =IF(A100>0,SUM('Asset data'!CX100:GJ100),0) -> 0 | I100: 0 | J100: 0 | K100: 0 | L100: 0 | M100: =IF($A100>0,SUMPRODUCT('Age profile (years)'!$CT100:$GF100,'Asset data'!$CX100:$GJ100)/H100-0.5,0) -> 0 | N100: 0 | O100: =IF($A100>0,'Asset data'!G100,0) -> 0 | P100: 0 | Q100: 0 | R100: 0 | S100: 0 | T100: 0 | U100: =IF($A100>0,$O100-U$4*$O100,0) -> 0 | W100: =IF($A100>0,SUMIF('Age profile (years)'!$CT100:$GF100,"<" & R100+0.5,'Asset data'!$CX100:$GJ100),0) -> 0 | X100: =IF($A100>0,SUMIF('Age profile (years)'!$CT100:$GF100,"<" & S100+0.5,'Asset data'!$CX100:$GJ100)-W100,0) -> 0 | Y100: =IF($A100>0,SUMIF('Age profile (years)'!$CT100:$GF100,"<" & T100+0.5,'Asset data'!$CX100:$GJ100)-X100-W100,0) -> 0 | Z100: =IF($A100>0,SUMIF('Age profile (years)'!$CT100:$GF100,"<" & U100+0.5,'Asset data'!$CX100:$GJ100)-Y100-X100-W100,0) -> 0 | AA100: 0 | AB100: 0 | AC100: 0 | AD100: 0 | AE100: 0 | AF100: 0 | AI100: =IF($A100>0,'RRR hist-forc'!K100,0) -> 0 | AJ100: 0
A101: ='Asset data'!A101 -> 0 | B101: ='Asset data'!B101 -> 0 | C101: ='Asset data'!C101 -> 0 | D101: ='Asset data'!E101 ->  | E101: 0 | F101: =IF(A101>0,SUM('Asset data'!J101:CV101),0) -> 0 | G101: =IF(A101>0,'Asset data'!F101,0) -> 0 | H101: =IF(A101>0,SUM('Asset data'!CX101:GJ101),0) -> 0 | I101: 0 | J101: 0 | K101: 0 | L101: 0 | M101: =IF($A101>0,SUMPRODUCT('Age profile (years)'!$CT101:$GF101,'Asset data'!$CX101:$GJ101)/H101-0.5,0) -> 0 | N101: 0 | O101: =IF($A101>0,'Asset data'!G101,0) -> 0 | P101: 0 | Q101: 0 | R101: 0 | S101: 0 | T101: 0 | U101: 0 | W101: =IF($A101>0,SUMIF('Age profile (years)'!$CT101:$GF101,"<" & R101+0.5,'Asset data'!$CX101:$GJ101),0) -> 0 | X101: =IF($A101>0,SUMIF('Age profile (years)'!$CT101:$GF101,"<" & S101+0.5,'Asset data'!$CX101:$GJ101)-W101,0) -> 0 | Y101: =IF($A101>0,SUMIF('Age profile (years)'!$CT101:$GF101,"<" & T101+0.5,'Asset data'!$CX101:$GJ101)-X101-W101,0) -> 0 | Z101: =IF($A101>0,SUMIF('Age profile (years)'!$CT101:$GF101,"<" & U101+0.5,'Asset data'!$CX101:$GJ101)-Y101-X101-W101,0) -> 0 | AA101: 0 | AB101: 0 | AC101: 0 | AD101: 0 | AE101: 0 | AF101: 0 | AI101: =IF($A101>0,'RRR hist-forc'!K101,0) -> 0 | AJ101: 0
A102: ='Asset data'!A102 -> 6 | B102: ='Asset data'!B102 -> 0 | C102: ='Asset data'!C102 -> 0 | D102: ='Asset data'!E102 -> Other | E102: TRANSFORMERS | F102: =IF(A102>0,SUM('Asset data'!J102:CV102),0) -> 4 | G102: =IF(A102>0,'Asset data'!F102,0) -> 172.0889984 | H102: =IF(A102>0,SUM('Asset data'!CX102:GJ102),0) -> 688.3559935 | I102: 0.0001450860663 | J102: 40 | K102: 0.001227857208 | L102: 172.0889984 | M102: =IF($A102>0,SUMPRODUCT('Age profile (years)'!$CT102:$GF102,'Asset data'!$CX102:$GJ102)/H102-0.5,0) -> 33.5 | N102: 23059.92578 | O102: =IF($A102>0,'Asset data'!G102,0) -> 40 | P102: 27534.23974 | Q102: 0.1625 | R102: 4 | S102: 8 | T102: 24 | U102: 32 | W102: =IF($A102>0,SUMIF('Age profile (years)'!$CT102:$GF102,"<" & R102+0.5,'Asset data'!$CX102:$GJ102),0) -> 0 | X102: =IF($A102>0,SUMIF('Age profile (years)'!$CT102:$GF102,"<" & S102+0.5,'Asset data'!$CX102:$GJ102)-W102,0) -> 0 | Y102: =IF($A102>0,SUMIF('Age profile (years)'!$CT102:$GF102,"<" & T102+0.5,'Asset data'!$CX102:$GJ102)-X102-W102,0) -> 172.0889984 | Z102: =IF($A102>0,SUMIF('Age profile (years)'!$CT102:$GF102,"<" & U102+0.5,'Asset data'!$CX102:$GJ102)-Y102-X102-W102,0) -> 0 | AA102: 516.2669951 | AB102: 0 | AC102: 0 | AD102: 0.25 | AE102: 0 | AF102: 0.75 | AI102: =IF($A102>0,'RRR hist-forc'!K102,0) -> 40 | AJ102: 27534.23974
A103: ='Asset data'!A103 -> 7 | B103: ='Asset data'!B103 -> 0 | C103: ='Asset data'!C103 -> 0 | D103: ='Asset data'!E103 -> ˂ = 11 kV ; Fuse | E103: SWITCHGEAR | F103: =IF(A103>0,SUM('Asset data'!J103:CV103),0) -> 10101 | G103: =IF(A103>0,'Asset data'!F103,0) -> 5.232035815 | H103: =IF(A103>0,SUM('Asset data'!CX103:GJ103),0) -> 52848.79377 | I103: 0.01113903804 | J103: 21 | K103: 0.07386128319 | L103: 5.232035815 | M103: =IF($A103>0,SUMPRODUCT('Age profile (years)'!$CT103:$GF103,'Asset data'!$CX103:$GJ103)/H103-0.5,0) -> 29.53484803 | N103: 1560881.093 | O103: =IF($A103>0,'Asset data'!G103,0) -> 50.63838761 | P103: 2676177.704 | Q103: 0.4167498329 | R103: 5.063838761 | S103: 10.12767752 | T103: 30.38303257 | U103: 40.51071009 | W103: =IF($A103>0,SUMIF('Age profile (years)'!$CT103:$GF103,"<" & R103+0.5,'Asset data'!$CX103:$GJ103),0) -> 1846.908643 | X103: =IF($A103>0,SUMIF('Age profile (years)'!$CT103:$GF103,"<" & S103+0.5,'Asset data'!$CX103:$GJ103)-W103,0) -> 1679.483497 | Y103: =IF($A103>0,SUMIF('Age profile (years)'!$CT103:$GF103,"<" & T103+0.5,'Asset data'!$CX103:$GJ103)-X103-W103,0) -> 22670.41119 | Z103: =IF($A103>0,SUMIF('Age profile (years)'!$CT103:$GF103,"<" & U103+0.5,'Asset data'!$CX103:$GJ103)-Y103-X103-W103,0) -> 16203.61492 | AA103: 10448.37552 | AB103: 0.03494703495 | AC103: 0.03177903178 | AD103: 0.428967429 | AE103: 0.3066033066 | AF103: 0.1977031977 | AI103: =IF($A103>0,'RRR hist-forc'!K103,0) -> 50.63838761 | AJ103: 2676177.704
A104: ='Asset data'!A104 -> 7 | B104: ='Asset data'!B104 -> 0 | C104: ='Asset data'!C104 -> 0 | D104: ='Asset data'!E104 -> ˂ = 11 kV ; Switch | E104: SWITCHGEAR | F104: =IF(A104>0,SUM('Asset data'!J104:CV104),0) -> 41946 | G104: =IF(A104>0,'Asset data'!F104,0) -> 10.36086896 | H104: =IF(A104>0,SUM('Asset data'!CX104:GJ104),0) -> 434597.0096 | I104: 0.0916008158 | J104: 4 | K104: 0.60739121 | L104: 10.36086896 | M104: =IF($A104>0,SUMPRODUCT('Age profile (years)'!$CT104:$GF104,'Asset data'!$CX104:$GJ104)/H104-0.5,0) -> 39.65276784 | N104: 17232974.33 | O104: =IF($A104>0,'Asset data'!G104,0) -> 63.21489131 | P104: 27473002.72 | Q104: 0.3727305857 | R104: 6.321489131 | S104: 12.64297826 | T104: 37.92893478 | U104: 50.57191305 | W104: =IF($A104>0,SUMIF('Age profile (years)'!$CT104:$GF104,"<" & R104+0.5,'Asset data'!$CX104:$GJ104),0) -> 2351.917255 | X104: =IF($A104>0,SUMIF('Age profile (years)'!$CT104:$GF104,"<" & S104+0.5,'Asset data'!$CX104:$GJ104)-W104,0) -> 14619.18611 | Y104: =IF($A104>0,SUMIF('Age profile (years)'!$CT104:$GF104,"<" & T104+0.5,'Asset data'!$CX104:$GJ104)-X104-W104,0) -> 166302.3077 | Z104: =IF($A104>0,SUMIF('Age profile (years)'!$CT104:$GF104,"<" & U104+0.5,'Asset data'!$CX104:$GJ104)-Y104-X104-W104,0) -> 138908.1702 | AA104: 112415.4283 | AB104: 0.00541171983 | AC104: 0.03363848758 | AD104: 0.3826586564 | AE104: 0.3196252324 | AF104: 0.2586659038 | AI104: =IF($A104>0,'RRR hist-forc'!K104,0) -> 63.21489131 | AJ104: 27473002.72
A105: ='Asset data'!A105 -> 7 | B105: ='Asset data'!B105 -> 0 | C105: ='Asset data'!C105 -> 0 | D105: ='Asset data'!E105 -> ˂ = 11 kV ; Circuit Breaker | E105: SWITCHGEAR | F105: =IF(A105>0,SUM('Asset data'!J105:CV105),0) -> 1277 | G105: =IF(A105>0,'Asset data'!F105,0) -> 88.20925188 | H105: =IF(A105>0,SUM('Asset data'!CX105:GJ105),0) -> 112643.2146 | I105: 0.02374201876 | J105: 14 | K105: 0.1574297497 | L105: 88.20925188 | M105: =IF($A105>0,SUMPRODUCT('Age profile (years)'!$CT105:$GF105,'Asset data'!$CX105:$GJ105)/H105-0.5,0) -> 39.14291308 | N105: 4409183.56 | O105: =IF($A105>0,'Asset data'!G105,0) -> 56.45585583 | P105: 6359369.086 | Q105: 0.3066633655 | R105: 5.645585583 | S105: 11.29117117 | T105: 33.8735135 | U105: 45.16468466 | W105: =IF($A105>0,SUMIF('Age profile (years)'!$CT105:$GF105,"<" & R105+0.5,'Asset data'!$CX105:$GJ105),0) -> 7144.949402 | X105: =IF($A105>0,SUMIF('Age profile (years)'!$CT105:$GF105,"<" & S105+0.5,'Asset data'!$CX105:$GJ105)-W105,0) -> 5116.136609 | Y105: =IF($A105>0,SUMIF('Age profile (years)'!$CT105:$GF105,"<" & T105+0.5,'Asset data'!$CX105:$GJ105)-X105-W105,0) -> 20023.50018 | Z105: =IF($A105>0,SUMIF('Age profile (years)'!$CT105:$GF105,"<" & U105+0.5,'Asset data'!$CX105:$GJ105)-Y105-X105-W105,0) -> 14730.94506 | AA105: 65627.6834 | AB105: 0.06342991386 | AC105: 0.04541895067 | AD105: 0.1777603759 | AE105: 0.1307752545 | AF105: 0.5826155051 | AI105: =IF($A105>0,'RRR hist-forc'!K105,0) -> 56.45585583 | AJ105: 6359369.086
A106: ='Asset data'!A106 -> 7 | B106: ='Asset data'!B106 -> 0 | C106: ='Asset data'!C106 -> 0 | D106: ='Asset data'!E106 -> > 11 kV & < = 22 kV ; Switch | E106: SWITCHGEAR | F106: =IF(A106>0,SUM('Asset data'!J106:CV106),0) -> 4535 | G106: =IF(A106>0,'Asset data'!F106,0) -> 11.95651891 | H106: =IF(A106>0,SUM('Asset data'!CX106:GJ106),0) -> 54222.81327 | I106: 0.01142864268 | J106: 20 | K106: 0.07578160787 | L106: 11.95651891 | M106: =IF($A106>0,SUMPRODUCT('Age profile (years)'!$CT106:$GF106,'Asset data'!$CX106:$GJ106)/H106-0.5,0) -> 35.55181918 | N106: 1927719.653 | O106: =IF($A106>0,'Asset data'!G106,0) -> 59.49101285 | P106: 3225770.081 | Q106: 0.4024001697 | R106: 5.949101285 | S106: 11.89820257 | T106: 35.69460771 | U106: 47.59281028 | W106: =IF($A106>0,SUMIF('Age profile (years)'!$CT106:$GF106,"<" & R106+0.5,'Asset data'!$CX106:$GJ106),0) -> 1147.825816 | X106: =IF($A106>0,SUMIF('Age profile (years)'!$CT106:$GF106,"<" & S106+0.5,'Asset data'!$CX106:$GJ106)-W106,0) -> 3718.477382 | Y106: =IF($A106>0,SUMIF('Age profile (years)'!$CT106:$GF106,"<" & T106+0.5,'Asset data'!$CX106:$GJ106)-X106-W106,0) -> 21234.77759 | Z106: =IF($A106>0,SUMIF('Age profile (years)'!$CT106:$GF106,"<" & U106+0.5,'Asset data'!$CX106:$GJ106)-Y106-X106-W106,0) -> 11968.47543 | AA106: 16153.25705 | AB106: 0.02116868798 | AC106: 0.06857772878 | AD106: 0.3916207277 | AE106: 0.2207276736 | AF106: 0.2979051819 | AI106: =IF($A106>0,'RRR hist-forc'!K106,0) -> 59.49101285 | AJ106: 3225770.081
A107: ='Asset data'!A107 -> 7 | B107: ='Asset data'!B107 -> 0 | C107: ='Asset data'!C107 -> 0 | D107: ='Asset data'!E107 -> > 11 kV & < = 22 kV ; Circuit Breaker | E107: SWITCHGEAR | F107: =IF(A107>0,SUM('Asset data'!J107:CV107),0) -> 633 | G107: =IF(A107>0,'Asset data'!F107,0) -> 89.12037751 | H107: =IF(A107>0,SUM('Asset data'!CX107:GJ107),0) -> 56413.19896 | I107: 0.01189031432 | J107: 19 | K107: 0.078842883 | L107: 89.12037751 | M107: =IF($A107>0,SUMPRODUCT('Age profile (years)'!$CT107:$GF107,'Asset data'!$CX107:$GJ107)/H107-0.5,0) -> 37.28830964 | N107: 2103552.83 | O107: =IF($A107>0,'Asset data'!G107,0) -> 48.72648553 | P107: 2748816.923 | Q107: 0.2347424767 | R107: 4.872648553 | S107: 9.745297106 | T107: 29.23589132 | U107: 38.98118843 | W107: =IF($A107>0,SUMIF('Age profile (years)'!$CT107:$GF107,"<" & R107+0.5,'Asset data'!$CX107:$GJ107),0) -> 802.0833975 | X107: =IF($A107>0,SUMIF('Age profile (years)'!$CT107:$GF107,"<" & S107+0.5,'Asset data'!$CX107:$GJ107)-W107,0) -> 712.96302 | Y107: =IF($A107>0,SUMIF('Age profile (years)'!$CT107:$GF107,"<" & T107+0.5,'Asset data'!$CX107:$GJ107)-X107-W107,0) -> 5436.343028 | Z107: =IF($A107>0,SUMIF('Age profile (years)'!$CT107:$GF107,"<" & U107+0.5,'Asset data'!$CX107:$GJ107)-Y107-X107-W107,0) -> 16932.87173 | AA107: 32528.93779 | AB107: 0.01421800948 | AC107: 0.01263823065 | AD107: 0.09636650869 | AE107: 0.3001579779 | AF107: 0.5766192733 | AI107: =IF($A107>0,'RRR hist-forc'!K107,0) -> 48.72648553 | AJ107: 2748816.923
A108: ='Asset data'!A108 -> 7 | B108: ='Asset data'!B108 -> 0 | C108: ='Asset data'!C108 -> 0 | D108: ='Asset data'!E108 -> > 22 kV & < = 33 kV ; Switch | E108: SWITCHGEAR | F108: =IF(A108>0,SUM('Asset data'!J108:CV108),0) -> 1 | G108: =IF(A108>0,'Asset data'!F108,0) -> 39.12372588 | H108: =IF(A108>0,SUM('Asset data'!CX108:GJ108),0) -> 39.12372588 | I108: 8.246180091e-06 | J108: 45 | K108: 5.46791779e-05 | L108: 39.12372588 | M108: =IF($A108>0,SUMPRODUCT('Age profile (years)'!$CT108:$GF108,'Asset data'!$CX108:$GJ108)/H108-0.5,0) -> 41.5 | N108: 1623.634624 | O108: =IF($A108>0,'Asset data'!G108,0) -> 54.57220873 | P108: 2135.068135 | Q108: 0.2395396675 | R108: 5.457220873 | S108: 10.91444175 | T108: 32.74332524 | U108: 43.65776699 | W108: =IF($A108>0,SUMIF('Age profile (years)'!$CT108:$GF108,"<" & R108+0.5,'Asset data'!$CX108:$GJ108),0) -> 0 | X108: =IF($A108>0,SUMIF('Age profile (years)'!$CT108:$GF108,"<" & S108+0.5,'Asset data'!$CX108:$GJ108)-W108,0) -> 0 | Y108: =IF($A108>0,SUMIF('Age profile (years)'!$CT108:$GF108,"<" & T108+0.5,'Asset data'!$CX108:$GJ108)-X108-W108,0) -> 0 | Z108: =IF($A108>0,SUMIF('Age profile (years)'!$CT108:$GF108,"<" & U108+0.5,'Asset data'!$CX108:$GJ108)-Y108-X108-W108,0) -> 39.12372588 | AA108: 0 | AB108: 0 | AC108: 0 | AD108: 0 | AE108: 1 | AF108: 0 | AI108: =IF($A108>0,'RRR hist-forc'!K108,0) -> 54.57220873 | AJ108: 2135.068135
A109: ='Asset data'!A109 -> 7 | B109: ='Asset data'!B109 -> 0 | C109: ='Asset data'!C109 -> 0 | D109: ='Asset data'!E109 -> > 22 kV & < = 33 kV ; Circuit Breaker | E109: SWITCHGEAR | F109: =IF(A109>0,SUM('Asset data'!J109:CV109),0) -> 26 | G109: =IF(A109>0,'Asset data'!F109,0) -> 158.5491483 | H109: =IF(A109>0,SUM('Asset data'!CX109:GJ109),0) -> 4122.277857 | I109: 0.0008688601309 | J109: 35 | K109: 0.005761280635 | L109: 158.5491483 | M109: =IF($A109>0,SUMPRODUCT('Age profile (years)'!$CT109:$GF109,'Asset data'!$CX109:$GJ109)/H109-0.5,0) -> 31.15384615 | N109: 128424.8102 | O109: =IF($A109>0,'Asset data'!G109,0) -> 52.60795389 | P109: 216864.6034 | Q109: 0.4078111036 | R109: 5.260795389 | S109: 10.52159078 | T109: 31.56477233 | U109: 42.08636311 | W109: =IF($A109>0,SUMIF('Age profile (years)'!$CT109:$GF109,"<" & R109+0.5,'Asset data'!$CX109:$GJ109),0) -> 634.1965933 | X109: =IF($A109>0,SUMIF('Age profile (years)'!$CT109:$GF109,"<" & S109+0.5,'Asset data'!$CX109:$GJ109)-W109,0) -> 634.1965933 | Y109: =IF($A109>0,SUMIF('Age profile (years)'!$CT109:$GF109,"<" & T109+0.5,'Asset data'!$CX109:$GJ109)-X109-W109,0) -> 0 | Z109: =IF($A109>0,SUMIF('Age profile (years)'!$CT109:$GF109,"<" & U109+0.5,'Asset data'!$CX109:$GJ109)-Y109-X109-W109,0) -> 1585.491483 | AA109: 1268.393187 | AB109: 0.1538461538 | AC109: 0.1538461538 | AD109: 0 | AE109: 0.3846153846 | AF109: 0.3076923077 | AI109: =IF($A109>0,'RRR hist-forc'!K109,0) -> 52.60795389 | AJ109: 216864.6034
A110: ='Asset data'!A110 -> 7 | B110: ='Asset data'!B110 -> 0 | C110: ='Asset data'!C110 -> 0 | D110: ='Asset data'!E110 -> > 33 kV & < = 66 kV ; Switch | E110: SWITCHGEAR | F110: =IF(A110>0,SUM('Asset data'!J110:CV110),0) -> 7 | G110: =IF(A110>0,'Asset data'!F110,0) -> 49.10144768 | H110: =IF(A110>0,SUM('Asset data'!CX110:GJ110),0) -> 343.7101337 | I110: 7.244442082e-05 | J110: 42 | K110: 0.0004803680408 | L110: 49.10144768 | M110: =IF($A110>0,SUMPRODUCT('Age profile (years)'!$CT110:$GF110,'Asset data'!$CX110:$GJ110)/H110-0.5,0) -> 25.78571429 | N110: 8862.811306 | O110: =IF($A110>0,'Asset data'!G110,0) -> 60.86520258 | P110: 20919.98692 | Q110: 0.576347187 | R110: 6.086520258 | S110: 12.17304052 | T110: 36.51912155 | U110: 48.69216206 | W110: =IF($A110>0,SUMIF('Age profile (years)'!$CT110:$GF110,"<" & R110+0.5,'Asset data'!$CX110:$GJ110),0) -> 0 | X110: =IF($A110>0,SUMIF('Age profile (years)'!$CT110:$GF110,"<" & S110+0.5,'Asset data'!$CX110:$GJ110)-W110,0) -> 98.20289536 | Y110: =IF($A110>0,SUMIF('Age profile (years)'!$CT110:$GF110,"<" & T110+0.5,'Asset data'!$CX110:$GJ110)-X110-W110,0) -> 245.5072384 | Z110: =IF($A110>0,SUMIF('Age profile (years)'!$CT110:$GF110,"<" & U110+0.5,'Asset data'!$CX110:$GJ110)-Y110-X110-W110,0) -> 0 | AA110: 0 | AB110: 0 | AC110: 0.2857142857 | AD110: 0.7142857143 | AE110: 0 | AF110: 0 | AI110: =IF($A110>0,'RRR hist-forc'!K110,0) -> 60.86520258 | AJ110: 20919.98692
A111: ='Asset data'!A111 -> 0 | B111: ='Asset data'!B111 -> 0 | C111: ='Asset data'!C111 -> 0 | D111: ='Asset data'!E111 ->  | E111: 0 | F111: =IF(A111>0,SUM('Asset data'!J111:CV111),0) -> 0 | G111: =IF(A111>0,'Asset data'!F111,0) -> 0 | H111: =IF(A111>0,SUM('Asset data'!CX111:GJ111),0) -> 0 | I111: 0 | J111: 0 | K111: 0 | L111: 0 | M111: =IF($A111>0,SUMPRODUCT('Age profile (years)'!$CT111:$GF111,'Asset data'!$CX111:$GJ111)/H111-0.5,0) -> 0 | N111: 0 | O111: =IF($A111>0,'Asset data'!G111,0) -> 0 | P111: 0 | Q111: 0 | R111: 0 | S111: 0 | T111: 0 | U111: 0 | W111: =IF($A111>0,SUMIF('Age profile (years)'!$CT111:$GF111,"<" & R111+0.5,'Asset data'!$CX111:$GJ111),0) -> 0 | X111: =IF($A111>0,SUMIF('Age profile (years)'!$CT111:$GF111,"<" & S111+0.5,'Asset data'!$CX111:$GJ111)-W111,0) -> 0 | Y111: =IF($A111>0,SUMIF('Age profile (years)'!$CT111:$GF111,"<" & T111+0.5,'Asset data'!$CX111:$GJ111)-X111-W111,0) -> 0 | Z111: =IF($A111>0,SUMIF('Age profile (years)'!$CT111:$GF111,"<" & U111+0.5,'Asset data'!$CX111:$GJ111)-Y111-X111-W111,0) -> 0 | AA111: 0 | AB111: 0 | AC111: 0 | AD111: 0 | AE111: 0 | AF111: 0 | AI111: =IF($A111>0,'RRR hist-forc'!K111,0) -> 0 | AJ111: 0
A112: ='Asset data'!A112 -> 0 | B112: ='Asset data'!B112 -> 0 | C112: ='Asset data'!C112 -> 0 | D112: ='Asset data'!E112 ->  | E112: 0 | F112: =IF(A112>0,SUM('Asset data'!J112:CV112),0) -> 0 | G112: =IF(A112>0,'Asset data'!F112,0) -> 0 | H112: =IF(A112>0,SUM('Asset data'!CX112:GJ112),0) -> 0 | I112: 0 | J112: 0 | K112: 0 | L112: 0 | M112: =IF($A112>0,SUMPRODUCT('Age profile (years)'!$CT112:$GF112,'Asset data'!$CX112:$GJ112)/H112-0.5,0) -> 0 | N112: 0 | O112: =IF($A112>0,'Asset data'!G112,0) -> 0 | P112: 0 | Q112: 0 | R112: 0 | S112: 0 | T112: 0 | U112: 0 | W112: =IF($A112>0,SUMIF('Age profile (years)'!$CT112:$GF112,"<" & R112+0.5,'Asset data'!$CX112:$GJ112),0) -> 0 | X112: =IF($A112>0,SUMIF('Age profile (years)'!$CT112:$GF112,"<" & S112+0.5,'Asset data'!$CX112:$GJ112)-W112,0) -> 0 | Y112: =IF($A112>0,SUMIF('Age profile (years)'!$CT112:$GF112,"<" & T112+0.5,'Asset data'!$CX112:$GJ112)-X112-W112,0) -> 0 | Z112: =IF($A112>0,SUMIF('Age profile (years)'!$CT112:$GF112,"<" & U112+0.5,'Asset data'!$CX112:$GJ112)-Y112-X112-W112,0) -> 0 | AA112: 0 | AB112: 0 | AC112: 0 | AD112: 0 | AE112: 0 | AF112: 0 | AI112: =IF($A112>0,'RRR hist-forc'!K112,0) -> 0 | AJ112: 0
A113: ='Asset data'!A113 -> 0 | B113: ='Asset data'!B113 -> 0 | C113: ='Asset data'!C113 -> 0 | D113: ='Asset data'!E113 ->  | E113: 0 | F113: =IF(A113>0,SUM('Asset data'!J113:CV113),0) -> 0 | G113: =IF(A113>0,'Asset data'!F113,0) -> 0 | H113: =IF(A113>0,SUM('Asset data'!CX113:GJ113),0) -> 0 | I113: 0 | J113: 0 | K113: 0 | L113: 0 | M113: =IF($A113>0,SUMPRODUCT('Age profile (years)'!$CT113:$GF113,'Asset data'!$CX113:$GJ113)/H113-0.5,0) -> 0 | N113: 0 | O113: =IF($A113>0,'Asset data'!G113,0) -> 0 | P113: 0 | Q113: 0 | R113: 0 | S113: 0 | T113: 0 | U113: 0 | W113: =IF($A113>0,SUMIF('Age profile (years)'!$CT113:$GF113,"<" & R113+0.5,'Asset data'!$CX113:$GJ113),0) -> 0 | X113: =IF($A113>0,SUMIF('Age profile (years)'!$CT113:$GF113,"<" & S113+0.5,'Asset data'!$CX113:$GJ113)-W113,0) -> 0 | Y113: =IF($A113>0,SUMIF('Age profile (years)'!$CT113:$GF113,"<" & T113+0.5,'Asset data'!$CX113:$GJ113)-X113-W113,0) -> 0 | Z113: =IF($A113>0,SUMIF('Age profile (years)'!$CT113:$GF113,"<" & U113+0.5,'Asset data'!$CX113:$GJ113)-Y113-X113-W113,0) -> 0 | AA113: 0 | AB113: 0 | AC113: 0 | AD113: 0 | AE113: 0 | AF113: 0 | AI113: =IF($A113>0,'RRR hist-forc'!K113,0) -> 0 | AJ113: 0
A114: ='Asset data'!A114 -> 0 | B114: ='Asset data'!B114 -> 0 | C114: ='Asset data'!C114 -> 0 | D114: ='Asset data'!E114 ->  | E114: 0 | F114: =IF(A114>0,SUM('Asset data'!J114:CV114),0) -> 0 | G114: =IF(A114>0,'Asset data'!F114,0) -> 0 | H114: =IF(A114>0,SUM('Asset data'!CX114:GJ114),0) -> 0 | I114: 0 | J114: 0 | K114: 0 | L114: 0 | M114: =IF($A114>0,SUMPRODUCT('Age profile (years)'!$CT114:$GF114,'Asset data'!$CX114:$GJ114)/H114-0.5,0) -> 0 | N114: 0 | O114: =IF($A114>0,'Asset data'!G114,0) -> 0 | P114: 0 | Q114: 0 | R114: 0 | S114: 0 | T114: 0 | U114: 0 | W114: =IF($A114>0,SUMIF('Age profile (years)'!$CT114:$GF114,"<" & R114+0.5,'Asset data'!$CX114:$GJ114),0) -> 0 | X114: =IF($A114>0,SUMIF('Age profile (years)'!$CT114:$GF114,"<" & S114+0.5,'Asset data'!$CX114:$GJ114)-W114,0) -> 0 | Y114: =IF($A114>0,SUMIF('Age profile (years)'!$CT114:$GF114,"<" & T114+0.5,'Asset data'!$CX114:$GJ114)-X114-W114,0) -> 0 | Z114: =IF($A114>0,SUMIF('Age profile (years)'!$CT114:$GF114,"<" & U114+0.5,'Asset data'!$CX114:$GJ114)-Y114-X114-W114,0) -> 0 | AA114: 0 | AB114: 0 | AC114: 0 | AD114: 0 | AE114: 0 | AF114: 0 | AI114: =IF($A114>0,'RRR hist-forc'!K114,0) -> 0 | AJ114: 0
A115: ='Asset data'!A115 -> 0 | B115: ='Asset data'!B115 -> 0 | C115: ='Asset data'!C115 -> 0 | D115: ='Asset data'!E115 ->  | E115: 0 | F115: =IF(A115>0,SUM('Asset data'!J115:CV115),0) -> 0 | G115: =IF(A115>0,'Asset data'!F115,0) -> 0 | H115: =IF(A115>0,SUM('Asset data'!CX115:GJ115),0) -> 0 | I115: 0 | J115: 0 | K115: 0 | L115: 0 | M115: =IF($A115>0,SUMPRODUCT('Age profile (years)'!$CT115:$GF115,'Asset data'!$CX115:$GJ115)/H115-0.5,0) -> 0 | N115: 0 | O115: =IF($A115>0,'Asset data'!G115,0) -> 0 | P115: 0 | Q115: 0 | R115: 0 | S115: 0 | T115: 0 | U115: 0 | W115: =IF($A115>0,SUMIF('Age profile (years)'!$CT115:$GF115,"<" & R115+0.5,'Asset data'!$CX115:$GJ115),0) -> 0 | X115: =IF($A115>0,SUMIF('Age profile (years)'!$CT115:$GF115,"<" & S115+0.5,'Asset data'!$CX115:$GJ115)-W115,0) -> 0 | Y115: =IF($A115>0,SUMIF('Age profile (years)'!$CT115:$GF115,"<" & T115+0.5,'Asset data'!$CX115:$GJ115)-X115-W115,0) -> 0 | Z115: =IF($A115>0,SUMIF('Age profile (years)'!$CT115:$GF115,"<" & U115+0.5,'Asset data'!$CX115:$GJ115)-Y115-X115-W115,0) -> 0 | AA115: 0 | AB115: 0 | AC115: 0 | AD115: 0 | AE115: 0 | AF115: 0 | AI115: =IF($A115>0,'RRR hist-forc'!K115,0) -> 0 | AJ115: 0
A116: ='Asset data'!A116 -> 7 | B116: ='Asset data'!B116 -> 0 | C116: ='Asset data'!C116 -> 0 | D116: ='Asset data'!E116 -> Other | E116: SWITCHGEAR | F116: =IF(A116>0,SUM('Asset data'!J116:CV116),0) -> 119 | G116: =IF(A116>0,'Asset data'!F116,0) -> 2.386681008 | H116: =IF(A116>0,SUM('Asset data'!CX116:GJ116),0) -> 284.0150399 | I116: 5.986237545e-05 | J116: 43 | K116: 0.0003969383934 | L116: 2.386681008 | M116: =IF($A116>0,SUMPRODUCT('Age profile (years)'!$CT116:$GF116,'Asset data'!$CX116:$GJ116)/H116-0.5,0) -> 28.44957983 | N116: 8080.108551 | O116: =IF($A116>0,'Asset data'!G116,0) -> 58.84753573 | P116: 16713.58521 | Q116: 0.5165544406 | R116: 5.884753573 | S116: 11.76950715 | T116: 35.30852144 | U116: 47.07802859 | W116: =IF($A116>0,SUMIF('Age profile (years)'!$CT116:$GF116,"<" & R116+0.5,'Asset data'!$CX116:$GJ116),0) -> 35.80021511 | X116: =IF($A116>0,SUMIF('Age profile (years)'!$CT116:$GF116,"<" & S116+0.5,'Asset data'!$CX116:$GJ116)-W116,0) -> 35.80021511 | Y116: =IF($A116>0,SUMIF('Age profile (years)'!$CT116:$GF116,"<" & T116+0.5,'Asset data'!$CX116:$GJ116)-X116-W116,0) -> 105.0139643 | Z116: =IF($A116>0,SUMIF('Age profile (years)'!$CT116:$GF116,"<" & U116+0.5,'Asset data'!$CX116:$GJ116)-Y116-X116-W116,0) -> 50.12030116 | AA116: 57.28034418 | AB116: 0.1260504202 | AC116: 0.1260504202 | AD116: 0.3697478992 | AE116: 0.1764705882 | AF116: 0.2016806723 | AI116: =IF($A116>0,'RRR hist-forc'!K116,0) -> 58.84753573 | AJ116: 16713.58521
A117: ='Asset data'!A117 -> 0 | B117: ='Asset data'!B117 -> 0 | C117: ='Asset data'!C117 -> 0 | D117: ='Asset data'!E117 -> 0 | E117: 0 | F117: =IF(A117>0,SUM('Asset data'!J117:CV117),0) -> 0 | G117: =IF(A117>0,'Asset data'!F117,0) -> 0 | H117: =IF(A117>0,SUM('Asset data'!CX117:GJ117),0) -> 0 | I117: 0 | J117: 0 | K117: 0 | L117: 0 | M117: =IF($A117>0,SUMPRODUCT('Age profile (years)'!$CT117:$GF117,'Asset data'!$CX117:$GJ117)/H117-0.5,0) -> 0 | N117: 0 | O117: =IF($A117>0,'Asset data'!G117,0) -> 0 | P117: 0 | Q117: 0 | R117: 0 | S117: 0 | T117: 0 | U117: 0 | W117: =IF($A117>0,SUMIF('Age profile (years)'!$CT117:$GF117,"<" & R117+0.5,'Asset data'!$CX117:$GJ117),0) -> 0 | X117: =IF($A117>0,SUMIF('Age profile (years)'!$CT117:$GF117,"<" & S117+0.5,'Asset data'!$CX117:$GJ117)-W117,0) -> 0 | Y117: =IF($A117>0,SUMIF('Age profile (years)'!$CT117:$GF117,"<" & T117+0.5,'Asset data'!$CX117:$GJ117)-X117-W117,0) -> 0 | Z117: =IF($A117>0,SUMIF('Age profile (years)'!$CT117:$GF117,"<" & U117+0.5,'Asset data'!$CX117:$GJ117)-Y117-X117-W117,0) -> 0 | AA117: 0 | AB117: 0 | AC117: 0 | AD117: 0 | AE117: 0 | AF117: 0 | AI117: =IF($A117>0,'RRR hist-forc'!K117,0) -> 0 | AJ117: 0
A118: ='Asset data'!A118 -> 0 | B118: ='Asset data'!B118 -> 0 | C118: ='Asset data'!C118 -> 0 | D118: ='Asset data'!E118 -> 0 | E118: 0 | F118: =IF(A118>0,SUM('Asset data'!J118:CV118),0) -> 0 | G118: =IF(A118>0,'Asset data'!F118,0) -> 0 | H118: =IF(A118>0,SUM('Asset data'!CX118:GJ118),0) -> 0 | I118: 0 | J118: 0 | K118: 0 | L118: 0 | M118: =IF($A118>0,SUMPRODUCT('Age profile (years)'!$CT118:$GF118,'Asset data'!$CX118:$GJ118)/H118-0.5,0) -> 0 | N118: 0 | O118: =IF($A118>0,'Asset data'!G118,0) -> 0 | P118: 0 | Q118: 0 | R118: 0 | S118: 0 | T118: 0 | U118: 0 | W118: =IF($A118>0,SUMIF('Age profile (years)'!$CT118:$GF118,"<" & R118+0.5,'Asset data'!$CX118:$GJ118),0) -> 0 | X118: =IF($A118>0,SUMIF('Age profile (years)'!$CT118:$GF118,"<" & S118+0.5,'Asset data'!$CX118:$GJ118)-W118,0) -> 0 | Y118: =IF($A118>0,SUMIF('Age profile (years)'!$CT118:$GF118,"<" & T118+0.5,'Asset data'!$CX118:$GJ118)-X118-W118,0) -> 0 | Z118: =IF($A118>0,SUMIF('Age profile (years)'!$CT118:$GF118,"<" & U118+0.5,'Asset data'!$CX118:$GJ118)-Y118-X118-W118,0) -> 0 | AA118: 0 | AB118: 0 | AC118: 0 | AD118: 0 | AE118: 0 | AF118: 0 | AI118: =IF($A118>0,'RRR hist-forc'!K118,0) -> 0 | AJ118: 0
AI206: =IF($A206>0,'RRR hist-forc'!K206,0) -> 0 | AJ206: =IF($A206>0,AI206*H206,0) -> 0

Sheet RRR hist-forc
A1: Asset calcs | AY1: Replacement expenditure forecast ($,000) | BS1: Weighted average age forecast (WAA) | CN1: Weighted average remaining life forecast (WARL) | DI1: Replacement quantity forecast
AY2: 1 | AZ2: 2 | BA2: 3 | BB2: 4 | BC2: 5 | BD2: 6 | BE2: 7 | BF2: 8 | BG2: 9 | BH2: 10 | BI2: 11 | BJ2: 12 | BK2: 13 | BL2: 14 | BM2: 15 | BN2: 16 | BO2: 17 | BP2: 18 | BQ2: 19 | BR2: 20 | BS2: 0 | BT2: 1 | BU2: 2 | BV2: 3 | BW2: 4 | BX2: 5 | BY2: 6 | BZ2: 7 | CA2: 8 | CB2: 9 | CC2: 10 | CD2: 11 | CE2: 12 | CF2: 13 | CG2: 14 | CH2: 15 | CI2: 16 | CJ2: 17 | CK2: 18 | CL2: 19 | CM2: 20 | CN2: 0 | CO2: 1 | CP2: 2 | CQ2: 3 | CR2: 4 | CS2: 5 | CT2: 6 | CU2: 7 | CV2: 8 | CW2: 9 | CX2: 10 | CY2: 11 | CZ2: 12 | DA2: 13 | DB2: 14 | DC2: 15 | DD2: 16 | DE2: 17 | DF2: 18 | DG2: 19 | DH2: 20 | DI2: 1 | DJ2: 2 | DK2: 3 | DL2: 4 | DM2: 5 | DN2: 6 | DO2: 7 | DP2: 8 | DQ2: 9 | DR2: 10 | DS2: 11 | DT2: 12 | DU2: 13 | DV2: 14 | DW2: 15 | DX2: 16 | DY2: 17 | DZ2: 18 | EA2: 19 | EB2: 20
Q3: DNSP
G4: Historical | Q4: Forcast | AO4: Model forecast
E5: year | G5: =H5-1 -> 2005 | H5: 2006 | I5: 2007 | J5: 2008 | K5: 2009 | L5: 2010 | M5: 2011 | N5: 2012 | O5: =P5-1 -> 2013 | P5: =IF(Tables!B19=1,Now,Now-1) -> 2014 | Q5: =P5+1 -> 2015 | R5: =Q5+1 -> 2016 | S5: 2017 | T5: 2018 | U5: 2019 | V5: 2020 | W5: 2021 | X5: 2022 | Y5: 2023 | Z5: 2024 | AA5: =Z5+1 -> 2025 | AB5: 2026 | AC5: 2027 | AD5: 2028 | AE5: 2029 | AF5: 2030 | AG5: 2031 | AH5: 2032 | AI5: 2033 | AJ5: 2034 | AO5: =G5 -> 2005 | AP5: 2006 | AQ5: 2007 | AR5: 2008 | AS5: 2009 | AT5: 2010 | AU5: 2011 | AV5: 2012 | AW5: 2013 | AX5: 2014 | AY5: =Q5 -> 2015 | AZ5: 2016 | BA5: 2017 | BB5: 2018 | BC5: 2019 | BD5: 2020 | BE5: 2021 | BF5: 2022 | BG5: 2023 | BH5: 2024 | BI5: 2025 | BJ5: 2026 | BK5: 2027 | BL5: 2028 | BM5: 2029 | BN5: 2030 | BO5: 2031 | BP5: 2032 | BQ5: 2033 | BR5: 2034 | BS5: =AX5 -> 2014 | BT5: =AY5 -> 2015 | BU5: 2016 | BV5: 2017 | BW5: 2018 | BX5: 2019 | BY5: 2020 | BZ5: 2021 | CA5: 2022 | CB5: 2023 | CC5: 2024 | CD5: 2025 | CE5: 2026 | CF5: 2027 | CG5: 2028 | CH5: 2029 | CI5: 2030 | CJ5: 2031 | CK5: 2032 | CL5: 2033 | CM5: 2034 | CN5: =BS5 -> 2014 | CO5: =BT5 -> 2015 | CP5: 2016 | CQ5: 2017 | CR5: 2018 | CS5: 2019 | CT5: 2020 | CU5: 2021 | CV5: 2022 | CW5: 2023 | CX5: 2024 | CY5: 2025 | CZ5: 2026 | DA5: 2027 | DB5: 2028 | DC5: 2029 | DD5: 2030 | DE5: 2031 | DF5: 2032 | DG5: 2033 | DH5: 2034 | DI5: =AY5 -> 2015 | DJ5: =AZ5 -> 2016 | DK5: 2017 | DL5: 2018 | DM5: 2019 | DN5: 2020 | DO5: 2021 | DP5: 2022 | DQ5: 2023 | DR5: 2024 | DS5: 2025 | DT5: 2026 | DU5: 2027 | DV5: 2028 | DW5: 2029 | DX5: 2030 | DY5: 2031 | DZ5: 2032 | EA5: 2033 | EB5: 2034
A6: 1 | D6: =VLOOKUP(A6,IDtable,2) -> POLES STAKED | E6: =D6 -> POLES STAKED | AN6: =D6 & " (mod)" -> POLES STAKED (mod) | AY6: =SUMIF($A$21:$A$205,$A6,AY$21:AY$205) -> 5114.111176 | AZ6: =SUMIF($A$21:$A$205,$A6,AZ$21:AZ$205) -> 5861.245184 | BA6: 6588.260381 | BB6: 7281.074119 | BC6: 7933.0547 | BD6: 8545.56048 | BE6: 9127.016145 | BF6: 9690.626789 | BG6: 10251.08266 | BH6: 10820.81222 | BI6: 11406.46015 | BJ6: 12006.26488 | BK6: 12608.86641 | BL6: 13193.80459 | BM6: 13733.62819 | BN6: 14197.2188 | BO6: 14553.73316 | BP6: 14776.53319 | BQ6: 14846.58915 | BR6: 14755.03119 | BS6: =SUM(IF($A$21:$A$205=$A6,CN$21:CN$205))/('Age profile summary'!$H6*1000+0.000001) -> 10.29423966 | BT6: =SUM(IF($A$21:$A$205=$A6,CO$21:CO$205))/('Age profile summary'!$H6*1000+0.000001) -> 10.93391281 | BU6: =SUM(IF($A$21:$A$205=$A6,CP$21:CP$205))/('Age profile summary'!$H6*1000+0.000001) -> 11.54813818 | BV6: =SUM(IF($A$21:$A$205=$A6,CQ$21:CQ$205))/('Age profile summary'!$H6*1000+0.000001) -> 12.14186825 | BW6: =SUM(IF($A$21:$A$205=$A6,CR$21:CR$205))/('Age profile summary'!$H6*1000+0.000001) -> 12.71912991 | BX6: =SUM(IF($A$21:$A$205=$A6,CS$21:CS$205))/('Age profile summary'!$H6*1000+0.000001) -> 13.28280497 | BY6: =SUM(IF($A$21:$A$205=$A6,CT$21:CT$205))/('Age profile summary'!$H6*1000+0.000001) -> 13.83452426 | BZ6: =SUM(IF($A$21:$A$205=$A6,CU$21:CU$205))/('Age profile summary'!$H6*1000+0.000001) -> 14.37463191 | CA6: =SUM(IF($A$21:$A$205=$A6,CV$21:CV$205))/('Age profile summary'!$H6*1000+0.000001) -> 14.90224972 | CB6: =SUM(IF($A$21:$A$205=$A6,CW$21:CW$205))/('Age profile summary'!$H6*1000+0.000001) -> 15.41552101 | CC6: =SUM(IF($A$21:$A$205=$A6,CX$21:CX$205))/('Age profile summary'!$H6*1000+0.000001) -> 15.91209939 | CD6: =SUM(IF($A$21:$A$205=$A6,CY$21:CY$205))/('Age profile summary'!$H6*1000+0.000001) -> 16.38986671 | CE6: =SUM(IF($A$21:$A$205=$A6,CZ$21:CZ$205))/('Age profile summary'!$H6*1000+0.000001) -> 16.84775478 | CF6: =SUM(IF($A$21:$A$205=$A6,DA$21:DA$205))/('Age profile summary'!$H6*1000+0.000001) -> 17.28647199 | CG6: =SUM(IF($A$21:$A$205=$A6,DB$21:DB$205))/('Age profile summary'!$H6*1000+0.000001) -> 17.70895818 | CH6: =SUM(IF($A$21:$A$205=$A6,DC$21:DC$205))/('Age profile summary'!$H6*1000+0.000001) -> 18.12050676 | CI6: =SUM(IF($A$21:$A$205=$A6,DD$21:DD$205))/('Age profile summary'!$H6*1000+0.000001) -> 18.52863235 | CJ6: =SUM(IF($A$21:$A$205=$A6,DE$21:DE$205))/('Age profile summary'!$H6*1000+0.000001) -> 18.94282806 | CK6: =SUM(IF($A$21:$A$205=$A6,DF$21:DF$205))/('Age profile summary'!$H6*1000+0.000001) -> 19.37430791 | CL6: =SUM(IF($A$21:$A$205=$A6,DG$21:DG$205))/('Age profile summary'!$H6*1000+0.000001) -> 19.83570864 | CM6: =SUM(IF($A$21:$A$205=$A6,DH$21:DH$205))/('Age profile summary'!$H6*1000+0.000001) -> 20.34062774 | CN6: ='Age profile summary'!$O6-'RRR hist-forc'!BS6 -> 15.07386966 | CO6: ='Age profile summary'!$O6-'RRR hist-forc'!BT6 -> 14.43419652 | CP6: ='Age profile summary'!$O6-'RRR hist-forc'!BU6 -> 13.81997114 | CQ6: ='Age profile summary'!$O6-'RRR hist-forc'!BV6 -> 13.22624108 | CR6: ='Age profile summary'!$O6-'RRR hist-forc'!BW6 -> 12.64897942 | CS6: ='Age profile summary'!$O6-'RRR hist-forc'!BX6 -> 12.08530435 | CT6: ='Age profile summary'!$O6-'RRR hist-forc'!BY6 -> 11.53358507 | CU6: ='Age profile summary'!$O6-'RRR hist-forc'!BZ6 -> 10.99347742 | CV6: ='Age profile summary'!$O6-'RRR hist-forc'!CA6 -> 10.46585961 | CW6: ='Age profile summary'!$O6-'RRR hist-forc'!CB6 -> 9.952588317 | CX6: ='Age profile summary'!$O6-'RRR hist-forc'!CC6 -> 9.456009941 | CY6: ='Age profile summary'!$O6-'RRR hist-forc'!CD6 -> 8.978242616 | CZ6: ='Age profile summary'!$O6-'RRR hist-forc'!CE6 -> 8.520354551 | DA6: ='Age profile summary'!$O6-'RRR hist-forc'!CF6 -> 8.081637338 | DB6: ='Age profile summary'!$O6-'RRR hist-forc'!CG6 -> 7.659151147 | DC6: ='Age profile summary'!$O6-'RRR hist-forc'!CH6 -> 7.247602562 | DD6: ='Age profile summary'!$O6-'RRR hist-forc'!CI6 -> 6.839476979 | DE6: ='Age profile summary'!$O6-'RRR hist-forc'!CJ6 -> 6.425281265 | DF6: ='Age profile summary'!$O6-'RRR hist-forc'!CK6 -> 5.993801417 | DG6: ='Age profile summary'!$O6-'RRR hist-forc'!CL6 -> 5.53240069 | DH6: ='Age profile summary'!$O6-'RRR hist-forc'!CM6 -> 5.027481592 | DI6: =SUMIF($A$21:$A$205,$A6,DI$21:DI$205) -> 489.8807895 | DJ6: 561.4487678 | DK6: 631.0895649 | DL6: 697.4542037 | DM6: 759.9074338 | DN6: 818.579372 | DO6: 874.2770193 | DP6: 928.2652917 | DQ6: 981.9513685 | DR6: 1036.525772 | DS6: 1092.624996 | DT6: 1150.080301 | DU6: 1207.80351 | DV6: 1263.834748 | DW6: 1315.544459 | DX6: 1359.951811 | DY6: =SUMIF($A$21:$A$205,$A6,DY$21:DY$205) -> 1394.102327 | DZ6: 1415.444345 | EA6: 1422.155007 | EB6: 1413.384668
A7: 2 | D7: POLES | E7: POLES | AN7: =D7 & " (mod)" -> POLES (mod) | AY7: =SUMIF($A$21:$A$205,$A7,AY$21:AY$205) -> 12788.21799 | AZ7: =SUMIF($A$21:$A$205,$A7,AZ$21:AZ$205) -> 12129.67001 | BA7: 11541.65485 | BB7: 11037.97105 | BC7: 10627.94064 | BD7: 10316.48751 | BE7: 10104.3337 | BF7: 9988.323897 | BG7: 9961.885542 | BH7: 10015.62125 | BI7: 10138.01517 | BJ7: 10316.21879 | BK7: 10536.8686 | BL7: 10786.88054 | BM7: 11054.16517 | BN7: 11328.21402 | BO7: 11600.52004 | BP7: 11864.81235 | BQ7: 12117.10478 | BR7: 12355.57712 | BS7: =SUM(IF($A$21:$A$205=$A7,CN$21:CN$205))/('Age profile summary'!$H7*1000+0.000001) -> 28.07096447 | BT7: =SUM(IF($A$21:$A$205=$A7,CO$21:CO$205))/('Age profile summary'!$H7*1000+0.000001) -> 28.31617268 | BU7: =SUM(IF($A$21:$A$205=$A7,CP$21:CP$205))/('Age profile summary'!$H7*1000+0.000001) -> 28.69497053 | BV7: =SUM(IF($A$21:$A$205=$A7,CQ$21:CQ$205))/('Age profile summary'!$H7*1000+0.000001) -> 29.15728393 | BW7: =SUM(IF($A$21:$A$205=$A7,CR$21:CR$205))/('Age profile summary'!$H7*1000+0.000001) -> 29.67362229 | BX7: =SUM(IF($A$21:$A$205=$A7,CS$21:CS$205))/('Age profile summary'!$H7*1000+0.000001) -> 30.22473623 | BY7: =SUM(IF($A$21:$A$205=$A7,CT$21:CT$205))/('Age profile summary'!$H7*1000+0.000001) -> 30.79721827 | BZ7: =SUM(IF($A$21:$A$205=$A7,CU$21:CU$205))/('Age profile summary'!$H7*1000+0.000001) -> 31.38139187 | CA7: =SUM(IF($A$21:$A$205=$A7,CV$21:CV$205))/('Age profile summary'!$H7*1000+0.000001) -> 31.97019463 | CB7: =SUM(IF($A$21:$A$205=$A7,CW$21:CW$205))/('Age profile summary'!$H7*1000+0.000001) -> 32.55852921 | CC7: =SUM(IF($A$21:$A$205=$A7,CX$21:CX$205))/('Age profile summary'!$H7*1000+0.000001) -> 33.14284534 | CD7: =SUM(IF($A$21:$A$205=$A7,CY$21:CY$205))/('Age profile summary'!$H7*1000+0.000001) -> 33.72083829 | CE7: =SUM(IF($A$21:$A$205=$A7,CZ$21:CZ$205))/('Age profile summary'!$H7*1000+0.000001) -> 34.29120668 | CF7: =SUM(IF($A$21:$A$205=$A7,DA$21:DA$205))/('Age profile summary'!$H7*1000+0.000001) -> 34.85344146 | CG7: =SUM(IF($A$21:$A$205=$A7,DB$21:DB$205))/('Age profile summary'!$H7*1000+0.000001) -> 35.40763303 | CH7: =SUM(IF($A$21:$A$205=$A7,DC$21:DC$205))/('Age profile summary'!$H7*1000+0.000001) -> 35.95429276 | CI7: =SUM(IF($A$21:$A$205=$A7,DD$21:DD$205))/('Age profile summary'!$H7*1000+0.000001) -> 36.49418997 | CJ7: =SUM(IF($A$21:$A$205=$A7,DE$21:DE$205))/('Age profile summary'!$H7*1000+0.000001) -> 37.02820818 | CK7: =SUM(IF($A$21:$A$205=$A7,DF$21:DF$205))/('Age profile summary'!$H7*1000+0.000001) -> 37.5572252 | CL7: =SUM(IF($A$21:$A$205=$A7,DG$21:DG$205))/('Age profile summary'!$H7*1000+0.000001) -> 38.08202075 | CM7: =SUM(IF($A$21:$A$205=$A7,DH$21:DH$205))/('Age profile summary'!$H7*1000+0.000001) -> 38.60321361 | CN7: ='Age profile summary'!$O7-'RRR hist-forc'!BS7 -> 34.14915545 | CO7: ='Age profile summary'!$O7-'RRR hist-forc'!BT7 -> 33.90394725 | CP7: ='Age profile summary'!$O7-'RRR hist-forc'!BU7 -> 33.5251494 | CQ7: ='Age profile summary'!$O7-'RRR hist-forc'!BV7 -> 33.06283599 | CR7: ='Age profile summary'!$O7-'RRR hist-forc'!BW7 -> 32.54649764 | CS7: ='Age profile summary'!$O7-'RRR hist-forc'!BX7 -> 31.9953837 | CT7: ='Age profile summary'!$O7-'RRR hist-forc'!BY7 -> 31.42290166 | CU7: ='Age profile summary'!$O7-'RRR hist-forc'!BZ7 -> 30.83872805 | CV7: ='Age profile summary'!$O7-'RRR hist-forc'!CA7 -> 30.2499253 | CW7: ='Age profile summary'!$O7-'RRR hist-forc'!CB7 -> 29.66159072 | CX7: ='Age profile summary'!$O7-'RRR hist-forc'!CC7 -> 29.07727458 | CY7: ='Age profile summary'!$O7-'RRR hist-forc'!CD7 -> 28.49928164 | CZ7: ='Age profile summary'!$O7-'RRR hist-forc'!CE7 -> 27.92891324 | DA7: ='Age profile summary'!$O7-'RRR hist-forc'!CF7 -> 27.36667846 | DB7: ='Age profile summary'!$O7-'RRR hist-forc'!CG7 -> 26.8124869 | DC7: ='Age profile summary'!$O7-'RRR hist-forc'!CH7 -> 26.26582717 | DD7: ='Age profile summary'!$O7-'RRR hist-forc'!CI7 -> 25.72592996 | DE7: ='Age profile summary'!$O7-'RRR hist-forc'!CJ7 -> 25.19191174 | DF7: ='Age profile summary'!$O7-'RRR hist-forc'!CK7 -> 24.66289473 | DG7: ='Age profile summary'!$O7-'RRR hist-forc'!CL7 -> 24.13809918 | DH7: ='Age profile summary'!$O7-'RRR hist-forc'!CM7 -> 23.61690632 | DI7: 1451.17816 | DJ7: 1473.421544 | DK7: 1509.495389 | DL7: 1560.697222 | DM7: 1627.658351 | DN7: 1710.31103 | DO7: 1807.889451 | DP7: 1918.967536 | DQ7: 2041.534033 | DR7: 2173.102395 | DS7: 2310.849682 | DT7: 2451.775878 | DU7: 2592.872837 | DV7: 2731.290931 | DW7: 2864.491511 | DX7: 2990.374437 | DY7: 3107.372151 | DZ7: 3214.504677 | EA7: 3311.393355 | EB7: 3398.234538
A8: 3 | D8: OVERHEAD CONDUCTORS | E8: OVERHEAD CONDUCTORS | AN8: OVERHEAD CONDUCTORS (mod) | AY8: 1593.59923 | AZ8: 1902.489447 | BA8: 2252.25178 | BB8: 2644.765645 | BC8: 3081.492712 | BD8: 3563.436073 | BE8: 4091.106131 | BF8: 4664.490334 | BG8: 5283.0237 | BH8: 5945.557767 | BI8: 6650.326987 | BJ8: 7394.913593 | BK8: 8176.214244 | BL8: 8990.413878 | BM8: 9832.973823 | BN8: 10698.64191 | BO8: 11581.49179 | BP8: 12474.99711 | BQ8: 13372.14302 | BR8: 14265.57424 | BS8: =SUM(IF($A$21:$A$205=$A8,CN$21:CN$205))/('Age profile summary'!$H8*1000+0.000001) -> 30.99435779 | BT8: =SUM(IF($A$21:$A$205=$A8,CO$21:CO$205))/('Age profile summary'!$H8*1000+0.000001) -> 31.91937715 | BU8: =SUM(IF($A$21:$A$205=$A8,CP$21:CP$205))/('Age profile summary'!$H8*1000+0.000001) -> 32.83075225 | BV8: =SUM(IF($A$21:$A$205=$A8,CQ$21:CQ$205))/('Age profile summary'!$H8*1000+0.000001) -> 33.72685115 | BW8: =SUM(IF($A$21:$A$205=$A8,CR$21:CR$205))/('Age profile summary'!$H8*1000+0.000001) -> 34.60599941 | BX8: =SUM(IF($A$21:$A$205=$A8,CS$21:CS$205))/('Age profile summary'!$H8*1000+0.000001) -> 35.46649311 | BY8: =SUM(IF($A$21:$A$205=$A8,CT$21:CT$205))/('Age profile summary'!$H8*1000+0.000001) -> 36.30661149 | BZ8: =SUM(IF($A$21:$A$205=$A8,CU$21:CU$205))/('Age profile summary'!$H8*1000+0.000001) -> 37.12463054 | CA8: =SUM(IF($A$21:$A$205=$A8,CV$21:CV$205))/('Age profile summary'!$H8*1000+0.000001) -> 37.91883971 | CB8: =SUM(IF($A$21:$A$205=$A8,CW$21:CW$205))/('Age profile summary'!$H8*1000+0.000001) -> 38.68756296 | CC8: =SUM(IF($A$21:$A$205=$A8,CX$21:CX$205))/('Age profile summary'!$H8*1000+0.000001) -> 39.42918554 | CD8: =SUM(IF($A$21:$A$205=$A8,CY$21:CY$205))/('Age profile summary'!$H8*1000+0.000001) -> 40.14218654 | CE8: =SUM(IF($A$21:$A$205=$A8,CZ$21:CZ$205))/('Age profile summary'!$H8*1000+0.000001) -> 40.82517658 | CF8: =SUM(IF($A$21:$A$205=$A8,DA$21:DA$205))/('Age profile summary'!$H8*1000+0.000001) -> 41.47693919 | CG8: =SUM(IF($A$21:$A$205=$A8,DB$21:DB$205))/('Age profile summary'!$H8*1000+0.000001) -> 42.09647359 | CH8: =SUM(IF($A$21:$A$205=$A8,DC$21:DC$205))/('Age profile summary'!$H8*1000+0.000001) -> 42.68303653 | CI8: =SUM(IF($A$21:$A$205=$A8,DD$21:DD$205))/('Age profile summary'!$H8*1000+0.000001) -> 43.23618035 | CJ8: =SUM(IF($A$21:$A$205=$A8,DE$21:DE$205))/('Age profile summary'!$H8*1000+0.000001) -> 43.75578455 | CK8: =SUM(IF($A$21:$A$205=$A8,DF$21:DF$205))/('Age profile summary'!$H8*1000+0.000001) -> 44.24207815 | CL8: =SUM(IF($A$21:$A$205=$A8,DG$21:DG$205))/('Age profile summary'!$H8*1000+0.000001) -> 44.69565037 | CM8: =SUM(IF($A$21:$A$205=$A8,DH$21:DH$205))/('Age profile summary'!$H8*1000+0.000001) -> 45.11744783 | CN8: ='Age profile summary'!$O8-'RRR hist-forc'!BS8 -> 41.09360739 | CO8: ='Age profile summary'!$O8-'RRR hist-forc'!BT8 -> 40.16858803 | CP8: ='Age profile summary'!$O8-'RRR hist-forc'!BU8 -> 39.25721293 | CQ8: ='Age profile summary'!$O8-'RRR hist-forc'!BV8 -> 38.36111403 | CR8: ='Age profile summary'!$O8-'RRR hist-forc'!BW8 -> 37.48196577 | CS8: ='Age profile summary'!$O8-'RRR hist-forc'!BX8 -> 36.62147206 | CT8: ='Age profile summary'!$O8-'RRR hist-forc'!BY8 -> 35.78135369 | CU8: ='Age profile summary'!$O8-'RRR hist-forc'!BZ8 -> 34.96333463 | CV8: ='Age profile summary'!$O8-'RRR hist-forc'!CA8 -> 34.16912546 | CW8: ='Age profile summary'!$O8-'RRR hist-forc'!CB8 -> 33.40040221 | CX8: ='Age profile summary'!$O8-'RRR hist-forc'!CC8 -> 32.65877963 | CY8: ='Age profile summary'!$O8-'RRR hist-forc'!CD8 -> 31.94577864 | CZ8: ='Age profile summary'!$O8-'RRR hist-forc'!CE8 -> 31.2627886 | DA8: ='Age profile summary'!$O8-'RRR hist-forc'!CF8 -> 30.61102599 | DB8: ='Age profile summary'!$O8-'RRR hist-forc'!CG8 -> 29.99149159 | DC8: ='Age profile summary'!$O8-'RRR hist-forc'!CH8 -> 29.40492865 | DD8: ='Age profile summary'!$O8-'RRR hist-forc'!CI8 -> 28.85178483 | DE8: ='Age profile summary'!$O8-'RRR hist-forc'!CJ8 -> 28.33218063 | DF8: ='Age profile summary'!$O8-'RRR hist-forc'!CK8 -> 27.84588703 | DG8: ='Age profile summary'!$O8-'RRR hist-forc'!CL8 -> 27.39231481 | DH8: ='Age profile summary'!$O8-'RRR hist-forc'!CM8 -> 26.97051734 | DI8: 31.21301363 | DJ8: 37.09328875 | DK8: 43.70841395 | DL8: 51.08289368 | DM8: 59.23294842 | DN8: 68.1662208 | DO8: 77.88166198 | DP8: 88.36950995 | DQ8: 99.61126385 | DR8: 111.5795699 | DS8: 124.2379645 | DT8: 137.5404635 | DU8: 151.4310412 | DV8: 165.8430922 | DW8: 180.6990156 | DX8: 195.9100798 | DY8: 211.376733 | DZ8: 226.9894939 | EA8: 242.6305076 | EB8: 258.1757838
A9: 4 | D9: UNDERGROUND CABLES | E9: UNDERGROUND CABLES | AN9: UNDERGROUND CABLES (mod) | AY9: 513.7968194 | AZ9: 639.9975993 | BA9: 787.3674046 | BB9: 956.9239144 | BC9: 1149.154883 | BD9: 1363.936396 | BE9: 1600.485043 | BF9: 1857.352923 | BG9: 2132.471071 | BH9: 2423.242465 | BI9: 2726.68059 | BJ9: 3039.584218 | BK9: 3358.73435 | BL9: 3681.095774 | BM9: 4004.004032 | BN9: 4325.319103 | BO9: 4643.52993 | BP9: 4957.798741 | BQ9: 5267.940459 | BR9: 5574.339617 | BS9: =SUM(IF($A$21:$A$205=$A9,CN$21:CN$205))/('Age profile summary'!$H9*1000+0.000001) -> 20.93797543 | BT9: =SUM(IF($A$21:$A$205=$A9,CO$21:CO$205))/('Age profile summary'!$H9*1000+0.000001) -> 21.89509744 | BU9: =SUM(IF($A$21:$A$205=$A9,CP$21:CP$205))/('Age profile summary'!$H9*1000+0.000001) -> 22.84143479 | BV9: =SUM(IF($A$21:$A$205=$A9,CQ$21:CQ$205))/('Age profile summary'!$H9*1000+0.000001) -> 23.77526411 | BW9: =SUM(IF($A$21:$A$205=$A9,CR$21:CR$205))/('Age profile summary'!$H9*1000+0.000001) -> 24.69486444 | BX9: =SUM(IF($A$21:$A$205=$A9,CS$21:CS$205))/('Age profile summary'!$H9*1000+0.000001) -> 25.59859136 | BY9: =SUM(IF($A$21:$A$205=$A9,CT$21:CT$205))/('Age profile summary'!$H9*1000+0.000001) -> 26.4849544 | BZ9: =SUM(IF($A$21:$A$205=$A9,CU$21:CU$205))/('Age profile summary'!$H9*1000+0.000001) -> 27.35268986 | CA9: =SUM(IF($A$21:$A$205=$A9,CV$21:CV$205))/('Age profile summary'!$H9*1000+0.000001) -> 28.2008207 | CB9: =SUM(IF($A$21:$A$205=$A9,CW$21:CW$205))/('Age profile summary'!$H9*1000+0.000001) -> 29.02869545 | CC9: =SUM(IF($A$21:$A$205=$A9,CX$21:CX$205))/('Age profile summary'!$H9*1000+0.000001) -> 29.83600066 | CD9: =SUM(IF($A$21:$A$205=$A9,CY$21:CY$205))/('Age profile summary'!$H9*1000+0.000001) -> 30.62274416 | CE9: =SUM(IF($A$21:$A$205=$A9,CZ$21:CZ$205))/('Age profile summary'!$H9*1000+0.000001) -> 31.38921062 | CF9: =SUM(IF($A$21:$A$205=$A9,DA$21:DA$205))/('Age profile summary'!$H9*1000+0.000001) -> 32.13589421 | CG9: =SUM(IF($A$21:$A$205=$A9,DB$21:DB$205))/('Age profile summary'!$H9*1000+0.000001) -> 32.86341662 | CH9: =SUM(IF($A$21:$A$205=$A9,DC$21:DC$205))/('Age profile summary'!$H9*1000+0.000001) -> 33.57243997 | CI9: =SUM(IF($A$21:$A$205=$A9,DD$21:DD$205))/('Age profile summary'!$H9*1000+0.000001) -> 34.26358497 | CJ9: =SUM(IF($A$21:$A$205=$A9,DE$21:DE$205))/('Age profile summary'!$H9*1000+0.000001) -> 34.93736321 | CK9: =SUM(IF($A$21:$A$205=$A9,DF$21:DF$205))/('Age profile summary'!$H9*1000+0.000001) -> 35.59413059 | CL9: =SUM(IF($A$21:$A$205=$A9,DG$21:DG$205))/('Age profile summary'!$H9*1000+0.000001) -> 36.23406628 | CM9: =SUM(IF($A$21:$A$205=$A9,DH$21:DH$205))/('Age profile summary'!$H9*1000+0.000001) -> 36.85717822 | CN9: ='Age profile summary'!$O9-'RRR hist-forc'!BS9 -> 45.09715788 | CO9: ='Age profile summary'!$O9-'RRR hist-forc'!BT9 -> 44.14003588 | CP9: ='Age profile summary'!$O9-'RRR hist-forc'!BU9 -> 43.19369852 | CQ9: ='Age profile summary'!$O9-'RRR hist-forc'!BV9 -> 42.2598692 | CR9: ='Age profile summary'!$O9-'RRR hist-forc'!BW9 -> 41.34026887 | CS9: ='Age profile summary'!$O9-'RRR hist-forc'!BX9 -> 40.43654195 | CT9: ='Age profile summary'!$O9-'RRR hist-forc'!BY9 -> 39.55017892 | CU9: ='Age profile summary'!$O9-'RRR hist-forc'!BZ9 -> 38.68244345 | CV9: ='Age profile summary'!$O9-'RRR hist-forc'!CA9 -> 37.83431261 | CW9: ='Age profile summary'!$O9-'RRR hist-forc'!CB9 -> 37.00643786 | CX9: ='Age profile summary'!$O9-'RRR hist-forc'!CC9 -> 36.19913266 | CY9: ='Age profile summary'!$O9-'RRR hist-forc'!CD9 -> 35.41238915 | CZ9: ='Age profile summary'!$O9-'RRR hist-forc'!CE9 -> 34.6459227 | DA9: ='Age profile summary'!$O9-'RRR hist-forc'!CF9 -> 33.8992391 | DB9: ='Age profile summary'!$O9-'RRR hist-forc'!CG9 -> 33.1717167 | DC9: ='Age profile summary'!$O9-'RRR hist-forc'!CH9 -> 32.46269335 | DD9: ='Age profile summary'!$O9-'RRR hist-forc'!CI9 -> 31.77154834 | DE9: ='Age profile summary'!$O9-'RRR hist-forc'!CJ9 -> 31.0977701 | DF9: ='Age profile summary'!$O9-'RRR hist-forc'!CK9 -> 30.44100273 | DG9: ='Age profile summary'!$O9-'RRR hist-forc'!CL9 -> 29.80106703 | DH9: ='Age profile summary'!$O9-'RRR hist-forc'!CM9 -> 29.1779551 | DI9: 1.321523132 | DJ9: 1.647078606 | DK9: 2.029206194 | DL9: 2.471916053 | DM9: 2.978333765 | DN9: 3.550547494 | DO9: 4.18951881 | DP9: 4.895070717 | DQ9: 5.665959161 | DR9: 6.500025303 | DS9: 7.394416075 | DT9: 8.345851393 | DU9: 9.350909015 | DV9: 10.40629382 | DW9: 11.50905799 | DX9: 12.65674252 | DY9: 13.84741889 | DZ9: 15.07962094 | EA9: 16.35217074 | EB9: 17.66391586
A10: 5 | D10: SERVICE LINES | E10: SERVICE LINES | AN10: SERVICE LINES (mod) | AY10: 5291.04593 | AZ10: 5913.514712 | BA10: 6538.798903 | BB10: 7154.63776 | BC10: 7748.467165 | BD10: 8308.025977 | BE10: 8821.982832 | BF10: 9280.537342 | BG10: 9675.948259 | BH10: 10002.94442 | BI10: 10258.98211 | BJ10: 10444.32464 | BK10: 10561.93502 | BL10: 10617.18956 | BM10: 10617.4369 | BN10: 10571.44123 | BO10: 10488.75906 | BP10: 10379.10421 | BQ10: 10251.75478 | BR10: 10115.04954 | BS10: =SUM(IF($A$21:$A$205=$A10,CN$21:CN$205))/('Age profile summary'!$H10*1000+0.000001) -> 31.40255607 | BT10: =SUM(IF($A$21:$A$205=$A10,CO$21:CO$205))/('Age profile summary'!$H10*1000+0.000001) -> 31.84261853 | BU10: =SUM(IF($A$21:$A$205=$A10,CP$21:CP$205))/('Age profile summary'!$H10*1000+0.000001) -> 32.23988281 | BV10: =SUM(IF($A$21:$A$205=$A10,CQ$21:CQ$205))/('Age profile summary'!$H10*1000+0.000001) -> 32.59742934 | BW10: =SUM(IF($A$21:$A$205=$A10,CR$21:CR$205))/('Age profile summary'!$H10*1000+0.000001) -> 32.9192411 | BX10: =SUM(IF($A$21:$A$205=$A10,CS$21:CS$205))/('Age profile summary'!$H10*1000+0.000001) -> 33.2100966 | BY10: =SUM(IF($A$21:$A$205=$A10,CT$21:CT$205))/('Age profile summary'!$H10*1000+0.000001) -> 33.47541611 | BZ10: =SUM(IF($A$21:$A$205=$A10,CU$21:CU$205))/('Age profile summary'!$H10*1000+0.000001) -> 33.72106705 | CA10: =SUM(IF($A$21:$A$205=$A10,CV$21:CV$205))/('Age profile summary'!$H10*1000+0.000001) -> 33.9531379 | CB10: =SUM(IF($A$21:$A$205=$A10,CW$21:CW$205))/('Age profile summary'!$H10*1000+0.000001) -> 34.17769377 | CC10: =SUM(IF($A$21:$A$205=$A10,CX$21:CX$205))/('Age profile summary'!$H10*1000+0.000001) -> 34.400531 | CD10: =SUM(IF($A$21:$A$205=$A10,CY$21:CY$205))/('Age profile summary'!$H10*1000+0.000001) -> 34.62695086 | CE10: =SUM(IF($A$21:$A$205=$A10,CZ$21:CZ$205))/('Age profile summary'!$H10*1000+0.000001) -> 34.86157271 | CF10: =SUM(IF($A$21:$A$205=$A10,DA$21:DA$205))/('Age profile summary'!$H10*1000+0.000001) -> 35.10820334 | CG10: =SUM(IF($A$21:$A$205=$A10,DB$21:DB$205))/('Age profile summary'!$H10*1000+0.000001) -> 35.36977293 | CH10: =SUM(IF($A$21:$A$205=$A10,DC$21:DC$205))/('Age profile summary'!$H10*1000+0.000001) -> 35.64833896 | CI10: =SUM(IF($A$21:$A$205=$A10,DD$21:DD$205))/('Age profile summary'!$H10*1000+0.000001) -> 35.94515101 | CJ10: =SUM(IF($A$21:$A$205=$A10,DE$21:DE$205))/('Age profile summary'!$H10*1000+0.000001) -> 36.26076212 | CK10: =SUM(IF($A$21:$A$205=$A10,DF$21:DF$205))/('Age profile summary'!$H10*1000+0.000001) -> 36.59516883 | CL10: =SUM(IF($A$21:$A$205=$A10,DG$21:DG$205))/('Age profile summary'!$H10*1000+0.000001) -> 36.94796158 | CM10: =SUM(IF($A$21:$A$205=$A10,DH$21:DH$205))/('Age profile summary'!$H10*1000+0.000001) -> 37.31846986 | CN10: ='Age profile summary'!$O10-'RRR hist-forc'!BS10 -> 27.12124102 | CO10: ='Age profile summary'!$O10-'RRR hist-forc'!BT10 -> 26.68117856 | CP10: ='Age profile summary'!$O10-'RRR hist-forc'!BU10 -> 26.28391427 | CQ10: ='Age profile summary'!$O10-'RRR hist-forc'!BV10 -> 25.92636774 | CR10: ='Age profile summary'!$O10-'RRR hist-forc'!BW10 -> 25.60455599 | CS10: ='Age profile summary'!$O10-'RRR hist-forc'!BX10 -> 25.31370048 | CT10: ='Age profile summary'!$O10-'RRR hist-forc'!BY10 -> 25.04838097 | CU10: ='Age profile summary'!$O10-'RRR hist-forc'!BZ10 -> 24.80273003 | CV10: ='Age profile summary'!$O10-'RRR hist-forc'!CA10 -> 24.57065918 | CW10: ='Age profile summary'!$O10-'RRR hist-forc'!CB10 -> 24.34610331 | CX10: ='Age profile summary'!$O10-'RRR hist-forc'!CC10 -> 24.12326609 | CY10: ='Age profile summary'!$O10-'RRR hist-forc'!CD10 -> 23.89684622 | CZ10: ='Age profile summary'!$O10-'RRR hist-forc'!CE10 -> 23.66222438 | DA10: ='Age profile summary'!$O10-'RRR hist-forc'!CF10 -> 23.41559374 | DB10: ='Age profile summary'!$O10-'RRR hist-forc'!CG10 -> 23.15402415 | DC10: ='Age profile summary'!$O10-'RRR hist-forc'!CH10 -> 22.87545812 | DD10: ='Age profile summary'!$O10-'RRR hist-forc'!CI10 -> 22.57864607 | DE10: ='Age profile summary'!$O10-'RRR hist-forc'!CJ10 -> 22.26303496 | DF10: ='Age profile summary'!$O10-'RRR hist-forc'!CK10 -> 21.92862826 | DG10: ='Age profile summary'!$O10-'RRR hist-forc'!CL10 -> 21.5758355 | DH10: ='Age profile summary'!$O10-'RRR hist-forc'!CM10 -> 21.20532722 | DI10: 1513.90896 | DJ10: 1696.600902 | DK10: 1881.193287 | DL10: 2064.182434 | DM10: 2241.929601 | DN10: 2410.831438 | DO10: 2567.499639 | DP10: 2708.936986 | DQ10: 2832.696225 | DR10: 2937.008825 | DS10: 3020.87253 | DT10: 3084.089773 | DU10: 3127.25311 | DV10: 3151.678554 | DW10: 3159.292436 | DX10: 3152.481738 | DY10: 3133.921146 | DZ10: 3106.391973 | EA10: 3072.608388 | EB10: 3035.065009
A11: 6 | D11: TRANSFORMERS | E11: TRANSFORMERS | AN11: TRANSFORMERS (mod) | AY11: 1787.50309 | AZ11: 2031.645921 | BA11: 2292.40754 | BB11: 2569.257233 | BC11: 2861.742524 | BD11: 3169.547592 | BE11: 3492.530365 | BF11: 3830.73233 | BG11: 4184.358171 | BH11: 4553.726004 | BI11: 4939.192631 | BJ11: 5341.061406 | BK11: 5759.482457 | BL11: 6194.355943 | BM11: 6645.248481 | BN11: 7111.331107 | BO11: 7591.344322 | BP11: 8083.592404 | BQ11: 8585.965716 | BR11: 9095.986678 | BS11: =SUM(IF($A$21:$A$205=$A11,CN$21:CN$205))/('Age profile summary'!$H11*1000+0.000001) -> 21.17367681 | BT11: =SUM(IF($A$21:$A$205=$A11,CO$21:CO$205))/('Age profile summary'!$H11*1000+0.000001) -> 22.02180269 | BU11: =SUM(IF($A$21:$A$205=$A11,CP$21:CP$205))/('Age profile summary'!$H11*1000+0.000001) -> 22.85635569 | BV11: =SUM(IF($A$21:$A$205=$A11,CQ$21:CQ$205))/('Age profile summary'!$H11*1000+0.000001) -> 23.67681804 | BW11: =SUM(IF($A$21:$A$205=$A11,CR$21:CR$205))/('Age profile summary'!$H11*1000+0.000001) -> 24.4826697 | BX11: =SUM(IF($A$21:$A$205=$A11,CS$21:CS$205))/('Age profile summary'!$H11*1000+0.000001) -> 25.27334978 | BY11: =SUM(IF($A$21:$A$205=$A11,CT$21:CT$205))/('Age profile summary'!$H11*1000+0.000001) -> 26.04822444 | BZ11: =SUM(IF($A$21:$A$205=$A11,CU$21:CU$205))/('Age profile summary'!$H11*1000+0.000001) -> 26.80656545 | CA11: =SUM(IF($A$21:$A$205=$A11,CV$21:CV$205))/('Age profile summary'!$H11*1000+0.000001) -> 27.54754138 | CB11: =SUM(IF($A$21:$A$205=$A11,CW$21:CW$205))/('Age profile summary'!$H11*1000+0.000001) -> 28.27022193 | CC11: =SUM(IF($A$21:$A$205=$A11,CX$21:CX$205))/('Age profile summary'!$H11*1000+0.000001) -> 28.97359424 | CD11: =SUM(IF($A$21:$A$205=$A11,CY$21:CY$205))/('Age profile summary'!$H11*1000+0.000001) -> 29.65658935 | CE11: =SUM(IF($A$21:$A$205=$A11,CZ$21:CZ$205))/('Age profile summary'!$H11*1000+0.000001) -> 30.31811605 | CF11: =SUM(IF($A$21:$A$205=$A11,DA$21:DA$205))/('Age profile summary'!$H11*1000+0.000001) -> 30.95709941 | CG11: =SUM(IF($A$21:$A$205=$A11,DB$21:DB$205))/('Age profile summary'!$H11*1000+0.000001) -> 31.57252112 | CH11: =SUM(IF($A$21:$A$205=$A11,DC$21:DC$205))/('Age profile summary'!$H11*1000+0.000001) -> 32.16345873 | CI11: =SUM(IF($A$21:$A$205=$A11,DD$21:DD$205))/('Age profile summary'!$H11*1000+0.000001) -> 32.72912157 | CJ11: =SUM(IF($A$21:$A$205=$A11,DE$21:DE$205))/('Age profile summary'!$H11*1000+0.000001) -> 33.26888156 | CK11: =SUM(IF($A$21:$A$205=$A11,DF$21:DF$205))/('Age profile summary'!$H11*1000+0.000001) -> 33.78229779 | CL11: =SUM(IF($A$21:$A$205=$A11,DG$21:DG$205))/('Age profile summary'!$H11*1000+0.000001) -> 34.26913471 | CM11: =SUM(IF($A$21:$A$205=$A11,DH$21:DH$205))/('Age profile summary'!$H11*1000+0.000001) -> 34.72937402 | CN11: ='Age profile summary'!$O11-'RRR hist-forc'!BS11 -> 33.1439281 | CO11: ='Age profile summary'!$O11-'RRR hist-forc'!BT11 -> 32.29580222 | CP11: ='Age profile summary'!$O11-'RRR hist-forc'!BU11 -> 31.46124922 | CQ11: ='Age profile summary'!$O11-'RRR hist-forc'!BV11 -> 30.64078687 | CR11: ='Age profile summary'!$O11-'RRR hist-forc'!BW11 -> 29.83493521 | CS11: ='Age profile summary'!$O11-'RRR hist-forc'!BX11 -> 29.04425513 | CT11: ='Age profile summary'!$O11-'RRR hist-forc'!BY11 -> 28.26938047 | CU11: ='Age profile summary'!$O11-'RRR hist-forc'!BZ11 -> 27.51103946 | CV11: ='Age profile summary'!$O11-'RRR hist-forc'!CA11 -> 26.77006353 | CW11: ='Age profile summary'!$O11-'RRR hist-forc'!CB11 -> 26.04738298 | CX11: ='Age profile summary'!$O11-'RRR hist-forc'!CC11 -> 25.34401067 | CY11: ='Age profile summary'!$O11-'RRR hist-forc'!CD11 -> 24.66101556 | CZ11: ='Age profile summary'!$O11-'RRR hist-forc'!CE11 -> 23.99948886 | DA11: ='Age profile summary'!$O11-'RRR hist-forc'!CF11 -> 23.3605055 | DB11: ='Age profile summary'!$O11-'RRR hist-forc'!CG11 -> 22.74508379 | DC11: ='Age profile summary'!$O11-'RRR hist-forc'!CH11 -> 22.15414618 | DD11: ='Age profile summary'!$O11-'RRR hist-forc'!CI11 -> 21.58848334 | DE11: ='Age profile summary'!$O11-'RRR hist-forc'!CJ11 -> 21.04872336 | DF11: ='Age profile summary'!$O11-'RRR hist-forc'!CK11 -> 20.53530712 | DG11: ='Age profile summary'!$O11-'RRR hist-forc'!CL11 -> 20.0484702 | DH11: ='Age profile summary'!$O11-'RRR hist-forc'!CM11 -> 19.58823089 | DI11: 69.28126836 | DJ11: 80.07304739 | DK11: 92.00555628 | DL11: 105.1226614 | DM11: 119.4635885 | DN11: 135.0634656 | DO11: 151.9538316 | DP11: 170.1629216 | DQ11: 189.7155452 | DR11: 210.632414 | DS11: 232.9288337 | DT11: 256.6127455 | DU11: 281.6821813 | DV11: 308.1222662 | DW11: 335.9019585 | DX11: 364.9707518 | DY11: 395.2555775 | DZ11: 426.6581338 | EA11: 459.0528445 | EB11: 492.2856083
A12: 7 | D12: SWITCHGEAR | E12: SWITCHGEAR | AN12: SWITCHGEAR (mod) | AY12: 2415.976715 | AZ12: 2660.896188 | BA12: 2917.175743 | BB12: 3183.791987 | BC12: 3459.585291 | BD12: 3743.314005 | BE12: 4033.714468 | BF12: 4329.561964 | BG12: 4629.728575 | BH12: 4933.234916 | BI12: 5239.29386 | BJ12: 5547.345232 | BK12: 5857.081052 | BL12: 6168.461173 | BM12: 6481.719245 | BN12: 6797.358997 | BO12: 7116.140905 | BP12: 7439.059591 | BQ12: 7767.312641 | BR12: 8102.261884 | BS12: =SUM(IF($A$21:$A$205=$A12,CN$21:CN$205))/('Age profile summary'!$H12*1000+0.000001) -> 21.27612095 | BT12: =SUM(IF($A$21:$A$205=$A12,CO$21:CO$205))/('Age profile summary'!$H12*1000+0.000001) -> 22.1027967 | BU12: =SUM(IF($A$21:$A$205=$A12,CP$21:CP$205))/('Age profile summary'!$H12*1000+0.000001) -> 22.92133258 | BV12: =SUM(IF($A$21:$A$205=$A12,CQ$21:CQ$205))/('Age profile summary'!$H12*1000+0.000001) -> 23.73039135 | BW12: =SUM(IF($A$21:$A$205=$A12,CR$21:CR$205))/('Age profile summary'!$H12*1000+0.000001) -> 24.52906102 | BX12: =SUM(IF($A$21:$A$205=$A12,CS$21:CS$205))/('Age profile summary'!$H12*1000+0.000001) -> 25.31669852 | BY12: =SUM(IF($A$21:$A$205=$A12,CT$21:CT$205))/('Age profile summary'!$H12*1000+0.000001) -> 26.09283777 | BZ12: =SUM(IF($A$21:$A$205=$A12,CU$21:CU$205))/('Age profile summary'!$H12*1000+0.000001) -> 26.85713626 | CA12: =SUM(IF($A$21:$A$205=$A12,CV$21:CV$205))/('Age profile summary'!$H12*1000+0.000001) -> 27.60934361 | CB12: =SUM(IF($A$21:$A$205=$A12,CW$21:CW$205))/('Age profile summary'!$H12*1000+0.000001) -> 28.34928124 | CC12: =SUM(IF($A$21:$A$205=$A12,CX$21:CX$205))/('Age profile summary'!$H12*1000+0.000001) -> 29.07682687 | CD12: =SUM(IF($A$21:$A$205=$A12,CY$21:CY$205))/('Age profile summary'!$H12*1000+0.000001) -> 29.79189965 | CE12: =SUM(IF($A$21:$A$205=$A12,CZ$21:CZ$205))/('Age profile summary'!$H12*1000+0.000001) -> 30.49444441 | CF12: =SUM(IF($A$21:$A$205=$A12,DA$21:DA$205))/('Age profile summary'!$H12*1000+0.000001) -> 31.18441435 | CG12: =SUM(IF($A$21:$A$205=$A12,DB$21:DB$205))/('Age profile summary'!$H12*1000+0.000001) -> 31.86175267 | CH12: =SUM(IF($A$21:$A$205=$A12,DC$21:DC$205))/('Age profile summary'!$H12*1000+0.000001) -> 32.5263743 | CI12: =SUM(IF($A$21:$A$205=$A12,DD$21:DD$205))/('Age profile summary'!$H12*1000+0.000001) -> 33.17814923 | CJ12: =SUM(IF($A$21:$A$205=$A12,DE$21:DE$205))/('Age profile summary'!$H12*1000+0.000001) -> 33.81688883 | CK12: =SUM(IF($A$21:$A$205=$A12,DF$21:DF$205))/('Age profile summary'!$H12*1000+0.000001) -> 34.44233652 | CL12: =SUM(IF($A$21:$A$205=$A12,DG$21:DG$205))/('Age profile summary'!$H12*1000+0.000001) -> 35.05416336 | CM12: =SUM(IF($A$21:$A$205=$A12,DH$21:DH$205))/('Age profile summary'!$H12*1000+0.000001) -> 35.65196873 | CN12: ='Age profile summary'!$O12-'RRR hist-forc'!BS12 -> 38.45682681 | CO12: ='Age profile summary'!$O12-'RRR hist-forc'!BT12 -> 37.63015105 | CP12: ='Age profile summary'!$O12-'RRR hist-forc'!BU12 -> 36.81161518 | CQ12: ='Age profile summary'!$O12-'RRR hist-forc'!BV12 -> 36.00255641 | CR12: ='Age profile summary'!$O12-'RRR hist-forc'!BW12 -> 35.20388674 | CS12: ='Age profile summary'!$O12-'RRR hist-forc'!BX12 -> 34.41624924 | CT12: ='Age profile summary'!$O12-'RRR hist-forc'!BY12 -> 33.64010999 | CU12: ='Age profile summary'!$O12-'RRR hist-forc'!BZ12 -> 32.8758115 | CV12: ='Age profile summary'!$O12-'RRR hist-forc'!CA12 -> 32.12360415 | CW12: ='Age profile summary'!$O12-'RRR hist-forc'!CB12 -> 31.38366652 | CX12: ='Age profile summary'!$O12-'RRR hist-forc'!CC12 -> 30.65612089 | CY12: ='Age profile summary'!$O12-'RRR hist-forc'!CD12 -> 29.94104811 | CZ12: ='Age profile summary'!$O12-'RRR hist-forc'!CE12 -> 29.23850335 | DA12: ='Age profile summary'!$O12-'RRR hist-forc'!CF12 -> 28.54853341 | DB12: ='Age profile summary'!$O12-'RRR hist-forc'!CG12 -> 27.87119509 | DC12: ='Age profile summary'!$O12-'RRR hist-forc'!CH12 -> 27.20657346 | DD12: ='Age profile summary'!$O12-'RRR hist-forc'!CI12 -> 26.55479853 | DE12: ='Age profile summary'!$O12-'RRR hist-forc'!CJ12 -> 25.91605893 | DF12: ='Age profile summary'!$O12-'RRR hist-forc'!CK12 -> 25.29061124 | DG12: ='Age profile summary'!$O12-'RRR hist-forc'!CL12 -> 24.6787844 | DH12: ='Age profile summary'!$O12-'RRR hist-forc'!CM12 -> 24.08097903 | DI12: 170.6253891 | DJ12: 190.9195329 | DK12: 212.6458137 | DL12: 235.8017827 | DM12: 260.3739952 | DN12: 286.3380999 | DO12: 313.6592086 | DP12: 342.2924896 | DQ12: 372.1839195 | DR12: 403.2711352 | DS12: 435.4843242 | DT12: 468.7470967 | DU12: 502.9772766 | DV12: 538.0875466 | DW12: 573.9858836 | DX12: 610.5757367 | DY12: 647.7559255 | DZ12: 685.4202855 | EA12: 723.4571418 | EB12: 761.7487476
A13: 8 | D13: unused | E13: unused | AN13: unused (mod) | AY13: 0 | AZ13: 0 | BA13: 0 | BB13: 0 | BC13: 0 | BD13: 0 | BE13: 0 | BF13: 0 | BG13: 0 | BH13: 0 | BI13: 0 | BJ13: 0 | BK13: 0 | BL13: 0 | BM13: 0 | BN13: 0 | BO13: 0 | BP13: 0 | BQ13: 0 | BR13: 0 | BS13: =SUM(IF($A$21:$A$205=$A13,CN$21:CN$205))/('Age profile summary'!$H13*1000+0.000001) -> 0 | BT13: =SUM(IF($A$21:$A$205=$A13,CO$21:CO$205))/('Age profile summary'!$H13*1000+0.000001) -> 0 | BU13: =SUM(IF($A$21:$A$205=$A13,CP$21:CP$205))/('Age profile summary'!$H13*1000+0.000001) -> 0 | BV13: =SUM(IF($A$21:$A$205=$A13,CQ$21:CQ$205))/('Age profile summary'!$H13*1000+0.000001) -> 0 | BW13: =SUM(IF($A$21:$A$205=$A13,CR$21:CR$205))/('Age profile summary'!$H13*1000+0.000001) -> 0 | BX13: =SUM(IF($A$21:$A$205=$A13,CS$21:CS$205))/('Age profile summary'!$H13*1000+0.000001) -> 0 | BY13: =SUM(IF($A$21:$A$205=$A13,CT$21:CT$205))/('Age profile summary'!$H13*1000+0.000001) -> 0 | BZ13: =SUM(IF($A$21:$A$205=$A13,CU$21:CU$205))/('Age profile summary'!$H13*1000+0.000001) -> 0 | CA13: =SUM(IF($A$21:$A$205=$A13,CV$21:CV$205))/('Age profile summary'!$H13*1000+0.000001) -> 0 | CB13: =SUM(IF($A$21:$A$205=$A13,CW$21:CW$205))/('Age profile summary'!$H13*1000+0.000001) -> 0 | CC13: =SUM(IF($A$21:$A$205=$A13,CX$21:CX$205))/('Age profile summary'!$H13*1000+0.000001) -> 0 | CD13: =SUM(IF($A$21:$A$205=$A13,CY$21:CY$205))/('Age profile summary'!$H13*1000+0.000001) -> 0 | CE13: =SUM(IF($A$21:$A$205=$A13,CZ$21:CZ$205))/('Age profile summary'!$H13*1000+0.000001) -> 0 | CF13: =SUM(IF($A$21:$A$205=$A13,DA$21:DA$205))/('Age profile summary'!$H13*1000+0.000001) -> 0 | CG13: =SUM(IF($A$21:$A$205=$A13,DB$21:DB$205))/('Age profile summary'!$H13*1000+0.000001) -> 0 | CH13: =SUM(IF($A$21:$A$205=$A13,DC$21:DC$205))/('Age profile summary'!$H13*1000+0.000001) -> 0 | CI13: =SUM(IF($A$21:$A$205=$A13,DD$21:DD$205))/('Age profile summary'!$H13*1000+0.000001) -> 0 | CJ13: =SUM(IF($A$21:$A$205=$A13,DE$21:DE$205))/('Age profile summary'!$H13*1000+0.000001) -> 0 | CK13: =SUM(IF($A$21:$A$205=$A13,DF$21:DF$205))/('Age profile summary'!$H13*1000+0.000001) -> 0 | CL13: =SUM(IF($A$21:$A$205=$A13,DG$21:DG$205))/('Age profile summary'!$H13*1000+0.000001) -> 0 | CM13: =SUM(IF($A$21:$A$205=$A13,DH$21:DH$205))/('Age profile summary'!$H13*1000+0.000001) -> 0 | CN13: ='Age profile summary'!$O13-'RRR hist-forc'!BS13 -> 0 | CO13: ='Age profile summary'!$O13-'RRR hist-forc'!BT13 -> 0 | CP13: ='Age profile summary'!$O13-'RRR hist-forc'!BU13 -> 0 | CQ13: ='Age profile summary'!$O13-'RRR hist-forc'!BV13 -> 0 | CR13: ='Age profile summary'!$O13-'RRR hist-forc'!BW13 -> 0 | CS13: ='Age profile summary'!$O13-'RRR hist-forc'!BX13 -> 0 | CT13: ='Age profile summary'!$O13-'RRR hist-forc'!BY13 -> 0 | CU13: ='Age profile summary'!$O13-'RRR hist-forc'!BZ13 -> 0 | CV13: ='Age profile summary'!$O13-'RRR hist-forc'!CA13 -> 0 | CW13: ='Age profile summary'!$O13-'RRR hist-forc'!CB13 -> 0 | CX13: ='Age profile summary'!$O13-'RRR hist-forc'!CC13 -> 0 | CY13: ='Age profile summary'!$O13-'RRR hist-forc'!CD13 -> 0 | CZ13: ='Age profile summary'!$O13-'RRR hist-forc'!CE13 -> 0 | DA13: ='Age profile summary'!$O13-'RRR hist-forc'!CF13 -> 0 | DB13: ='Age profile summary'!$O13-'RRR hist-forc'!CG13 -> 0 | DC13: ='Age profile summary'!$O13-'RRR hist-forc'!CH13 -> 0 | DD13: ='Age profile summary'!$O13-'RRR hist-forc'!CI13 -> 0 | DE13: ='Age profile summary'!$O13-'RRR hist-forc'!CJ13 -> 0 | DF13: ='Age profile summary'!$O13-'RRR hist-forc'!CK13 -> 0 | DG13: ='Age profile summary'!$O13-'RRR hist-forc'!CL13 -> 0 | DH13: ='Age profile summary'!$O13-'RRR hist-forc'!CM13 -> 0 | DI13: 0 | DJ13: 0 | DK13: 0 | DL13: 0 | DM13: 0 | DN13: 0 | DO13: 0 | DP13: 0 | DQ13: 0 | DR13: 0 | DS13: 0 | DT13: 0 | DU13: 0 | DV13: 0 | DW13: 0 | DX13: 0 | DY13: 0 | DZ13: 0 | EA13: 0 | EB13: 0
A14: 9 | D14: =VLOOKUP(A14,IDtable,2) -> unused | E14: =D14 -> unused | AN14: =D14 & " (mod)" -> unused (mod) | AY14: 0 | AZ14: 0 | BA14: 0 | BB14: 0 | BC14: 0 | BD14: 0 | BE14: 0 | BF14: 0 | BG14: 0 | BH14: 0 | BI14: 0 | BJ14: 0 | BK14: 0 | BL14: 0 | BM14: 0 | BN14: 0 | BO14: 0 | BP14: 0 | BQ14: 0 | BR14: 0 | BS14: =SUM(IF($A$21:$A$205=$A14,CN$21:CN$205))/('Age profile summary'!$H14*1000+0.000001) -> 0 | BT14: =SUM(IF($A$21:$A$205=$A14,CO$21:CO$205))/('Age profile summary'!$H14*1000+0.000001) -> 0 | BU14: =SUM(IF($A$21:$A$205=$A14,CP$21:CP$205))/('Age profile summary'!$H14*1000+0.000001) -> 0 | BV14: =SUM(IF($A$21:$A$205=$A14,CQ$21:CQ$205))/('Age profile summary'!$H14*1000+0.000001) -> 0 | BW14: =SUM(IF($A$21:$A$205=$A14,CR$21:CR$205))/('Age profile summary'!$H14*1000+0.000001) -> 0 | BX14: =SUM(IF($A$21:$A$205=$A14,CS$21:CS$205))/('Age profile summary'!$H14*1000+0.000001) -> 0 | BY14: =SUM(IF($A$21:$A$205=$A14,CT$21:CT$205))/('Age profile summary'!$H14*1000+0.000001) -> 0 | BZ14: =SUM(IF($A$21:$A$205=$A14,CU$21:CU$205))/('Age profile summary'!$H14*1000+0.000001) -> 0 | CA14: =SUM(IF($A$21:$A$205=$A14,CV$21:CV$205))/('Age profile summary'!$H14*1000+0.000001) -> 0 | CB14: =SUM(IF($A$21:$A$205=$A14,CW$21:CW$205))/('Age profile summary'!$H14*1000+0.000001) -> 0 | CC14: =SUM(IF($A$21:$A$205=$A14,CX$21:CX$205))/('Age profile summary'!$H14*1000+0.000001) -> 0 | CD14: =SUM(IF($A$21:$A$205=$A14,CY$21:CY$205))/('Age profile summary'!$H14*1000+0.000001) -> 0 | CE14: =SUM(IF($A$21:$A$205=$A14,CZ$21:CZ$205))/('Age profile summary'!$H14*1000+0.000001) -> 0 | CF14: =SUM(IF($A$21:$A$205=$A14,DA$21:DA$205))/('Age profile summary'!$H14*1000+0.000001) -> 0 | CG14: =SUM(IF($A$21:$A$205=$A14,DB$21:DB$205))/('Age profile summary'!$H14*1000+0.000001) -> 0 | CH14: =SUM(IF($A$21:$A$205=$A14,DC$21:DC$205))/('Age profile summary'!$H14*1000+0.000001) -> 0 | CI14: =SUM(IF($A$21:$A$205=$A14,DD$21:DD$205))/('Age profile summary'!$H14*1000+0.000001) -> 0 | CJ14: =SUM(IF($A$21:$A$205=$A14,DE$21:DE$205))/('Age profile summary'!$H14*1000+0.000001) -> 0 | CK14: =SUM(IF($A$21:$A$205=$A14,DF$21:DF$205))/('Age profile summary'!$H14*1000+0.000001) -> 0 | CL14: =SUM(IF($A$21:$A$205=$A14,DG$21:DG$205))/('Age profile summary'!$H14*1000+0.000001) -> 0 | CM14: =SUM(IF($A$21:$A$205=$A14,DH$21:DH$205))/('Age profile summary'!$H14*1000+0.000001) -> 0 | CN14: ='Age profile summary'!$O14-'RRR hist-forc'!BS14 -> 0 | CO14: ='Age profile summary'!$O14-'RRR hist-forc'!BT14 -> 0 | CP14: ='Age profile summary'!$O14-'RRR hist-forc'!BU14 -> 0 | CQ14: ='Age profile summary'!$O14-'RRR hist-forc'!BV14 -> 0 | CR14: ='Age profile summary'!$O14-'RRR hist-forc'!BW14 -> 0 | CS14: ='Age profile summary'!$O14-'RRR hist-forc'!BX14 -> 0 | CT14: ='Age profile summary'!$O14-'RRR hist-forc'!BY14 -> 0 | CU14: ='Age profile summary'!$O14-'RRR hist-forc'!BZ14 -> 0 | CV14: ='Age profile summary'!$O14-'RRR hist-forc'!CA14 -> 0 | CW14: ='Age profile summary'!$O14-'RRR hist-forc'!CB14 -> 0 | CX14: ='Age profile summary'!$O14-'RRR hist-forc'!CC14 -> 0 | CY14: ='Age profile summary'!$O14-'RRR hist-forc'!CD14 -> 0 | CZ14: ='Age profile summary'!$O14-'RRR hist-forc'!CE14 -> 0 | DA14: ='Age profile summary'!$O14-'RRR hist-forc'!CF14 -> 0 | DB14: ='Age profile summary'!$O14-'RRR hist-forc'!CG14 -> 0 | DC14: ='Age profile summary'!$O14-'RRR hist-forc'!CH14 -> 0 | DD14: ='Age profile summary'!$O14-'RRR hist-forc'!CI14 -> 0 | DE14: ='Age profile summary'!$O14-'RRR hist-forc'!CJ14 -> 0 | DF14: ='Age profile summary'!$O14-'RRR hist-forc'!CK14 -> 0 | DG14: ='Age profile summary'!$O14-'RRR hist-forc'!CL14 -> 0 | DH14: ='Age profile summary'!$O14-'RRR hist-forc'!CM14 -> 0 | DI14: 0 | DJ14: 0 | DK14: 0 | DL14: 0 | DM14: 0 | DN14: 0 | DO14: 0 | DP14: 0 | DQ14: 0 | DR14: 0 | DS14: 0 | DT14: 0 | DU14: 0 | DV14: 0 | DW14: 0 | DX14: 0 | DY14: 0 | DZ14: 0 | EA14: 0 | EB14: 0
A15: 10 | D15: =VLOOKUP(A15,IDtable,2) -> unused | E15: =D15 -> unused | AN15: =D15 & " (mod)" -> unused (mod) | AY15: 0 | AZ15: 0 | BA15: 0 | BB15: 0 | BC15: 0 | BD15: 0 | BE15: 0 | BF15: 0 | BG15: 0 | BH15: 0 | BI15: 0 | BJ15: 0 | BK15: 0 | BL15: 0 | BM15: 0 | BN15: 0 | BO15: 0 | BP15: 0 | BQ15: 0 | BR15: 0 | BS15: =SUM(IF($A$21:$A$205=$A15,CN$21:CN$205))/('Age profile summary'!$H15*1000+0.000001) -> 0 | BT15: =SUM(IF($A$21:$A$205=$A15,CO$21:CO$205))/('Age profile summary'!$H15*1000+0.000001) -> 0 | BU15: =SUM(IF($A$21:$A$205=$A15,CP$21:CP$205))/('Age profile summary'!$H15*1000+0.000001) -> 0 | BV15: =SUM(IF($A$21:$A$205=$A15,CQ$21:CQ$205))/('Age profile summary'!$H15*1000+0.000001) -> 0 | BW15: =SUM(IF($A$21:$A$205=$A15,CR$21:CR$205))/('Age profile summary'!$H15*1000+0.000001) -> 0 | BX15: =SUM(IF($A$21:$A$205=$A15,CS$21:CS$205))/('Age profile summary'!$H15*1000+0.000001) -> 0 | BY15: =SUM(IF($A$21:$A$205=$A15,CT$21:CT$205))/('Age profile summary'!$H15*1000+0.000001) -> 0 | BZ15: =SUM(IF($A$21:$A$205=$A15,CU$21:CU$205))/('Age profile summary'!$H15*1000+0.000001) -> 0 | CA15: =SUM(IF($A$21:$A$205=$A15,CV$21:CV$205))/('Age profile summary'!$H15*1000+0.000001) -> 0 | CB15: =SUM(IF($A$21:$A$205=$A15,CW$21:CW$205))/('Age profile summary'!$H15*1000+0.000001) -> 0 | CC15: =SUM(IF($A$21:$A$205=$A15,CX$21:CX$205))/('Age profile summary'!$H15*1000+0.000001) -> 0 | CD15: =SUM(IF($A$21:$A$205=$A15,CY$21:CY$205))/('Age profile summary'!$H15*1000+0.000001) -> 0 | CE15: =SUM(IF($A$21:$A$205=$A15,CZ$21:CZ$205))/('Age profile summary'!$H15*1000+0.000001) -> 0 | CF15: =SUM(IF($A$21:$A$205=$A15,DA$21:DA$205))/('Age profile summary'!$H15*1000+0.000001) -> 0 | CG15: =SUM(IF($A$21:$A$205=$A15,DB$21:DB$205))/('Age profile summary'!$H15*1000+0.000001) -> 0 | CH15: =SUM(IF($A$21:$A$205=$A15,DC$21:DC$205))/('Age profile summary'!$H15*1000+0.000001) -> 0 | CI15: =SUM(IF($A$21:$A$205=$A15,DD$21:DD$205))/('Age profile summary'!$H15*1000+0.000001) -> 0 | CJ15: =SUM(IF($A$21:$A$205=$A15,DE$21:DE$205))/('Age profile summary'!$H15*1000+0.000001) -> 0 | CK15: =SUM(IF($A$21:$A$205=$A15,DF$21:DF$205))/('Age profile summary'!$H15*1000+0.000001) -> 0 | CL15: =SUM(IF($A$21:$A$205=$A15,DG$21:DG$205))/('Age profile summary'!$H15*1000+0.000001) -> 0 | CM15: =SUM(IF($A$21:$A$205=$A15,DH$21:DH$205))/('Age profile summary'!$H15*1000+0.000001) -> 0 | CN15: ='Age profile summary'!$O15-'RRR hist-forc'!BS15 -> 0 | CO15: ='Age profile summary'!$O15-'RRR hist-forc'!BT15 -> 0 | CP15: ='Age profile summary'!$O15-'RRR hist-forc'!BU15 -> 0 | CQ15: ='Age profile summary'!$O15-'RRR hist-forc'!BV15 -> 0 | CR15: ='Age profile summary'!$O15-'RRR hist-forc'!BW15 -> 0 | CS15: ='Age profile summary'!$O15-'RRR hist-forc'!BX15 -> 0 | CT15: ='Age profile summary'!$O15-'RRR hist-forc'!BY15 -> 0 | CU15: ='Age profile summary'!$O15-'RRR hist-forc'!BZ15 -> 0 | CV15: ='Age profile summary'!$O15-'RRR hist-forc'!CA15 -> 0 | CW15: ='Age profile summary'!$O15-'RRR hist-forc'!CB15 -> 0 | CX15: ='Age profile summary'!$O15-'RRR hist-forc'!CC15 -> 0 | CY15: ='Age profile summary'!$O15-'RRR hist-forc'!CD15 -> 0 | CZ15: ='Age profile summary'!$O15-'RRR hist-forc'!CE15 -> 0 | DA15: ='Age profile summary'!$O15-'RRR hist-forc'!CF15 -> 0 | DB15: ='Age profile summary'!$O15-'RRR hist-forc'!CG15 -> 0 | DC15: ='Age profile summary'!$O15-'RRR hist-forc'!CH15 -> 0 | DD15: ='Age profile summary'!$O15-'RRR hist-forc'!CI15 -> 0 | DE15: ='Age profile summary'!$O15-'RRR hist-forc'!CJ15 -> 0 | DF15: ='Age profile summary'!$O15-'RRR hist-forc'!CK15 -> 0 | DG15: ='Age profile summary'!$O15-'RRR hist-forc'!CL15 -> 0 | DH15: ='Age profile summary'!$O15-'RRR hist-forc'!CM15 -> 0 | DI15: 0 | DJ15: 0 | DK15: 0 | DL15: 0 | DM15: 0 | DN15: 0 | DO15: 0 | DP15: 0 | DQ15: 0 | DR15: 0 | DS15: 0 | DT15: 0 | DU15: 0 | DV15: 0 | DW15: 0 | DX15: 0 | DY15: 0 | DZ15: 0 | EA15: 0 | EB15: 0
A16: 11 | D16: =VLOOKUP(A16,IDtable,2) -> unused | E16: =D16 -> unused | AN16: =D16 & " (mod)" -> unused (mod) | AY16: 0 | AZ16: 0 | BA16: 0 | BB16: 0 | BC16: 0 | BD16: 0 | BE16: 0 | BF16: 0 | BG16: 0 | BH16: 0 | BI16: 0 | BJ16: 0 | BK16: 0 | BL16: 0 | BM16: 0 | BN16: 0 | BO16: 0 | BP16: 0 | BQ16: 0 | BR16: 0 | BS16: =SUM(IF($A$21:$A$205=$A16,CN$21:CN$205))/('Age profile summary'!$H16*1000+0.000001) -> 0 | BT16: =SUM(IF($A$21:$A$205=$A16,CO$21:CO$205))/('Age profile summary'!$H16*1000+0.000001) -> 0 | BU16: =SUM(IF($A$21:$A$205=$A16,CP$21:CP$205))/('Age profile summary'!$H16*1000+0.000001) -> 0 | BV16: =SUM(IF($A$21:$A$205=$A16,CQ$21:CQ$205))/('Age profile summary'!$H16*1000+0.000001) -> 0 | BW16: =SUM(IF($A$21:$A$205=$A16,CR$21:CR$205))/('Age profile summary'!$H16*1000+0.000001) -> 0 | BX16: =SUM(IF($A$21:$A$205=$A16,CS$21:CS$205))/('Age profile summary'!$H16*1000+0.000001) -> 0 | BY16: =SUM(IF($A$21:$A$205=$A16,CT$21:CT$205))/('Age profile summary'!$H16*1000+0.000001) -> 0 | BZ16: =SUM(IF($A$21:$A$205=$A16,CU$21:CU$205))/('Age profile summary'!$H16*1000+0.000001) -> 0 | CA16: =SUM(IF($A$21:$A$205=$A16,CV$21:CV$205))/('Age profile summary'!$H16*1000+0.000001) -> 0 | CB16: =SUM(IF($A$21:$A$205=$A16,CW$21:CW$205))/('Age profile summary'!$H16*1000+0.000001) -> 0 | CC16: =SUM(IF($A$21:$A$205=$A16,CX$21:CX$205))/('Age profile summary'!$H16*1000+0.000001) -> 0 | CD16: =SUM(IF($A$21:$A$205=$A16,CY$21:CY$205))/('Age profile summary'!$H16*1000+0.000001) -> 0 | CE16: =SUM(IF($A$21:$A$205=$A16,CZ$21:CZ$205))/('Age profile summary'!$H16*1000+0.000001) -> 0 | CF16: =SUM(IF($A$21:$A$205=$A16,DA$21:DA$205))/('Age profile summary'!$H16*1000+0.000001) -> 0 | CG16: =SUM(IF($A$21:$A$205=$A16,DB$21:DB$205))/('Age profile summary'!$H16*1000+0.000001) -> 0 | CH16: =SUM(IF($A$21:$A$205=$A16,DC$21:DC$205))/('Age profile summary'!$H16*1000+0.000001) -> 0 | CI16: =SUM(IF($A$21:$A$205=$A16,DD$21:DD$205))/('Age profile summary'!$H16*1000+0.000001) -> 0 | CJ16: =SUM(IF($A$21:$A$205=$A16,DE$21:DE$205))/('Age profile summary'!$H16*1000+0.000001) -> 0 | CK16: =SUM(IF($A$21:$A$205=$A16,DF$21:DF$205))/('Age profile summary'!$H16*1000+0.000001) -> 0 | CL16: =SUM(IF($A$21:$A$205=$A16,DG$21:DG$205))/('Age profile summary'!$H16*1000+0.000001) -> 0 | CM16: =SUM(IF($A$21:$A$205=$A16,DH$21:DH$205))/('Age profile summary'!$H16*1000+0.000001) -> 0 | CN16: ='Age profile summary'!$O16-'RRR hist-forc'!BS16 -> 0 | CO16: ='Age profile summary'!$O16-'RRR hist-forc'!BT16 -> 0 | CP16: ='Age profile summary'!$O16-'RRR hist-forc'!BU16 -> 0 | CQ16: ='Age profile summary'!$O16-'RRR hist-forc'!BV16 -> 0 | CR16: ='Age profile summary'!$O16-'RRR hist-forc'!BW16 -> 0 | CS16: ='Age profile summary'!$O16-'RRR hist-forc'!BX16 -> 0 | CT16: ='Age profile summary'!$O16-'RRR hist-forc'!BY16 -> 0 | CU16: ='Age profile summary'!$O16-'RRR hist-forc'!BZ16 -> 0 | CV16: ='Age profile summary'!$O16-'RRR hist-forc'!CA16 -> 0 | CW16: ='Age profile summary'!$O16-'RRR hist-forc'!CB16 -> 0 | CX16: ='Age profile summary'!$O16-'RRR hist-forc'!CC16 -> 0 | CY16: ='Age profile summary'!$O16-'RRR hist-forc'!CD16 -> 0 | CZ16: ='Age profile summary'!$O16-'RRR hist-forc'!CE16 -> 0 | DA16: ='Age profile summary'!$O16-'RRR hist-forc'!CF16 -> 0 | DB16: ='Age profile summary'!$O16-'RRR hist-forc'!CG16 -> 0 | DC16: ='Age profile summary'!$O16-'RRR hist-forc'!CH16 -> 0 | DD16: ='Age profile summary'!$O16-'RRR hist-forc'!CI16 -> 0 | DE16: ='Age profile summary'!$O16-'RRR hist-forc'!CJ16 -> 0 | DF16: ='Age profile summary'!$O16-'RRR hist-forc'!CK16 -> 0 | DG16: ='Age profile summary'!$O16-'RRR hist-forc'!CL16 -> 0 | DH16: ='Age profile summary'!$O16-'RRR hist-forc'!CM16 -> 0 | DI16: 0 | DJ16: 0 | DK16: 0 | DL16: 0 | DM16: 0 | DN16: 0 | DO16: 0 | DP16: 0 | DQ16: 0 | DR16: 0 | DS16: 0 | DT16: 0 | DU16: 0 | DV16: 0 | DW16: 0 | DX16: 0 | DY16: 0 | DZ16: 0 | EA16: 0 | EB16: 0
A17: 12 | D17: =VLOOKUP(A17,IDtable,2) -> unused | E17: =D17 -> unused | AN17: =D17 & " (mod)" -> unused (mod) | AY17: 0 | AZ17: 0 | BA17: 0 | BB17: 0 | BC17: 0 | BD17: 0 | BE17: 0 | BF17: 0 | BG17: 0 | BH17: 0 | BI17: 0 | BJ17: 0 | BK17: 0 | BL17: 0 | BM17: 0 | BN17: 0 | BO17: 0 | BP17: 0 | BQ17: 0 | BR17: 0 | BS17: =SUM(IF($A$21:$A$205=$A17,CN$21:CN$205))/('Age profile summary'!$H17*1000+0.000001) -> 0 | BT17: =SUM(IF($A$21:$A$205=$A17,CO$21:CO$205))/('Age profile summary'!$H17*1000+0.000001) -> 0 | BU17: =SUM(IF($A$21:$A$205=$A17,CP$21:CP$205))/('Age profile summary'!$H17*1000+0.000001) -> 0 | BV17: =SUM(IF($A$21:$A$205=$A17,CQ$21:CQ$205))/('Age profile summary'!$H17*1000+0.000001) -> 0 | BW17: =SUM(IF($A$21:$A$205=$A17,CR$21:CR$205))/('Age profile summary'!$H17*1000+0.000001) -> 0 | BX17: =SUM(IF($A$21:$A$205=$A17,CS$21:CS$205))/('Age profile summary'!$H17*1000+0.000001) -> 0 | BY17: =SUM(IF($A$21:$A$205=$A17,CT$21:CT$205))/('Age profile summary'!$H17*1000+0.000001) -> 0 | BZ17: =SUM(IF($A$21:$A$205=$A17,CU$21:CU$205))/('Age profile summary'!$H17*1000+0.000001) -> 0 | CA17: =SUM(IF($A$21:$A$205=$A17,CV$21:CV$205))/('Age profile summary'!$H17*1000+0.000001) -> 0 | CB17: =SUM(IF($A$21:$A$205=$A17,CW$21:CW$205))/('Age profile summary'!$H17*1000+0.000001) -> 0 | CC17: =SUM(IF($A$21:$A$205=$A17,CX$21:CX$205))/('Age profile summary'!$H17*1000+0.000001) -> 0 | CD17: =SUM(IF($A$21:$A$205=$A17,CY$21:CY$205))/('Age profile summary'!$H17*1000+0.000001) -> 0 | CE17: =SUM(IF($A$21:$A$205=$A17,CZ$21:CZ$205))/('Age profile summary'!$H17*1000+0.000001) -> 0 | CF17: =SUM(IF($A$21:$A$205=$A17,DA$21:DA$205))/('Age profile summary'!$H17*1000+0.000001) -> 0 | CG17: =SUM(IF($A$21:$A$205=$A17,DB$21:DB$205))/('Age profile summary'!$H17*1000+0.000001) -> 0 | CH17: =SUM(IF($A$21:$A$205=$A17,DC$21:DC$205))/('Age profile summary'!$H17*1000+0.000001) -> 0 | CI17: =SUM(IF($A$21:$A$205=$A17,DD$21:DD$205))/('Age profile summary'!$H17*1000+0.000001) -> 0 | CJ17: =SUM(IF($A$21:$A$205=$A17,DE$21:DE$205))/('Age profile summary'!$H17*1000+0.000001) -> 0 | CK17: =SUM(IF($A$21:$A$205=$A17,DF$21:DF$205))/('Age profile summary'!$H17*1000+0.000001) -> 0 | CL17: =SUM(IF($A$21:$A$205=$A17,DG$21:DG$205))/('Age profile summary'!$H17*1000+0.000001) -> 0 | CM17: =SUM(IF($A$21:$A$205=$A17,DH$21:DH$205))/('Age profile summary'!$H17*1000+0.000001) -> 0 | CN17: ='Age profile summary'!$O17-'RRR hist-forc'!BS17 -> 0 | CO17: ='Age profile summary'!$O17-'RRR hist-forc'!BT17 -> 0 | CP17: ='Age profile summary'!$O17-'RRR hist-forc'!BU17 -> 0 | CQ17: ='Age profile summary'!$O17-'RRR hist-forc'!BV17 -> 0 | CR17: ='Age profile summary'!$O17-'RRR hist-forc'!BW17 -> 0 | CS17: ='Age profile summary'!$O17-'RRR hist-forc'!BX17 -> 0 | CT17: ='Age profile summary'!$O17-'RRR hist-forc'!BY17 -> 0 | CU17: ='Age profile summary'!$O17-'RRR hist-forc'!BZ17 -> 0 | CV17: ='Age profile summary'!$O17-'RRR hist-forc'!CA17 -> 0 | CW17: ='Age profile summary'!$O17-'RRR hist-forc'!CB17 -> 0 | CX17: ='Age profile summary'!$O17-'RRR hist-forc'!CC17 -> 0 | CY17: ='Age profile summary'!$O17-'RRR hist-forc'!CD17 -> 0 | CZ17: ='Age profile summary'!$O17-'RRR hist-forc'!CE17 -> 0 | DA17: ='Age profile summary'!$O17-'RRR hist-forc'!CF17 -> 0 | DB17: ='Age profile summary'!$O17-'RRR hist-forc'!CG17 -> 0 | DC17: ='Age profile summary'!$O17-'RRR hist-forc'!CH17 -> 0 | DD17: ='Age profile summary'!$O17-'RRR hist-forc'!CI17 -> 0 | DE17: ='Age profile summary'!$O17-'RRR hist-forc'!CJ17 -> 0 | DF17: ='Age profile summary'!$O17-'RRR hist-forc'!CK17 -> 0 | DG17: ='Age profile summary'!$O17-'RRR hist-forc'!CL17 -> 0 | DH17: ='Age profile summary'!$O17-'RRR hist-forc'!CM17 -> 0 | DI17: 0 | DJ17: 0 | DK17: 0 | DL17: 0 | DM17: 0 | DN17: 0 | DO17: 0 | DP17: 0 | DQ17: 0 | DR17: 0 | DS17: 0 | DT17: 0 | DU17: 0 | DV17: 0 | DW17: 0 | DX17: 0 | DY17: 0 | DZ17: 0 | EA17: 0 | EB17: 0
D18: Total | G18: =SUM(G6:G14) -> 0 | H18: =SUM(H6:H14) -> 0 | I18: 0 | J18: 0 | K18: 0 | L18: 0 | M18: 0 | N18: 0 | O18: 0 | P18: 0 | Q18: 0 | R18: 0 | S18: 0 | T18: 0 | U18: 0 | V18: 0 | W18: 0 | X18: 0 | Y18: 0 | Z18: 0 | AA18: 0 | AB18: 0 | AC18: 0 | AD18: 0 | AE18: 0 | AF18: 0 | AG18: 0 | AH18: 0 | AI18: 0 | AJ18: 0 | AN18: Total (mod) | AO18: 0 | AP18: 0 | AQ18: 0 | AR18: 0 | AS18: 0 | AT18: 0 | AU18: 0 | AV18: 0 | AW18: 0 | AX18: 0 | AY18: =SUM(AY6:AY17) -> 29504.25094 | AZ18: 31139.45906 | BA18: 32917.9166 | BB18: 34828.42171 | BC18: 36861.43792 | BD18: 39010.30803 | BE18: 41271.16868 | BF18: 43641.62558 | BG18: 46118.49798 | BH18: 48695.13904 | BI18: 51358.9515 | BJ18: 54089.71276 | BK18: 56859.18213 | BL18: 59632.20146 | BM18: 62369.17585 | BN18: 65029.52516 | BO18: 67575.51921 | BP18: 69975.89759 | BQ18: 72208.81055 | BR18: 74263.82027 | BS18: =SUM(CN21:CN205)/('Age profile summary'!$H$18*1000) -> 25.19973536 | BT18: =SUM(CO21:CO205)/('Age profile summary'!$H$18*1000) -> 25.90587002 | BU18: =SUM(CP21:CP205)/('Age profile summary'!$H$18*1000) -> 26.62413425 | BV18: =SUM(CQ21:CQ205)/('Age profile summary'!$H$18*1000) -> 27.34465141 | BW18: =SUM(CR21:CR205)/('Age profile summary'!$H$18*1000) -> 28.0615918 | BX18: =SUM(CS21:CS205)/('Age profile summary'!$H$18*1000) -> 28.7711424 | BY18: =SUM(CT21:CT205)/('Age profile summary'!$H$18*1000) -> 29.47063319 | BZ18: =SUM(CU21:CU205)/('Age profile summary'!$H$18*1000) -> 30.15811094 | CA18: =SUM(CV21:CV205)/('Age profile summary'!$H$18*1000) -> 30.8321112 | CB18: =SUM(CW21:CW205)/('Age profile summary'!$H$18*1000) -> 31.49153172 | CC18: =SUM(CX21:CX205)/('Age profile summary'!$H$18*1000) -> 32.13556605 | CD18: =SUM(CY21:CY205)/('Age profile summary'!$H$18*1000) -> 32.7636752 | CE18: =SUM(CZ21:CZ205)/('Age profile summary'!$H$18*1000) -> 33.37557999 | CF18: =SUM(DA21:DA205)/('Age profile summary'!$H$18*1000) -> 33.97125713 | CG18: =SUM(DB21:DB205)/('Age profile summary'!$H$18*1000) -> 34.55092662 | CH18: =SUM(DC21:DC205)/('Age profile summary'!$H$18*1000) -> 35.11502631 | CI18: =SUM(DD21:DD205)/('Age profile summary'!$H$18*1000) -> 35.66417892 | CJ18: =SUM(DE21:DE205)/('Age profile summary'!$H$18*1000) -> 36.19916048 | CK18: =SUM(DF21:DF205)/('Age profile summary'!$H$18*1000) -> 36.72087586 | CL18: =SUM(DG21:DG205)/('Age profile summary'!$H$18*1000) -> 37.23033845 | CM18: =SUM(DH21:DH205)/('Age profile summary'!$H$18*1000) -> 37.72864469 | CN18: ='Age profile summary'!$O$18-'RRR hist-forc'!BS18 -> 35.82039977 | CO18: ='Age profile summary'!$O$18-'RRR hist-forc'!BT18 -> 35.1142651 | CP18: ='Age profile summary'!$O$18-'RRR hist-forc'!BU18 -> 34.39600087 | CQ18: ='Age profile summary'!$O$18-'RRR hist-forc'!BV18 -> 33.67548372 | CR18: ='Age profile summary'!$O$18-'RRR hist-forc'!BW18 -> 32.95854332 | CS18: ='Age profile summary'!$O$18-'RRR hist-forc'!BX18 -> 32.24899272 | CT18: ='Age profile summary'!$O$18-'RRR hist-forc'!BY18 -> 31.54950193 | CU18: ='Age profile summary'!$O$18-'RRR hist-forc'!BZ18 -> 30.86202419 | CV18: ='Age profile summary'!$O$18-'RRR hist-forc'!CA18 -> 30.18802393 | CW18: ='Age profile summary'!$O$18-'RRR hist-forc'!CB18 -> 29.5286034 | CX18: ='Age profile summary'!$O$18-'RRR hist-forc'!CC18 -> 28.88456908 | CY18: ='Age profile summary'!$O$18-'RRR hist-forc'!CD18 -> 28.25645993 | CZ18: ='Age profile summary'!$O$18-'RRR hist-forc'!CE18 -> 27.64455514 | DA18: ='Age profile summary'!$O$18-'RRR hist-forc'!CF18 -> 27.04887799 | DB18: ='Age profile summary'!$O$18-'RRR hist-forc'!CG18 -> 26.4692085 | DC18: ='Age profile summary'!$O$18-'RRR hist-forc'!CH18 -> 25.90510881 | DD18: ='Age profile summary'!$O$18-'RRR hist-forc'!CI18 -> 25.35595621 | DE18: ='Age profile summary'!$O$18-'RRR hist-forc'!CJ18 -> 24.82097464 | DF18: ='Age profile summary'!$O$18-'RRR hist-forc'!CK18 -> 24.29925927 | DG18: ='Age profile summary'!$O$18-'RRR hist-forc'!CL18 -> 23.78979668 | DH18: ='Age profile summary'!$O$18-'RRR hist-forc'!CM18 -> 23.29149043 | DI18: =SUM(DI6:DI17) -> 3727.409104 | DJ18: 4041.204161 | DK18: 4372.167231 | DL18: 4716.813113 | DM18: 5071.544252 | DN18: 5432.840173 | DO18: 5797.350331 | DP18: 6161.889806 | DQ18: 6523.358315 | DR18: 6878.620136 | DS18: 7224.392746 | DT18: 7557.192109 | DU18: 7873.370866 | DV18: 8169.263432 | DW18: 8441.424321 | DX18: 8686.921297 | DY18: 8903.631279 | DZ18: 9090.488529 | EA18: 9247.649414 | EB18: 9376.558271
D19: % | G19: RRR model | L19: recursive | M19: 1st year | AY19: =AY18/('Age profile summary'!$H$18*1000) -> 0.00621866556 | AZ19: =AZ18/('Age profile summary'!$H$18*1000) -> 0.0065633214 | BA19: =BA18/('Age profile summary'!$H$18*1000) -> 0.006938170187 | BB19: =BB18/('Age profile summary'!$H$18*1000) -> 0.007340850883 | BC19: =BC18/('Age profile summary'!$H$18*1000) -> 0.007769353471 | BD19: =BD18/('Age profile summary'!$H$18*1000) -> 0.008222274801 | BE19: =BE18/('Age profile summary'!$H$18*1000) -> 0.008698800583 | BF19: =BF18/('Age profile summary'!$H$18*1000) -> 0.009198426169 | BG19: =BG18/('Age profile summary'!$H$18*1000) -> 0.009720481148 | BH19: =BH18/('Age profile summary'!$H$18*1000) -> 0.01026356455 | BI19: =BI18/('Age profile summary'!$H$18*1000) -> 0.01082502123 | BJ19: =BJ18/('Age profile summary'!$H$18*1000) -> 0.01140058884 | BK19: =BK18/('Age profile summary'!$H$18*1000) -> 0.01198431502 | BL19: =BL18/('Age profile summary'!$H$18*1000) -> 0.01256878943 | BM19: =BM18/('Age profile summary'!$H$18*1000) -> 0.01314566659 | BN19: =BN18/('Age profile summary'!$H$18*1000) -> 0.01370639334 | BO19: =BO18/('Age profile summary'!$H$18*1000) -> 0.01424301721 | BP19: =BP18/('Age profile summary'!$H$18*1000) -> 0.0147489494 | BQ19: =BQ18/('Age profile summary'!$H$18*1000) -> 0.0152195846 | BR19: =BR18/('Age profile summary'!$H$18*1000) -> 0.0156527228 | BS19: =BS18/'Age profile summary'!$O$18 -> 0.4129740995 | BT19: =BT18/'Age profile summary'!$O$18 -> 0.4245462578 | BU19: =BU18/'Age profile summary'!$O$18 -> 0.4363171959 | BV19: =BV18/'Age profile summary'!$O$18 -> 0.448125055 | BW19: =BW18/'Age profile summary'!$O$18 -> 0.459874298 | BX19: =BX18/'Age profile summary'!$O$18 -> 0.4715024367 | BY19: =BY18/'Age profile summary'!$O$18 -> 0.482965715 | BZ19: =BZ18/'Age profile summary'!$O$18 -> 0.4942321231 | CA19: =CA18/'Age profile summary'!$O$18 -> 0.5052776618 | CB19: =CB18/'Age profile summary'!$O$18 -> 0.5160842673 | CC19: =CC18/'Age profile summary'!$O$18 -> 0.5266387231 | CD19: =CD18/'Age profile summary'!$O$18 -> 0.5369321967 | CE19: =CE18/'Age profile summary'!$O$18 -> 0.5469601128 | CF19: =CF18/'Age profile summary'!$O$18 -> 0.5567220896 | CG19: =CG18/'Age profile summary'!$O$18 -> 0.5662217324 | CH19: =CH18/'Age profile summary'!$O$18 -> 0.5754662168 | CI19: =CI18/'Age profile summary'!$O$18 -> 0.584465748 | CJ19: =CJ18/'Age profile summary'!$O$18 -> 0.5932330436 | CK19: =CK18/'Age profile summary'!$O$18 -> 0.6017829325 | CL19: =CL18/'Age profile summary'!$O$18 -> 0.6101320224 | CM19: =CM18/'Age profile summary'!$O$18 -> 0.6182982817 | CN19: =CN18/'Age profile summary'!$O$18 -> 0.5870259005 | CO19: =CO18/'Age profile summary'!$O$18 -> 0.5754537422 | CP19: =CP18/'Age profile summary'!$O$18 -> 0.5636828041 | CQ19: =CQ18/'Age profile summary'!$O$18 -> 0.551874945 | CR19: =CR18/'Age profile summary'!$O$18 -> 0.540125702 | CS19: =CS18/'Age profile summary'!$O$18 -> 0.5284975633 | CT19: =CT18/'Age profile summary'!$O$18 -> 0.517034285 | CU19: =CU18/'Age profile summary'!$O$18 -> 0.5057678769 | CV19: =CV18/'Age profile summary'!$O$18 -> 0.4947223382 | CW19: =CW18/'Age profile summary'!$O$18 -> 0.4839157327 | CX19: =CX18/'Age profile summary'!$O$18 -> 0.4733612769 | CY19: =CY18/'Age profile summary'!$O$18 -> 0.4630678033 | CZ19: =CZ18/'Age profile summary'!$O$18 -> 0.4530398872 | DA19: =DA18/'Age profile summary'!$O$18 -> 0.4432779104 | DB19: =DB18/'Age profile summary'!$O$18 -> 0.4337782676 | DC19: =DC18/'Age profile summary'!$O$18 -> 0.4245337832 | DD19: =DD18/'Age profile summary'!$O$18 -> 0.415534252 | DE19: =DE18/'Age profile summary'!$O$18 -> 0.4067669564 | DF19: =DF18/'Age profile summary'!$O$18 -> 0.3982170675 | DG19: =DG18/'Age profile summary'!$O$18 -> 0.3898679776 | DH19: =DH18/'Age profile summary'!$O$18 -> 0.3817017183
D20: asset categories | F20: Std life | G20: Rep life | H20: SD | I20: Life (S/R) | J20: Meth (D/P) | K20: M life | L20: =IF(Tables!B18=1,TRUE,FALSE) -> TRUE | M20: =IF(Tables!B19=1,TRUE,FALSE) -> TRUE | AY20: % of RC ↑ | AZ20: =AZ18/AY18 -> 1.055422797 | BA20: =BA18/AZ18 -> 1.057112667 | BB20: 1.058038457 | BC20: 1.058372332 | BD20: 1.058295884 | BE20: 1.057955468 | BF20: 1.057436147 | BS20: % of total life ↑ | CN20: % of total life ↑
A21: ='Asset data'!A21 -> 1 | B21: ='Asset data'!B21 -> 0 | C21: ='Asset data'!C21 -> 0 | D21: ='Asset data'!E21 -> Staking of a wooden pole | E21: =IF(A21>0,VLOOKUP(A21,IDtable,2),0) -> POLES STAKED | F21: ='Asset data'!G21 -> 25.36810933 | G21: =F21 -> 25.36810933 | H21: ='Asset data'!H21 -> 5.036676417 | I21: S | J21: =IF(A21=0,0,IF('Asset data'!$D$1=1,1,IF('Asset data'!$D$1=2,2,'Asset data'!I21))) -> 2 | K21: =IF(A21>0,IF(I21="S",F21,IF(I21="R",G21,9999)),0) -> 25.36810933 | AX21: ='Age profile summary'!H21 -> 307004.8564 | AY21: =repcalc('Age profile (Inst)'!CT21:GF21,J21,K21,H21,20,$L$20,$M$20) -> 5114.111176 | AZ21: 5861.245184 | BA21: 6588.260381 | BB21: 7281.074119 | BC21: 7933.0547 | BD21: 8545.56048 | BE21: 9127.016145 | BF21: 9690.626789 | BG21: 10251.08266 | BH21: 10820.81222 | BI21: 11406.46015 | BJ21: 12006.26488 | BK21: 12608.86641 | BL21: 13193.80459 | BM21: 13733.62819 | BN21: 14197.2188 | BO21: 14553.73316 | BP21: 14776.53319 | BQ21: 14846.58915 | BR21: 14755.03119 | BS21: 10.29423966 | BT21: 10.93391281 | BU21: 11.54813818 | BV21: 12.14186825 | BW21: 12.71912991 | BX21: 13.28280497 | BY21: 13.83452426 | BZ21: 14.37463191 | CA21: 14.90224972 | CB21: 15.41552101 | CC21: 15.91209939 | CD21: 16.38986671 | CE21: 16.84775478 | CF21: 17.28647199 | CG21: 17.70895818 | CH21: 18.12050676 | CI21: 18.52863235 | CJ21: 18.94282806 | CK21: 19.37430791 | CL21: 19.83570864 | CM21: 20.34062774 | CN21: =BS21*$AX21 -> 3160381.57 | CO21: 3356764.333 | CP21: 3545334.505 | CQ21: 3727612.518 | CR21: 3904834.653 | CS21: 4077885.634 | CT21: 4247266.134 | CU21: 4413081.805 | CV21: 4575063.035 | CW21: 4732639.815 | CX21: 4885091.788 | CY21: 5031768.677 | CZ21: 5172342.536 | DA21: 5307030.852 | DB21: 5436736.164 | DC21: 5563083.578 | DD21: 5688380.114 | DE21: 5815540.21 | DF21: 5948006.619 | DG21: 6089658.883 | DH21: 6244671.498 | DI21: =IF('Asset data'!$F21=0,0,AY21/'Asset data'!$F21) -> 489.8807895 | DJ21: =IF('Asset data'!$F21=0,0,AZ21/'Asset data'!$F21) -> 561.4487678 | DK21: =IF('Asset data'!$F21=0,0,BA21/'Asset data'!$F21) -> 631.0895649 | DL21: =IF('Asset data'!$F21=0,0,BB21/'Asset data'!$F21) -> 697.4542037 | DM21: =IF('Asset data'!$F21=0,0,BC21/'Asset data'!$F21) -> 759.9074338 | DN21: =IF('Asset data'!$F21=0,0,BD21/'Asset data'!$F21) -> 818.579372 | DO21: =IF('Asset data'!$F21=0,0,BE21/'Asset data'!$F21) -> 874.2770193 | DP21: =IF('Asset data'!$F21=0,0,BF21/'Asset data'!$F21) -> 928.2652917 | DQ21: =IF('Asset data'!$F21=0,0,BG21/'Asset data'!$F21) -> 981.9513685 | DR21: =IF('Asset data'!$F21=0,0,BH21/'Asset data'!$F21) -> 1036.525772 | DS21: =IF('Asset data'!$F21=0,0,BI21/'Asset data'!$F21) -> 1092.624996 | DT21: =IF('Asset data'!$F21=0,0,BJ21/'Asset data'!$F21) -> 1150.080301 | DU21: =IF('Asset data'!$F21=0,0,BK21/'Asset data'!$F21) -> 1207.80351 | DV21: =IF('Asset data'!$F21=0,0,BL21/'Asset data'!$F21) -> 1263.834748 | DW21: =IF('Asset data'!$F21=0,0,BM21/'Asset data'!$F21) -> 1315.544459 | DX21: =IF('Asset data'!$F21=0,0,BN21/'Asset data'!$F21) -> 1359.951811 | DY21: =IF('Asset data'!$F21=0,0,BO21/'Asset data'!$F21) -> 1394.102327 | DZ21: =IF('Asset data'!$F21=0,0,BP21/'Asset data'!$F21) -> 1415.444345 | EA21: =IF('Asset data'!$F21=0,0,BQ21/'Asset data'!$F21) -> 1422.155007 | EB21: =IF('Asset data'!$F21=0,0,BR21/'Asset data'!$F21) -> 1413.384668
A22: ='Asset data'!A22 -> 2 | B22: ='Asset data'!B22 -> 0 | C22: ='Asset data'!C22 -> 0 | D22: ='Asset data'!E22 -> ˂ = 1 kV; Wood | E22: POLES | F22: ='Asset data'!G22 -> 65.90482069 | G22: 65.90482069 | H22: ='Asset data'!H22 -> 8.118178409 | I22: S | J22: =IF(A22=0,0,IF('Asset data'!$D$1=1,1,IF('Asset data'!$D$1=2,2,'Asset data'!I22))) -> 2 | K22: =IF(A22>0,IF(I22="S",F22,IF(I22="R",G22,9999)),0) -> 65.90482069 | AX22: ='Age profile summary'!H22 -> 138060.3025 | AY22: =repcalc('Age profile (Inst)'!CT22:GF22,J22,K22,H22,20,$L$20,$M$20) -> 247.5632953 | AZ22: 307.0719354 | BA22: 376.3539525 | BB22: 455.8413968 | BC22: 545.701134 | BD22: 645.7848515 | BE22: 755.5913138 | BF22: 874.2457785 | BG22: 1000.500697 | BH22: 1132.760483 | BI22: 1269.131296 | BJ22: 1407.494621 | BK22: 1545.601116 | BL22: 1681.178953 | BM22: 1812.049087 | BN22: 1936.238624 | BO22: 2052.08309 | BP22: 2158.308893 | BQ22: 2254.08877 | BR22: 2339.065246 | BS22: 29.19785633 | BT22: 30.10588144 | BU22: 30.99150441 | BV22: 31.85125694 | BW22: 32.68167328 | BX22: 33.47943428 | BY22: 34.24152443 | BZ22: 34.96539124 | CA22: 35.649095 | CB22: 36.29143602 | CC22: 36.89204755 | CD22: 37.4514441 | CE22: 37.97101809 | CF22: 38.45298167 | CG22: 38.90025545 | CH22: 39.31631129 | CI22: 39.70498144 | CJ22: 40.07025077 | CK22: 40.41605126 | CL22: 40.74607821 | CM22: 41.06364463 | CN22: =BS22*$AX22 -> 4031064.878 | CO22: 4156427.099 | CP22: 4278696.474 | CQ22: 4397394.168 | CR22: 4512041.699 | CS22: 4622180.825 | CT22: 4727395.221 | CU22: 4827332.492 | CV22: 4921724.84 | CW22: 5010406.635 | CX22: =CC22*$AX22 -> 5093327.245 | CY22: 5170557.702 | CZ22: 5242290.245 | DA22: 5308830.282 | DB22: 5370581.035 | DC22: 5428021.83 | DD22: 5481681.749 | DE22: 5532110.943 | DF22: 5579852.263 | DG22: 5625415.883 | DH22: =CM22*$AX22 -> 5669259.2 | DI22: =IF('Asset data'!$F22=0,0,AY22/'Asset data'!$F22) -> 90.08981794 | DJ22: =IF('Asset data'!$F22=0,0,AZ22/'Asset data'!$F22) -> 111.745381 | DK22: =IF('Asset data'!$F22=0,0,BA22/'Asset data'!$F22) -> 136.9575366 | DL22: =IF('Asset data'!$F22=0,0,BB22/'Asset data'!$F22) -> 165.8835103 | DM22: =IF('Asset data'!$F22=0,0,BC22/'Asset data'!$F22) -> 198.5840258 | DN22: =IF('Asset data'!$F22=0,0,BD22/'Asset data'!$F22) -> 235.0051111 | DO22: =IF('Asset data'!$F22=0,0,BE22/'Asset data'!$F22) -> 274.9643634 | DP22: =IF('Asset data'!$F22=0,0,BF22/'Asset data'!$F22) -> 318.1434588 | DQ22: =IF('Asset data'!$F22=0,0,BG22/'Asset data'!$F22) -> 364.0884065 | DR22: =IF('Asset data'!$F22=0,0,BH22/'Asset data'!$F22) -> 412.2185626 | DS22: =IF('Asset data'!$F22=0,0,BI22/'Asset data'!$F22) -> 461.8447465 | DT22: =IF('Asset data'!$F22=0,0,BJ22/'Asset data'!$F22) -> 512.1960185 | DU22: =IF('Asset data'!$F22=0,0,BK22/'Asset data'!$F22) -> 562.4538283 | DV22: =IF('Asset data'!$F22=0,0,BL22/'Asset data'!$F22) -> 611.7914437 | DW22: =IF('Asset data'!$F22=0,0,BM22/'Asset data'!$F22) -> 659.4158967 | DX22: =IF('Asset data'!$F22=0,0,BN22/'Asset data'!$F22) -> 704.6092392 | DY22: =IF('Asset data'!$F22=0,0,BO22/'Asset data'!$F22) -> 746.7657584 | DZ22: =IF('Asset data'!$F22=0,0,BP22/'Asset data'!$F22) -> 785.4219867 | EA22: =IF('Asset data'!$F22=0,0,BQ22/'Asset data'!$F22) -> 820.2768777 | EB22: =IF('Asset data'!$F22=0,0,BR22/'Asset data'!$F22) -> 851.2003443
A23: ='Asset data'!A23 -> 2 | B23: ='Asset data'!B23 -> 0 | C23: ='Asset data'!C23 -> 0 | D23: ='Asset data'!E23 -> > 1 kV & < = 11 kV; Wood | E23: =IF(A23>0,VLOOKUP(A23,IDtable,2),0) -> POLES | F23: ='Asset data'!G23 -> 69.89578216 | G23: =F23 -> 69.89578216 | H23: ='Asset data'!H23 -> 8.360369738 | I23: S | J23: =IF(A23=0,0,IF('Asset data'!$D$1=1,1,IF('Asset data'!$D$1=2,2,'Asset data'!I23))) -> 2 | K23: =IF(A23>0,IF(I23="S",F23,IF(I23="R",G23,9999)),0) -> 69.89578216 | AX23: ='Age profile summary'!H23 -> 101992.6938 | AY23: =repcalc('Age profile (Inst)'!CT23:GF23,J23,K23,H23,20,$L$20,$M$20) -> 53.10353357 | AZ23: 69.44567491 | BA23: 89.74251958 | BB23: 114.6088305 | BC23: 144.6580449 | BD23: 180.4731694 | BE23: 222.573081 | BF23: 271.3758558 | BG23: 327.1613964 | BH23: 390.0361764 | BI23: 459.9032865 | BJ23: 536.4410589 | BK23: 619.0933098 | BL23: 707.0736291 | BM23: 799.385177 | BN23: 894.8561746 | BO23: 992.1898012 | BP23: 1090.025691 | BQ23: 1187.008819 | BR23: 1281.860481 | BS23: 28.93053581 | BT23: 29.90413727 | BU23: 30.86921072 | BV23: 31.82360873 | BW23: 32.76485258 | BX23: 33.69014692 | BY23: 34.59641723 | BZ23: 35.48037329 | CA23: 36.33859944 | CB23: 37.16767049 | CC23: 37.96428861 | CD23: 38.7254338 | CE23: 39.44851734 | CF23: 40.13152549 | CG23: 40.77313948 | CH23: 41.37281858 | CI23: 41.93083489 | CJ23: 42.44825309 | CK23: 42.92685363 | CL23: 43.36900464 | CM23: 43.7774939 | CN23: 2950703.281 | CO23: 3050003.516 | CP23: 3148433.957 | CQ23: 3245775.581 | CR23: 3341775.577 | CS23: 3436148.839 | CT23: 3528581.79 | CU23: 3618738.849 | CV23: 3706271.646 | CW23: 3790830.836 | CX23: 3872080.063 | CY23: 3949711.312 | CZ23: 4023460.55 | DA23: 4093122.391 | DB23: 4158562.33 | DC23: 4219725.217 | DD23: 4276638.804 | DE23: 4329411.68 | DF23: 4378225.438 | DG23: 4423321.611 | DH23: =CM23*$AX23 -> 4464984.531 | DI23: =IF('Asset data'!$F23=0,0,AY23/'Asset data'!$F23) -> 17.94767682 | DJ23: =IF('Asset data'!$F23=0,0,AZ23/'Asset data'!$F23) -> 23.47091513 | DK23: =IF('Asset data'!$F23=0,0,BA23/'Asset data'!$F23) -> 30.33074505 | DL23: =IF('Asset data'!$F23=0,0,BB23/'Asset data'!$F23) -> 38.73494119 | DM23: =IF('Asset data'!$F23=0,0,BC23/'Asset data'!$F23) -> 48.89083011 | DN23: =IF('Asset data'!$F23=0,0,BD23/'Asset data'!$F23) -> 60.99545361 | DO23: =IF('Asset data'!$F23=0,0,BE23/'Asset data'!$F23) -> 75.22417921 | DP23: =IF('Asset data'!$F23=0,0,BF23/'Asset data'!$F23) -> 91.71830626 | DQ23: =IF('Asset data'!$F23=0,0,BG23/'Asset data'!$F23) -> 110.5724349 | DR23: =IF('Asset data'!$F23=0,0,BH23/'Asset data'!$F23) -> 131.8225506 | DS23: =IF('Asset data'!$F23=0,0,BI23/'Asset data'!$F23) -> 155.4359003 | DT23: =IF('Asset data'!$F23=0,0,BJ23/'Asset data'!$F23) -> 181.3037685 | DU23: =IF('Asset data'!$F23=0,0,BK23/'Asset data'!$F23) -> 209.2381786 | DV23: =IF('Asset data'!$F23=0,0,BL23/'Asset data'!$F23) -> 238.9733437 | DW23: =IF('Asset data'!$F23=0,0,BM23/'Asset data'!$F23) -> 270.1723566 | DX23: =IF('Asset data'!$F23=0,0,BN23/'Asset data'!$F23) -> 302.439185 | DY23: =IF('Asset data'!$F23=0,0,BO23/'Asset data'!$F23) -> 335.335536 | DZ23: =IF('Asset data'!$F23=0,0,BP23/'Asset data'!$F23) -> 368.4016393 | EA23: =IF('Asset data'!$F23=0,0,BQ23/'Asset data'!$F23) -> 401.1795305 | EB23: =IF('Asset data'!$F23=0,0,BR23/'Asset data'!$F23) -> 433.2370387
A24: ='Asset data'!A24 -> 2 | B24: ='Asset data'!B24 -> 0 | C24: ='Asset data'!C24 -> 0 | D24: ='Asset data'!E24 -> ˃ 11 kV & < = 22 kV; Wood | E24: POLES | F24: ='Asset data'!G24 -> 63.43770213 | G24: 63.43770213 | H24: ='Asset data'!H24 -> 7.96477885 | I24: S | J24: =IF(A24=0,0,IF('Asset data'!$D$1=1,1,IF('Asset data'!$D$1=2,2,'Asset data'!I24))) -> 2 | K24: 63.43770213 | AX24: ='Age profile summary'!H24 -> 456721.7928 | AY24: =repcalc('Age profile (Inst)'!CT24:GF24,J24,K24,H24,20,$L$20,$M$20) -> 1449.761907 | AZ24: 1741.901305 | BA24: 2066.957343 | BB24: 2422.739323 | BC24: 2805.712486 | BD24: 3211.028557 | BE24: 3632.648355 | BF24: 4063.5569 | BG24: 4496.062893 | BH24: 4922.165877 | BI24: 5333.966841 | BJ24: 5724.092378 | BK24: 6086.09961 | BL24: 6414.829313 | BM24: 6706.678189 | BN24: 6959.767766 | BO24: 7173.996283 | BP24: 7350.970233 | BQ24: 7493.822871 | BR24: 7606.93684 | BS24: 28.00628839 | BT24: 28.84320535 | BU24: 29.64819525 | BV24: 30.41853932 | BW24: 31.15210098 | BX24: 31.84747384 | BY24: 32.50409253 | BZ24: 33.12229502 | CA24: 33.70333007 | CB24: 34.24930852 | CC24: 34.76310218 | CD24: 35.24819838 | CE24: 35.70852097 | CF24: 36.14823131 | CG24: 36.57152343 | CH24: 36.98242817 | CI24: 37.38464011 | CJ24: 37.78137895 | CK24: 38.17529388 | CL24: 38.5684149 | CM24: 38.96215041 | CN24: =BS24*$AX24 -> 12791082.24 | CO24: =BT24*$AX24 -> 13173320.46 | CP24: =BU24*$AX24 -> 13540976.89 | CQ24: =BV24*$AX24 -> 13892809.81 | CR24: =BW24*$AX24 -> 14227843.41 | CS24: =BX24*$AX24 -> 14545435.35 | CT24: =BY24*$AX24 -> 14845327.41 | CU24: =BZ24*$AX24 -> 15127673.96 | CV24: =CA24*$AX24 -> 15393045.33 | CW24: =CB24*$AX24 -> 15642405.59 | CX24: =CC24*$AX24 -> 15877066.35 | CY24: =CD24*$AX24 -> 16098620.36 | CZ24: =CE24*$AX24 -> 16308859.72 | DA24: =CF24*$AX24 -> 16509685.01 | DB24: =CG24*$AX24 -> 16703011.75 | DC24: =CH24*$AX24 -> 16890680.9 | DD24: =CI24*$AX24 -> 17074379.85 | DE24: =CJ24*$AX24 -> 17255579.13 | DF24: =CK24*$AX24 -> 17435488.66 | DG24: =CL24*$AX24 -> 17615035.6 | DH24: 17794863.19 | DI24: =IF('Asset data'!$F24=0,0,AY24/'Asset data'!$F24) -> 380.8593889 | DJ24: =IF('Asset data'!$F24=0,0,AZ24/'Asset data'!$F24) -> 457.6058062 | DK24: =IF('Asset data'!$F24=0,0,BA24/'Asset data'!$F24) -> 542.9995826 | DL24: =IF('Asset data'!$F24=0,0,BB24/'Asset data'!$F24) -> 636.465211 | DM24: =IF('Asset data'!$F24=0,0,BC24/'Asset data'!$F24) -> 737.0740931 | DN24: =IF('Asset data'!$F24=0,0,BD24/'Asset data'!$F24) -> 843.552564 | DO24: =IF('Asset data'!$F24=0,0,BE24/'Asset data'!$F24) -> 954.314102 | DP24: =IF('Asset data'!$F24=0,0,BF24/'Asset data'!$F24) -> 1067.515838 | DQ24: =IF('Asset data'!$F24=0,0,BG24/'Asset data'!$F24) -> 1181.137232 | DR24: =IF('Asset data'!$F24=0,0,BH24/'Asset data'!$F24) -> 1293.076524 | DS24: =IF('Asset data'!$F24=0,0,BI24/'Asset data'!$F24) -> 1401.258608 | DT24: =IF('Asset data'!$F24=0,0,BJ24/'Asset data'!$F24) -> 1503.746453 | DU24: =IF('Asset data'!$F24=0,0,BK24/'Asset data'!$F24) -> 1598.847484 | DV24: =IF('Asset data'!$F24=0,0,BL24/'Asset data'!$F24) -> 1685.20635 | DW24: =IF('Asset data'!$F24=0,0,BM24/'Asset data'!$F24) -> 1761.876446 | DX24: =IF('Asset data'!$F24=0,0,BN24/'Asset data'!$F24) -> 1828.364289 | DY24: =IF('Asset data'!$F24=0,0,BO24/'Asset data'!$F24) -> 1884.643145 | DZ24: =IF('Asset data'!$F24=0,0,BP24/'Asset data'!$F24) -> 1931.135048 | EA24: =IF('Asset data'!$F24=0,0,BQ24/'Asset data'!$F24) -> 1968.66312 | EB24: =IF('Asset data'!$F24=0,0,BR24/'Asset data'!$F24) -> 1998.378701
A25: ='Asset data'!A25 -> 2 | B25: ='Asset data'!B25 -> 0 | C25: ='Asset data'!C25 -> 0 | D25: ='Asset data'!E25 -> > 22 kV & < = 66 kV; Wood | E25: POLES | F25: ='Asset data'!G25 -> 63.66862425 | G25: 63.66862425 | H25: ='Asset data'!H25 -> 7.979262137 | I25: S | J25: =IF(A25=0,0,IF('Asset data'!$D$1=1,1,IF('Asset data'!$D$1=2,2,'Asset data'!I25))) -> 2 | K25: 63.66862425 | AX25: ='Age profile summary'!H25 -> 4063.298829 | AY25: =repcalc('Age profile (Inst)'!CT25:GF25,J25,K25,H25,20,$L$20,$M$20) -> 4.449326289 | AZ25: 5.77493872 | BA25: 7.398021597 | BB25: 9.355309429 | BC25: 11.67998755 | BD25: 14.39939161 | BE25: 17.53268164 | BF25: 21.08867541 | BG25: 25.06403649 | BH25: 29.44200147 | BI25: 34.19179604 | BJ25: 39.26883396 | BK25: 44.61572227 | BL25: 50.16401772 | BM25: 55.83660627 | BN25: 61.55051741 | BO25: 67.21994883 | BP25: 72.75926804 | BQ25: 78.0857777 | BR25: 83.12207613 | BS25: 29.44438138 | BT25: 30.39332811 | BU25: 31.32632504 | BV25: 32.23968974 | BW25: 33.12932977 | BX25: 33.99083243 | BY25: 34.81959578 | BZ25: 35.61099699 | CA25: 36.36058799 | CB25: 37.06430306 | CC25: 37.71865891 | CD25: 38.3209268 | CE25: 38.86925908 | CF25: 39.36275905 | CG25: 39.80149198 | CH25: 40.18644511 | CI25: 40.51945193 | CJ25: 40.80310004 | CK25: 41.04064018 | CL25: 41.23590809 | CM25: 41.39326246 | CN25: 119641.3204 | CO25: 123497.1745 | CP25: 127288.2198 | CQ25: 130999.4936 | CR25: 134614.3668 | CS25: 138114.9096 | CT25: 141482.4227 | CU25: 144698.1224 | CV25: 147743.9346 | CW25: 150603.3392 | CX25: 153262.1826 | CY25: 155709.377 | CZ25: 157937.4149 | DA25: 159942.6527 | DB25: 161725.3558 | DC25: 163289.5353 | DD25: 164642.6416 | DE25: 165795.1886 | DF25: 166760.3852 | DG25: 167553.817 | DH25: 168193.1949 | DI25: =IF('Asset data'!$F25=0,0,AY25/'Asset data'!$F25) -> 0.9646980511 | DJ25: =IF('Asset data'!$F25=0,0,AZ25/'Asset data'!$F25) -> 1.252115886 | DK25: =IF('Asset data'!$F25=0,0,BA25/'Asset data'!$F25) -> 1.604030937 | DL25: =IF('Asset data'!$F25=0,0,BB25/'Asset data'!$F25) -> 2.02840794 | DM25: =IF('Asset data'!$F25=0,0,BC25/'Asset data'!$F25) -> 2.532442103 | DN25: =IF('Asset data'!$F25=0,0,BD25/'Asset data'!$F25) -> 3.122060312 | DO25: =IF('Asset data'!$F25=0,0,BE25/'Asset data'!$F25) -> 3.801416824 | DP25: =IF('Asset data'!$F25=0,0,BF25/'Asset data'!$F25) -> 4.572423496 | DQ25: =IF('Asset data'!$F25=0,0,BG25/'Asset data'!$F25) -> 5.434356929 | DR25: =IF('Asset data'!$F25=0,0,BH25/'Asset data'!$F25) -> 6.383582501 | DS25: =IF('Asset data'!$F25=0,0,BI25/'Asset data'!$F25) -> 7.413427753 | DT25: =IF('Asset data'!$F25=0,0,BJ25/'Asset data'!$F25) -> 8.514225554 | DU25: =IF('Asset data'!$F25=0,0,BK25/'Asset data'!$F25) -> 9.673532018 | DV25: =IF('Asset data'!$F25=0,0,BL25/'Asset data'!$F25) -> 10.87650736 | DW25: =IF('Asset data'!$F25=0,0,BM25/'Asset data'!$F25) -> 12.10643179 | DX25: =IF('Asset data'!$F25=0,0,BN25/'Asset data'!$F25) -> 13.34531575 | DY25: =IF('Asset data'!$F25=0,0,BO25/'Asset data'!$F25) -> 14.57455565 | DZ25: =IF('Asset data'!$F25=0,0,BP25/'Asset data'!$F25) -> 15.77558478 | EA25: =IF('Asset data'!$F25=0,0,BQ25/'Asset data'!$F25) -> 16.93047276 | EB25: =IF('Asset data'!$F25=0,0,BR25/'Asset data'!$F25) -> 18.02243747
A26: ='Asset data'!A26 -> 0 | B26: ='Asset data'!B26 -> 0 | C26: ='Asset data'!C26 -> 0 | D26: ='Asset data'!E26 ->  | E26: 0 | F26: ='Asset data'!G26 -> 50 | G26: 50 | H26: ='Asset data'!H26 -> 7.071067812 | I26: S | J26: =IF(A26=0,0,IF('Asset data'!$D$1=1,1,IF('Asset data'!$D$1=2,2,'Asset data'!I26))) -> 0 | K26: 0 | AX26: ='Age profile summary'!H26 -> 0 | AY26: =repcalc('Age profile (Inst)'!CT26:GF26,J26,K26,H26,20,$L$20,$M$20) -> 0 | AZ26: 0 | BA26: 0 | BB26: 0 | BC26: 0 | BD26: 0 | BE26: 0 | BF26: 0 | BG26: 0 | BH26: 0 | BI26: 0 | BJ26: 0 | BK26: 0 | BL26: 0 | BM26: 0 | BN26: 0 | BO26: 0 | BP26: 0 | BQ26: 0 | BR26: 0 | BS26: 0 | BT26: 0 | BU26: 0 | BV26: 0 | BW26: 0 | BX26: 0 | BY26: 0 | BZ26: 0 | CA26: 0 | CB26: 0 | CC26: 0 | CD26: 0 | CE26: 0 | CF26: 0 | CG26: 0 | CH26: 0 | CI26: 0 | CJ26: 0 | CK26: 0 | CL26: 0 | CM26: 0 | CN26: 0 | CO26: 0 | CP26: 0 | CQ26: 0 | CR26: 0 | CS26: 0 | CT26: 0 | CU26: 0 | CV26: 0 | CW26: 0 | CX26: 0 | CY26: 0 | CZ26: 0 | DA26: 0 | DB26: 0 | DC26: 0 | DD26: 0 | DE26: 0 | DF26: 0 | DG26: 0 | DH26: 0 | DI26: =IF('Asset data'!$F26=0,0,AY26/'Asset data'!$F26) -> 0 | DJ26: =IF('Asset data'!$F26=0,0,AZ26/'Asset data'!$F26) -> 0 | DK26: =IF('Asset data'!$F26=0,0,BA26/'Asset data'!$F26) -> 0 | DL26: =IF('Asset data'!$F26=0,0,BB26/'Asset data'!$F26) -> 0 | DM26: =IF('Asset data'!$F26=0,0,BC26/'Asset data'!$F26) -> 0 | DN26: =IF('Asset data'!$F26=0,0,BD26/'Asset data'!$F26) -> 0 | DO26: =IF('Asset data'!$F26=0,0,BE26/'Asset data'!$F26) -> 0 | DP26: =IF('Asset data'!$F26=0,0,BF26/'Asset data'!$F26) -> 0 | DQ26: =IF('Asset data'!$F26=0,0,BG26/'Asset data'!$F26) -> 0 | DR26: =IF('Asset data'!$F26=0,0,BH26/'Asset data'!$F26) -> 0 | DS26: =IF('Asset data'!$F26=0,0,BI26/'Asset data'!$F26) -> 0 | DT26: =IF('Asset data'!$F26=0,0,BJ26/'Asset data'!$F26) -> 0 | DU26: =IF('Asset data'!$F26=0,0,BK26/'Asset data'!$F26) -> 0 | DV26: =IF('Asset data'!$F26=0,0,BL26/'Asset data'!$F26) -> 0 | DW26: =IF('Asset data'!$F26=0,0,BM26/'Asset data'!$F26) -> 0 | DX26: =IF('Asset data'!$F26=0,0,BN26/'Asset data'!$F26) -> 0 | DY26: =IF('Asset data'!$F26=0,0,BO26/'Asset data'!$F26) -> 0 | DZ26: =IF('Asset data'!$F26=0,0,BP26/'Asset data'!$F26) -> 0 | EA26: =IF('Asset data'!$F26=0,0,BQ26/'Asset data'!$F26) -> 0 | EB26: =IF('Asset data'!$F26=0,0,BR26/'Asset data'!$F26) -> 0
A27: ='Asset data'!A27 -> 0 | B27: ='Asset data'!B27 -> 0 | C27: ='Asset data'!C27 -> 0 | D27: ='Asset data'!E27 ->  | E27: 0 | F27: ='Asset data'!G27 -> 50 | G27: 50 | H27: ='Asset data'!H27 -> 7.071067812 | I27: S | J27: =IF(A27=0,0,IF('Asset data'!$D$1=1,1,IF('Asset data'!$D$1=2,2,'Asset data'!I27))) -> 0 | K27: 0 | AX27: ='Age profile summary'!H27 -> 0 | AY27: =repcalc('Age profile (Inst)'!CT27:GF27,J27,K27,H27,20,$L$20,$M$20) -> 0 | AZ27: 0 | BA27: 0 | BB27: 0 | BC27: 0 | BD27: 0 | BE27: 0 | BF27: 0 | BG27: 0 | BH27: 0 | BI27: 0 | BJ27: 0 | BK27: 0 | BL27: 0 | BM27: 0 | BN27: 0 | BO27: 0 | BP27: 0 | BQ27: 0 | BR27: 0 | BS27: 0 | BT27: 0 | BU27: 0 | BV27: 0 | BW27: 0 | BX27: 0 | BY27: 0 | BZ27: 0 | CA27: 0 | CB27: 0 | CC27: 0 | CD27: 0 | CE27: 0 | CF27: 0 | CG27: 0 | CH27: 0 | CI27: 0 | CJ27: 0 | CK27: 0 | CL27: 0 | CM27: 0 | CN27: 0 | CO27: 0 | CP27: 0 | CQ27: 0 | CR27: 0 | CS27: 0 | CT27: 0 | CU27: 0 | CV27: 0 | CW27: 0 | CX27: 0 | CY27: 0 | CZ27: 0 | DA27: 0 | DB27: 0 | DC27: 0 | DD27: 0 | DE27: 0 | DF27: 0 | DG27: 0 | DH27: 0 | DI27: =IF('Asset data'!$F27=0,0,AY27/'Asset data'!$F27) -> 0 | DJ27: =IF('Asset data'!$F27=0,0,AZ27/'Asset data'!$F27) -> 0 | DK27: =IF('Asset data'!$F27=0,0,BA27/'Asset data'!$F27) -> 0 | DL27: =IF('Asset data'!$F27=0,0,BB27/'Asset data'!$F27) -> 0 | DM27: =IF('Asset data'!$F27=0,0,BC27/'Asset data'!$F27) -> 0 | DN27: =IF('Asset data'!$F27=0,0,BD27/'Asset data'!$F27) -> 0 | DO27: =IF('Asset data'!$F27=0,0,BE27/'Asset data'!$F27) -> 0 | DP27: =IF('Asset data'!$F27=0,0,BF27/'Asset data'!$F27) -> 0 | DQ27: =IF('Asset data'!$F27=0,0,BG27/'Asset data'!$F27) -> 0 | DR27: =IF('Asset data'!$F27=0,0,BH27/'Asset data'!$F27) -> 0 | DS27: =IF('Asset data'!$F27=0,0,BI27/'Asset data'!$F27) -> 0 | DT27: =IF('Asset data'!$F27=0,0,BJ27/'Asset data'!$F27) -> 0 | DU27: =IF('Asset data'!$F27=0,0,BK27/'Asset data'!$F27) -> 0 | DV27: =IF('Asset data'!$F27=0,0,BL27/'Asset data'!$F27) -> 0 | DW27: =IF('Asset data'!$F27=0,0,BM27/'Asset data'!$F27) -> 0 | DX27: =IF('Asset data'!$F27=0,0,BN27/'Asset data'!$F27) -> 0 | DY27: =IF('Asset data'!$F27=0,0,BO27/'Asset data'!$F27) -> 0 | DZ27: =IF('Asset data'!$F27=0,0,BP27/'Asset data'!$F27) -> 0 | EA27: =IF('Asset data'!$F27=0,0,BQ27/'Asset data'!$F27) -> 0 | EB27: =IF('Asset data'!$F27=0,0,BR27/'Asset data'!$F27) -> 0
A28: ='Asset data'!A28 -> 2 | B28: ='Asset data'!B28 -> 0 | C28: ='Asset data'!C28 -> 0 | D28: ='Asset data'!E28 -> ˂ = 1 kV; Concrete | E28: POLES | F28: ='Asset data'!G28 -> 51.36933777 | G28: 51.36933777 | H28: ='Asset data'!H28 -> 7.167240597 | I28: S | J28: =IF(A28=0,0,IF('Asset data'!$D$1=1,1,IF('Asset data'!$D$1=2,2,'Asset data'!I28))) -> 2 | K28: 51.36933777 | AX28: ='Age profile summary'!H28 -> 42936.84944 | AY28: =repcalc('Age profile (Inst)'!CT28:GF28,J28,K28,H28,20,$L$20,$M$20) -> 5021.427819 | AZ28: 4710.875396 | BA28: 4361.074102 | BB28: 3984.622284 | BC28: 3593.970036 | BD28: 3200.794866 | BE28: 2815.49737 | BF28: 2446.839355 | BG28: 2101.73171 | BH28: 1785.165689 | BI28: 1500.270373 | BJ28: 1248.471626 | BK28: 1029.7239 | BL28: 842.7856872 | BM28: 685.5115395 | BN28: 555.1376984 | BO28: 448.5436423 | BP28: 362.4775333 | BQ28: 293.7389557 | BR28: 239.3170554 | BS28: 50.81162675 | BT28: 45.46030674 | BU28: 41.286488 | BV28: 38.04688564 | BW28: 35.56718182 | BX28: 33.71645595 | BY28: 32.39238003 | BZ28: 31.51231239 | CA28: 31.00777198 | CB28: 30.82092131 | CC28: 30.90227596 | CD28: 31.20917672 | CE28: 31.7047396 | CF28: 32.35710414 | CG28: 33.13886471 | CH28: 34.02661002 | CI28: 35.00052327 | CJ28: 36.04401307 | CK28: 37.14335836 | CL28: 38.28735996 | CM28: 39.46699809 | CN28: 2181691.167 | CO28: 1951922.346 | CP28: 1772711.719 | CQ28: 1633613.4 | CR28: 1527142.731 | CS28: 1447678.393 | CT28: 1390826.745 | CU28: 1353039.413 | CV28: 1331376.037 | CW28: 1323353.258 | CX28: 1326846.37 | CY28: 1340023.722 | CZ28: 1361301.631 | DA28: 1389312.109 | DB28: 1422878.445 | DC28: 1460995.431 | DD28: 1502812.198 | DE28: 1547616.363 | DF28: 1594818.786 | DG28: 1643938.61 | DH28: 1694588.555 | DI28: =IF('Asset data'!$F28=0,0,AY28/'Asset data'!$F28) -> 468.732172 | DJ28: =IF('Asset data'!$F28=0,0,AZ28/'Asset data'!$F28) -> 439.7432236 | DK28: =IF('Asset data'!$F28=0,0,BA28/'Asset data'!$F28) -> 407.0905348 | DL28: =IF('Asset data'!$F28=0,0,BB28/'Asset data'!$F28) -> 371.9501156 | DM28: =IF('Asset data'!$F28=0,0,BC28/'Asset data'!$F28) -> 335.4841375 | DN28: =IF('Asset data'!$F28=0,0,BD28/'Asset data'!$F28) -> 298.7826538 | DO28: =IF('Asset data'!$F28=0,0,BE28/'Asset data'!$F28) -> 262.8165225 | DP28: =IF('Asset data'!$F28=0,0,BF28/'Asset data'!$F28) -> 228.4036268 | DQ28: =IF('Asset data'!$F28=0,0,BG28/'Asset data'!$F28) -> 196.1890731 | DR28: =IF('Asset data'!$F28=0,0,BH28/'Asset data'!$F28) -> 166.638777 | DS28: =IF('Asset data'!$F28=0,0,BI28/'Asset data'!$F28) -> 140.0448271 | DT28: =IF('Asset data'!$F28=0,0,BJ28/'Asset data'!$F28) -> 116.5403224 | DU28: =IF('Asset data'!$F28=0,0,BK28/'Asset data'!$F28) -> 96.12101135 | DV28: =IF('Asset data'!$F28=0,0,BL28/'Asset data'!$F28) -> 78.67100354 | DW28: =IF('Asset data'!$F28=0,0,BM28/'Asset data'!$F28) -> 63.99002922 | DX28: =IF('Asset data'!$F28=0,0,BN28/'Asset data'!$F28) -> 51.82010148 | DY28: =IF('Asset data'!$F28=0,0,BO28/'Asset data'!$F28) -> 41.86993088 | DZ28: =IF('Asset data'!$F28=0,0,BP28/'Asset data'!$F28) -> 33.83597009 | EA28: =IF('Asset data'!$F28=0,0,BQ28/'Asset data'!$F28) -> 27.41947185 | EB28: =IF('Asset data'!$F28=0,0,BR28/'Asset data'!$F28) -> 22.33938378
A29: ='Asset data'!A29 -> 2 | B29: ='Asset data'!B29 -> 0 | C29: ='Asset data'!C29 -> 0 | D29: ='Asset data'!E29 -> > 1 kV & < = 11 kV; Concrete | E29: POLES | F29: ='Asset data'!G29 -> 49.74742343 | G29: 49.74742343 | H29: ='Asset data'!H29 -> 7.053185339 | I29: S | J29: =IF(A29=0,0,IF('Asset data'!$D$1=1,1,IF('Asset data'!$D$1=2,2,'Asset data'!I29))) -> 2 | K29: 49.74742343 | AX29: ='Age profile summary'!H29 -> 12277.02003 | AY29: =repcalc('Age profile (Inst)'!CT29:GF29,J29,K29,H29,20,$L$20,$M$20) -> 1739.289049 | AZ29: 1536.159259 | BA29: 1340.288815 | BB29: 1155.715545 | BC29: 985.4413566 | BD29: 831.4584299 | BE29: 694.8297428 | BF29: 575.8069765 | BG29: 473.9697118 | BH29: 388.3720819 | BI29: 317.6860289 | BJ29: 260.3334685 | BK29: 214.60258 | BL29: 178.7458485 | BM29: 151.0592975 | BN29: 129.9435712 | BO29: 113.948246 | BP29: 101.8011041 | BQ29: 92.42421556 | BR29: 84.93867537 | BS29: 50.18515625 | BT29: 43.30470418 | BU29: 38.54663274 | BV29: 35.23488161 | BW29: 32.96117799 | BX29: 31.46003295 | BY29: 30.5482436 | BZ29: 30.09321338 | CA29: 29.99532693 | CB29: 30.1776541 | CC29: 30.57967501 | CD29: 31.15329609 | CE29: 31.86020519 | CF29: 32.67002138 | CG29: 33.55891911 | CH29: 34.50853499 | CI29: 35.50504366 | CJ29: 36.53833861 | CK29: 37.60128719 | CL29: 38.68905111 | CM29: 39.79847764 | CN29: 616124.1686 | CO29: 531652.7207 | CP29: 473237.7823 | CQ29: 432579.3474 | CR29: 404665.0425 | CS29: 386235.4547 | CT29: 375041.3987 | CU29: 369454.9835 | CV29: 368253.2296 | CW29: 370491.6639 | CX29: 375427.2827 | CY29: 382469.6402 | CZ29: 391148.3774 | DA29: 401090.507 | DB29: 412003.5222 | DC29: 423661.9754 | DD29: 435896.1323 | DE29: 448581.9151 | DF29: 461631.756 | DG29: 474986.2556 | DH29: 488606.7072 | DI29: =IF('Asset data'!$F29=0,0,AY29/'Asset data'!$F29) -> 181.3379775 | DJ29: =IF('Asset data'!$F29=0,0,AZ29/'Asset data'!$F29) -> 160.1597005 | DK29: =IF('Asset data'!$F29=0,0,BA29/'Asset data'!$F29) -> 139.7382817 | DL29: =IF('Asset data'!$F29=0,0,BB29/'Asset data'!$F29) -> 120.4947042 | DM29: =IF('Asset data'!$F29=0,0,BC29/'Asset data'!$F29) -> 102.7419466 | DN29: =IF('Asset data'!$F29=0,0,BD29/'Asset data'!$F29) -> 86.68771309 | DO29: =IF('Asset data'!$F29=0,0,BE29/'Asset data'!$F29) -> 72.44282965 | DP29: =IF('Asset data'!$F29=0,0,BF29/'Asset data'!$F29) -> 60.03353647 | DQ29: =IF('Asset data'!$F29=0,0,BG29/'Asset data'!$F29) -> 49.41600074 | DR29: =IF('Asset data'!$F29=0,0,BH29/'Asset data'!$F29) -> 40.49160655 | DS29: =IF('Asset data'!$F29=0,0,BI29/'Asset data'!$F29) -> 33.12189081 | DT29: =IF('Asset data'!$F29=0,0,BJ29/'Asset data'!$F29) -> 27.14232271 | DU29: =IF('Asset data'!$F29=0,0,BK29/'Asset data'!$F29) -> 22.37442813 | DV29: =IF('Asset data'!$F29=0,0,BL29/'Asset data'!$F29) -> 18.63601146 | DW29: =IF('Asset data'!$F29=0,0,BM29/'Asset data'!$F29) -> 15.74941641 | DX29: =IF('Asset data'!$F29=0,0,BN29/'Asset data'!$F29) -> 13.54789441 | DY29: =IF('Asset data'!$F29=0,0,BO29/'Asset data'!$F29) -> 11.88022455 | DZ29: =IF('Asset data'!$F29=0,0,BP29/'Asset data'!$F29) -> 10.61376563 | EA29: =IF('Asset data'!$F29=0,0,BQ29/'Asset data'!$F29) -> 9.63613284 | EB29: =IF('Asset data'!$F29=0,0,BR29/'Asset data'!$F29) -> 8.855691705
A30: ='Asset data'!A30 -> 2 | B30: ='Asset data'!B30 -> 0 | C30: ='Asset data'!C30 -> 0 | D30: ='Asset data'!E30 -> ˃ 11 kV & < = 22 kV; Concrete | E30: POLES | F30: ='Asset data'!G30 -> 44.79409927 | G30: 44.79409927 | H30: ='Asset data'!H30 -> 6.692839403 | I30: S | J30: =IF(A30=0,0,IF('Asset data'!$D$1=1,1,IF('Asset data'!$D$1=2,2,'Asset data'!I30))) -> 2 | K30: 44.79409927 | AX30: ='Age profile summary'!H30 -> 16066.00556 | AY30: =repcalc('Age profile (Inst)'!CT30:GF30,J30,K30,H30,20,$L$20,$M$20) -> 2044.916712 | AZ30: 1677.164094 | BA30: 1362.033682 | BB30: 1096.604204 | BC30: 876.5554696 | BD30: 696.7870814 | BE30: 551.9136244 | BF30: 436.6337279 | BG30: 345.9844991 | BH30: 275.4997078 | BI30: 221.29162 | BJ30: 180.074782 | BK30: 149.1472231 | BL30: 126.3417308 | BM30: 109.9576279 | BN30: 98.68192223 | BO30: 91.50757916 | BP30: 87.65569921 | BQ30: 86.50730827 | BR30: 87.54917555 | BS30: 34.96929423 | BT30: 29.16570917 | BU30: 25.85183478 | BV30: 23.94765456 | BW30: 22.92457508 | BX30: 22.48949976 | BY30: 22.46440998 | BZ30: 22.73377523 | CA30: 23.21892224 | CB30: 23.8643453 | CC30: 24.62980819 | CD30: 25.48548791 | CE30: 26.40883728 | CF30: 27.38248546 | CG30: 28.39280391 | CH30: 29.42892077 | CI30: 30.48205041 | CJ30: 31.54505126 | CK30: 32.61215122 | CL30: 33.67879283 | CM30: 34.74155512 | CN30: 561816.8755 | CO30: 468576.4457 | CP30: 415335.7214 | CQ30: 384743.1514 | CR30: 368306.3507 | CS30: 361316.4282 | CT30: 360913.3356 | CU30: 365240.9593 | CV30: 373035.3338 | CW30: 383404.7044 | CX30: 395702.6353 | CY30: 409449.9905 | CZ30: 424284.5266 | DA30: 439927.1637 | DB30: 456158.9456 | DC30: 472805.2048 | DD30: 489724.7914 | DE30: 506802.9689 | DF30: 523947.0029 | DG30: 541083.673 | DH30: 558158.0177 | DI30: =IF('Asset data'!$F30=0,0,AY30/'Asset data'!$F30) -> 138.8648923 | DJ30: =IF('Asset data'!$F30=0,0,AZ30/'Asset data'!$F30) -> 113.8917834 | DK30: =IF('Asset data'!$F30=0,0,BA30/'Asset data'!$F30) -> 92.49210959 | DL30: =IF('Asset data'!$F30=0,0,BB30/'Asset data'!$F30) -> 74.46749483 | DM30: =IF('Asset data'!$F30=0,0,BC30/'Asset data'!$F30) -> 59.52456656 | DN30: =IF('Asset data'!$F30=0,0,BD30/'Asset data'!$F30) -> 47.31697017 | DO30: =IF('Asset data'!$F30=0,0,BE30/'Asset data'!$F30) -> 37.47899638 | DP30: =IF('Asset data'!$F30=0,0,BF30/'Asset data'!$F30) -> 29.65064311 | DQ30: =IF('Asset data'!$F30=0,0,BG30/'Asset data'!$F30) -> 23.49489343 | DR30: =IF('Asset data'!$F30=0,0,BH30/'Asset data'!$F30) -> 18.70845744 | DS30: =IF('Asset data'!$F30=0,0,BI30/'Asset data'!$F30) -> 15.02732938 | DT30: =IF('Asset data'!$F30=0,0,BJ30/'Asset data'!$F30) -> 12.22840279 | DU30: =IF('Asset data'!$F30=0,0,BK30/'Asset data'!$F30) -> 10.12819396 | DV30: =IF('Asset data'!$F30=0,0,BL30/'Asset data'!$F30) -> 8.579533211 | DW30: =IF('Asset data'!$F30=0,0,BM30/'Asset data'!$F30) -> 7.466932066 | DX30: =IF('Asset data'!$F30=0,0,BN30/'Asset data'!$F30) -> 6.701228675 | DY30: =IF('Asset data'!$F30=0,0,BO30/'Asset data'!$F30) -> 6.214037988 | DZ30: =IF('Asset data'!$F30=0,0,BP30/'Asset data'!$F30) -> 5.952466995 | EA30: =IF('Asset data'!$F30=0,0,BQ30/'Asset data'!$F30) -> 5.8744828 | EB30: =IF('Asset data'!$F30=0,0,BR30/'Asset data'!$F30) -> 5.945233254
A31: ='Asset data'!A31 -> 2 | B31: ='Asset data'!B31 -> 0 | C31: ='Asset data'!C31 -> 0 | D31: ='Asset data'!E31 -> > 22 kV & < = 66 kV; Concrete | E31: POLES | F31: ='Asset data'!G31 -> 48.4701832 | G31: 48.4701832 | H31: ='Asset data'!H31 -> 6.962053088 | I31: S | J31: =IF(A31=0,0,IF('Asset data'!$D$1=1,1,IF('Asset data'!$D$1=2,2,'Asset data'!I31))) -> 2 | K31: 48.4701832 | AX31: ='Age profile summary'!H31 -> 7673.706654 | AY31: =repcalc('Age profile (Inst)'!CT31:GF31,J31,K31,H31,20,$L$20,$M$20) -> 1159.023148 | AZ31: 1002.077391 | BA31: 859.1364886 | BB31: 730.8328798 | BC31: 617.1600707 | BD31: 517.6415311 | BE31: 431.4791708 | BF31: 357.6740148 | BG31: 295.117745 | BH31: 242.6579871 | BI31: 199.1425159 | BJ31: 163.4481968 | BK31: 134.4999512 | BL31: 111.2838466 | BM31: 92.85702639 | BN31: 78.35592854 | BO31: 67.00327123 | BP31: 58.11367466 | BQ31: 51.09749643 | BR31: 45.46242095 | BS31: 49.70734908 | BT31: 42.35172264 | BU31: 37.51211174 | BV31: 34.24640706 | BW31: 32.05020217 | BX31: 30.62380644 | BY31: 29.77359846 | BZ31: 29.36582809 | CA31: 29.30319205 | CB31: 29.51215047 | CC31: 29.93564327 | CD31: 30.52866269 | CE31: 31.25540496 | CF31: 32.08733428 | CG31: 33.0017967 | CH31: 33.98097635 | CI31: 35.01106726 | CJ31: 36.08157975 | CK31: 37.18473027 | CL31: 38.31488689 | CM31: 39.46806172 | CN31: 381439.6154 | CO31: 324994.6958 | CP31: 287856.9414 | CQ31: 262796.8818 | CR31: 245943.8496 | CS31: 234998.1073 | CT31: 228473.8607 | CU31: 225344.7504 | CV31: 224864.0998 | CW31: 226467.5854 | CX31: 229717.3449 | CY31: 234268.002 | CZ31: 239844.809 | DA31: 246228.7906 | DB31: 253246.1069 | DC31: 260760.0443 | DD31: 268664.6598 | DE31: 276879.4587 | DF31: 285344.7121 | DG31: 294017.2025 | DH31: 302866.3278 | DI31: =IF('Asset data'!$F31=0,0,AY31/'Asset data'!$F31) -> 57.54556947 | DJ31: =IF('Asset data'!$F31=0,0,AZ31/'Asset data'!$F31) -> 49.75320313 | DK31: =IF('Asset data'!$F31=0,0,BA31/'Asset data'!$F31) -> 42.65617868 | DL31: =IF('Asset data'!$F31=0,0,BB31/'Asset data'!$F31) -> 36.28589673 | DM31: =IF('Asset data'!$F31=0,0,BC31/'Asset data'!$F31) -> 30.64203488 | DN31: =IF('Asset data'!$F31=0,0,BD31/'Asset data'!$F31) -> 25.70093336 | DO31: =IF('Asset data'!$F31=0,0,BE31/'Asset data'!$F31) -> 21.42296696 | DP31: =IF('Asset data'!$F31=0,0,BF31/'Asset data'!$F31) -> 17.75853649 | DQ31: =IF('Asset data'!$F31=0,0,BG31/'Asset data'!$F31) -> 14.65261391 | DR31: =IF('Asset data'!$F31=0,0,BH31/'Asset data'!$F31) -> 12.04798375 | DS31: =IF('Asset data'!$F31=0,0,BI31/'Asset data'!$F31) -> 9.88743797 | DT31: =IF('Asset data'!$F31=0,0,BJ31/'Asset data'!$F31) -> 8.115212868 | DU31: =IF('Asset data'!$F31=0,0,BK31/'Asset data'!$F31) -> 6.677930723 | DV31: =IF('Asset data'!$F31=0,0,BL31/'Asset data'!$F31) -> 5.52524972 | DW31: =IF('Asset data'!$F31=0,0,BM31/'Asset data'!$F31) -> 4.610356982 | DX31: =IF('Asset data'!$F31=0,0,BN31/'Asset data'!$F31) -> 3.890376596 | DY31: =IF('Asset data'!$F31=0,0,BO31/'Asset data'!$F31) -> 3.326716473 | DZ31: =IF('Asset data'!$F31=0,0,BP31/'Asset data'!$F31) -> 2.885347466 | EA31: =IF('Asset data'!$F31=0,0,BQ31/'Asset data'!$F31) -> 2.536993792 | EB31: =IF('Asset data'!$F31=0,0,BR31/'Asset data'!$F31) -> 2.257211953
A32: ='Asset data'!A32 -> 0 | B32: ='Asset data'!B32 -> 0 | C32: ='Asset data'!C32 -> 0 | D32: ='Asset data'!E32 ->  | E32: 0 | F32: ='Asset data'!G32 -> 50 | G32: 50 | H32: ='Asset data'!H32 -> 7.071067812 | I32: S | J32: =IF(A32=0,0,IF('Asset data'!$D$1=1,1,IF('Asset data'!$D$1=2,2,'Asset data'!I32))) -> 0 | K32: 0 | AX32: ='Age profile summary'!H32 -> 0 | AY32: =repcalc('Age profile (Inst)'!CT32:GF32,J32,K32,H32,20,$L$20,$M$20) -> 0 | AZ32: 0 | BA32: 0 | BB32: 0 | BC32: 0 | BD32: 0 | BE32: 0 | BF32: 0 | BG32: 0 | BH32: 0 | BI32: 0 | BJ32: 0 | BK32: 0 | BL32: 0 | BM32: 0 | BN32: 0 | BO32: 0 | BP32: 0 | BQ32: 0 | BR32: 0 | BS32: 0 | BT32: 0 | BU32: 0 | BV32: 0 | BW32: 0 | BX32: 0 | BY32: 0 | BZ32: 0 | CA32: 0 | CB32: 0 | CC32: 0 | CD32: 0 | CE32: 0 | CF32: 0 | CG32: 0 | CH32: 0 | CI32: 0 | CJ32: 0 | CK32: 0 | CL32: 0 | CM32: 0 | CN32: 0 | CO32: 0 | CP32: 0 | CQ32: 0 | CR32: 0 | CS32: 0 | CT32: 0 | CU32: 0 | CV32: 0 | CW32: 0 | CX32: 0 | CY32: 0 | CZ32: 0 | DA32: 0 | DB32: 0 | DC32: 0 | DD32: 0 | DE32: 0 | DF32: 0 | DG32: 0 | DH32: 0 | DI32: =IF('Asset data'!$F32=0,0,AY32/'Asset data'!$F32) -> 0 | DJ32: =IF('Asset data'!$F32=0,0,AZ32/'Asset data'!$F32) -> 0 | DK32: =IF('Asset data'!$F32=0,0,BA32/'Asset data'!$F32) -> 0 | DL32: =IF('Asset data'!$F32=0,0,BB32/'Asset data'!$F32) -> 0 | DM32: =IF('Asset data'!$F32=0,0,BC32/'Asset data'!$F32) -> 0 | DN32: =IF('Asset data'!$F32=0,0,BD32/'Asset data'!$F32) -> 0 | DO32: =IF('Asset data'!$F32=0,0,BE32/'Asset data'!$F32) -> 0 | DP32: =IF('Asset data'!$F32=0,0,BF32/'Asset data'!$F32) -> 0 | DQ32: =IF('Asset data'!$F32=0,0,BG32/'Asset data'!$F32) -> 0 | DR32: =IF('Asset data'!$F32=0,0,BH32/'Asset data'!$F32) -> 0 | DS32: =IF('Asset data'!$F32=0,0,BI32/'Asset data'!$F32) -> 0 | DT32: =IF('Asset data'!$F32=0,0,BJ32/'Asset data'!$F32) -> 0 | DU32: =IF('Asset data'!$F32=0,0,BK32/'Asset data'!$F32) -> 0 | DV32: =IF('Asset data'!$F32=0,0,BL32/'Asset data'!$F32) -> 0 | DW32: =IF('Asset data'!$F32=0,0,BM32/'Asset data'!$F32) -> 0 | DX32: =IF('Asset data'!$F32=0,0,BN32/'Asset data'!$F32) -> 0 | DY32: =IF('Asset data'!$F32=0,0,BO32/'Asset data'!$F32) -> 0 | DZ32: =IF('Asset data'!$F32=0,0,BP32/'Asset data'!$F32) -> 0 | EA32: =IF('Asset data'!$F32=0,0,BQ32/'Asset data'!$F32) -> 0 | EB32: =IF('Asset data'!$F32=0,0,BR32/'Asset data'!$F32) -> 0
A33: ='Asset data'!A33 -> 0 | B33: ='Asset data'!B33 -> 0 | C33: ='Asset data'!C33 -> 0 | D33: ='Asset data'!E33 ->  | E33: 0 | F33: ='Asset data'!G33 -> 50 | G33: 50 | H33: ='Asset data'!H33 -> 7.071067812 | I33: S | J33: =IF(A33=0,0,IF('Asset data'!$D$1=1,1,IF('Asset data'!$D$1=2,2,'Asset data'!I33))) -> 0 | K33: 0 | AX33: ='Age profile summary'!H33 -> 0 | AY33: =repcalc('Age profile (Inst)'!CT33:GF33,J33,K33,H33,20,$L$20,$M$20) -> 0 | AZ33: 0 | BA33: 0 | BB33: 0 | BC33: 0 | BD33: 0 | BE33: 0 | BF33: 0 | BG33: 0 | BH33: 0 | BI33: 0 | BJ33: 0 | BK33: 0 | BL33: 0 | BM33: 0 | BN33: 0 | BO33: 0 | BP33: 0 | BQ33: 0 | BR33: 0 | BS33: 0 | BT33: 0 | BU33: 0 | BV33: 0 | BW33: 0 | BX33: 0 | BY33: 0 | BZ33: 0 | CA33: 0 | CB33: 0 | CC33: 0 | CD33: 0 | CE33: 0 | CF33: 0 | CG33: 0 | CH33: 0 | CI33: 0 | CJ33: 0 | CK33: 0 | CL33: 0 | CM33: 0 | CN33: 0 | CO33: 0 | CP33: 0 | CQ33: 0 | CR33: 0 | CS33: 0 | CT33: 0 | CU33: 0 | CV33: 0 | CW33: 0 | CX33: 0 | CY33: 0 | CZ33: 0 | DA33: 0 | DB33: 0 | DC33: 0 | DD33: 0 | DE33: 0 | DF33: 0 | DG33: 0 | DH33: 0 | DI33: =IF('Asset data'!$F33=0,0,AY33/'Asset data'!$F33) -> 0 | DJ33: =IF('Asset data'!$F33=0,0,AZ33/'Asset data'!$F33) -> 0 | DK33: =IF('Asset data'!$F33=0,0,BA33/'Asset data'!$F33) -> 0 | DL33: =IF('Asset data'!$F33=0,0,BB33/'Asset data'!$F33) -> 0 | DM33: =IF('Asset data'!$F33=0,0,BC33/'Asset data'!$F33) -> 0 | DN33: =IF('Asset data'!$F33=0,0,BD33/'Asset data'!$F33) -> 0 | DO33: =IF('Asset data'!$F33=0,0,BE33/'Asset data'!$F33) -> 0 | DP33: =IF('Asset data'!$F33=0,0,BF33/'Asset data'!$F33) -> 0 | DQ33: =IF('Asset data'!$F33=0,0,BG33/'Asset data'!$F33) -> 0 | DR33: =IF('Asset data'!$F33=0,0,BH33/'Asset data'!$F33) -> 0 | DS33: =IF('Asset data'!$F33=0,0,BI33/'Asset data'!$F33) -> 0 | DT33: =IF('Asset data'!$F33=0,0,BJ33/'Asset data'!$F33) -> 0 | DU33: =IF('Asset data'!$F33=0,0,BK33/'Asset data'!$F33) -> 0 | DV33: =IF('Asset data'!$F33=0,0,BL33/'Asset data'!$F33) -> 0 | DW33: =IF('Asset data'!$F33=0,0,BM33/'Asset data'!$F33) -> 0 | DX33: =IF('Asset data'!$F33=0,0,BN33/'Asset data'!$F33) -> 0 | DY33: =IF('Asset data'!$F33=0,0,BO33/'Asset data'!$F33) -> 0 | DZ33: =IF('Asset data'!$F33=0,0,BP33/'Asset data'!$F33) -> 0 | EA33: =IF('Asset data'!$F33=0,0,BQ33/'Asset data'!$F33) -> 0 | EB33: =IF('Asset data'!$F33=0,0,BR33/'Asset data'!$F33) -> 0
A34: ='Asset data'!A34 -> 2 | B34: ='Asset data'!B34 -> 0 | C34: ='Asset data'!C34 -> 0 | D34: ='Asset data'!E34 -> ˂ = 1 kV; Steel | E34: POLES | F34: ='Asset data'!G34 -> 57.3701282 | G34: 57.3701282 | H34: ='Asset data'!H34 -> 7.574307111 | I34: S | J34: =IF(A34=0,0,IF('Asset data'!$D$1=1,1,IF('Asset data'!$D$1=2,2,'Asset data'!I34))) -> 2 | K34: 57.3701282 | AX34: ='Age profile summary'!H34 -> 99249.35343 | AY34: =repcalc('Age profile (Inst)'!CT34:GF34,J34,K34,H34,20,$L$20,$M$20) -> 32.84133893 | AZ34: 37.41070655 | BA34: 42.17743458 | BB34: 47.09525376 | BC34: 52.12284101 | BD34: 57.22896606 | BE34: 62.39768171 | BF34: 67.63323202 | BG34: 72.96437196 | BH34: 78.44784481 | BI34: 84.170851 | BJ34: 90.25247009 | BK34: 96.84416551 | BL34: 104.1297116 | BM34: 112.3251236 | BN34: 121.6794235 | BO34: 132.4773075 | BP34: 145.0449329 | BQ34: 159.7600614 | BR34: 177.0675996 | BS34: 10.84856075 | BT34: 11.83215605 | BU34: 12.81404428 | BV34: 13.7942764 | BW34: 14.77291645 | BX34: 15.7500324 | BY34: 16.7256867 | BZ34: 17.69992669 | CA34: 18.67277485 | CB34: 19.64421875 | CC34: 20.61420077 | CD34: 21.58260749 | CE34: 22.54925928 | CF34: 23.5139005 | CG34: 24.47619079 | CH34: 25.43569778 | CI34: 26.39189108 | CJ34: 27.34413676 | CK34: 28.29169063 | CL34: 29.23368773 | CM34: 30.16912418 | CN34: 1076712.641 | CO34: 1174333.838 | CP34: 1271785.609 | CQ34: 1369073.014 | CR34: 1466202.406 | CS34: 1563180.532 | CT34: 1660013.591 | CU34: 1756706.28 | CV34: 1853260.831 | CW34: 1949676.01 | CX34: 2045946.098 | CY34: 2142059.839 | CZ34: 2237999.404 | DA34: 2333739.421 | DB34: 2429246.11 | DC34: 2524476.559 | DD34: 2619378.125 | DE34: 2713887.893 | DF34: 2807932.002 | DG34: 2901424.606 | DH34: 2994266.069 | DI34: =IF('Asset data'!$F34=0,0,AY34/'Asset data'!$F34) -> 3.896977009 | DJ34: =IF('Asset data'!$F34=0,0,AZ34/'Asset data'!$F34) -> 4.439181474 | DK34: =IF('Asset data'!$F34=0,0,BA34/'Asset data'!$F34) -> 5.004804866 | DL34: =IF('Asset data'!$F34=0,0,BB34/'Asset data'!$F34) -> 5.588356844 | DM34: =IF('Asset data'!$F34=0,0,BC34/'Asset data'!$F34) -> 6.18493398 | DN34: =IF('Asset data'!$F34=0,0,BD34/'Asset data'!$F34) -> 6.790830468 | DO34: =IF('Asset data'!$F34=0,0,BE34/'Asset data'!$F34) -> 7.404154003 | DP34: =IF('Asset data'!$F34=0,0,BF34/'Asset data'!$F34) -> 8.025408186 | DQ34: =IF('Asset data'!$F34=0,0,BG34/'Asset data'!$F34) -> 8.658005104 | DR34: =IF('Asset data'!$F34=0,0,BH34/'Asset data'!$F34) -> 9.308677954 | DS34: =IF('Asset data'!$F34=0,0,BI34/'Asset data'!$F34) -> 9.987774005 | DT34: =IF('Asset data'!$F34=0,0,BJ34/'Asset data'!$F34) -> 10.70942332 | DU34: =IF('Asset data'!$F34=0,0,BK34/'Asset data'!$F34) -> 11.49159866 | DV34: =IF('Asset data'!$F34=0,0,BL34/'Asset data'!$F34) -> 12.35610683 | DW34: =IF('Asset data'!$F34=0,0,BM34/'Asset data'!$F34) -> 13.32858033 | DX34: =IF('Asset data'!$F34=0,0,BN34/'Asset data'!$F34) -> 14.43856832 | DY34: =IF('Asset data'!$F34=0,0,BO34/'Asset data'!$F34) -> 15.71985304 | DZ34: =IF('Asset data'!$F34=0,0,BP34/'Asset data'!$F34) -> 17.21113655 | EA34: =IF('Asset data'!$F34=0,0,BQ34/'Asset data'!$F34) -> 18.95724434 | EB34: =IF('Asset data'!$F34=0,0,BR34/'Asset data'!$F34) -> 21.01096932
A35: ='Asset data'!A35 -> 2 | B35: ='Asset data'!B35 -> 0 | C35: ='Asset data'!C35 -> 0 | D35: ='Asset data'!E35 -> > 1 kV & < = 11 kV; Steel | E35: POLES | F35: ='Asset data'!G35 -> 51.53770442 | G35: 51.53770442 | H35: ='Asset data'!H35 -> 7.178976558 | I35: S | J35: =IF(A35=0,0,IF('Asset data'!$D$1=1,1,IF('Asset data'!$D$1=2,2,'Asset data'!I35))) -> 2 | K35: 51.53770442 | AX35: ='Age profile summary'!H35 -> 3250.112091 | AY35: =repcalc('Age profile (Inst)'!CT35:GF35,J35,K35,H35,20,$L$20,$M$20) -> 77.28501593 | AZ35: 72.39880259 | BA35: 67.63467679 | BB35: 63.24905198 | BC35: 59.45858381 | BD35: 56.43276778 | BE35: 54.29075099 | BF35: 53.10162079 | BG35: 52.88717074 | BH35: 53.62609383 | BI35: 55.25868826 | BJ35: 57.69143263 | BK35: 60.80113029 | BL35: 64.43866995 | BM35: 68.43274052 | BN35: 72.59402404 | BO35: 76.72044044 | BP35: 80.60391853 | BQ35: 84.03893202 | BR35: 86.83269834 | BS35: 27.97317073 | BT35: 27.67054941 | BU35: 27.63037016 | BV35: 27.77645992 | BW35: 28.05461385 | BX35: 28.42517936 | BY35: 28.85823017 | BZ35: 29.33044972 | CA35: 29.82314568 | CB35: 30.32101404 | CC35: 30.8113999 | CD35: 31.28388881 | CE35: 31.73012332 | CF35: 32.14377898 | CG35: 32.52065605 | CH35: 32.85884713 | CI35: 33.15893243 | CJ35: 33.42413985 | CK35: 33.66039659 | CL35: 33.87620103 | CM35: 34.08226475 | CN35: 90915.94042 | CO35: 89932.3872 | CP35: 89801.80012 | CQ35: 90276.60823 | CR35: 91180.63968 | CS35: 92385.01912 | CT35: 93792.48279 | CU35: 95327.24927 | CV35: 96928.56636 | CW35: 98546.69434 | CX35: 100140.5033 | CY35: 101676.1453 | CZ35: 103126.4574 | DA35: 104470.8847 | DB35: 105695.7774 | DC35: 106794.9364 | DD35: 107770.2472 | DE35: 108632.2011 | DF35: 109400.0619 | DG35: 110101.4506 | DH35: 110771.1808 | DI35: =IF('Asset data'!$F35=0,0,AY35/'Asset data'!$F35) -> 9.749465755 | DJ35: =IF('Asset data'!$F35=0,0,AZ35/'Asset data'!$F35) -> 9.133072408 | DK35: =IF('Asset data'!$F35=0,0,BA35/'Asset data'!$F35) -> 8.532080343 | DL35: =IF('Asset data'!$F35=0,0,BB35/'Asset data'!$F35) -> 7.978835987 | DM35: =IF('Asset data'!$F35=0,0,BC35/'Asset data'!$F35) -> 7.50067034 | DN35: =IF('Asset data'!$F35=0,0,BD35/'Asset data'!$F35) -> 7.118965174 | DO35: =IF('Asset data'!$F35=0,0,BE35/'Asset data'!$F35) -> 6.848750838 | DP35: =IF('Asset data'!$F35=0,0,BF35/'Asset data'!$F35) -> 6.698742663 | DQ35: =IF('Asset data'!$F35=0,0,BG35/'Asset data'!$F35) -> 6.671689897 | DR35: =IF('Asset data'!$F35=0,0,BH35/'Asset data'!$F35) -> 6.764904672 | DS35: =IF('Asset data'!$F35=0,0,BI35/'Asset data'!$F35) -> 6.970855636 | DT35: =IF('Asset data'!$F35=0,0,BJ35/'Asset data'!$F35) -> 7.27774511 | DU35: =IF('Asset data'!$F35=0,0,BK35/'Asset data'!$F35) -> 7.6700319 | DV35: =IF('Asset data'!$F35=0,0,BL35/'Asset data'!$F35) -> 8.128905694 | DW35: =IF('Asset data'!$F35=0,0,BM35/'Asset data'!$F35) -> 8.63275568 | DX35: =IF('Asset data'!$F35=0,0,BN35/'Asset data'!$F35) -> 9.157699496 | DY35: =IF('Asset data'!$F35=0,0,BO35/'Asset data'!$F35) -> 9.678244842 | DZ35: =IF('Asset data'!$F35=0,0,BP35/'Asset data'!$F35) -> 10.16814364 | EA35: =IF('Asset data'!$F35=0,0,BQ35/'Asset data'!$F35) -> 10.60146886 | EB35: =IF('Asset data'!$F35=0,0,BR35/'Asset data'!$F35) -> 10.95390107
A36: ='Asset data'!A36 -> 2 | B36: ='Asset data'!B36 -> 0 | C36: ='Asset data'!C36 -> 0 | D36: ='Asset data'!E36 -> ˃ 11 kV & < = 22 kV; Steel | E36: POLES | F36: ='Asset data'!G36 -> 53.5236011 | G36: 53.5236011 | H36: ='Asset data'!H36 -> 7.315982579 | I36: S | J36: =IF(A36=0,0,IF('Asset data'!$D$1=1,1,IF('Asset data'!$D$1=2,2,'Asset data'!I36))) -> 2 | K36: 53.5236011 | AX36: ='Age profile summary'!H36 -> 25540.45301 | AY36: =repcalc('Age profile (Inst)'!CT36:GF36,J36,K36,H36,20,$L$20,$M$20) -> 942.1131161 | AZ36: 951.7248992 | BA36: 950.4055516 | BB36: 938.5601536 | BC36: 916.9418387 | BD36: 886.5875599 | BE36: 848.7423574 | BF36: 804.7797902 | BG36: 756.1257404 | BH36: 704.1915146 | BI36: 650.3202781 | BJ36: 595.7487085 | BK36: 541.5836723 | BL36: 488.7920268 | BM36: 438.2005327 | BN36: 390.5024233 | BO36: 346.2673749 | BP36: 305.9523008 | BQ36: 269.9113488 | BR36: 238.4044647 | BS36: 30.58281649 | BT36: 29.64021226 | BU36: 28.85230565 | BV36: 28.21112948 | BW36: 27.70951587 | BX36: 27.34083529 | BY36: 27.09881288 | BZ36: 26.97743284 | CA36: 26.97089119 | CB36: 27.07355406 | CC36: 27.27989591 | CD36: 27.5844122 | CE36: 27.98151512 | CF36: 28.46542914 | CG36: 29.0301046 | CH36: 29.66916508 | CI36: 30.37589892 | CJ36: 31.14329745 | CK36: 31.96413448 | CL36: 32.83107492 | CM36: 33.73679613 | CN36: 781098.9875 | CO36: 757024.4485 | CP36: 736900.9567 | CQ36: 720525.0268 | CR36: 707713.5881 | CS36: 698297.3189 | CT36: 692115.9569 | CU36: 689015.8558 | CV36: 688848.7792 | CW36: 691470.8353 | CX36: 696740.8998 | CY36: 704518.3836 | CZ36: 714660.572 | DA36: 727019.9555 | DB36: 741442.0225 | DC36: 757763.9165 | DD36: 775814.219 | DE36: 795413.9252 | DF36: 816378.4747 | DG36: 838520.5263 | DH36: 861653.0563 | DI36: =IF('Asset data'!$F36=0,0,AY36/'Asset data'!$F36) -> 101.1075273 | DJ36: =IF('Asset data'!$F36=0,0,AZ36/'Asset data'!$F36) -> 102.1390634 | DK36: =IF('Asset data'!$F36=0,0,BA36/'Asset data'!$F36) -> 101.9974711 | DL36: =IF('Asset data'!$F36=0,0,BB36/'Asset data'!$F36) -> 100.7262236 | DM36: =IF('Asset data'!$F36=0,0,BC36/'Asset data'!$F36) -> 98.40614725 | DN36: =IF('Asset data'!$F36=0,0,BD36/'Asset data'!$F36) -> 95.14852773 | DO36: =IF('Asset data'!$F36=0,0,BE36/'Asset data'!$F36) -> 91.0869827 | DP36: =IF('Asset data'!$F36=0,0,BF36/'Asset data'!$F36) -> 86.36892243 | DQ36: =IF('Asset data'!$F36=0,0,BG36/'Asset data'!$F36) -> 81.14737251 | DR36: =IF('Asset data'!$F36=0,0,BH36/'Asset data'!$F36) -> 75.57379428 | DS36: =IF('Asset data'!$F36=0,0,BI36/'Asset data'!$F36) -> 69.79233616 | DT36: =IF('Asset data'!$F36=0,0,BJ36/'Asset data'!$F36) -> 63.93571834 | DU36: =IF('Asset data'!$F36=0,0,BK36/'Asset data'!$F36) -> 58.12272966 | DV36: =IF('Asset data'!$F36=0,0,BL36/'Asset data'!$F36) -> 52.4571332 | DW36: =IF('Asset data'!$F36=0,0,BM36/'Asset data'!$F36) -> 47.02765685 | DX36: =IF('Asset data'!$F36=0,0,BN36/'Asset data'!$F36) -> 41.90869841 | DY36: =IF('Asset data'!$F36=0,0,BO36/'Asset data'!$F36) -> 37.16139546 | DZ36: =IF('Asset data'!$F36=0,0,BP36/'Asset data'!$F36) -> 32.83478394 | EA36: =IF('Asset data'!$F36=0,0,BQ36/'Asset data'!$F36) -> 28.96687097 | EB36: =IF('Asset data'!$F36=0,0,BR36/'Asset data'!$F36) -> 25.58555392
A37: ='Asset data'!A37 -> 2 | B37: ='Asset data'!B37 -> 0 | C37: ='Asset data'!C37 -> 0 | D37: ='Asset data'!E37 -> > 22 kV & < = 66 kV; Steel | E37: POLES | F37: ='Asset data'!G37 -> 55.98822093 | G37: 55.98822093 | H37: ='Asset data'!H37 -> 7.48252771 | I37: S | J37: =IF(A37=0,0,IF('Asset data'!$D$1=1,1,IF('Asset data'!$D$1=2,2,'Asset data'!I37))) -> 2 | K37: 55.98822093 | AX37: ='Age profile summary'!H37 -> 1143.948378 | AY37: =repcalc('Age profile (Inst)'!CT37:GF37,J37,K37,H37,20,$L$20,$M$20) -> 0.0002013794395 | AZ37: 0.0003531805816 | BA37: 0.000608501511 | BB37: 0.00102995574 | BC37: 0.001712691627 | BD37: 0.002798071111 | BE37: 0.004491353393 | BF37: 0.007083708637 | BG37: 0.01097850462 | BH37: 0.01672126604 | BI37: 0.02503205324 | BJ37: 0.03683836882 | BK37: 0.05330629384 | BL37: 0.07586768992 | BM37: 0.1062423613 | BN37: 0.1464564431 | BO37: 0.1988622659 | BP37: 0.2661705978 | BQ37: 0.3515131283 | BR37: 0.458560408 | BS37: 8.666666667 | BT37: 9.666662444 | BU37: 10.66665473 | BV37: 11.66664091 | BW37: 12.66661662 | BX37: 13.66657475 | BY37: 14.66650392 | BZ37: 15.66638637 | CA37: 16.66619489 | CB37: 17.66588882 | CC37: 18.66540859 | CD37: 19.66466898 | CE37: 20.66355071 | CF37: 21.66189069 | CG37: 22.65947097 | CH37: 23.65600714 | CI37: 24.65113662 | CJ37: 25.64440791 | CK37: 26.63527134 | CL37: 27.62307156 | CM37: 28.6070408 | CN37: 9914.219279 | CO37: 11058.16283 | CP37: 12202.10238 | CQ37: 13346.03495 | CR37: 14489.95554 | CS37: 15633.85602 | CT37: 16777.72338 | CU37: 17921.53728 | CV37: 19065.26662 | CW37: 20208.86487 | CX37: 21352.26389 | CY37: 22495.36619 | CZ37: 23638.03533 | DA37: 24780.08472 | DB37: 25921.26507 | DC37: 27061.25101 | DD37: 28199.62776 | DE37: 29335.87884 | DF37: 30469.37545 | DG37: 31599.36792 | DH37: 32724.97793 | DI37: =IF('Asset data'!$F37=0,0,AY37/'Asset data'!$F37) -> 1.161856886e-05 | DJ37: =IF('Asset data'!$F37=0,0,AZ37/'Asset data'!$F37) -> 2.037672226e-05 | DK37: =IF('Asset data'!$F37=0,0,BA37/'Asset data'!$F37) -> 3.510744059e-05 | DL37: =IF('Asset data'!$F37=0,0,BB37/'Asset data'!$F37) -> 5.942320484e-05 | DM37: =IF('Asset data'!$F37=0,0,BC37/'Asset data'!$F37) -> 9.881359115e-05 | DN37: =IF('Asset data'!$F37=0,0,BD37/'Asset data'!$F37) -> 0.000161434464 | DO37: =IF('Asset data'!$F37=0,0,BE37/'Asset data'!$F37) -> 0.0002591282348 | DP37: =IF('Asset data'!$F37=0,0,BF37/'Asset data'!$F37) -> 0.0004086939401 | DQ37: =IF('Asset data'!$F37=0,0,BG37/'Asset data'!$F37) -> 0.000633403848 | DR37: =IF('Asset data'!$F37=0,0,BH37/'Asset data'!$F37) -> 0.0009647319577 | DS37: =IF('Asset data'!$F37=0,0,BI37/'Asset data'!$F37) -> 0.001444222086 | DT37: =IF('Asset data'!$F37=0,0,BJ37/'Asset data'!$F37) -> 0.002125386414 | DU37: =IF('Asset data'!$F37=0,0,BK37/'Asset data'!$F37) -> 0.003075501885 | DV37: =IF('Asset data'!$F37=0,0,BL37/'Asset data'!$F37) -> 0.004377179626 | DW37: =IF('Asset data'!$F37=0,0,BM37/'Asset data'!$F37) -> 0.006129643589 | DX37: =IF('Asset data'!$F37=0,0,BN37/'Asset data'!$F37) -> 0.008449791463 | DY37: =IF('Asset data'!$F37=0,0,BO37/'Asset data'!$F37) -> 0.01147334076 | DZ37: =IF('Asset data'!$F37=0,0,BP37/'Asset data'!$F37) -> 0.01535668898 | EA37: =IF('Asset data'!$F37=0,0,BQ37/'Asset data'!$F37) -> 0.02028051869 | EB37: =IF('Asset data'!$F37=0,0,BR37/'Asset data'!$F37) -> 0.02645660198
A38: ='Asset data'!A38 -> 0 | B38: ='Asset data'!B38 -> 0 | C38: ='Asset data'!C38 -> 0 | D38: ='Asset data'!E38 ->  | E38: 0 | F38: ='Asset data'!G38 -> 50 | G38: 50 | H38: ='Asset data'!H38 -> 7.071067812 | I38: S | J38: =IF(A38=0,0,IF('Asset data'!$D$1=1,1,IF('Asset data'!$D$1=2,2,'Asset data'!I38))) -> 0 | K38: 0 | AX38: ='Age profile summary'!H38 -> 0 | AY38: =repcalc('Age profile (Inst)'!CT38:GF38,J38,K38,H38,20,$L$20,$M$20) -> 0 | AZ38: 0 | BA38: 0 | BB38: 0 | BC38: 0 | BD38: 0 | BE38: 0 | BF38: 0 | BG38: 0 | BH38: 0 | BI38: 0 | BJ38: 0 | BK38: 0 | BL38: 0 | BM38: 0 | BN38: 0 | BO38: 0 | BP38: 0 | BQ38: 0 | BR38: 0 | BS38: 0 | BT38: 0 | BU38: 0 | BV38: 0 | BW38: 0 | BX38: 0 | BY38: 0 | BZ38: 0 | CA38: 0 | CB38: 0 | CC38: 0 | CD38: 0 | CE38: 0 | CF38: 0 | CG38: 0 | CH38: 0 | CI38: 0 | CJ38: 0 | CK38: 0 | CL38: 0 | CM38: 0 | CN38: 0 | CO38: 0 | CP38: 0 | CQ38: 0 | CR38: 0 | CS38: 0 | CT38: 0 | CU38: 0 | CV38: 0 | CW38: 0 | CX38: 0 | CY38: 0 | CZ38: 0 | DA38: 0 | DB38: 0 | DC38: 0 | DD38: 0 | DE38: 0 | DF38: 0 | DG38: 0 | DH38: 0 | DI38: =IF('Asset data'!$F38=0,0,AY38/'Asset data'!$F38) -> 0 | DJ38: =IF('Asset data'!$F38=0,0,AZ38/'Asset data'!$F38) -> 0 | DK38: =IF('Asset data'!$F38=0,0,BA38/'Asset data'!$F38) -> 0 | DL38: =IF('Asset data'!$F38=0,0,BB38/'Asset data'!$F38) -> 0 | DM38: =IF('Asset data'!$F38=0,0,BC38/'Asset data'!$F38) -> 0 | DN38: =IF('Asset data'!$F38=0,0,BD38/'Asset data'!$F38) -> 0 | DO38: =IF('Asset data'!$F38=0,0,BE38/'Asset data'!$F38) -> 0 | DP38: =IF('Asset data'!$F38=0,0,BF38/'Asset data'!$F38) -> 0 | DQ38: =IF('Asset data'!$F38=0,0,BG38/'Asset data'!$F38) -> 0 | DR38: =IF('Asset data'!$F38=0,0,BH38/'Asset data'!$F38) -> 0 | DS38: =IF('Asset data'!$F38=0,0,BI38/'Asset data'!$F38) -> 0 | DT38: =IF('Asset data'!$F38=0,0,BJ38/'Asset data'!$F38) -> 0 | DU38: =IF('Asset data'!$F38=0,0,BK38/'Asset data'!$F38) -> 0 | DV38: =IF('Asset data'!$F38=0,0,BL38/'Asset data'!$F38) -> 0 | DW38: =IF('Asset data'!$F38=0,0,BM38/'Asset data'!$F38) -> 0 | DX38: =IF('Asset data'!$F38=0,0,BN38/'Asset data'!$F38) -> 0 | DY38: =IF('Asset data'!$F38=0,0,BO38/'Asset data'!$F38) -> 0 | DZ38: =IF('Asset data'!$F38=0,0,BP38/'Asset data'!$F38) -> 0 | EA38: =IF('Asset data'!$F38=0,0,BQ38/'Asset data'!$F38) -> 0 | EB38: =IF('Asset data'!$F38=0,0,BR38/'Asset data'!$F38) -> 0
A39: ='Asset data'!A39 -> 0 | B39: ='Asset data'!B39 -> 0 | C39: ='Asset data'!C39 -> 0 | D39: ='Asset data'!E39 ->  | E39: 0 | F39: ='Asset data'!G39 -> 50 | G39: 50 | H39: ='Asset data'!H39 -> 7.071067812 | I39: S | J39: =IF(A39=0,0,IF('Asset data'!$D$1=1,1,IF('Asset data'!$D$1=2,2,'Asset data'!I39))) -> 0 | K39: 0 | AX39: ='Age profile summary'!H39 -> 0 | AY39: =repcalc('Age profile (Inst)'!CT39:GF39,J39,K39,H39,20,$L$20,$M$20) -> 0 | AZ39: 0 | BA39: 0 | BB39: 0 | BC39: 0 | BD39: 0 | BE39: 0 | BF39: 0 | BG39: 0 | BH39: 0 | BI39: 0 | BJ39: 0 | BK39: 0 | BL39: 0 | BM39: 0 | BN39: 0 | BO39: 0 | BP39: 0 | BQ39: 0 | BR39: 0 | BS39: 0 | BT39: 0 | BU39: 0 | BV39: 0 | BW39: 0 | BX39: 0 | BY39: 0 | BZ39: 0 | CA39: 0 | CB39: 0 | CC39: 0 | CD39: 0 | CE39: 0 | CF39: 0 | CG39: 0 | CH39: 0 | CI39: 0 | CJ39: 0 | CK39: 0 | CL39: 0 | CM39: 0 | CN39: 0 | CO39: 0 | CP39: 0 | CQ39: 0 | CR39: 0 | CS39: 0 | CT39: 0 | CU39: 0 | CV39: 0 | CW39: 0 | CX39: 0 | CY39: 0 | CZ39: 0 | DA39: 0 | DB39: 0 | DC39: 0 | DD39: 0 | DE39: 0 | DF39: 0 | DG39: 0 | DH39: 0 | DI39: =IF('Asset data'!$F39=0,0,AY39/'Asset data'!$F39) -> 0 | DJ39: =IF('Asset data'!$F39=0,0,AZ39/'Asset data'!$F39) -> 0 | DK39: =IF('Asset data'!$F39=0,0,BA39/'Asset data'!$F39) -> 0 | DL39: =IF('Asset data'!$F39=0,0,BB39/'Asset data'!$F39) -> 0 | DM39: =IF('Asset data'!$F39=0,0,BC39/'Asset data'!$F39) -> 0 | DN39: =IF('Asset data'!$F39=0,0,BD39/'Asset data'!$F39) -> 0 | DO39: =IF('Asset data'!$F39=0,0,BE39/'Asset data'!$F39) -> 0 | DP39: =IF('Asset data'!$F39=0,0,BF39/'Asset data'!$F39) -> 0 | DQ39: =IF('Asset data'!$F39=0,0,BG39/'Asset data'!$F39) -> 0 | DR39: =IF('Asset data'!$F39=0,0,BH39/'Asset data'!$F39) -> 0 | DS39: =IF('Asset data'!$F39=0,0,BI39/'Asset data'!$F39) -> 0 | DT39: =IF('Asset data'!$F39=0,0,BJ39/'Asset data'!$F39) -> 0 | DU39: =IF('Asset data'!$F39=0,0,BK39/'Asset data'!$F39) -> 0 | DV39: =IF('Asset data'!$F39=0,0,BL39/'Asset data'!$F39) -> 0 | DW39: =IF('Asset data'!$F39=0,0,BM39/'Asset data'!$F39) -> 0 | DX39: =IF('Asset data'!$F39=0,0,BN39/'Asset data'!$F39) -> 0 | DY39: =IF('Asset data'!$F39=0,0,BO39/'Asset data'!$F39) -> 0 | DZ39: =IF('Asset data'!$F39=0,0,BP39/'Asset data'!$F39) -> 0 | EA39: =IF('Asset data'!$F39=0,0,BQ39/'Asset data'!$F39) -> 0 | EB39: =IF('Asset data'!$F39=0,0,BR39/'Asset data'!$F39) -> 0
A40: ='Asset data'!A40 -> 2 | B40: ='Asset data'!B40 -> 0 | C40: ='Asset data'!C40 -> 0 | D40: ='Asset data'!E40 -> Other | E40: POLES | F40: ='Asset data'!G40 -> 35 | G40: 35 | H40: ='Asset data'!H40 -> 5.916079783 | I40: S | J40: =IF(A40=0,0,IF('Asset data'!$D$1=1,1,IF('Asset data'!$D$1=2,2,'Asset data'!I40))) -> 2 | K40: 35 | AX40: ='Age profile summary'!H40 -> 3810.759914 | AY40: =repcalc('Age profile (Inst)'!CT40:GF40,J40,K40,H40,20,$L$20,$M$20) -> 16.44352261 | AZ40: 17.66525117 | BA40: 18.45165789 | BB40: 18.74578681 | BC40: 18.53708071 | BD40: 17.86754105 | BE40: 16.83307616 | BF40: 15.58088673 | BG40: 14.30459098 | BH40: 13.23907146 | BI40: 12.65656741 | BJ40: 12.86437659 | BK40: 14.20291562 | BL40: 17.04124144 | BM40: 21.76598391 | BN40: 28.75948942 | BO40: 38.36419537 | BP40: 50.83293405 | BQ40: 66.26871254 | BR40: 84.56182576 | BS40: 8.026315789 | BT40: 8.888278512 | BU40: 9.748109844 | BV40: 10.61118934 | BW40: 11.48226966 | BX40: 12.3649901 | BY40: 13.26162311 | BZ40: 14.17302894 | CA40: 15.09873423 | CB40: 16.03703199 | CC40: 16.98501474 | CD40: 17.9384846 | CE40: 18.89172041 | CF40: 19.83711954 | CG40: 20.7647714 | CH40: 21.66206458 | CI40: 22.51347556 | CJ40: 23.3007253 | CK40: 24.00349994 | CL40: 24.60088881 | CM40: 25.07357647 | CN40: 30586.36247 | CO40: 33871.09546 | CP40: 37147.70623 | CQ40: 40436.69498 | CR40: 43756.17295 | CS40: 47120.00862 | CT40: 50536.86175 | CU40: 54010.01054 | CV40: 57537.65116 | CW40: 61113.27865 | CX40: 64725.81331 | CY40: 68359.25802 | CZ40: 71991.81086 | DA40: 75594.49994 | DB40: 79129.55846 | DC40: 82548.92736 | DD40: 85793.4502 | DE40: 88793.46994 | DF40: 91471.57536 | DG40: 93748.08093 | DH40: 95549.38012 | DI40: =IF('Asset data'!$F40=0,0,AY40/'Asset data'!$F40) -> 0.08198546659 | DJ40: =IF('Asset data'!$F40=0,0,AZ40/'Asset data'!$F40) -> 0.08807686128 | DK40: =IF('Asset data'!$F40=0,0,BA40/'Asset data'!$F40) -> 0.09199779254 | DL40: =IF('Asset data'!$F40=0,0,BB40/'Asset data'!$F40) -> 0.09346428467 | DM40: =IF('Asset data'!$F40=0,0,BC40/'Asset data'!$F40) -> 0.09242370064 | DN40: =IF('Asset data'!$F40=0,0,BD40/'Asset data'!$F40) -> 0.08908545476 | DO40: =IF('Asset data'!$F40=0,0,BE40/'Asset data'!$F40) -> 0.0839277347 | DP40: =IF('Asset data'!$F40=0,0,BF40/'Asset data'!$F40) -> 0.07768446569 | DQ40: =IF('Asset data'!$F40=0,0,BG40/'Asset data'!$F40) -> 0.07132100544 | DR40: =IF('Asset data'!$F40=0,0,BH40/'Asset data'!$F40) -> 0.06600845068 | DS40: =IF('Asset data'!$F40=0,0,BI40/'Asset data'!$F40) -> 0.06310415409 | DT40: =IF('Asset data'!$F40=0,0,BJ40/'Asset data'!$F40) -> 0.06414026619 | DU40: =IF('Asset data'!$F40=0,0,BK40/'Asset data'!$F40) -> 0.07081406409 | DV40: =IF('Asset data'!$F40=0,0,BL40/'Asset data'!$F40) -> 0.08496562226 | DW40: =IF('Asset data'!$F40=0,0,BM40/'Asset data'!$F40) -> 0.1085226316 | DX40: =IF('Asset data'!$F40=0,0,BN40/'Asset data'!$F40) -> 0.1433914262 | DY40: =IF('Asset data'!$F40=0,0,BO40/'Asset data'!$F40) -> 0.1912793586 | DZ40: =IF('Asset data'!$F40=0,0,BP40/'Asset data'!$F40) -> 0.2534470208 | EA40: =IF('Asset data'!$F40=0,0,BQ40/'Asset data'!$F40) -> 0.3304079939 | EB40: =IF('Asset data'!$F40=0,0,BR40/'Asset data'!$F40) -> 0.4216153013
A41: ='Asset data'!A41 -> 3 | B41: ='Asset data'!B41 -> 0 | C41: ='Asset data'!C41 -> 0 | D41: ='Asset data'!E41 -> ˂ = 1 kV | E41: OVERHEAD CONDUCTORS | F41: ='Asset data'!G41 -> 75.12731581 | G41: 75.12731581 | H41: ='Asset data'!H41 -> 8.667601503 | I41: S | J41: =IF(A41=0,0,IF('Asset data'!$D$1=1,1,IF('Asset data'!$D$1=2,2,'Asset data'!I41))) -> 2 | K41: 75.12731581 | AX41: ='Age profile summary'!H41 -> 304249.4379 | AY41: =repcalc('Age profile (Inst)'!CT41:GF41,J41,K41,H41,20,$L$20,$M$20) -> 46.02898792 | AZ41: 61.02704736 | BA41: 80.11700376 | BB41: 104.1496211 | BC41: 134.0728751 | BD41: 170.9206619 | BE41: 215.7941762 | BF41: 269.8352936 | BG41: 334.1917447 | BH41: 409.974467 | BI41: 498.2082308 | BJ41: 599.7774153 | BK41: 715.3695958 | BL41: 845.4203116 | BM41: 990.062925 | BN41: 1149.08776 | BO41: 1321.914647 | BP41: 1507.582538 | BQ41: 1704.758968 | BR41: 1911.770869 | BS41: 25.95213236 | BT41: 26.94403215 | BU41: 27.93318266 | BV41: 28.91880458 | BW41: 29.89995193 | BX41: 30.87549387 | BY41: 31.84409986 | BZ41: 32.80423015 | CA41: 33.75413364 | CB41: 34.69185521 | CC41: 35.61525436 | CD41: 36.52203659 | CE41: 37.40979829 | CF41: 38.27608482 | CG41: 39.11846043 | CH41: 39.93458719 | CI41: 40.72230911 | CJ41: 41.47973605 | CK41: 42.20532155 | CL41: 42.89792798 | CM41: 43.55687313 | CN41: 7895921.683 | CO41: 8197706.635 | CP41: 8498655.123 | CQ41: 8798530.039 | CR41: 9097043.569 | CS41: 9393851.655 | CT41: 9688549.482 | CU41: 9980668.582 | CV41: 10269676.19 | CW41: 10554977.45 | CX41: 10835921.12 | CY41: 11111809.1 | CZ41: 11381910.1 | DA41: 11645477.29 | DB41: 11901769.6 | DC41: 12150075.7 | DD41: 12389739.65 | DE41: 12620186.38 | DF41: 12840945.36 | DG41: 13051670.47 | DH41: 13252154.16 | DI41: =IF('Asset data'!$F41=0,0,AY41/'Asset data'!$F41) -> 0.7496519483 | DJ41: =IF('Asset data'!$F41=0,0,AZ41/'Asset data'!$F41) -> 0.993918116 | DK41: =IF('Asset data'!$F41=0,0,BA41/'Asset data'!$F41) -> 1.304827038 | DL41: =IF('Asset data'!$F41=0,0,BB41/'Asset data'!$F41) -> 1.696234697 | DM41: =IF('Asset data'!$F41=0,0,BC41/'Asset data'!$F41) -> 2.183580318 | DN41: =IF('Asset data'!$F41=0,0,BD41/'Asset data'!$F41) -> 2.783702466 | DO41: =IF('Asset data'!$F41=0,0,BE41/'Asset data'!$F41) -> 3.514535772 | DP41: =IF('Asset data'!$F41=0,0,BF41/'Asset data'!$F41) -> 4.394677414 | DQ41: =IF('Asset data'!$F41=0,0,BG41/'Asset data'!$F41) -> 5.442819925 | DR41: =IF('Asset data'!$F41=0,0,BH41/'Asset data'!$F41) -> 6.677056608 | DS41: =IF('Asset data'!$F41=0,0,BI41/'Asset data'!$F41) -> 8.114077406 | DT41: =IF('Asset data'!$F41=0,0,BJ41/'Asset data'!$F41) -> 9.768285776 | DU41: =IF('Asset data'!$F41=0,0,BK41/'Asset data'!$F41) -> 11.65087992 | DV41: =IF('Asset data'!$F41=0,0,BL41/'Asset data'!$F41) -> 13.76895327 | DW41: =IF('Asset data'!$F41=0,0,BM41/'Asset data'!$F41) -> 16.12467782 | DX41: =IF('Asset data'!$F41=0,0,BN41/'Asset data'!$F41) -> 18.71463869 | DY41: =IF('Asset data'!$F41=0,0,BO41/'Asset data'!$F41) -> 21.52938692 | DZ41: =IF('Asset data'!$F41=0,0,BP41/'Asset data'!$F41) -> 24.5532704 | EA41: =IF('Asset data'!$F41=0,0,BQ41/'Asset data'!$F41) -> 27.76458792 | EB41: =IF('Asset data'!$F41=0,0,BR41/'Asset data'!$F41) -> 31.13609101
A42: ='Asset data'!A42 -> 3 | B42: ='Asset data'!B42 -> 0 | C42: ='Asset data'!C42 -> 0 | D42: ='Asset data'!E42 -> > 1 kV & < = 11 kV | E42: OVERHEAD CONDUCTORS | F42: ='Asset data'!G42 -> 75.42911059 | G42: 75.42911059 | H42: ='Asset data'!H42 -> 8.684993414 | I42: S | J42: =IF(A42=0,0,IF('Asset data'!$D$1=1,1,IF('Asset data'!$D$1=2,2,'Asset data'!I42))) -> 2 | K42: 75.42911059 | AX42: ='Age profile summary'!H42 -> 161652.4518 | AY42: =repcalc('Age profile (Inst)'!CT42:GF42,J42,K42,H42,20,$L$20,$M$20) -> 46.6973845 | AZ42: 59.54445843 | BA42: 75.27908935 | BB42: 94.38513692 | BC42: 117.3918201 | BD42: 144.8707795 | BE42: 177.4310721 | BF42: 215.7116537 | BG42: 260.3708926 | BH42: 312.0727013 | BI42: 371.4689919 | BJ42: 439.1783641 | BK42: 515.7612391 | BL42: 601.6920378 | BM42: 697.3294453 | BN42: 802.8862682 | BO42: 918.4008044 | BP42: 1043.71195 | BQ42: 1178.440389 | BR42: 1321.978092 | BS42: 32.04531553 | BT42: 33.02892264 | BU42: 34.00793214 | BV42: 34.98132029 | BW42: 35.94790426 | BX42: 36.90633085 | BY42: 37.85506611 | BZ42: 38.79238586 | CA42: 39.71636789 | CB42: 40.62488671 | CC42: 41.51561232 | CD42: 42.38601546 | CE42: 43.23338167 | CF42: 44.05483713 | CG42: 44.8473887 | CH42: 45.60797979 | CI42: 46.33356237 | CJ42: 47.02118344 | CK42: 47.66808238 | CL42: 48.27179319 | CM42: 48.83024399 | CN42: 5180203.826 | CO42: 5339206.326 | CP42: 5497465.612 | CQ42: 5654816.193 | CR42: 5811066.861 | CS42: 5965998.871 | CT42: 6119364.251 | CU42: 6270884.286 | CV42: 6420248.248 | CW42: 6567112.542 | CX42: 6711100.522 | CY42: 6851803.323 | CZ42: 6988782.148 | DA42: 7121572.437 | DB42: 7249690.342 | DC42: 7372641.757 | DD42: 7489933.96 | DE42: 7601089.592 | DF42: 7705662.391 | DG42: 7803253.724 | DH42: 7893528.665 | DI42: =IF('Asset data'!$F42=0,0,AY42/'Asset data'!$F42) -> 0.854458757 | DJ42: =IF('Asset data'!$F42=0,0,AZ42/'Asset data'!$F42) -> 1.089531769 | DK42: =IF('Asset data'!$F42=0,0,BA42/'Asset data'!$F42) -> 1.377440681 | DL42: =IF('Asset data'!$F42=0,0,BB42/'Asset data'!$F42) -> 1.727039054 | DM42: =IF('Asset data'!$F42=0,0,BC42/'Asset data'!$F42) -> 2.148010424 | DN42: =IF('Asset data'!$F42=0,0,BD42/'Asset data'!$F42) -> 2.650814547 | DO42: =IF('Asset data'!$F42=0,0,BE42/'Asset data'!$F42) -> 3.246595819 | DP42: =IF('Asset data'!$F42=0,0,BF42/'Asset data'!$F42) -> 3.947045717 | DQ42: =IF('Asset data'!$F42=0,0,BG42/'Asset data'!$F42) -> 4.764210921 | DR42: =IF('Asset data'!$F42=0,0,BH42/'Asset data'!$F42) -> 5.710239563 | DS42: =IF('Asset data'!$F42=0,0,BI42/'Asset data'!$F42) -> 6.797060189 | DT42: =IF('Asset data'!$F42=0,0,BJ42/'Asset data'!$F42) -> 8.035991802 | DU42: =IF('Asset data'!$F42=0,0,BK42/'Asset data'!$F42) -> 9.437288875 | DV42: =IF('Asset data'!$F42=0,0,BL42/'Asset data'!$F42) -> 11.00963226 | DW42: =IF('Asset data'!$F42=0,0,BM42/'Asset data'!$F42) -> 12.75958509 | DX42: =IF('Asset data'!$F42=0,0,BN42/'Asset data'!$F42) -> 14.69104127 | DY42: =IF('Asset data'!$F42=0,0,BO42/'Asset data'!$F42) -> 16.80470155 | DZ42: =IF('Asset data'!$F42=0,0,BP42/'Asset data'!$F42) -> 19.0976181 | EA42: =IF('Asset data'!$F42=0,0,BQ42/'Asset data'!$F42) -> 21.56285027 | EB42: =IF('Asset data'!$F42=0,0,BR42/'Asset data'!$F42) -> 24.18927247
A43: ='Asset data'!A43 -> 3 | B43: ='Asset data'!B43 -> 0 | C43: ='Asset data'!C43 -> 0 | D43: ='Asset data'!E43 -> ˃ 11 kV & < = 22 kV ; SWER | E43: OVERHEAD CONDUCTORS | F43: ='Asset data'!G43 -> 80.1478913 | G43: 80.1478913 | H43: ='Asset data'!H43 -> 8.952535467 | I43: S | J43: =IF(A43=0,0,IF('Asset data'!$D$1=1,1,IF('Asset data'!$D$1=2,2,'Asset data'!I43))) -> 2 | K43: 80.1478913 | AX43: ='Age profile summary'!H43 -> 22285.74615 | AY43: =repcalc('Age profile (Inst)'!CT43:GF43,J43,K43,H43,20,$L$20,$M$20) -> 3.933051545 | AZ43: 5.397408502 | BA43: 7.322163477 | BB43: 9.820146467 | BC43: 13.02113634 | BD43: 17.07113301 | BE43: 22.13048242 | BF43: 28.37066961 | BG43: 35.96965798 | BH43: 45.10574377 | BI43: 55.95001018 | BJ43: 68.65759878 | BK43: 83.35815575 | BL43: 100.1459437 | BM43: 119.0702197 | BN43: 140.1265532 | BO43: 163.2497768 | BP43: 188.3092244 | BQ43: 215.1068076 | BR43: 243.3783161 | BS43: 39.132483 | BT43: 40.12290157 | BU43: 41.1095397 | BV43: 42.09113105 | BW43: 43.06607623 | BX43: 44.03238877 | BY43: 44.98764405 | BZ43: 45.92893621 | CA43: 46.8528487 | CB43: 47.7554455 | CC43: 48.63228949 | CD43: 49.47849438 | CE43: 50.2888147 | CF43: 51.05777554 | CG43: 51.77984038 | CH43: 52.4496106 | CI43: 53.06204604 | CJ43: 53.61269214 | CK43: 54.09789669 | CL43: 54.51499911 | CM43: 54.86247695 | CN43: 872096.5824 | CO43: 894168.7993 | CP43: 916156.7662 | CQ43: 938032.2619 | CR43: 959759.6427 | CS43: 981294.6385 | CT43: 1002583.215 | CU43: 1023560.613 | CV43: 1044150.693 | CW43: 1064265.736 | CX43: 1083806.858 | CY43: 1102665.166 | CZ43: 1120723.759 | DA43: 1137860.625 | DB43: 1153952.379 | DC43: 1168878.708 | DD43: 1182527.288 | DE43: 1194798.847 | DF43: 1205611.993 | DG43: 1214907.432 | DH43: 1222651.235 | DI43: =IF('Asset data'!$F43=0,0,AY43/'Asset data'!$F43) -> 0.08537003926 | DJ43: =IF('Asset data'!$F43=0,0,AZ43/'Asset data'!$F43) -> 0.1171550819 | DK43: =IF('Asset data'!$F43=0,0,BA43/'Asset data'!$F43) -> 0.1589334328 | DL43: =IF('Asset data'!$F43=0,0,BB43/'Asset data'!$F43) -> 0.2131541577 | DM43: =IF('Asset data'!$F43=0,0,BC43/'Asset data'!$F43) -> 0.2826342111 | DN43: =IF('Asset data'!$F43=0,0,BD43/'Asset data'!$F43) -> 0.3705426381 | DO43: =IF('Asset data'!$F43=0,0,BE43/'Asset data'!$F43) -> 0.4803598762 | DP43: =IF('Asset data'!$F43=0,0,BF43/'Asset data'!$F43) -> 0.6158081457 | DQ43: =IF('Asset data'!$F43=0,0,BG43/'Asset data'!$F43) -> 0.7807502848 | DR43: =IF('Asset data'!$F43=0,0,BH43/'Asset data'!$F43) -> 0.9790563567 | DS43: =IF('Asset data'!$F43=0,0,BI43/'Asset data'!$F43) -> 1.21443986 | DT43: =IF('Asset data'!$F43=0,0,BJ43/'Asset data'!$F43) -> 1.490268265 | DU43: =IF('Asset data'!$F43=0,0,BK43/'Asset data'!$F43) -> 1.809355649 | DV43: =IF('Asset data'!$F43=0,0,BL43/'Asset data'!$F43) -> 2.173748055 | DW43: =IF('Asset data'!$F43=0,0,BM43/'Asset data'!$F43) -> 2.584514649 | DX43: =IF('Asset data'!$F43=0,0,BN43/'Asset data'!$F43) -> 3.041559261 | DY43: =IF('Asset data'!$F43=0,0,BO43/'Asset data'!$F43) -> 3.54346738 | DZ43: =IF('Asset data'!$F43=0,0,BP43/'Asset data'!$F43) -> 4.087402796 | EA43: =IF('Asset data'!$F43=0,0,BQ43/'Asset data'!$F43) -> 4.669065837 | EB43: =IF('Asset data'!$F43=0,0,BR43/'Asset data'!$F43) -> 5.282721612
A44: ='Asset data'!A44 -> 3 | B44: ='Asset data'!B44 -> 0 | C44: ='Asset data'!C44 -> 0 | D44: ='Asset data'!E44 -> ˃ 11 kV & < = 22 kV ; Single-Phase | E44: OVERHEAD CONDUCTORS | F44: ='Asset data'!G44 -> 59.01628646 | G44: 59.01628646 | H44: ='Asset data'!H44 -> 7.682205833 | I44: S | J44: =IF(A44=0,0,IF('Asset data'!$D$1=1,1,IF('Asset data'!$D$1=2,2,'Asset data'!I44))) -> 2 | K44: 59.01628646 | AX44: ='Age profile summary'!H44 -> 95679.38394 | AY44: =repcalc('Age profile (Inst)'!CT44:GF44,J44,K44,H44,20,$L$20,$M$20) -> 685.8059716 | AZ44: 783.2098027 | BA44: 884.7313253 | BB44: 988.7804268 | BC44: 1093.619866 | BD44: 1197.458652 | BE44: 1298.555981 | BF44: 1395.326968 | BG44: 1486.440528 | BH44: 1570.899925 | BI44: 1648.097818 | BJ44: 1717.840003 | BK44: 1780.335105 | BL44: 1836.151006 | BM44: 1886.142169 | BN44: 1931.354935 | BO44: 1972.919928 | BP44: 2011.941619 | BQ44: 2049.394942 | BR44: 2086.037534 | BS44: 31.27922818 | BT44: 31.91481237 | BU44: 32.51014386 | BV44: 33.0657652 | BW44: 33.58315981 | BX44: 34.06468007 | BY44: 34.51340433 | BZ44: 34.9329368 | CA44: 35.32717043 | CB44: 35.70003683 | CC44: 36.05526835 | CD44: 36.3961959 | CE44: 36.72560043 | CF44: 37.04562908 | CG44: 37.35777786 | CH44: 37.66293501 | CI44: 37.96147278 | CJ44: 38.25337247 | CK44: 38.53836731 | CL44: 38.8160898 | CM44: 39.08621389 | CN44: 2992777.282 | CO44: 3053589.586 | CP44: 3110550.536 | CQ44: 3163712.044 | CR44: 3213216.041 | CS44: 3259287.603 | CT44: 3302221.264 | CU44: 3342361.872 | CV44: 3380081.903 | CW44: 3415757.53 | CX44: 3449745.864 | CY44: 3482365.602 | CZ44: 3513882.824 | DA44: 3544502.968 | DB44: 3574369.171 | DC44: 3603566.419 | DD44: 3632130.329 | DE44: 3660059.112 | DF44: 3687327.243 | DG44: 3713899.559 | DH44: 3739744.866 | DI44: =IF('Asset data'!$F44=0,0,AY44/'Asset data'!$F44) -> 15.20568785 | DJ44: =IF('Asset data'!$F44=0,0,AZ44/'Asset data'!$F44) -> 17.36532528 | DK44: =IF('Asset data'!$F44=0,0,BA44/'Asset data'!$F44) -> 19.61626016 | DL44: =IF('Asset data'!$F44=0,0,BB44/'Asset data'!$F44) -> 21.92323652 | DM44: =IF('Asset data'!$F44=0,0,BC44/'Asset data'!$F44) -> 24.24773623 | DN44: =IF('Asset data'!$F44=0,0,BD44/'Asset data'!$F44) -> 26.55004947 | DO44: =IF('Asset data'!$F44=0,0,BE44/'Asset data'!$F44) -> 28.79157913 | DP44: =IF('Asset data'!$F44=0,0,BF44/'Asset data'!$F44) -> 30.93718515 | DQ44: =IF('Asset data'!$F44=0,0,BG44/'Asset data'!$F44) -> 32.95735472 | DR44: =IF('Asset data'!$F44=0,0,BH44/'Asset data'!$F44) -> 34.8299882 | DS44: =IF('Asset data'!$F44=0,0,BI44/'Asset data'!$F44) -> 36.54161965 | DT44: =IF('Asset data'!$F44=0,0,BJ44/'Asset data'!$F44) -> 38.08794315 | DU44: =IF('Asset data'!$F44=0,0,BK44/'Asset data'!$F44) -> 39.47358435 | DV44: =IF('Asset data'!$F44=0,0,BL44/'Asset data'!$F44) -> 40.71113433 | DW44: =IF('Asset data'!$F44=0,0,BM44/'Asset data'!$F44) -> 41.81953824 | DX44: =IF('Asset data'!$F44=0,0,BN44/'Asset data'!$F44) -> 42.82199556 | DY44: =IF('Asset data'!$F44=0,0,BO44/'Asset data'!$F44) -> 43.74357444 | DZ44: =IF('Asset data'!$F44=0,0,BP44/'Asset data'!$F44) -> 44.60876325 | EA44: =IF('Asset data'!$F44=0,0,BQ44/'Asset data'!$F44) -> 45.43917822 | EB44: =IF('Asset data'!$F44=0,0,BR44/'Asset data'!$F44) -> 46.25161765
A45: ='Asset data'!A45 -> 3 | B45: ='Asset data'!B45 -> 0 | C45: ='Asset data'!C45 -> 0 | D45: ='Asset data'!E45 -> ˃ 11 kV & < = 22 kV ; Multiple-Phase | E45: OVERHEAD CONDUCTORS | F45: ='Asset data'!G45 -> 70.73995949 | G45: 70.73995949 | H45: ='Asset data'!H45 -> 8.410705053 | I45: S | J45: =IF(A45=0,0,IF('Asset data'!$D$1=1,1,IF('Asset data'!$D$1=2,2,'Asset data'!I45))) -> 2 | K45: 70.73995949 | AX45: ='Age profile summary'!H45 -> 537017.5362 | AY45: =repcalc('Age profile (Inst)'!CT45:GF45,J45,K45,H45,20,$L$20,$M$20) -> 806.9406897 | AZ45: 987.6428652 | BA45: 1197.218786 | BB45: 1437.586402 | BC45: 1710.217694 | BD45: 2016.019537 | BE45: 2355.222092 | BF45: 2727.282037 | BG45: 3130.808188 | BH45: 3563.51673 | BI45: 4022.222406 | BJ45: 4502.870437 | BK45: 5000.611836 | BL45: 5509.922094 | BM45: 6024.760258 | BN45: 6538.762288 | BO45: 7045.459623 | BP45: 7538.51142 | BQ45: 8011.937091 | BR45: 8460.334973 | BS45: 32.45528587 | BT45: 33.37101296 | BU45: 34.26814357 | BV45: 35.14396488 | BW45: 35.99567594 | BX45: 36.82044635 | BY45: 37.61548434 | BZ45: 38.37811355 | CA45: 39.10585695 | CB45: 39.7965251 | CC45: 40.44830461 | CD45: 41.059841 | CE45: 41.63030981 | CF45: 42.15946989 | CG45: 42.64769398 | CH45: 43.09597383 | CI45: 43.50589885 | CJ45: 43.87960955 | CK45: 44.21972838 | CL45: 44.5292716 | CM45: 44.81154696 | CN45: 17429057.65 | CO45: 17920819.16 | CP45: 18402594.03 | CQ45: 18872925.43 | CR45: 19330309.21 | CS45: 19773225.38 | CT45: 20200174.72 | CU45: 20609719.98 | CV45: 21000530.95 | CW45: 21371431.86 | CX45: 21721448.89 | CY45: 22049854.65 | CZ45: 22356206.41 | DA45: 22640374.65 | DB45: 22902559.55 | DC45: 23143293.69 | DD45: 23363430.61 | DE45: 23564119.81 | DF45: 23746769.59 | DG45: 23912999.72 | DH45: 24064586.54 | DI45: =IF('Asset data'!$F45=0,0,AY45/'Asset data'!$F45) -> 14.2924199 | DJ45: =IF('Asset data'!$F45=0,0,AZ45/'Asset data'!$F45) -> 17.49299139 | DK45: =IF('Asset data'!$F45=0,0,BA45/'Asset data'!$F45) -> 21.2049706 | DL45: =IF('Asset data'!$F45=0,0,BB45/'Asset data'!$F45) -> 25.46232797 | DM45: =IF('Asset data'!$F45=0,0,BC45/'Asset data'!$F45) -> 30.29113503 | DN45: =IF('Asset data'!$F45=0,0,BD45/'Asset data'!$F45) -> 35.70745422 | DO45: =IF('Asset data'!$F45=0,0,BE45/'Asset data'!$F45) -> 41.71536212 | DP45: =IF('Asset data'!$F45=0,0,BF45/'Asset data'!$F45) -> 48.30523549 | DQ45: =IF('Asset data'!$F45=0,0,BG45/'Asset data'!$F45) -> 55.45243387 | DR45: =IF('Asset data'!$F45=0,0,BH45/'Asset data'!$F45) -> 63.11650665 | DS45: =IF('Asset data'!$F45=0,0,BI45/'Asset data'!$F45) -> 71.241037 | DT45: =IF('Asset data'!$F45=0,0,BJ45/'Asset data'!$F45) -> 79.75420727 | DU45: =IF('Asset data'!$F45=0,0,BK45/'Asset data'!$F45) -> 88.57013285 | DV45: =IF('Asset data'!$F45=0,0,BL45/'Asset data'!$F45) -> 97.59096444 | DW45: =IF('Asset data'!$F45=0,0,BM45/'Asset data'!$F45) -> 106.7097055 | DX45: =IF('Asset data'!$F45=0,0,BN45/'Asset data'!$F45) -> 115.8136371 | DY45: =IF('Asset data'!$F45=0,0,BO45/'Asset data'!$F45) -> 124.788189 | DZ45: =IF('Asset data'!$F45=0,0,BP45/'Asset data'!$F45) -> 133.521053 | EA45: =IF('Asset data'!$F45=0,0,BQ45/'Asset data'!$F45) -> 141.9063018 | EB45: =IF('Asset data'!$F45=0,0,BR45/'Asset data'!$F45) -> 149.848262
A46: ='Asset data'!A46 -> 3 | B46: ='Asset data'!B46 -> 0 | C46: ='Asset data'!C46 -> 0 | D46: ='Asset data'!E46 -> > 22 kV & < = 66 kV | E46: OVERHEAD CONDUCTORS | F46: ='Asset data'!G46 -> 87.00627353 | G46: 87.00627353 | H46: ='Asset data'!H46 -> 9.327715343 | I46: S | J46: =IF(A46=0,0,IF('Asset data'!$D$1=1,1,IF('Asset data'!$D$1=2,2,'Asset data'!I46))) -> 2 | K46: 87.00627353 | AX46: ='Age profile summary'!H46 -> 22130.27862 | AY46: =repcalc('Age profile (Inst)'!CT46:GF46,J46,K46,H46,20,$L$20,$M$20) -> 4.193144289 | AZ46: 5.667865172 | BA46: 7.583412192 | BB46: 10.04391183 | BC46: 13.16932122 | BD46: 17.09530939 | BE46: 21.97232759 | BF46: 27.96371177 | BG46: 35.24268836 | BH46: 43.98820007 | BI46: 54.37952961 | BJ46: 66.5897748 | BK46: 80.77831335 | BL46: 97.08248505 | BM46: 115.6088054 | BN46: 136.4241005 | BO46: 159.5470123 | BP46: 184.9403557 | BQ46: 212.5048176 | BR46: 242.0744601 | BS46: 47.76052449 | BT46: 48.74909639 | BU46: 49.73343555 | BV46: 50.71220455 | BW46: 51.68373088 | BX46: 52.64595332 | BY46: 53.59636953 | BZ46: 54.53198873 | CA46: 55.44929396 | CB46: 56.34421914 | CC46: 57.21214651 | CD46: 58.04792981 | CE46: 58.84594763 | CF46: 59.60019034 | CG46: 60.30438144 | CH46: 60.95213194 | CI46: 61.53712341 | CJ46: 62.05331277 | CK46: 62.49514938 | CL46: 62.85779421 | CM46: 63.13732984 | CN46: 1056953.714 | CO46: 1078831.086 | CP46: 1100614.785 | CQ46: 1122275.216 | CR46: 1143775.364 | CS46: 1165069.615 | CT46: 1186102.591 | CU46: 1206808.104 | CV46: 1227108.325 | CW46: 1246913.268 | CX46: 1266120.743 | CY46: 1284616.86 | CZ46: 1302277.217 | DA46: 1318968.818 | DB46: 1334552.763 | DC46: 1348887.662 | DD46: 1361833.687 | DE46: 1373257.101 | DF46: 1383035.068 | DG46: 1391060.499 | DH46: 1397246.701 | DI46: =IF('Asset data'!$F46=0,0,AY46/'Asset data'!$F46) -> 0.02542514093 | DJ46: =IF('Asset data'!$F46=0,0,AZ46/'Asset data'!$F46) -> 0.03436711471 | DK46: =IF('Asset data'!$F46=0,0,BA46/'Asset data'!$F46) -> 0.04598203887 | DL46: =IF('Asset data'!$F46=0,0,BB46/'Asset data'!$F46) -> 0.06090128459 | DM46: =IF('Asset data'!$F46=0,0,BC46/'Asset data'!$F46) -> 0.07985221232 | DN46: =IF('Asset data'!$F46=0,0,BD46/'Asset data'!$F46) -> 0.1036574514 | DO46: =IF('Asset data'!$F46=0,0,BE46/'Asset data'!$F46) -> 0.1332292636 | DP46: =IF('Asset data'!$F46=0,0,BF46/'Asset data'!$F46) -> 0.1695580366 | DQ46: =IF('Asset data'!$F46=0,0,BG46/'Asset data'!$F46) -> 0.2136941294 | DR46: =IF('Asset data'!$F46=0,0,BH46/'Asset data'!$F46) -> 0.2667225616 | DS46: =IF('Asset data'!$F46=0,0,BI46/'Asset data'!$F46) -> 0.3297304144 | DT46: =IF('Asset data'!$F46=0,0,BJ46/'Asset data'!$F46) -> 0.4037672668 | DU46: =IF('Asset data'!$F46=0,0,BK46/'Asset data'!$F46) -> 0.4897995059 | DV46: =IF('Asset data'!$F46=0,0,BL46/'Asset data'!$F46) -> 0.588659892 | DW46: =IF('Asset data'!$F46=0,0,BM46/'Asset data'!$F46) -> 0.7009942818 | DX46: =IF('Asset data'!$F46=0,0,BN46/'Asset data'!$F46) -> 0.8272078763 | DY46: =IF('Asset data'!$F46=0,0,BO46/'Asset data'!$F46) -> 0.9674137101 | DZ46: =IF('Asset data'!$F46=0,0,BP46/'Asset data'!$F46) -> 1.121386312 | EA46: =IF('Asset data'!$F46=0,0,BQ46/'Asset data'!$F46) -> 1.288523495 | EB46: =IF('Asset data'!$F46=0,0,BR46/'Asset data'!$F46) -> 1.467819097
A47: ='Asset data'!A47 -> 0 | B47: ='Asset data'!B47 -> 0 | C47: ='Asset data'!C47 -> 0 | D47: ='Asset data'!E47 ->  | E47: 0 | F47: ='Asset data'!G47 -> 50 | G47: 50 | H47: ='Asset data'!H47 -> 7.071067812 | I47: S | J47: =IF(A47=0,0,IF('Asset data'!$D$1=1,1,IF('Asset data'!$D$1=2,2,'Asset data'!I47))) -> 0 | K47: 0 | AX47: ='Age profile summary'!H47 -> 0 | AY47: =repcalc('Age profile (Inst)'!CT47:GF47,J47,K47,H47,20,$L$20,$M$20) -> 0 | AZ47: 0 | BA47: 0 | BB47: 0 | BC47: 0 | BD47: 0 | BE47: 0 | BF47: 0 | BG47: 0 | BH47: 0 | BI47: 0 | BJ47: 0 | BK47: 0 | BL47: 0 | BM47: 0 | BN47: 0 | BO47: 0 | BP47: 0 | BQ47: 0 | BR47: 0 | BS47: 0 | BT47: 0 | BU47: 0 | BV47: 0 | BW47: 0 | BX47: 0 | BY47: 0 | BZ47: 0 | CA47: 0 | CB47: 0 | CC47: 0 | CD47: 0 | CE47: 0 | CF47: 0 | CG47: 0 | CH47: 0 | CI47: 0 | CJ47: 0 | CK47: 0 | CL47: 0 | CM47: 0 | CN47: 0 | CO47: 0 | CP47: 0 | CQ47: 0 | CR47: 0 | CS47: 0 | CT47: 0 | CU47: 0 | CV47: 0 | CW47: 0 | CX47: 0 | CY47: 0 | CZ47: 0 | DA47: 0 | DB47: 0 | DC47: 0 | DD47: 0 | DE47: 0 | DF47: 0 | DG47: 0 | DH47: 0 | DI47: =IF('Asset data'!$F47=0,0,AY47/'Asset data'!$F47) -> 0 | DJ47: =IF('Asset data'!$F47=0,0,AZ47/'Asset data'!$F47) -> 0 | DK47: =IF('Asset data'!$F47=0,0,BA47/'Asset data'!$F47) -> 0 | DL47: =IF('Asset data'!$F47=0,0,BB47/'Asset data'!$F47) -> 0 | DM47: =IF('Asset data'!$F47=0,0,BC47/'Asset data'!$F47) -> 0 | DN47: =IF('Asset data'!$F47=0,0,BD47/'Asset data'!$F47) -> 0 | DO47: =IF('Asset data'!$F47=0,0,BE47/'Asset data'!$F47) -> 0 | DP47: =IF('Asset data'!$F47=0,0,BF47/'Asset data'!$F47) -> 0 | DQ47: =IF('Asset data'!$F47=0,0,BG47/'Asset data'!$F47) -> 0 | DR47: =IF('Asset data'!$F47=0,0,BH47/'Asset data'!$F47) -> 0 | DS47: =IF('Asset data'!$F47=0,0,BI47/'Asset data'!$F47) -> 0 | DT47: =IF('Asset data'!$F47=0,0,BJ47/'Asset data'!$F47) -> 0 | DU47: =IF('Asset data'!$F47=0,0,BK47/'Asset data'!$F47) -> 0 | DV47: =IF('Asset data'!$F47=0,0,BL47/'Asset data'!$F47) -> 0 | DW47: =IF('Asset data'!$F47=0,0,BM47/'Asset data'!$F47) -> 0 | DX47: =IF('Asset data'!$F47=0,0,BN47/'Asset data'!$F47) -> 0 | DY47: =IF('Asset data'!$F47=0,0,BO47/'Asset data'!$F47) -> 0 | DZ47: =IF('Asset data'!$F47=0,0,BP47/'Asset data'!$F47) -> 0 | EA47: =IF('Asset data'!$F47=0,0,BQ47/'Asset data'!$F47) -> 0 | EB47: =IF('Asset data'!$F47=0,0,BR47/'Asset data'!$F47) -> 0
A48: ='Asset data'!A48 -> 0 | B48: ='Asset data'!B48 -> 0 | C48: ='Asset data'!C48 -> 0 | D48: ='Asset data'!E48 ->  | E48: 0 | F48: ='Asset data'!G48 -> 50 | G48: 50 | H48: ='Asset data'!H48 -> 7.071067812 | I48: S | J48: =IF(A48=0,0,IF('Asset data'!$D$1=1,1,IF('Asset data'!$D$1=2,2,'Asset data'!I48))) -> 0 | K48: 0 | AX48: ='Age profile summary'!H48 -> 0 | AY48: =repcalc('Age profile (Inst)'!CT48:GF48,J48,K48,H48,20,$L$20,$M$20) -> 0 | AZ48: 0 | BA48: 0 | BB48: 0 | BC48: 0 | BD48: 0 | BE48: 0 | BF48: 0 | BG48: 0 | BH48: 0 | BI48: 0 | BJ48: 0 | BK48: 0 | BL48: 0 | BM48: 0 | BN48: 0 | BO48: 0 | BP48: 0 | BQ48: 0 | BR48: 0 | BS48: 0 | BT48: 0 | BU48: 0 | BV48: 0 | BW48: 0 | BX48: 0 | BY48: 0 | BZ48: 0 | CA48: 0 | CB48: 0 | CC48: 0 | CD48: 0 | CE48: 0 | CF48: 0 | CG48: 0 | CH48: 0 | CI48: 0 | CJ48: 0 | CK48: 0 | CL48: 0 | CM48: 0 | CN48: 0 | CO48: 0 | CP48: 0 | CQ48: 0 | CR48: 0 | CS48: 0 | CT48: 0 | CU48: 0 | CV48: 0 | CW48: 0 | CX48: 0 | CY48: 0 | CZ48: 0 | DA48: 0 | DB48: 0 | DC48: 0 | DD48: 0 | DE48: 0 | DF48: 0 | DG48: 0 | DH48: 0 | DI48: =IF('Asset data'!$F48=0,0,AY48/'Asset data'!$F48) -> 0 | DJ48: =IF('Asset data'!$F48=0,0,AZ48/'Asset data'!$F48) -> 0 | DK48: =IF('Asset data'!$F48=0,0,BA48/'Asset data'!$F48) -> 0 | DL48: =IF('Asset data'!$F48=0,0,BB48/'Asset data'!$F48) -> 0 | DM48: =IF('Asset data'!$F48=0,0,BC48/'Asset data'!$F48) -> 0 | DN48: =IF('Asset data'!$F48=0,0,BD48/'Asset data'!$F48) -> 0 | DO48: =IF('Asset data'!$F48=0,0,BE48/'Asset data'!$F48) -> 0 | DP48: =IF('Asset data'!$F48=0,0,BF48/'Asset data'!$F48) -> 0 | DQ48: =IF('Asset data'!$F48=0,0,BG48/'Asset data'!$F48) -> 0 | DR48: =IF('Asset data'!$F48=0,0,BH48/'Asset data'!$F48) -> 0 | DS48: =IF('Asset data'!$F48=0,0,BI48/'Asset data'!$F48) -> 0 | DT48: =IF('Asset data'!$F48=0,0,BJ48/'Asset data'!$F48) -> 0 | DU48: =IF('Asset data'!$F48=0,0,BK48/'Asset data'!$F48) -> 0 | DV48: =IF('Asset data'!$F48=0,0,BL48/'Asset data'!$F48) -> 0 | DW48: =IF('Asset data'!$F48=0,0,BM48/'Asset data'!$F48) -> 0 | DX48: =IF('Asset data'!$F48=0,0,BN48/'Asset data'!$F48) -> 0 | DY48: =IF('Asset data'!$F48=0,0,BO48/'Asset data'!$F48) -> 0 | DZ48: =IF('Asset data'!$F48=0,0,BP48/'Asset data'!$F48) -> 0 | EA48: =IF('Asset data'!$F48=0,0,BQ48/'Asset data'!$F48) -> 0 | EB48: =IF('Asset data'!$F48=0,0,BR48/'Asset data'!$F48) -> 0
A49: ='Asset data'!A49 -> 0 | B49: ='Asset data'!B49 -> 0 | C49: ='Asset data'!C49 -> 0 | D49: ='Asset data'!E49 ->  | E49: 0 | F49: ='Asset data'!G49 -> 0 | G49: 0 | H49: ='Asset data'!H49 -> 0 | I49: S | J49: =IF(A49=0,0,IF('Asset data'!$D$1=1,1,IF('Asset data'!$D$1=2,2,'Asset data'!I49))) -> 0 | K49: 0 | AX49: ='Age profile summary'!H49 -> 0 | AY49: =repcalc('Age profile (Inst)'!CT49:GF49,J49,K49,H49,20,$L$20,$M$20) -> 0 | AZ49: 0 | BA49: 0 | BB49: 0 | BC49: 0 | BD49: 0 | BE49: 0 | BF49: 0 | BG49: 0 | BH49: 0 | BI49: 0 | BJ49: 0 | BK49: 0 | BL49: 0 | BM49: 0 | BN49: 0 | BO49: 0 | BP49: 0 | BQ49: 0 | BR49: 0 | BS49: 0 | BT49: 0 | BU49: 0 | BV49: 0 | BW49: 0 | BX49: 0 | BY49: 0 | BZ49: 0 | CA49: 0 | CB49: 0 | CC49: 0 | CD49: 0 | CE49: 0 | CF49: 0 | CG49: 0 | CH49: 0 | CI49: 0 | CJ49: 0 | CK49: 0 | CL49: 0 | CM49: 0 | CN49: 0 | CO49: 0 | CP49: 0 | CQ49: 0 | CR49: 0 | CS49: 0 | CT49: 0 | CU49: 0 | CV49: 0 | CW49: 0 | CX49: 0 | CY49: 0 | CZ49: 0 | DA49: 0 | DB49: 0 | DC49: 0 | DD49: 0 | DE49: 0 | DF49: 0 | DG49: 0 | DH49: 0 | DI49: =IF('Asset data'!$F49=0,0,AY49/'Asset data'!$F49) -> 0 | DJ49: =IF('Asset data'!$F49=0,0,AZ49/'Asset data'!$F49) -> 0 | DK49: =IF('Asset data'!$F49=0,0,BA49/'Asset data'!$F49) -> 0 | DL49: =IF('Asset data'!$F49=0,0,BB49/'Asset data'!$F49) -> 0 | DM49: =IF('Asset data'!$F49=0,0,BC49/'Asset data'!$F49) -> 0 | DN49: =IF('Asset data'!$F49=0,0,BD49/'Asset data'!$F49) -> 0 | DO49: =IF('Asset data'!$F49=0,0,BE49/'Asset data'!$F49) -> 0 | DP49: =IF('Asset data'!$F49=0,0,BF49/'Asset data'!$F49) -> 0 | DQ49: =IF('Asset data'!$F49=0,0,BG49/'Asset data'!$F49) -> 0 | DR49: =IF('Asset data'!$F49=0,0,BH49/'Asset data'!$F49) -> 0 | DS49: =IF('Asset data'!$F49=0,0,BI49/'Asset data'!$F49) -> 0 | DT49: =IF('Asset data'!$F49=0,0,BJ49/'Asset data'!$F49) -> 0 | DU49: =IF('Asset data'!$F49=0,0,BK49/'Asset data'!$F49) -> 0 | DV49: =IF('Asset data'!$F49=0,0,BL49/'Asset data'!$F49) -> 0 | DW49: =IF('Asset data'!$F49=0,0,BM49/'Asset data'!$F49) -> 0 | DX49: =IF('Asset data'!$F49=0,0,BN49/'Asset data'!$F49) -> 0 | DY49: =IF('Asset data'!$F49=0,0,BO49/'Asset data'!$F49) -> 0 | DZ49: =IF('Asset data'!$F49=0,0,BP49/'Asset data'!$F49) -> 0 | EA49: =IF('Asset data'!$F49=0,0,BQ49/'Asset data'!$F49) -> 0 | EB49: =IF('Asset data'!$F49=0,0,BR49/'Asset data'!$F49) -> 0
A50: ='Asset data'!A50 -> 4 | B50: ='Asset data'!B50 -> 0 | C50: ='Asset data'!C50 -> 0 | D50: ='Asset data'!E50 -> ˂ = 1 kV | E50: UNDERGROUND CABLES | F50: ='Asset data'!G50 -> 67.88620914 | G50: 67.88620914 | H50: ='Asset data'!H50 -> 8.239308778 | I50: S | J50: =IF(A50=0,0,IF('Asset data'!$D$1=1,1,IF('Asset data'!$D$1=2,2,'Asset data'!I50))) -> 2 | K50: 67.88620914 | AX50: ='Age profile summary'!H50 -> 166323.1214 | AY50: =repcalc('Age profile (Inst)'!CT50:GF50,J50,K50,H50,20,$L$20,$M$20) -> 53.20539999 | AZ50: 66.09171401 | BA50: 81.21415337 | BB50: 98.76061592 | BC50: 118.9035602 | BD50: 141.7993786 | BE50: 167.5902448 | BF50: 196.408476 | BG50: 228.3830779 | BH50: 263.6477368 | BI50: 302.3491466 | BJ50: 344.6542599 | BK50: 390.7548991 | BL50: 440.8681877 | BM50: 495.2315034 | BN50: 554.0910943 | BO50: 617.684121 | BP50: 686.2146208 | BQ50: 759.8246686 | BR50: 838.5627278 | BS50: 16.26555927 | BT50: 17.24867921 | BU50: 18.2276659 | BV50: 19.20185265 | BW50: 20.17054888 | BX50: 21.13305315 | BY50: 22.08866383 | BZ50: 23.03668528 | CA50: 23.97642756 | CB50: 24.90719864 | CC50: 25.82828917 | CD50: 26.73895113 | CE50: 27.63837321 | CF50: 28.5256565 | CG50: 29.39979478 | CH50: 30.25966352 | CI50: 31.10402104 | CJ50: 31.93152415 | CK50: 32.74075908 | CL50: 33.53028692 | CM50: 34.29870132 | CN50: 2705338.59 | CO50: 2868854.166 | CP50: 3031682.289 | CQ50: 3193712.069 | CR50: 3354828.649 | CS50: 3514915.363 | CT50: 3673855.515 | CU50: 3831533.402 | CV50: 3987834.271 | CW50: 4142643.022 | CX50: 4295841.674 | CY50: 4447305.814 | CZ50: 4596900.502 | DA50: 4744476.229 | DB50: 4889865.637 | DC50: 5032881.689 | DD50: 5173317.867 | DE50: 5310950.767 | DF50: 5445545.247 | DG50: 5576861.981 | DH50: 5704667.063 | DI50: =IF('Asset data'!$F50=0,0,AY50/'Asset data'!$F50) -> 0.3967429058 | DJ50: =IF('Asset data'!$F50=0,0,AZ50/'Asset data'!$F50) -> 0.4928337852 | DK50: =IF('Asset data'!$F50=0,0,BA50/'Asset data'!$F50) -> 0.6055990409 | DL50: =IF('Asset data'!$F50=0,0,BB50/'Asset data'!$F50) -> 0.7364397928 | DM50: =IF('Asset data'!$F50=0,0,BC50/'Asset data'!$F50) -> 0.8866420328 | DN50: =IF('Asset data'!$F50=0,0,BD50/'Asset data'!$F50) -> 1.05737195 | DO50: =IF('Asset data'!$F50=0,0,BE50/'Asset data'!$F50) -> 1.249689707 | DP50: =IF('Asset data'!$F50=0,0,BF50/'Asset data'!$F50) -> 1.464581969 | DQ50: =IF('Asset data'!$F50=0,0,BG50/'Asset data'!$F50) -> 1.703010709 | DR50: =IF('Asset data'!$F50=0,0,BH50/'Asset data'!$F50) -> 1.965972801 | DS50: =IF('Asset data'!$F50=0,0,BI50/'Asset data'!$F50) -> 2.254562112 | DT50: =IF('Asset data'!$F50=0,0,BJ50/'Asset data'!$F50) -> 2.570023581 | DU50: =IF('Asset data'!$F50=0,0,BK50/'Asset data'!$F50) -> 2.913787589 | DV50: =IF('Asset data'!$F50=0,0,BL50/'Asset data'!$F50) -> 3.287473187 | DW50: =IF('Asset data'!$F50=0,0,BM50/'Asset data'!$F50) -> 3.692850458 | DX50: =IF('Asset data'!$F50=0,0,BN50/'Asset data'!$F50) -> 4.131755628 | DY50: =IF('Asset data'!$F50=0,0,BO50/'Asset data'!$F50) -> 4.60595716 | DZ50: =IF('Asset data'!$F50=0,0,BP50/'Asset data'!$F50) -> 5.116976524 | EA50: =IF('Asset data'!$F50=0,0,BQ50/'Asset data'!$F50) -> 5.665873145 | EB50: =IF('Asset data'!$F50=0,0,BR50/'Asset data'!$F50) -> 6.253008406
A51: ='Asset data'!A51 -> 4 | B51: ='Asset data'!B51 -> 0 | C51: ='Asset data'!C51 -> 0 | D51: ='Asset data'!E51 -> > 1 kV & < = 11 kV | E51: UNDERGROUND CABLES | F51: ='Asset data'!G51 -> 67.52818144 | G51: 67.52818144 | H51: ='Asset data'!H51 -> 8.217553252 | I51: S | J51: =IF(A51=0,0,IF('Asset data'!$D$1=1,1,IF('Asset data'!$D$1=2,2,'Asset data'!I51))) -> 2 | K51: 67.52818144 | AX51: ='Age profile summary'!H51 -> 258175.7661 | AY51: =repcalc('Age profile (Inst)'!CT51:GF51,J51,K51,H51,20,$L$20,$M$20) -> 251.1813756 | AZ51: 311.9235929 | BA51: 382.8303208 | BB51: 464.4764747 | BC51: 557.2287663 | BD51: 661.2127736 | BE51: 776.2935022 | BF51: 902.0728398 | BG51: 1037.905992 | BH51: 1182.937216 | BI51: 1336.153098 | BJ51: 1496.449469 | BK51: 1662.706094 | BL51: 1833.861764 | BM51: 2008.981619 | BN51: 2187.308653 | BO51: 2368.292404 | BP51: 2551.589901 | BQ51: 2737.036719 | BR51: 2924.589341 | BS51: 26.21935682 | BT51: 27.16829606 | BU51: 28.10466782 | BV51: 29.02648743 | BW51: 29.9317521 | BX51: 30.81851168 | BY51: 31.68494126 | BZ51: 32.52940887 | CA51: 33.35053055 | CB51: 34.1472065 | CC51: 34.91863343 | CD51: 35.66429103 | CE51: 36.38390358 | CF51: 37.0773803 | CG51: 37.74474127 | CH51: 38.38603708 | CI51: 39.00127199 | CJ51: 39.59034059 | CK51: 40.15298734 | CL51: 40.68879646 | CM51: 41.19721703 | CN51: 6769202.533 | CO51: 7014195.65 | CP51: 7255944.147 | CQ51: 7493935.629 | CR51: 7727653.03 | CS51: 7956592.862 | CT51: 8180283.984 | CU51: 8398305.056 | CV51: 8610298.775 | CW51: 8815981.199 | CX51: 9015144.937 | CY51: 9207655.661 | CZ51: 9393442.18 | DA51: 9572481.064 | DB51: 9744777.495 | DC51: 9910344.532 | DD51: 10069183.28 | DE51: 10221266.51 | DF51: 10366528.27 | DG51: 10504861.2 | DH51: 10636123.07 | DI51: =IF('Asset data'!$F51=0,0,AY51/'Asset data'!$F51) -> 0.6082029942 | DJ51: =IF('Asset data'!$F51=0,0,AZ51/'Asset data'!$F51) -> 0.7552823638 | DK51: =IF('Asset data'!$F51=0,0,BA51/'Asset data'!$F51) -> 0.9269737726 | DL51: =IF('Asset data'!$F51=0,0,BB51/'Asset data'!$F51) -> 1.124669303 | DM51: =IF('Asset data'!$F51=0,0,BC51/'Asset data'!$F51) -> 1.349256899 | DN51: =IF('Asset data'!$F51=0,0,BD51/'Asset data'!$F51) -> 1.601040633 | DO51: =IF('Asset data'!$F51=0,0,BE51/'Asset data'!$F51) -> 1.879693633 | DP51: =IF('Asset data'!$F51=0,0,BF51/'Asset data'!$F51) -> 2.184251921 | DQ51: =IF('Asset data'!$F51=0,0,BG51/'Asset data'!$F51) -> 2.513154212 | DR51: =IF('Asset data'!$F51=0,0,BH51/'Asset data'!$F51) -> 2.864328436 | DS51: =IF('Asset data'!$F51=0,0,BI51/'Asset data'!$F51) -> 3.235320744 | DT51: =IF('Asset data'!$F51=0,0,BJ51/'Asset data'!$F51) -> 3.623457533 | DU51: =IF('Asset data'!$F51=0,0,BK51/'Asset data'!$F51) -> 4.026026303 | DV51: =IF('Asset data'!$F51=0,0,BL51/'Asset data'!$F51) -> 4.44045747 | DW51: =IF('Asset data'!$F51=0,0,BM51/'Asset data'!$F51) -> 4.864487397 | DX51: =IF('Asset data'!$F51=0,0,BN51/'Asset data'!$F51) -> 5.296283088 | DY51: =IF('Asset data'!$F51=0,0,BO51/'Asset data'!$F51) -> 5.734511676 | DZ51: =IF('Asset data'!$F51=0,0,BP51/'Asset data'!$F51) -> 6.178342697 | EA51: =IF('Asset data'!$F51=0,0,BQ51/'Asset data'!$F51) -> 6.627378019 | EB51: =IF('Asset data'!$F51=0,0,BR51/'Asset data'!$F51) -> 7.081512271
A52: ='Asset data'!A52 -> 4 | B52: ='Asset data'!B52 -> 0 | C52: ='Asset data'!C52 -> 0 | D52: ='Asset data'!E52 -> > 11 kV & < = 22 kV | E52: UNDERGROUND CABLES | F52: ='Asset data'!G52 -> 60.92304471 | G52: 60.92304471 | H52: ='Asset data'!H52 -> 7.805321564 | I52: S | J52: =IF(A52=0,0,IF('Asset data'!$D$1=1,1,IF('Asset data'!$D$1=2,2,'Asset data'!I52))) -> 2 | K52: 60.92304471 | AX52: ='Age profile summary'!H52 -> 131878.2354 | AY52: =repcalc('Age profile (Inst)'!CT52:GF52,J52,K52,H52,20,$L$20,$M$20) -> 27.58899807 | AZ52: 35.51975758 | BA52: 45.30680979 | BB52: 57.27095431 | BC52: 71.7609229 | BD52: 89.14855533 | BE52: 109.8213007 | BF52: 134.171638 | BG52: 162.5831915 | BH52: 195.4136149 | BI52: 232.9747296 | BJ52: 275.510898 | BK52: 323.177149 | BL52: 376.0190716 | BM52: 433.9568765 | BN52: 496.7761996 | BO52: 564.128119 | BP52: 635.54043 | BQ52: 710.4414538 | BR52: 788.1965957 | BS52: 16.08971852 | BT52: 17.08025873 | BU52: 18.06806586 | BV52: 19.05251603 | BW52: 20.03288478 | BX52: 21.00833883 | BY52: 21.97792859 | BZ52: 22.9405825 | CA52: 23.8951048 | CB52: 24.84017884 | CC52: 25.7743785 | CD52: 26.69619005 | CE52: 27.60404619 | CF52: 28.49637223 | CG52: 29.37164294 | CH52: 30.22844571 | CI52: 31.06554443 | CJ52: 31.88193661 | CK52: 32.67689623 | CL52: 33.44999549 | CM52: 34.20110051 | CN52: 2121883.687 | CO52: 2252514.383 | CP52: 2382784.643 | CQ52: 2512612.194 | CR52: 2641901.496 | CS52: 2770542.655 | CT52: 2898410.441 | CU52: 3025363.539 | CV52: 3151244.256 | CW52: 3275878.953 | CX52: 3399079.555 | CY52: 3520646.437 | CZ52: 3640372.902 | DA52: 3758051.286 | DB52: 3873480.443 | DC52: 3986474.08 | DD52: 4096869.182 | DE52: 4204533.543 | DF52: 4309371.414 | DG52: 4411326.381 | DH52: 4510380.784 | DI52: =IF('Asset data'!$F52=0,0,AY52/'Asset data'!$F52) -> 0.1110679139 | DJ52: =IF('Asset data'!$F52=0,0,AZ52/'Asset data'!$F52) -> 0.1429956016 | DK52: =IF('Asset data'!$F52=0,0,BA52/'Asset data'!$F52) -> 0.1823963609 | DL52: =IF('Asset data'!$F52=0,0,BB52/'Asset data'!$F52) -> 0.2305616683 | DM52: =IF('Asset data'!$F52=0,0,BC52/'Asset data'!$F52) -> 0.2888954498 | DN52: =IF('Asset data'!$F52=0,0,BD52/'Asset data'!$F52) -> 0.3588946595 | DO52: =IF('Asset data'!$F52=0,0,BE52/'Asset data'!$F52) -> 0.4421190919 | DP52: =IF('Asset data'!$F52=0,0,BF52/'Asset data'!$F52) -> 0.5401487907 | DQ52: =IF('Asset data'!$F52=0,0,BG52/'Asset data'!$F52) -> 0.6545281519 | DR52: =IF('Asset data'!$F52=0,0,BH52/'Asset data'!$F52) -> 0.7866970197 | DS52: =IF('Asset data'!$F52=0,0,BI52/'Asset data'!$F52) -> 0.9379107262 | DT52: =IF('Asset data'!$F52=0,0,BJ52/'Asset data'!$F52) -> 1.109153026 | DU52: =IF('Asset data'!$F52=0,0,BK52/'Asset data'!$F52) -> 1.301048036 | DV52: =IF('Asset data'!$F52=0,0,BL52/'Asset data'!$F52) -> 1.513779289 | DW52: =IF('Asset data'!$F52=0,0,BM52/'Asset data'!$F52) -> 1.747025567 | DX52: =IF('Asset data'!$F52=0,0,BN52/'Asset data'!$F52) -> 1.999923884 | DY52: =IF('Asset data'!$F52=0,0,BO52/'Asset data'!$F52) -> 2.271069547 | DZ52: =IF('Asset data'!$F52=0,0,BP52/'Asset data'!$F52) -> 2.558561554 | EA52: =IF('Asset data'!$F52=0,0,BQ52/'Asset data'!$F52) -> 2.860098436 | EB52: =IF('Asset data'!$F52=0,0,BR52/'Asset data'!$F52) -> 3.17312544
A53: ='Asset data'!A53 -> 4 | B53: ='Asset data'!B53 -> 0 | C53: ='Asset data'!C53 -> 0 | D53: ='Asset data'!E53 -> > 22 kV & < = 33 kV | E53: UNDERGROUND CABLES | F53: ='Asset data'!G53 -> 65.72105017 | G53: 65.72105017 | H53: ='Asset data'!H53 -> 8.106852051 | I53: S | J53: =IF(A53=0,0,IF('Asset data'!$D$1=1,1,IF('Asset data'!$D$1=2,2,'Asset data'!I53))) -> 2 | K53: 65.72105017 | AX53: ='Age profile summary'!H53 -> 61042.21033 | AY53: =repcalc('Age profile (Inst)'!CT53:GF53,J53,K53,H53,20,$L$20,$M$20) -> 181.8210457 | AZ53: 226.4625348 | BA53: 278.0161206 | BB53: 336.4158695 | BC53: 401.2616337 | BD53: 471.7756881 | BE53: 546.7799954 | BF53: 624.6999695 | BG53: 703.5988092 | BH53: 781.2438969 | BI53: 855.2036157 | BJ53: 922.9695908 | BK53: 982.0962072 | BL53: 1030.346751 | BM53: 1065.834033 | BN53: 1087.143156 | BO53: 1093.425286 | BP53: 1084.453789 | BQ53: 1060.637618 | BR53: 1022.990953 | BS53: 21.80599319 | BT53: 22.65468855 | BU53: 23.46462152 | BV53: 24.22991922 | BW53: 24.94509219 | BX53: 25.60546747 | BY53: 26.207651 | BZ53: 26.74997402 | CA53: 27.23287056 | CB53: 27.65913304 | CC53: 28.03400232 | CD53: 28.36506675 | CE53: 28.66196848 | CF53: 28.93594105 | CG53: 29.19922447 | CH53: 29.46441797 | CI53: 29.74383556 | CJ53: 30.04892298 | CK53: 30.38978169 | CL53: 30.77482733 | CM53: 31.21059142 | CN53: 1331086.023 | CO53: 1382892.264 | CP53: 1432332.362 | CQ53: 1479047.825 | CR53: 1522703.564 | CS53: 1563014.331 | CT53: 1599772.944 | CU53: 1632877.54 | CV53: 1662354.613 | CW53: 1688374.617 | CX53: 1711257.466 | CY53: 1731466.371 | CZ53: 1749589.908 | DA53: 1766313.8 | DB53: 1782385.201 | DC53: 1798573.199 | DD53: 1815629.466 | DE53: 1834252.676 | DF53: 1855059.446 | DG53: 1878563.483 | DH53: 1905163.486 | DI53: =IF('Asset data'!$F53=0,0,AY53/'Asset data'!$F53) -> 0.2055093185 | DJ53: =IF('Asset data'!$F53=0,0,AZ53/'Asset data'!$F53) -> 0.2559668549 | DK53: =IF('Asset data'!$F53=0,0,BA53/'Asset data'!$F53) -> 0.3142370195 | DL53: =IF('Asset data'!$F53=0,0,BB53/'Asset data'!$F53) -> 0.3802452891 | DM53: =IF('Asset data'!$F53=0,0,BC53/'Asset data'!$F53) -> 0.4535393831 | DN53: =IF('Asset data'!$F53=0,0,BD53/'Asset data'!$F53) -> 0.5332402517 | DO53: =IF('Asset data'!$F53=0,0,BE53/'Asset data'!$F53) -> 0.6180163788 | DP53: =IF('Asset data'!$F53=0,0,BF53/'Asset data'!$F53) -> 0.7060880358 | DQ53: =IF('Asset data'!$F53=0,0,BG53/'Asset data'!$F53) -> 0.7952660885 | DR53: =IF('Asset data'!$F53=0,0,BH53/'Asset data'!$F53) -> 0.8830270459 | DS53: =IF('Asset data'!$F53=0,0,BI53/'Asset data'!$F53) -> 0.966622492 | DT53: =IF('Asset data'!$F53=0,0,BJ53/'Asset data'!$F53) -> 1.043217252 | DU53: =IF('Asset data'!$F53=0,0,BK53/'Asset data'!$F53) -> 1.110047088 | DV53: =IF('Asset data'!$F53=0,0,BL53/'Asset data'!$F53) -> 1.164583879 | DW53: =IF('Asset data'!$F53=0,0,BM53/'Asset data'!$F53) -> 1.204694567 | DX53: =IF('Asset data'!$F53=0,0,BN53/'Asset data'!$F53) -> 1.228779915 | DY53: =IF('Asset data'!$F53=0,0,BO53/'Asset data'!$F53) -> 1.235880503 | DZ53: =IF('Asset data'!$F53=0,0,BP53/'Asset data'!$F53) -> 1.225740169 | EA53: =IF('Asset data'!$F53=0,0,BQ53/'Asset data'!$F53) -> 1.198821144 | EB53: =IF('Asset data'!$F53=0,0,BR53/'Asset data'!$F53) -> 1.156269742
A54: ='Asset data'!A54 -> 0 | B54: ='Asset data'!B54 -> 0 | C54: ='Asset data'!C54 -> 0 | D54: ='Asset data'!E54 ->  | E54: 0 | F54: ='Asset data'!G54 -> 60 | G54: 60 | H54: ='Asset data'!H54 -> 7.745966692 | I54: S | J54: =IF(A54=0,0,IF('Asset data'!$D$1=1,1,IF('Asset data'!$D$1=2,2,'Asset data'!I54))) -> 0 | K54: 0 | AX54: ='Age profile summary'!H54 -> 0 | AY54: =repcalc('Age profile (Inst)'!CT54:GF54,J54,K54,H54,20,$L$20,$M$20) -> 0 | AZ54: 0 | BA54: 0 | BB54: 0 | BC54: 0 | BD54: 0 | BE54: 0 | BF54: 0 | BG54: 0 | BH54: 0 | BI54: 0 | BJ54: 0 | BK54: 0 | BL54: 0 | BM54: 0 | BN54: 0 | BO54: 0 | BP54: 0 | BQ54: 0 | BR54: 0 | BS54: 0 | BT54: 0 | BU54: 0 | BV54: 0 | BW54: 0 | BX54: 0 | BY54: 0 | BZ54: 0 | CA54: 0 | CB54: 0 | CC54: 0 | CD54: 0 | CE54: 0 | CF54: 0 | CG54: 0 | CH54: 0 | CI54: 0 | CJ54: 0 | CK54: 0 | CL54: 0 | CM54: 0 | CN54: 0 | CO54: 0 | CP54: 0 | CQ54: 0 | CR54: 0 | CS54: 0 | CT54: 0 | CU54: 0 | CV54: 0 | CW54: 0 | CX54: 0 | CY54: 0 | CZ54: 0 | DA54: 0 | DB54: 0 | DC54: 0 | DD54: 0 | DE54: 0 | DF54: 0 | DG54: 0 | DH54: 0 | DI54: =IF('Asset data'!$F54=0,0,AY54/'Asset data'!$F54) -> 0 | DJ54: =IF('Asset data'!$F54=0,0,AZ54/'Asset data'!$F54) -> 0 | DK54: =IF('Asset data'!$F54=0,0,BA54/'Asset data'!$F54) -> 0 | DL54: =IF('Asset data'!$F54=0,0,BB54/'Asset data'!$F54) -> 0 | DM54: =IF('Asset data'!$F54=0,0,BC54/'Asset data'!$F54) -> 0 | DN54: =IF('Asset data'!$F54=0,0,BD54/'Asset data'!$F54) -> 0 | DO54: =IF('Asset data'!$F54=0,0,BE54/'Asset data'!$F54) -> 0 | DP54: =IF('Asset data'!$F54=0,0,BF54/'Asset data'!$F54) -> 0 | DQ54: =IF('Asset data'!$F54=0,0,BG54/'Asset data'!$F54) -> 0 | DR54: =IF('Asset data'!$F54=0,0,BH54/'Asset data'!$F54) -> 0 | DS54: =IF('Asset data'!$F54=0,0,BI54/'Asset data'!$F54) -> 0 | DT54: =IF('Asset data'!$F54=0,0,BJ54/'Asset data'!$F54) -> 0 | DU54: =IF('Asset data'!$F54=0,0,BK54/'Asset data'!$F54) -> 0 | DV54: =IF('Asset data'!$F54=0,0,BL54/'Asset data'!$F54) -> 0 | DW54: =IF('Asset data'!$F54=0,0,BM54/'Asset data'!$F54) -> 0 | DX54: =IF('Asset data'!$F54=0,0,BN54/'Asset data'!$F54) -> 0 | DY54: =IF('Asset data'!$F54=0,0,BO54/'Asset data'!$F54) -> 0 | DZ54: =IF('Asset data'!$F54=0,0,BP54/'Asset data'!$F54) -> 0 | EA54: =IF('Asset data'!$F54=0,0,BQ54/'Asset data'!$F54) -> 0 | EB54: =IF('Asset data'!$F54=0,0,BR54/'Asset data'!$F54) -> 0
A55: ='Asset data'!A55 -> 0 | B55: ='Asset data'!B55 -> 0 | C55: ='Asset data'!C55 -> 0 | D55: ='Asset data'!E55 ->  | E55: 0 | F55: ='Asset data'!G55 -> 60 | G55: 60 | H55: ='Asset data'!H55 -> 7.745966692 | I55: S | J55: =IF(A55=0,0,IF('Asset data'!$D$1=1,1,IF('Asset data'!$D$1=2,2,'Asset data'!I55))) -> 0 | K55: 0 | AX55: ='Age profile summary'!H55 -> 0 | AY55: =repcalc('Age profile (Inst)'!CT55:GF55,J55,K55,H55,20,$L$20,$M$20) -> 0 | AZ55: 0 | BA55: 0 | BB55: 0 | BC55: 0 | BD55: 0 | BE55: 0 | BF55: 0 | BG55: 0 | BH55: 0 | BI55: 0 | BJ55: 0 | BK55: 0 | BL55: 0 | BM55: 0 | BN55: 0 | BO55: 0 | BP55: 0 | BQ55: 0 | BR55: 0 | BS55: 0 | BT55: 0 | BU55: 0 | BV55: 0 | BW55: 0 | BX55: 0 | BY55: 0 | BZ55: 0 | CA55: 0 | CB55: 0 | CC55: 0 | CD55: 0 | CE55: 0 | CF55: 0 | CG55: 0 | CH55: 0 | CI55: 0 | CJ55: 0 | CK55: 0 | CL55: 0 | CM55: 0 | CN55: 0 | CO55: 0 | CP55: 0 | CQ55: 0 | CR55: 0 | CS55: 0 | CT55: 0 | CU55: 0 | CV55: 0 | CW55: 0 | CX55: 0 | CY55: 0 | CZ55: 0 | DA55: 0 | DB55: 0 | DC55: 0 | DD55: 0 | DE55: 0 | DF55: 0 | DG55: 0 | DH55: 0 | DI55: =IF('Asset data'!$F55=0,0,AY55/'Asset data'!$F55) -> 0 | DJ55: =IF('Asset data'!$F55=0,0,AZ55/'Asset data'!$F55) -> 0 | DK55: =IF('Asset data'!$F55=0,0,BA55/'Asset data'!$F55) -> 0 | DL55: =IF('Asset data'!$F55=0,0,BB55/'Asset data'!$F55) -> 0 | DM55: =IF('Asset data'!$F55=0,0,BC55/'Asset data'!$F55) -> 0 | DN55: =IF('Asset data'!$F55=0,0,BD55/'Asset data'!$F55) -> 0 | DO55: =IF('Asset data'!$F55=0,0,BE55/'Asset data'!$F55) -> 0 | DP55: =IF('Asset data'!$F55=0,0,BF55/'Asset data'!$F55) -> 0 | DQ55: =IF('Asset data'!$F55=0,0,BG55/'Asset data'!$F55) -> 0 | DR55: =IF('Asset data'!$F55=0,0,BH55/'Asset data'!$F55) -> 0 | DS55: =IF('Asset data'!$F55=0,0,BI55/'Asset data'!$F55) -> 0 | DT55: =IF('Asset data'!$F55=0,0,BJ55/'Asset data'!$F55) -> 0 | DU55: =IF('Asset data'!$F55=0,0,BK55/'Asset data'!$F55) -> 0 | DV55: =IF('Asset data'!$F55=0,0,BL55/'Asset data'!$F55) -> 0 | DW55: =IF('Asset data'!$F55=0,0,BM55/'Asset data'!$F55) -> 0 | DX55: =IF('Asset data'!$F55=0,0,BN55/'Asset data'!$F55) -> 0 | DY55: =IF('Asset data'!$F55=0,0,BO55/'Asset data'!$F55) -> 0 | DZ55: =IF('Asset data'!$F55=0,0,BP55/'Asset data'!$F55) -> 0 | EA55: =IF('Asset data'!$F55=0,0,BQ55/'Asset data'!$F55) -> 0 | EB55: =IF('Asset data'!$F55=0,0,BR55/'Asset data'!$F55) -> 0
